Workbook

Sheet AER only (hidden)
B1: Data in these columns used for data validation and database purposes.
B2: Date last modified: | C2: 2017-01-16 | D2: added (Albury and Victora) for AGN
AC4: FOR ELECTRICITY BUSINESSES ONLY
AC5: Feeder Types | AG5: TasNetworks (D) | AH5: MAIFI flag | AI5: Feeder Names
AC6: CBD | AD6: Urban | AE6: Short rural | AF6: long rural | AG6: EXTRA
B7: dms_TradingName_List | C7: dms_TradingNameFull_List | D7: dms_ABN_List | E7: dms_JurisdictionList | F7: dms_Sector_List | G7: dms_Segment_List | H7: dms_FormControl_List | I7: dms_RPT_List | J7: dms_RPTMonth_List | K7: dms_CRCPlength_List | L7: dms_FRCPlength_List | M7: dms_663_List | N7: dms_DeterminationRef_List | O7: dms_Addr1_List | P7: dms_Addr2_List | Q7: dms_Suburb_List | R7: dms_State_List | S7: dms_PostCode_List | T7: dms_PAddr1_List | U7: dms_PAddr2_List | V7: dms_PSuburb_List | W7: dms_PState_List | X7: dms_PPostCode_List | Y7: dms_ContactName1_List | Z7: dms_ContactPh1_List | AA7: dms_ContactEmail_List | AC7: dms_CBD_flag | AD7: dms_Urban_flag | AE7: dms_ShortRural_flag | AF7: dms_LongRural_flag | AG7: dms_FeederType_5_flag | AH7: dms_MAIFI_flag_List | AI7: dms_FeederName_1 | AJ7: dms_FeederName_2 | AK7: dms_FeederName_3 | AL7: dms_FeederName_4 | AM7: dms_FeederName_5
B8: ActewAGL Distribution | C8: ActewAGL Distribution | D8: 76670568688 | E8: ACT | F8: Electricity | G8: Distribution | H8: Revenue cap | I8: Financial | J8: June | K8: 5 | L8: 5 | M8: 5 | N8: 2014-19 Distribution Determination | O8: 40 Bunda Street | Q8: CANBERRA | R8: ACT | S8: 2600 | T8: GPO BOX 366 | V8: CANBERRA | W8: ACT | X8: 2601 | Y8: Robert Walker | Z8: 02 6248 3847 | AA8: robert.walker@actewagle.com.au | AC8: NO | AD8: YES | AE8: YES | AF8: NO | AG8: NO | AI8: CBD | AJ8: Urban | AK8: Short rural | AL8: Long rural | AN8: ActewAGL Distribution
B9: ActewAGL Distribution (Tx Assets) | C9: ActewAGL Distribution (Tx Assets) | D9: 76670568688 | E9: ACT | F9: Electricity | G9: Distribution | H9: Revenue cap | I9: Financial | J9: June | K9: 5 | L9: 5 | M9: 5 | N9: distribution determination | O9: 40 Bunda Street | Q9: CANBERRA | R9: ACT | S9: 2600 | T9: GPO BOX 366 | V9: CANBERRA | W9: ACT | X9: 2601 | Y9: Robert Walker | Z9: 02 6248 3847 | AA9: robert.walker@actewagle.com.au | AI9: CBD | AJ9: Urban | AK9: Short rural | AL9: Long rural | AN9: ActewAGL Distribution (Tx Assets)
B10: ActewAGL Gas | C10: ActewAGL Gas | D10: 76670568688 | E10: ACT | F10: Gas | G10: Distribution | H10: Weighted average price cap | I10: Financial | J10: June | K10: 5 | L10: 5 | M10: x | O10: 40 Bunda Street | Q10: CANBERRA | R10: ACT | S10: 2600 | T10: GPO BOX 366 | V10: CANBERRA | W10: ACT | X10: 2601 | Y10: Philip Deamer | Z10: 02 6248 3438 | AA10: GasAAReview@actewagl.com.au | AN10: ActewAGL Gas
B11: AGN (Albury) | C11: Australian Gas Networks Limited (reporting data for Albury) | D11: 19078551685 | E11: Vic | F11: Gas | G11: Distribution | H11: Weighted average price cap | I11: Calendar | J11: December | K11: 5 | L11: 5 | M11: x | O11: Level 6 | P11: 400 King William Street | Q11: ADELAIDE | R11: SA | S11: 5000 | T11: PO Box 6468 | U11: Halifax Street | V11: ADELAIDE | W11: SA | X11: 5000 | Y11: Craig de Laine | Z11: 08 8418 1129 | AA11: craig.delaine@agn.com.au | AI11: CBD | AJ11: Urban | AK11: Short rural | AL11: Long rural | AN11: AGN (Albury)
B12: AGN (Albury and Victoria) | C12: Australian Gas Networks Limited (reporting data for Albury and Victoria) | D12: 19078551685 | E12: Vic | F12: Gas | G12: Distribution | H12: Weighted average price cap | I12: Calendar | J12: December | K12: 5 | L12: 5 | M12: x | O12: Level 6 | P12: 400 King William Street | Q12: ADELAIDE | R12: SA | S12: 5000 | T12: PO Box 6468 | U12: Halifax Street | V12: ADELAIDE | W12: SA | X12: 5000 | Y12: Craig de Laine | Z12: 08 8418 1129 | AA12: craig.delaine@agn.com.au | AI12: CBD | AJ12: Urban | AK12: Short rural | AL12: Long rural
B13: AGN (SA) | C13: Australian Gas Networks Limited (reporting data for SA) | D13: 19078551685 | E13: SA | F13: Gas | G13: Distribution | H13: Weighted average price cap | I13: Financial | J13: June | K13: 5 | L13: 5 | M13: 5 | N13: distribution determination | O13: Level 6 | P13: 400 King William Street | Q13: ADELAIDE | R13: SA | S13: 5000 | T13: PO Box 6468 | U13: Halifax Street | V13: ADELAIDE | W13: SA | X13: 5000 | Y13: Craig de Laine | Z13: 08 8418 1129 | AA13: craig.delaine@agn.com.au | AN13: AGN (SA)
B14: AGN (Victoria) | C14: Australian Gas Networks Limited (reporting data for Victoria) | D14: 19078551685 | E14: Vic | F14: Gas | G14: Distribution | H14: Weighted average price cap | I14: Calendar | J14: December | K14: 5 | L14: 5 | M14: x | AN14: AGN (Victoria)
B15: Amadeus | C15: APT Pipelines (NT) Pty Ltd | D15: 39009737393 | E15: NT | F15: Gas | G15: Transmission | H15: Weighted average price cap | I15: Financial | J15: June | K15: 5 | L15: 5 | M15: x | N15: n/a | O15: Level 19, HSBC Building | P15: 580 George Street | Q15: SYDNEY | R15: NSW | S15: 2000 | T15: Level 19, HSBC Building | U15: 580 George Street | V15: SYDNEY | W15: NSW | X15: 2000 | Y15: Alexandra Curran | Z15: 02 9275 0020 | AA15: alexandra.curran@apa.com.au | AN15: Amadeus
B16: APA GasNet | C16: APA GasNet Australia (Operations) Pty Ltd | D16: 065083009 | E16: Vic | F16: Gas | G16: Transmission | H16: Weighted average price cap | I16: Calendar | J16: December | K16: 5 | L16: 5 | M16: x | O16: Level 19, HSBC Building | P16: 580 George Street | Q16: SYDNEY | R16: NSW | S16: 2000 | T16: PO Box R41 | V16: ROYAL EXCHANGE | W16: NSW | X16: 1225 | Z16: 02 9693 0000 | AN16: APA GasNet
B17: Ausgrid | C17: Ausgrid | D17: 67505337385 | E17: NSW | F17: Electricity | G17: Distribution | H17: Revenue cap | I17: Financial | J17: June | K17: 5 | L17: 5 | M17: 5 | N17: 2014-19 Distribution Determination | O17: 570 George St | Q17: SYDNEY | R17: NSW | S17: 2000 | Y17: John Thomson | Z17: (02) 9269 2312 | AA17: john.thomson@ausgrid.com.au | AC17: YES | AD17: YES | AE17: YES | AF17: YES | AG17: NO | AI17: CBD | AJ17: Urban | AK17: Short rural | AL17: Long rural | AN17: Ausgrid
B18: Ausgrid (Tx Assets) | C18: Ausgrid (Tx Assets) | D18: 67505337385 | E18: NSW | F18: Electricity | G18: Distribution | H18: Revenue cap | I18: Financial | J18: June | K18: 5 | L18: 5 | M18: 5 | N18: distribution determination | R18: NSW | AI18: CBD | AJ18: Urban | AK18: Short rural | AL18: Long rural | AN18: Ausgrid (Tx Assets)
B19: AusNet (D) | C19: AusNet Services (D) | D19: 91064651118 | E19: Vic | F19: Electricity | G19: Distribution | H19: Revenue cap | I19: Calendar | J19: December | K19: 5 | L19: 5 | M19: 2 | N19: 2016-20 Distribution Determination | O19: Level 32 | P19: 2 Southbank Boulevard | Q19: SOUTHBANK | R19: Vic | S19: 3006 | T19: Locked Bag 14051 | V19: MELBOURNE CITY MAIL CENTRE | W19: VIC | X19: 8001 | Y19: Hannah Williams | Z19: 03 9683 4088 | AA19: hwilliams@powercor.com.au | AD19: YES | AE19: YES | AF19: YES | AG19: NO | AI19: CBD | AJ19: Urban | AK19: Short rural | AL19: Long rural | AN19: AusNet (D)
B20: AusNet (Gas) | C20: AusNet Gas Services | D20: 086015036 | E20: Vic | F20: Gas | G20: Distribution | H20: Weighted average price cap | I20: Calendar | J20: December | K20: 5 | L20: 5 | M20: X | AN20: AusNet (Gas)
B21: AusNet (T) | C21: Ausnet Services (Transmission) Ltd | D21: 48116124362 | E21: Vic | F21: Electricity | G21: Transmission | H21: Revenue cap | I21: Financial | J21: March | K21: 5 | L21: 5 | M21: 2 | N21: transmission determination | O21: Level 32 | P21: 2 Southbank Boulevard | Q21: SOUTHBANK | R21: Vic | S21: 3006 | T21: Locked Bag 14051 | V21: MELBOURNE CITY MAIL CENTRE | W21: Vic | X21: 8001 | Y21: Clare Thompson | Z21: 03 9695 6670 | AA21: clare.e.thompson@ausnetservices.com.au | AI21: CBD | AJ21: Urban | AK21: Short rural | AL21: Long rural | AN21: AusNet (T)
B22: Australian Distribution Co. | C22: Australian Distribution Co. | D22: 11222333444 | E22: - | F22: Electricity | G22: Distribution | H22: Revenue cap | I22: Financial | J22: June | K22: 5 | L22: 5 | M22: 2 | N22: distribution determination | O22: 123 Straight Street | Q22: SYDNEY | R22: NSW | S22: 2000 | T22: PO Box 123 | V22: SYDNEY | W22: NSW | X22: 2000 | Y22: Bob Smith | Z22: 02 1234 5678 | AA22: bob@auselec.net.au | AI22: CBD | AJ22: Urban | AK22: Short rural | AL22: Long rural | AN22: Australian Distribution Co.
B23: Australian Distribution Co. (Vic) | C23: Australian Distribution Co. (Victoria) | D23: 11222333444 | E23: Vic | F23: Electricity | G23: Distribution | H23: Revenue cap | I23: Calendar | J23: December | K23: 5 | L23: 5 | M23: 2 | N23: distribution determination | O23: 123 Straight Street | Q23: MELBOURNE | R23: Vic | S23: 3000 | T23: PO Box 123 | V23: MELBOURNE | W23: VIC | X23: 3000 | Y23: Bob Smith | Z23: 02 1234 5678 | AA23: bob@auselec.net.au | AI23: CBD | AJ23: Urban | AK23: Short rural | AL23: Long rural | AN23: Australian Distribution Co. (Vic)
B24: Australian Transmission Co. | C24: Australian Transmission Co. | D24: 11222333444 | E24: - | F24: Electricity | G24: Transmission | H24: Revenue cap | I24: Financial | J24: June | K24: 5 | L24: 5 | M24: 5 | N24: transmission determination | O24: 123 Straight Street | Q24: SYDNEY | R24: NSW | S24: 2000 | T24: PO Box 123 | V24: SYDNEY | W24: NSW | X24: 2000 | Y24: Bob Smith | Z24: 02 1234 5678 | AA24: bob@auselec.net.au | AI24: CBD | AJ24: Urban | AK24: Short rural | AL24: Long rural | AN24: Australian Transmission Co.
B25: CitiPower | C25: CitiPower | D25: 76064651056 | E25: Vic | F25: Electricity | G25: Distribution | H25: Revenue cap | I25: Calendar | J25: December | K25: 5 | L25: 5 | M25: 2 | N25: 2016-20 Distribution Determination | O25: 40 Market Street | Q25: MELBOURNE | R25: Vic | S25: 3000 | T25: Locked Bag 14090 | V25: MELBOURNE | W25: VIC | X25: 8001 | Y25: Hannah Williams | Z25: 03 9683 4088 | AA25: hwilliams@powercor.com.au | AC25: YES | AD25: YES | AE25: NO | AF25: NO | AG25: NO | AI25: CBD | AJ25: Urban | AK25: Short rural | AL25: Long rural | AN25: CitiPower
B26: Directlink | C26: Directlink | D26: 16779340889 | E26: Qld | F26: Electricity | G26: Transmission | H26: Revenue cap | I26: Financial | J26: June | K26: 9 | L26: 5 | M26: 5 | N26: transmission determination | R26: NSW | AI26: CBD | AJ26: Urban | AK26: Short rural | AL26: Long rural | AN26: Directlink
B27: ElectraNet | C27: ElectraNet | D27: 41094482416 | E27: SA | F27: Electricity | G27: Transmission | H27: Revenue cap | I27: Financial | J27: June | K27: 5 | L27: 5 | M27: 5 | N27: transmission determination | O27: 52-55 East Terrace | P27: Rymill Park | Q27: ADELAIDE | R27: SA | S27: 5000 | T27: PO Box 7096 | U27: Hutt Street Post Office | V27: ADELAIDE | W27: SA | X27: 5000 | Y27: Bill Jackson | Z27: 08 8404 7969 | AA27: jackson.bill@electranet.com.au | AI27: CBD | AJ27: Urban | AK27: Short rural | AL27: Long rural | AN27: ElectraNet
B28: Endeavour Energy | C28: Endeavour Energy | D28: 59253130878 | E28: NSW | F28: Electricity | G28: Distribution | H28: Revenue cap | I28: Financial | J28: June | K28: 5 | L28: 5 | M28: 5 | N28: 2014-19 Distribution Determination | O28: 51 Huntingwood Drive | Q28: HUNTINGWOOD | R28: NSW | S28: 2148 | T28: PO Box 811 | V28: SEVEN HILLS | W28: NSW | X28: 1730 | Y28: Jon Hocking | Z28: 02 9853 4386 / 0407 348 156 | AA28: Jon.Hocking@Endeavourenergy.com.au | AC28: NO | AD28: YES | AE28: YES | AF28: YES | AG28: NO | AI28: CBD | AJ28: Urban | AK28: Short rural | AL28: Long rural | AN28: Endeavour Energy
B29: Energex | C29: Energex | D29: 40078849055 | E29: Qld | F29: Electricity | G29: Distribution | H29: Revenue cap | I29: Financial | J29: June | K29: 5 | L29: 5 | M29: 5 | N29: 2015-20 Distribution Determination | O29: 26 Reddacliff Street | Q29: NEWSTEAD | R29: Qld | S29: 4006 | T29: 26 Reddacliff Street | V29: NEWSTEAD | W29: QLD | X29: 4006 | Y29: Nicola Roscoe | Z29: 07 3664 5891 | AA29: nicolaroscoe@energex.com.au | AC29: YES | AD29: YES | AE29: YES | AF29: NO | AG29: NO | AI29: CBD | AJ29: Urban | AK29: Short rural | AL29: Long rural | AN29: Energex
B30: Ergon Energy | C30: Ergon Energy | D30: 50087646062 | E30: Qld | F30: Electricity | G30: Distribution | H30: Revenue cap | I30: Financial | J30: June | K30: 5 | L30: 5 | M30: 5 | N30: 2015-20 Distribution Determination | O30: 22 Walker Street | Q30: TOWNSVILLE | R30: Qld | S30: 4810 | T30: Po Box 264 | V30: FORTITUDE VALLEY | W30: QLD | X30: 4006 | Y30: Jenny Doyle, Group Manager Regulatory Affairs | Z30: (07) 3851 6416 | AA30: jenny.doyle@ergon.com.au | AC30: NO | AD30: YES | AE30: YES | AF30: YES | AG30: NO | AI30: CBD | AJ30: Urban | AK30: Short rural | AL30: Long rural | AN30: Ergon Energy
B31: Essential Energy | C31: Essential Energy | D31: 37428185226 | E31: NSW | F31: Electricity | G31: Distribution | H31: Revenue cap | I31: Financial | J31: June | K31: 5 | L31: 5 | M31: 5 | N31: 2014-19 Distribution Determination | O31: 8 Buller Street | Q31: PORT MACQUARIE | R31: NSW | S31: 2444 | T31: PO Box 5730 | V31: PORT MACQUARIE | W31: NSW | X31: 2444 | Y31: Catherine Waddell | Z31: 02 6338 3553 | AA31: catherine.waddell@essentialenergy.com.au | AE31: YES | AF31: YES | AG31: NO | AI31: CBD | AJ31: Urban | AK31: Short rural | AL31: Long rural | AN31: Essential Energy
B32: Jemena Electricity | C32: Jemena Electricity | D32: 82064651083 | E32: Vic | F32: Electricity | G32: Distribution | H32: Revenue cap | I32: Calendar | J32: December | K32: 5 | L32: 5 | M32: 2 | N32: 2016-20 Distribution Determination | O32: Level 16 | P32: 567 Collins Street | Q32: MELBOURNE | R32: VIC | S32: 3000 | T32: PO Box 16182 | V32: MELBOURNE | W32: VIC | X32: 8001 | Y32: Robert McMillan | Z32: 03 9173 7000 | AA32: robert.mcmillan@jemena.com.au | AE32: YES | AF32: NO | AG32: NO | AI32: CBD | AJ32: Urban | AK32: Short rural | AL32: Long rural | AN32: Jemena Electricity
B33: JGN | C33: Jemena Gas Networks (NSW) Ltd | D33: 003 004 322 | E33: NSW | F33: Gas | G33: Distribution | H33: Weighted average price cap | I33: Financial | J33: June | K33: 5 | L33: 5 | AN33: JGN
B34: Multinet Gas | C34: Multinet Gas (DB No.1) Pty Ltd (ACN 086 026 986), Multinet Gas (DB No.2) Pty Ltd (ACN 086 230 122) | D34: 086026986 | E34: Vic | F34: Gas | G34: Distribution | H34: Weighted average price cap | I34: Calendar | J34: December | K34: 5 | L34: 5 | M34: x | O34: 6 Nexus Court | Q34: MULGRAVE | R34: Vic | S34: 3149 | Y34: Stephanie McDougall | Z34: 03 8846 9538 | AA34: Stephanie.McDougall@ue.com.au | AN34: Multinet Gas
B35: Murraylink | C35: Murraylink | D35: 79181207909 | E35: SA | F35: Electricity | G35: Transmission | H35: Revenue cap | I35: Financial | J35: June | K35: 5 | L35: 5 | M35: 5 | N35: transmission determination | AI35: CBD | AJ35: Urban | AK35: Short rural | AL35: Long rural | AN35: Murraylink
B36: Powercor Australia | C36: Powercor Australia | D36: 89064651109 | E36: Vic | F36: Electricity | G36: Distribution | H36: Revenue cap | I36: Calendar | J36: December | K36: 5 | L36: 5 | M36: 2 | N36: 2016-20 Distribution Determination | O36: 40 Market Street | Q36: MELBOURNE | R36: Vic | S36: 3000 | T36: Locked bag 14090 | V36: MELBOURNE | W36: VIC | X36: 8001 | Y36: Hannah Williams | Z36: 03 9683 4088 | AA36: hwilliams@powercor.com.au | AE36: YES | AF36: YES | AG36: NO | AI36: CBD | AJ36: Urban | AK36: Short rural | AL36: Long rural | AN36: Powercor Australia
B37: Powerlink | C37: Queensland Electricity Transmission Corporation Limited trading as Powerlink Queensland | D37: 82078849233 | E37: Qld | F37: Electricity | G37: Transmission | H37: Revenue cap | I37: Financial | J37: June | K37: 5 | L37: 5 | M37: 5 | N37: transmission determination | O37: 33 Harold St | Q37: VIRGINIA | R37: Qld | S37: 4014 | T37: PO Box 1193 | V37: VIRGINIA | W37: QLD | X37: 4014 | Y37: Jennifer Harris | Z37: 07 3860 2667 | AA37: jharris@powerlink.com.au | AI37: CBD | AJ37: Urban | AK37: Short rural | AL37: Long rural | AN37: Powerlink
B38: Roma to Brisbane Pipeline | C38: APT Petroleum Pipelines Limited t/a Roma to Brisbane Pipeline | D38: 009 737 393 | E38: Qld | F38: Gas | G38: Transmission | H38: Weighted average price cap | I38: Financial | J38: June | K38: 5 | L38: 5 | M38: x | N38: n/a | AI38: CBD | AJ38: Urban | AK38: Short rural | AL38: Long rural | AN38: Roma to Brisbane Pipeline
B39: SA Power Networks | C39: SA Power Networks | D39: 13332330749 | E39: SA | F39: Electricity | G39: Distribution | H39: Revenue cap | I39: Financial | J39: June | K39: 5 | L39: 5 | M39: 5 | N39: 2015-20 Distribution Determination | O39: 1 Anzac Highway | Q39: KESWICK | R39: SA | S39: 5035 | T39: GPO Box 77 | V39: ADELAIDE | W39: SA | X39: 5000 | Y39: Damien O'Connor | Z39: 08 8404 5066 | AA39: damien.oconnor@sapowernetworks.com.au | AE39: YES | AF39: YES | AG39: NO | AI39: CBD | AJ39: Urban | AK39: Short rural | AL39: Long rural | AN39: SA Power Networks
B40: TasNetworks (D) | C40: TasNetworks (D) | D40: 24167357299 | E40: Tas | F40: Electricity | G40: Distribution | H40: Revenue cap | I40: Financial | J40: June | K40: 5 | L40: 5 | M40: 5 | N40: distribution determination | O40: 21 Kirksway Place | Q40: HOBART | R40: Tas | S40: 7000 | T40: GPO Box 191 | V40: HOBART | W40: Tas | X40: 7000 | Y40: Leigh Mayne | Z40: 03 6270 3691 | AA40: rrp2012@auroraenergy.com.au | AE40: YES | AF40: YES | AG40: YES | AI40: Critical Infrastructure | AJ40: High density commercial | AK40: Urban | AL40: High density rural | AM40: Low density rural | AN40: TasNetworks (D)
B41: TasNetworks (T) | C41: TasNetworks (T) | D41: 24167357299 | E41: Tas | F41: Electricity | G41: Transmission | H41: Revenue cap | I41: Financial | J41: June | K41: 5 | L41: 5 | M41: 5 | N41: transmission determination | O41: 1-7 Maria Street | Q41: LENAH VALLEY | R41: Tas | S41: 7008 | T41: PO Box 606 | V41: MOONAH | W41: Tas | X41: 7009 | Y41: Heath Dillon | Z41: 03 6274 3664 | AA41: heath.dillon@transend.com.au | AI41: CBD | AJ41: Urban | AK41: Short rural | AL41: Long rural | AN41: TasNetworks (T)
B42: TransGrid | C42: NSW Electricity Networks Operations Pty Ltd trading as TransGrid | D42: 609169959 | E42: NSW | F42: Electricity | G42: Transmission | H42: Revenue cap | I42: Financial | J42: June | K42: 5 | L42: 4 | M42: 5 | N42: transmission determination | O42: 180 Thomas Street | Q42: SYDNEY | R42: NSW | S42: 2000 | T42: PO Box A1000 | V42: SYDNEY SOUTH | W42: NSW | X42: 1235 | Y42: Garrie Chubb | Z42: 0408 210 221 | AA42: garrie.chubb@transgrid.com.au | AI42: CBD | AJ42: Urban | AK42: Short rural | AL42: Long rural | AN42: TransGrid
B43: United Energy | C43: United Energy | D43: 70064651029 | E43: Vic | F43: Electricity | G43: Distribution | H43: Revenue cap | I43: Calendar | J43: December | K43: 5 | L43: 5 | M43: 2 | N43: 2016-20 Distribution Determination | O43: Level 3 | P43: 6 Nexus Court | Q43: MULGRAVE | R43: Vic | S43: 3149 | T43: PO Box 449 | V43: MOUNT WAVERLEY | W43: VIC | X43: 3170 | Y43: Mathew Abraham | Z43: 03 8846 9758 | AA43: mathew.abraham@ue.com.au | AE43: YES | AF43: NO | AG43: NO | AI43: CBD | AJ43: Urban | AK43: Short rural | AL43: Long rural | AN43: United Energy
B44: Western Power (D) | C44: Western Power (D) | D44: 18540492861 | E44: WA | F44: Electricity | G44: Distribution | H44: Revenue cap | I44: Financial | J44: June | K44: 12 | L44: 4 | M44: x | N44: distribution determination | O44: 363 Wellington Street | Q44: PERTH | R44: WA | S44: 6000 | T44: GPO Box L921 | V44: PERTH | W44: WA | X44: 6842 | Y44: Judy Hunter | Z44: 08 9326 6239 | AA44: judy.hunter@westernpower.com.au | AE44: YES | AF44: YES | AG44: NO | AH44: NO | AI44: CBD | AJ44: Urban | AK44: Short rural | AL44: Long rural | AN44: Western Power (D)
B45: Western Power (T) | C45: Western Power (T) | D45: 18540492861 | E45: WA | F45: Electricity | G45: Transmission | H45: Revenue cap | I45: Financial | J45: June | K45: 12 | L45: 4 | M45: x | N45: transmission determination | O45: 363 Wellington Street | Q45: PERTH | R45: WA | S45: 6000 | T45: GPO Box L921 | V45: PERTH | W45: WA | X45: 6842 | Y45: Judy Hunter | Z45: 08 9326 6239 | AA45: judy.hunter@westernpower.com.au | AE45: YES | AF45: YES | AG45: NO | AI45: CBD | AJ45: Urban | AK45: Short rural | AL45: Long rural | AN45: Western Power (T)
W48: For EB & Reset RINs only | AC48: For AARs only
B49: The Reg Year Ending (dms_RYE) must be set to the last year of the regulatory period. For forecast data is is usually (FRCP_y5) for actual it is a single year (CRY). For historical actual data the RYE will need to be set manually in the business details sheet by setting the dms_Multiyear_flag to 1 and putting the correct value in 'dms_Specified_FinalYear. See cells C67:C68 | G49: =IF(dms_RPT="financial",VALUE(LEFT(CRCP_y1,4)-1)&"-"&TEXT(VALUE(RIGHT(CRCP_y1,2)-1),"00"),VALUE(LEFT(CRCP_y1,4)-1)) -> 2013 | N49: Drop down selector box for CA & Reset RINs. | O49: For CA & Reset RINs only | W49: for DNSP only | AC49: For DNSPs only | AI49: Reason for interruption | AJ49: dms_Reason_Interruption_Detailed | AK49: dms_Reason_Interruption
B50: dms_Model_List | C50: DELETE NR 'CRY' IF NOT AN ANNUAL RIN (EB, CA , ARR) | E50: dms_RYE_Formula_Result | N50: dms_0203_ProjectType | O50: dms_020303_01_UOM | P50: dms_020501_01_UOM | Q50: dms_020501_02_UOM | R50: dms_020501_03_UOM | S50: dms_020501_04_UOM | T50: dms_020603_01_UOM | U50: dms_040102_01_UOM | V50: dms_040102_04_UOM | W50: dms_030601_01_UOM | X50: dms_030601_02_UOM | Y50: dms_030701_01_UOM | Z50: dms_030702_01_UOM | AA50: dms_030703_01_UOM | AC50: dms_030605_UOM | AD50: dms_03060703_UOM | AI50: Animal | AJ50: Animal impact | AK50: Animal
B51: ARR | C51: ANNUAL REPORTING STATEMENT | E51: =LEFT(dms_SingleYear_FinalYear_Result,2)&RIGHT(dms_SingleYear_FinalYear_Result,2) ->  | F51: =LEFT(dms_SingleYear_FinalYear_Result,2)&RIGHT(dms_SingleYear_FinalYear_Result,2) | H51: Formula errors are OK | N51: New line on new route - single circuit | O51: Circuit line length in km | P51: 0's | Q51: 0's | R51: 0's | S51: 0's | T51: 0's | U51: 0's | V51: days | W51: minutes/customer | X51: minutes/customer | Y51: Customer / km | Z51: % | AA51: km | AC51: number | AD51: number | AJ51: Animal nesting/burrowing, etc and other | AK51: Asset failure
B52: CA | C52: CATEGORY ANALYSIS | E52: =LEFT(dms_SingleYear_FinalYear_Result,2)&RIGHT(dms_SingleYear_FinalYear_Result,2) ->  | F52: =LEFT(dms_SingleYear_FinalYear_Result,2)&RIGHT(dms_SingleYear_FinalYear_Result,2) | H52: Formula errors are OK | N52: New line on new route - dual circuit | O52: Circuit line length in km | P52: 0's | Q52: 0's | R52: 0's | S52: 0's | T52: 0's | U52: 0's | V52: 0's | W52: minutes/customer | X52: minutes/customer | Y52: MWh/customer | Z52: Number of spans | AC52: number | AD52: number | AJ52: Other | AK52: Other
B53: CPI | C53: CPI | N53: New line on new route - other | O53: Circuit line length in km | P53: MVA added | Q53: MVA added | R53: MVA added | S53: MVA added | T53: 0's | U53: 0's | V53: $0s | W53: interruptions/customer | X53: interruptions/customer | Y53: kVA / customer | Z53: Number of spans | AC53: number | AD53: number | AI53: Asset failure | AJ53: LV | AK53: Overloads
B54: EB | C54: ECONOMIC BENCHMARKING | E54: =LEFT(dms_SingleYear_FinalYear_Result,2)&RIGHT(dms_SingleYear_FinalYear_Result,2) ->  | F54: =LEFT(dms_SingleYear_FinalYear_Result,2)&RIGHT(dms_SingleYear_FinalYear_Result,2) | H54: Formula errors are OK | N54: Line rebuild over existing route - single circuit | O54: Circuit line length in km | P54: 0's | Q54: 0's | R54: 0's | S54: 0's | T54: 0's | U54: $0s | V54: 0's | W54: interruptions/customer | X54: interruptions/customer | Z54: Number of spans | AC54: number | AD54: number | AJ54: Distribution substation | AK54: Planned
B55: PTRM | C55: POST TAX REVENUE MODEL | E55: =LEFT(dms_MultiYear_FinalYear_Result,2)&RIGHT(dms_MultiYear_FinalYear_Result,2) -> 2023 | F55: =LEFT(dms_MultiYear_FinalYear_Result,2)&RIGHT(dms_MultiYear_FinalYear_Result,2) | N55: Line rebuild over existing route - dual circuit | O55: Number | P55: total spend $0s | Q55: total spend $0s | R55: total spend $0s | S55: total spend $0s | T55: (per cent) | Z55: Number of spans | AC55: number | AD55: (per cent) | AJ55: HV | AK55: Network business
B56: Reset | C56: REGULATORY REPORTING STATEMENT | E56: =LEFT(dms_MultiYear_FinalYear_Result,2)&RIGHT(dms_MultiYear_FinalYear_Result,2) -> 2023 | F56: =LEFT(dms_MultiYear_FinalYear_Result,2)&RIGHT(dms_MultiYear_FinalYear_Result,2) | H56: Formula errors are OK | N56: Reconductor - Single circuit | O56: Number | P56: net circuit km added | Q56: net circuit km added | R56: net circuit km added | S56: net circuit km added | Z56: Years | AC56: number | AJ56: Zone substation | AK56: Third party
B57: RFM | C57: ROLL FORWARD MODEL | E57: =LEFT(dms_CRCP_FinalYear_Result,2)&RIGHT(dms_CRCP_FinalYear_Result,2) -> 2018 | F57: =LEFT(dms_CRCP_FinalYear_Result,2)&RIGHT(dms_CRCP_FinalYear_Result,2) | N57: Reconductor - Dual circuit | O57: Number | P57: total spend $0s | Q57: total spend $0s | R57: total spend $0s | S57: total spend $0s | Z57: Years | AC57: number | AJ57: Subtransmission | AK57: Unknown
B58: WACC | C58: WEIGHTED AVERAGE COST OF CAPITAL | E58: =LEFT(dms_MultiYear_FinalYear_Result,2)&RIGHT(dms_MultiYear_FinalYear_Result,2) -> 2023 | F58: =LEFT(dms_MultiYear_FinalYear_Result,2)&RIGHT(dms_MultiYear_FinalYear_Result,2) | N58: Other | P58: net circuit km added | Q58: net circuit km added | R58: net circuit km added | S58: net circuit km added | Z58: Trees | AC58: number | AI58: Other | AJ58: insert description of 'other' | AK58: Vegetation
P59: total spend $0s | Q59: total spend $0s | R59: total spend $0s | S59: total spend $0s | Z59: Trees | AC59: number | AI59: Overloads | AJ59: - | AK59: Weather
B60: dms_DataQuality_List | P60: 0's | R60: $0s | Z60: Defects | AC60: number | AI60: Planned | AJ60: - | AK60: 2 - STPIS Exclusion (3.3)(a)
B61: Actual | P61: 0's | Z61: Defects | AC61: number | AI61: Network business | AJ61: Network error | AK61: 3 - STPIS Exclusion (3.3)(a)
B62: Estimate | P62: 0's | Z62: Spans | AC62: number | AJ62: Switching and protection error | AK62: 4 - STPIS Exclusion (3.3)(a)
B63: Consolidated | P63: $0s | Z63: km | AC63: (per cent) | AI63: Third party | AJ63: Fire | AK63: 5 - STPIS Exclusion (3.3)(a)
B64: Recast | Z64: Spans | AC64: (per cent) | AJ64: Other | AK64: 6 - STPIS Exclusion (3.3)(a)
B65: Public | AJ65: Dig-in | AK65: 7 - STPIS Exclusion (3.3)(a)
AJ66: Unauthorised access
B67: For all files either AER or business needs to be able to specify the type of submission | C67: For PTRM & RFM templates we must provide a choice in case they change their form of control - otherwise it is drawn from the business specific lookup table above. | O67: For PTRM files - this field set the text for the named range "DMS_Xfactor" which in all cases is simply the text "x factors" - this saves putting in each old gas PTRM file | W67: for TNSP only | AJ67: Vehicle impact
B68: dms_SourceList | C68: dms_FormControl_Choices | O68: DMS_Xfactor | W68: dms_030601_01_UOM | Y68: dms_030701_01_UOM | Z68: dms_030702_01_UOM | AI68: Unknown | AJ68: Unknown
B69: After appeal | C69: Revenue cap | O69: x factors | W69: % | Y69: Number of spans | Z69: km | AI69: Vegetation | AJ69: Blow-in/Fall-in - NSP responsibility
B70: Draft decision | C70: Revenue yield | W70: number | Y70: Years | Z70: % | AJ70: Grow-in - NSP responsibility
B71: Final decision | C71: Weighted average price cap | W71: number | Y71: Trees | Z71: km | AJ71: Blow-in/Fall-in - Other responsible party
B72: PTRM update 1 | W72: % | Y72: Defects | Z72: number | AJ72: Grow-in - Other responsible party
B73: PTRM update 2 | W73: number | Y73: Number of spans | AI73: Weather
B74: PTRM update 3 | W74: number | Y74: km | AI74: 2 - STPIS Exclusion (3.3)(a)
B75: PTRM update 4 | W75: % | Y75: km | AI75: 3 - STPIS Exclusion (3.3)(a)
B76: PTRM update 5 | W76: number | Y76: Number of spans | AI76: 4 - STPIS Exclusion (3.3)(a)
B77: PTRM update 6 | W77: number | AI77: 5 - STPIS Exclusion (3.3)(a)
B78: PTRM update 7 | W78: % | AI78: 6 - STPIS Exclusion (3.3)(a)
B79: Regulatory proposal | W79: number | AI79: 7 - STPIS Exclusion (3.3)(a)
B80: Reporting | W80: %
B81: Revised regulatory proposal | W81: number
W82: %
W83: number
B87: These are indeces and lookup values for various dates. All step from the value placed in FRCP_y1 on the business and other details worksheet | L87: These date tables are currently used in the Recast templates to provide column headings and conditional formatting
B88: dms_FRCPlength_Num_List | C88: dms_FinalYear_List | D88: dms_CRCPlength_Num_List | E88: dms_CFinalYear_List | F88: dms_FRCP_years | H88: dms_CRCP_years | J88: dms_CRCP_index | L88: CRY from input cell on business sheet | M88: CRY - financial | N88: dms_FinYears | O88: CRY calendar | P88: dms_CalYears
B89: 1 | C89: dms_FRCP_y1 | D89: 1 | E89: CRCP_y1 | F89: =FRCP_y1 -> 2019-20 | G89: dms_FRCP_y1 | H89: =IF(dms_RPT="financial",VALUE(LEFT(dms_FRCP_y1,4)-1)&"-"&TEXT(VALUE(MID(dms_FRCP_y1,3,2)),"00"),VALUE(LEFT(dms_FRCP_y1,4)-1)) -> 2018 | I89: dms_CRCP_yZ | J89: 1 | L89: =CRY ->  | M89: =VALUE(LEFT(CRY,4))&"-"&TEXT(MID(CRY,3,2)+1,"00") ->  | N89: dms_CRYf_y1 | O89: =VALUE(LEFT(CRY,4)+1) ->  | P89: dms_CRYc_y1
B90: 2 | C90: dms_FRCP_y2 | D90: 2 | E90: CRCP_y2 | F90: =IF(dms_RPT="financial",VALUE(LEFT(dms_FRCP_y1,4)+1)&"-"&TEXT(VALUE(RIGHT(dms_FRCP_y1,2)+1),"00"),VALUE(LEFT(dms_FRCP_y1,4)+1)) -> 2020 | G90: dms_FRCP_y2 | H90: =IF(dms_RPT="financial",VALUE(LEFT(dms_CRCP_yZ,4)-1)&"-"&TEXT(VALUE(MID(dms_CRCP_yZ,3,2)),"00"),VALUE(LEFT(dms_CRCP_yZ,4)-1)) -> 2017 | I90: dms_CRCP_yY | J90: 2 | M90: =VALUE(LEFT(dms_CRYf_y1,4)+1)&"-"&TEXT(MID(dms_CRYf_y1,3,2)+2,"00") ->  | N90: dms_CRYf_y2 | O90: =VALUE(LEFT(dms_CRYc_y1,4)+1) ->  | P90: dms_CRYc_y2
B91: 3 | C91: dms_FRCP_y3 | D91: 3 | E91: CRCP_y3 | F91: =IF(dms_RPT="financial",VALUE(LEFT(dms_FRCP_y2,4)+1)&"-"&TEXT(VALUE(RIGHT(dms_FRCP_y2,2)+1),"00"),VALUE(LEFT(dms_FRCP_y2,4)+1)) -> 2021 | G91: dms_FRCP_y3 | H91: =IF(dms_RPT="financial",VALUE(LEFT(dms_CRCP_yY,4)-1)&"-"&TEXT(VALUE(MID(dms_CRCP_yY,3,2)),"00"),VALUE(LEFT(dms_CRCP_yY,4)-1)) -> 2016 | I91: dms_CRCP_yX | J91: 3 | M91: =VALUE(LEFT(dms_CRYf_y2,4)+1)&"-"&TEXT(MID(dms_CRYf_y2,3,2)+2,"00") ->  | N91: dms_CRYf_y3 | O91: =VALUE(LEFT(dms_CRYc_y2,4)+1) ->  | P91: dms_CRYc_y3
B92: 4 | C92: dms_FRCP_y4 | D92: 4 | E92: CRCP_y4 | F92: =IF(dms_RPT="financial",VALUE(LEFT(dms_FRCP_y3,4)+1)&"-"&TEXT(VALUE(RIGHT(dms_FRCP_y3,2)+1),"00"),VALUE(LEFT(dms_FRCP_y3,4)+1)) -> 2022 | G92: dms_FRCP_y4 | H92: =IF(dms_RPT="financial",VALUE(LEFT(dms_CRCP_yX,4)-1)&"-"&TEXT(VALUE(MID(dms_CRCP_yX,3,2)),"00"),VALUE(LEFT(dms_CRCP_yX,4)-1)) -> 2015 | I92: dms_CRCP_yW | J92: 4 | M92: =VALUE(LEFT(dms_CRYf_y3,4)+1)&"-"&TEXT(MID(dms_CRYf_y3,3,2)+2,"00") ->  | N92: dms_CRYf_y4 | O92: =VALUE(LEFT(dms_CRYc_y3,4)+1) ->  | P92: dms_CRYc_y4
B93: 5 | C93: dms_FRCP_y5 | D93: 5 | E93: CRCP_y5 | F93: =IF(dms_RPT="financial",VALUE(LEFT(dms_FRCP_y4,4)+1)&"-"&TEXT(VALUE(RIGHT(dms_FRCP_y4,2)+1),"00"),VALUE(LEFT(dms_FRCP_y4,4)+1)) -> 2023 | G93: dms_FRCP_y5 | H93: =IF(dms_RPT="financial",VALUE(LEFT(dms_CRCP_yW,4)-1)&"-"&TEXT(VALUE(MID(dms_CRCP_yW,3,2)),"00"),VALUE(LEFT(dms_CRCP_yW,4)-1)) -> 2014 | I93: dms_CRCP_yV | J93: 5 | M93: =VALUE(LEFT(dms_CRYf_y4,4)+1)&"-"&TEXT(MID(dms_CRYf_y4,3,2)+2,"00") ->  | N93: dms_CRYf_y5 | O93: =VALUE(LEFT(dms_CRYc_y4,4)+1) ->  | P93: dms_CRYc_y5
B94: 6 | C94: dms_FRCP_y6 | D94: 6 | E94: CRCP_y6 | F94: =IF(dms_RPT="financial",VALUE(LEFT(dms_FRCP_y5,4)+1)&"-"&TEXT(VALUE(RIGHT(dms_FRCP_y5,2)+1),"00"),VALUE(LEFT(dms_FRCP_y5,4)+1)) -> 2024 | G94: dms_FRCP_y6 | H94: =IF(dms_RPT="financial",VALUE(LEFT(dms_CRCP_yV,4)-1)&"-"&TEXT(VALUE(MID(dms_CRCP_yV,3,2)),"00"),VALUE(LEFT(dms_CRCP_yV,4)-1)) -> 2013 | I94: dms_CRCP_yU | J94: 6 | M94: =VALUE(LEFT(dms_CRYf_y5,4)+1)&"-"&TEXT(MID(dms_CRYf_y5,3,2)+2,"00") ->  | N94: dms_CRYf_y6 | O94: =VALUE(LEFT(dms_CRYc_y5,4)+1) ->  | P94: dms_CRYc_y6
B95: 7 | C95: dms_FRCP_y7 | D95: 7 | E95: CRCP_y7 | F95: =IF(dms_RPT="financial",VALUE(LEFT(dms_FRCP_y6,4)+1)&"-"&TEXT(VALUE(RIGHT(dms_FRCP_y6,2)+1),"00"),VALUE(LEFT(dms_FRCP_y6,4)+1)) -> 2025 | G95: dms_FRCP_y7 | H95: =IF(dms_RPT="financial",VALUE(LEFT(dms_CRCP_yU,4)-1)&"-"&TEXT(VALUE(MID(dms_CRCP_yU,3,2)),"00"),VALUE(LEFT(dms_CRCP_yU,4)-1)) -> 2012 | I95: dms_CRCP_yT | J95: 7 | M95: =VALUE(LEFT(dms_CRYf_y6,4)+1)&"-"&TEXT(MID(dms_CRYf_y6,3,2)+2,"00") ->  | N95: dms_CRYf_y7 | O95: =VALUE(LEFT(dms_CRYc_y6,4)+1) ->  | P95: dms_CRYc_y7
B96: 8 | C96: dms_FRCP_y8 | D96: 8 | E96: CRCP_y8 | F96: =IF(dms_RPT="financial",VALUE(LEFT(dms_FRCP_y7,4)+1)&"-"&TEXT(VALUE(RIGHT(dms_FRCP_y7,2)+1),"00"),VALUE(LEFT(dms_FRCP_y7,4)+1)) -> 2026 | G96: dms_FRCP_y8 | H96: =IF(dms_RPT="financial",VALUE(LEFT(dms_CRCP_yT,4)-1)&"-"&TEXT(VALUE(MID(dms_CRCP_yT,3,2)),"00"),VALUE(LEFT(dms_CRCP_yT,4)-1)) -> 2011 | I96: dms_CRCP_yS | J96: 8 | M96: =VALUE(LEFT(dms_CRYf_y7,4)+1)&"-"&TEXT(MID(dms_CRYf_y7,3,2)+2,"00") ->  | N96: dms_CRYf_y8 | O96: =VALUE(LEFT(dms_CRYc_y7,4)+1) ->  | P96: dms_CRYc_y8
B97: 9 | C97: dms_FRCP_y9 | D97: 9 | E97: CRCP_y9 | F97: =IF(dms_RPT="financial",VALUE(LEFT(dms_FRCP_y8,4)+1)&"-"&TEXT(VALUE(RIGHT(dms_FRCP_y8,2)+1),"00"),VALUE(LEFT(dms_FRCP_y8,4)+1)) -> 2027 | G97: dms_FRCP_y9 | H97: =IF(dms_RPT="financial",VALUE(LEFT(dms_CRCP_yS,4)-1)&"-"&TEXT(VALUE(MID(dms_CRCP_yS,3,2)),"00"),VALUE(LEFT(dms_CRCP_yS,4)-1)) -> 2010 | I97: dms_CRCP_yR | J97: 9 | M97: =VALUE(LEFT(dms_CRYf_y8,4)+1)&"-"&TEXT(MID(dms_CRYf_y8,3,2)+2,"00") ->  | N97: dms_CRYf_y9 | O97: =VALUE(LEFT(dms_CRYc_y8,4)+1) ->  | P97: dms_CRYc_y9
B98: 10 | C98: dms_FRCP_y10 | D98: 10 | E98: CRCP_y10 | F98: =IF(dms_RPT="financial",VALUE(LEFT(dms_FRCP_y9,4)+1)&"-"&TEXT(VALUE(RIGHT(dms_FRCP_y9,2)+1),"00"),VALUE(LEFT(dms_FRCP_y9,4)+1)) -> 2028 | G98: dms_FRCP_y10 | H98: =IF(dms_RPT="financial",VALUE(LEFT(dms_CRCP_yR,4)-1)&"-"&TEXT(VALUE(MID(dms_CRCP_yR,3,2)),"00"),VALUE(LEFT(dms_CRCP_yR,4)-1)) -> 2009 | I98: dms_CRCP_yQ | J98: 10 | M98: =VALUE(LEFT(dms_CRYf_y9,4)+1)&"-"&TEXT(MID(dms_CRYf_y9,3,2)+2,"00") ->  | N98: dms_CRYf_y10 | O98: =VALUE(LEFT(dms_CRYc_y9,4)+1) ->  | P98: dms_CRYc_y10
B99: 11 | C99: dms_FRCP_y11 | D99: 11 | E99: CRCP_y11 | F99: =IF(dms_RPT="financial",VALUE(LEFT(dms_FRCP_y10,4)+1)&"-"&TEXT(VALUE(RIGHT(dms_FRCP_y10,2)+1),"00"),VALUE(LEFT(dms_FRCP_y10,4)+1)) -> 2029 | G99: dms_FRCP_y11 | H99: =IF(dms_RPT="financial",VALUE(LEFT(dms_CRCP_yQ,4)-1)&"-"&TEXT(VALUE(MID(dms_CRCP_yQ,3,2)),"00"),VALUE(LEFT(dms_CRCP_yQ,4)-1)) -> 2008 | I99: dms_CRCP_yP | J99: 11 | M99: =VALUE(LEFT(dms_CRYf_y10,4)+1)&"-"&TEXT(MID(dms_CRYf_y10,3,2)+2,"00") ->  | N99: dms_CRYf_y11 | O99: =VALUE(LEFT(dms_CRYc_y10,4)+1) ->  | P99: dms_CRYc_y11
B100: 12 | C100: dms_FRCP_y12 | D100: 12 | E100: CRCP_y12 | F100: =IF(dms_RPT="financial",VALUE(LEFT(dms_FRCP_y11,4)+1)&"-"&TEXT(VALUE(RIGHT(dms_FRCP_y11,2)+1),"00"),VALUE(LEFT(dms_FRCP_y11,4)+1)) -> 2030 | G100: dms_FRCP_y12 | H100: =IF(dms_RPT="financial",VALUE(LEFT(dms_CRCP_yP,4)-1)&"-"&TEXT(VALUE(MID(dms_CRCP_yP,3,2)),"00"),VALUE(LEFT(dms_CRCP_yP,4)-1)) -> 2007 | I100: dms_CRCP_yO | J100: 12 | M100: =VALUE(LEFT(dms_CRYf_y11,4)+1)&"-"&TEXT(MID(dms_CRYf_y11,3,2)+2,"00") ->  | N100: dms_CRYf_y12 | O100: =VALUE(LEFT(dms_CRYc_y11,4)+1) ->  | P100: dms_CRYc_y12
B101: 13 | C101: dms_FRCP_y13 | D101: 13 | E101: CRCP_y13 | F101: =IF(dms_RPT="financial",VALUE(LEFT(dms_FRCP_y12,4)+1)&"-"&TEXT(VALUE(RIGHT(dms_FRCP_y12,2)+1),"00"),VALUE(LEFT(dms_FRCP_y12,4)+1)) -> 2031 | G101: dms_FRCP_y13 | H101: =IF(dms_RPT="financial",VALUE(LEFT(dms_CRCP_yO,4)-1)&"-"&TEXT(VALUE(MID(dms_CRCP_yO,3,2)),"00"),VALUE(LEFT(dms_CRCP_yO,4)-1)) -> 2006 | I101: dms_CRCP_yN | J101: 13 | M101: =VALUE(LEFT(dms_CRYf_y12,4)+1)&"-"&TEXT(MID(dms_CRYf_y12,3,2)+2,"00") ->  | N101: dms_CRYf_y13 | O101: =VALUE(LEFT(dms_CRYc_y12,4)+1) ->  | P101: dms_CRYc_y13
B102: 14 | C102: dms_FRCP_y14 | D102: 14 | E102: CRCP_y14 | F102: =IF(dms_RPT="financial",VALUE(LEFT(dms_FRCP_y13,4)+1)&"-"&TEXT(VALUE(RIGHT(dms_FRCP_y13,2)+1),"00"),VALUE(LEFT(dms_FRCP_y13,4)+1)) -> 2032 | G102: dms_FRCP_y14 | H102: =IF(dms_RPT="financial",VALUE(LEFT(dms_CRCP_yN,4)-1)&"-"&TEXT(VALUE(MID(dms_CRCP_yN,3,2)),"00"),VALUE(LEFT(dms_CRCP_yN,4)-1)) -> 2005 | I102: dms_CRCP_yM | J102: 14 | M102: =VALUE(LEFT(dms_CRYf_y13,4)+1)&"-"&TEXT(MID(dms_CRYf_y13,3,2)+2,"00") ->  | N102: dms_CRYf_y14 | O102: =VALUE(LEFT(dms_CRYc_y13,4)+1) ->  | P102: dms_CRYc_y14
B103: 15 | C103: dms_FRCP_y15 | D103: 15 | E103: CRCP_y15 | F103: =IF(dms_RPT="financial",VALUE(LEFT(dms_FRCP_y14,4)+1)&"-"&TEXT(VALUE(RIGHT(dms_FRCP_y14,2)+1),"00"),VALUE(LEFT(dms_FRCP_y14,4)+1)) -> 2033 | G103: dms_FRCP_y15 | H103: =IF(dms_RPT="financial",VALUE(LEFT(dms_CRCP_yM,4)-1)&"-"&TEXT(VALUE(MID(dms_CRCP_yM,3,2)),"00"),VALUE(LEFT(dms_CRCP_yM,4)-1)) -> 2004 | I103: dms_CRCP_yL | J103: 15 | M103: =VALUE(LEFT(dms_CRYf_y14,4)+1)&"-"&TEXT(MID(dms_CRYf_y14,3,2)+2,"00") ->  | N103: dms_CRYf_y15 | O103: =VALUE(LEFT(dms_CRYc_y14,4)+1) ->  | P103: dms_CRYc_y15
M104: =VALUE(LEFT(dms_CRYf_y15,4)+1)&"-"&TEXT(MID(dms_CRYf_y15,3,2)+2,"00") ->  | N104: dms_CRYf_y16 | O104: =VALUE(LEFT(dms_CRYc_y15,4)+1) ->  | P104: dms_CRYc_y16
B105: These are drop down lists for businesses to select the correct FRCP_y1 on the business and other details worksheet. This also populates the column headings in the worksheets | M105: =VALUE(LEFT(dms_CRYf_y16,4)+1)&"-"&TEXT(MID(dms_CRYf_y16,3,2)+2,"00") ->  | N105: dms_CRYf_y17 | O105: =VALUE(LEFT(dms_CRYc_y16,4)+1) ->  | P105: dms_CRYc_y17
B106: dms_RCP_fyear_list | C106: dms_CRY_ListF | D106: dms_CRY_ListC | E106: dms_RCP_cyear_list | F106: dms_FRCP_fyear_list | G106: dms_FRCP_ListF | H106: dms_FRCP_ListC | I106: dms_FRCP_cyear_list | M106: =VALUE(LEFT(dms_CRYf_y17,4)+1)&"-"&TEXT(MID(dms_CRYf_y17,3,2)+2,"00") ->  | N106: dms_CRYf_y18 | O106: =VALUE(LEFT(dms_CRYc_y17,4)+1) ->  | P106: dms_CRYc_y18
B107: dms_fy1 | C107: 2006-07 | D107: 2007 | E107: dms_cy1 | F107: dms_frcp_fy1 | G107: 2016-17 | H107: 2017 | I107: dms_crcp_cy1 | M107: =VALUE(LEFT(dms_CRYf_y18,4)+1)&"-"&TEXT(MID(dms_CRYf_y18,3,2)+2,"00") ->  | N107: dms_CRYf_y19 | O107: =VALUE(LEFT(dms_CRYc_y18,4)+1) ->  | P107: dms_CRYc_y19
B108: dms_fy2 | C108: 2007-08 | D108: 2008 | E108: dms_cy2 | F108: dms_frcp_fy2 | G108: 2017-18 | H108: 2018 | I108: dms_crcp_cy2 | M108: =VALUE(LEFT(dms_CRYf_y19,4)+1)&"-"&TEXT(MID(dms_CRYf_y19,3,2)+2,"00") ->  | N108: dms_CRYf_y20 | O108: =VALUE(LEFT(dms_CRYc_y19,4)+1) ->  | P108: dms_CRYc_y20
B109: dms_fy3 | C109: 2008-09 | D109: 2009 | E109: dms_cy3 | F109: dms_frcp_fy3 | G109: 2018-19 | H109: 2019 | I109: dms_crcp_cy3
B110: dms_fy4 | C110: 2009-10 | D110: 2010 | E110: dms_cy4 | F110: dms_frcp_fy4 | G110: 2019-20 | H110: 2020 | I110: dms_crcp_cy4
B111: dms_fy5 | C111: 2010-11 | D111: 2011 | E111: dms_cy5 | F111: dms_frcp_fy5 | G111: 2020-21 | H111: 2021 | I111: dms_crcp_cy5
B112: dms_fy6 | C112: 2011-12 | D112: 2012 | E112: dms_cy6 | F112: dms_frcp_fy6 | G112: 2021-22 | H112: 2022 | I112: dms_crcp_cy6
B113: dms_fy7 | C113: 2012-13 | D113: 2013 | E113: dms_cy7 | F113: dms_frcp_fy7 | G113: 2022-23 | H113: 2023 | I113: dms_crcp_cy7
B114: dms_fy8 | C114: 2013-14 | D114: 2014 | E114: dms_cy8 | F114: dms_frcp_fy8 | G114: 2023-24 | H114: 2024 | I114: dms_crcp_cy8 | L114: 2009-10 | M114: 2010
B115: dms_fy9 | C115: 2014-15 | D115: 2015 | E115: dms_cy9 | F115: dms_frcp_fy9 | G115: 2024-25 | H115: 2025 | I115: dms_crcp_cy9 | L115: 2010-11 | M115: 2011
B116: dms_fy10 | C116: 2015-16 | D116: 2016 | E116: dms_cy10 | F116: dms_frcp_fy10 | G116: 2025-26 | H116: 2026 | I116: dms_crcp_cy10 | L116: 2011-12 | M116: 2012
B117: dms_fy11 | C117: 2016-17 | D117: 2017 | E117: dms_cy11 | F117: dms_frcp_fy11 | G117: 2026-27 | H117: 2027 | I117: dms_crcp_cy11 | L117: 2012-13 | M117: 2013
B118: dms_fy12 | C118: 2017-18 | D118: 2018 | E118: dms_cy12 | F118: dms_frcp_fy12 | G118: 2027-28 | H118: 2028 | I118: dms_crcp_cy12 | L118: 2013-14 | M118: 2014
B119: dms_fy13 | C119: 2018-19 | D119: 2019 | E119: dms_cy13 | F119: dms_frcp_fy13 | G119: 2028-29 | H119: 2029 | I119: dms_crcp_cy13 | L119: 2014-15 | M119: 2015
B120: dms_fy14 | C120: 2019-20 | D120: 2020 | E120: dms_cy14 | F120: dms_frcp_fy14 | G120: 2029-30 | H120: 2030 | I120: dms_crcp_cy14 | L120: 2015-16 | M120: 2016
B121: dms_fy15 | C121: 2019-20 | D121: 2020 | E121: dms_cy15 | F121: dms_frcp_fy15 | G121: 2030-31 | H121: 2031 | I121: dms_crcp_cy15 | L121: 2016-17 | M121: 2017
B122: dms_fy16 | C122: 2020-21 | D122: 2021 | E122: dms_cy16 | L122: 2017-18 | M122: 2018
B123: dms_fy17 | C123: 2021-22 | D123: 2022 | E123: dms_cy17 | L123: 2018-19 | M123: 2019
B124: dms_fy18 | C124: 2022-23 | D124: 2023 | E124: dms_cy18 | L124: 2019-20 | M124: 2020
B125: dms_fy19 | C125: 2023-24 | D125: 2024 | E125: dms_cy19 | L125: 2020-21 | M125: 2021
B126: dms_fy20 | C126: 2024-25 | D126: 2025 | E126: dms_cy20 | L126: 2021-22 | M126: 2022
L127: 2022-23 | M127: 2023
L128: 2023-24 | M128: 2024
L129: 2024-25 | M129: 2025
L130: 2025-26 | M130: 2026
L131: 2026-27 | M131: 2027
L132: 2027-28 | M132: 2028
L133: 2028-29 | M133: 2029
L134: 2029-30 | M134: 2030
L135: 2030-31 | M135: 2031
L136: 2031-32 | M136: 2032
L137: 2032-33 | M137: 2033
L138: 2033-34 | M138: 2034
L139: 2034-35 | M139: 2035
L140: 2035-36 | M140: 2036

Sheet Business & other details (hidden)
B1: =IF(dms_DataQuality="backcast",INDEX(dms_Worksheet_List,MATCH(dms_Model,dms_Model_List))&" BACKCAST",INDEX(dms_Worksheet_List,MATCH(dms_Model,dms_Model_List))) -> POST TAX REVENUE MODEL
B2: =INDEX(dms_TradingNameFull_List,MATCH(dms_TradingName,dms_TradingName_List)) -> Powercor Australia
B3: =IF(SUM(dms_SingleYear_Model)>0,CRY,CONCATENATE(FRCP_y1," to ",dms_MultiYear_FinalYear_Result)) -> 2019-20 to 2023
B4: BUSINESS & OTHER DETAILS
B7: Instructions
B8: Complete the following business details regulatory template before entering data or values in any other regulatory template. This regulatory template is linked to other cells within the spreadsheet and automatically generates column headings and conditional formatting to distinguish business specific input and non-input cells.
B10: SUBMISSION PARTICULARS INPUT SHEETS
B12: ENTITY DETAILS
B14: Short name | C14: ='DMS input'!C14:H14 -> Powercor Australia | F14: Select business name from drop down list first
B15: ACN / ABN | C15: =INDEX(dms_ABN_List,MATCH(dms_TradingName,dms_TradingName_List)) -> 89064651109
B18: Business address | C18: Address 1 | E18: =INDEX(dms_Addr1_List,MATCH(dms_TradingName,dms_TradingName_List)) -> 40 Market Street
D19: Address 2 | E19: =IF(ISBLANK(INDEX(dms_Addr2_List,MATCH(dms_TradingName,dms_TradingName_List))),"",INDEX(dms_Addr2_List,MATCH(dms_TradingName,dms_TradingName_List))) -> 
C20: Suburb | E20: =INDEX(dms_Suburb_List,MATCH(dms_TradingName,dms_TradingName_List)) -> MELBOURNE
D21: State | E21: =INDEX(dms_State_List,MATCH(dms_TradingName,dms_TradingName_List)) -> Vic | F21: p/code | G21: =INDEX(dms_PostCode_List,MATCH(dms_TradingName,dms_TradingName_List)) -> 3000
B23: Postal address | C23: Address 1 | E23: =INDEX(dms_PAddr1_List,MATCH(dms_TradingName,dms_TradingName_List)) -> Locked bag 14090
D24: Address 2 | E24: =IF(ISBLANK(INDEX(dms_PAddr2_List,MATCH(dms_TradingName,dms_TradingName_List))),"",INDEX(dms_PAddr2_List,MATCH(dms_TradingName,dms_TradingName_List))) -> 
C25: Suburb | E25: =INDEX(dms_PSuburb_List,MATCH(dms_TradingName,dms_TradingName_List)) -> MELBOURNE
D26: State | E26: =INDEX(dms_PState_List,MATCH(dms_TradingName,dms_TradingName_List)) -> VIC | F26: p/code | G26: =INDEX(dms_PPostCode_List,MATCH(dms_TradingName,dms_TradingName_List)) -> 8001
B29: Contact name/s | C29: =INDEX(dms_ContactName1_List,MATCH(dms_TradingName,dms_TradingName_List)) -> Hannah Williams
B30: Contact phone/s | C30: =INDEX(dms_ContactPh1_List,MATCH(dms_TradingName,dms_TradingName_List)) -> 03 9683 4088
B31: Contact email address/s | C31: =INDEX(dms_ContactEmail_List,MATCH(dms_TradingName,dms_TradingName_List)) -> hwilliams@powercor.com.au
B33: REGULATORY CONTROL PERIODS
B35: Forthcoming regulatory control period | C35: 2019-20 | D35: =dms_FRCP_y2 -> 2020 | E35: =dms_FRCP_y3 -> 2021 | F35: =dms_FRCP_y4 -> 2022 | G35: =dms_FRCP_y5 -> 2023 | H35: =dms_FRCP_y6 -> 2024 | I35: =dms_FRCP_y7 -> 2025 | J35: =dms_FRCP_y8 -> 2026 | K35: =dms_FRCP_y9 -> 2027 | L35: =dms_FRCP_y10 -> 2028
B38: Current regulatory control period | C38: =dms_CRCP_FirstYear_Result -> 2014 | D38: =IF(dms_RPT="financial",VALUE(LEFT(CRCP_y1,4)+1)&"-"&TEXT(MID(CRCP_y1,3,2)+2,"00"),VALUE(LEFT(CRCP_y1,4)+1)) -> 2015 | E38: =IF(dms_RPT="financial",VALUE(LEFT(CRCP_y2,4)+1)&"-"&TEXT(VALUE(MID(CRCP_y2,3,2)+2),"00"),VALUE(LEFT(CRCP_y2,4)+1)) -> 2016 | F38: =IF(dms_RPT="financial",VALUE(LEFT(CRCP_y3,4)+1)&"-"&TEXT(VALUE(MID(CRCP_y3,3,2)+2),"00"),VALUE(LEFT(CRCP_y3,4)+1)) -> 2017 | G38: =IF(dms_RPT="financial",VALUE(LEFT(CRCP_y4,4)+1)&"-"&TEXT(VALUE(MID(CRCP_y4,3,2)+2),"00"),VALUE(LEFT(CRCP_y4,4)+1)) -> 2018 | H38: =IF(dms_RPT="financial",VALUE(LEFT(CRCP_y5,4)+1)&"-"&TEXT(VALUE(MID(CRCP_y5,3,2)+2),"00"),VALUE(LEFT(CRCP_y5,4)+1)) -> 2019 | I38: =IF(dms_RPT="financial",VALUE(LEFT(CRCP_y6,4)+1)&"-"&TEXT(VALUE(MID(CRCP_y6,3,2)+2),"00"),VALUE(LEFT(CRCP_y6,4)+1)) -> 2020 | J38: =IF(dms_RPT="financial",VALUE(LEFT(CRCP_y7,4)+1)&"-"&TEXT(VALUE(MID(CRCP_y7,3,2)+2),"00"),VALUE(LEFT(CRCP_y7,4)+1)) -> 2021 | K38: =IF(dms_RPT="financial",VALUE(LEFT(CRCP_y8,4)+1)&"-"&TEXT(VALUE(MID(CRCP_y8,3,2)+2),"00"),VALUE(LEFT(CRCP_y8,4)+1)) -> 2022 | L38: =IF(dms_RPT="financial",VALUE(LEFT(CRCP_y9,4)+1)&"-"&TEXT(VALUE(MID(CRCP_y9,3,2)+2),"00"),VALUE(LEFT(CRCP_y9,4)+1)) -> 2023
B41: Previous regulatory control period | C41: =IF(dms_RPT="financial",VALUE(LEFT(PRCP_y2,4)-1)&"-"&TEXT(VALUE(MID(PRCP_y2,3,2)),"00"),VALUE(LEFT(PRCP_y2,4)-1)) -> 2009 | D41: =IF(dms_RPT="financial",VALUE(LEFT(PRCP_y3,4)-1)&"-"&TEXT(VALUE(MID(PRCP_y3,3,2)),"00"),VALUE(LEFT(PRCP_y3,4)-1)) -> 2010 | E41: =IF(dms_RPT="financial",VALUE(LEFT(PRCP_y4,4)-1)&"-"&TEXT(VALUE(MID(PRCP_y4,3,2)),"00"),VALUE(LEFT(PRCP_y4,4)-1)) -> 2011 | F41: =IF(dms_RPT="financial",VALUE(LEFT(PRCP_y5,4)-1)&"-"&TEXT(VALUE(RIGHT(PRCP_y5,2)-1),"00"),VALUE(LEFT(PRCP_y5,4)-1)) -> 2012 | G41: =IF(dms_RPT="financial",VALUE(LEFT(CRCP_y1,4)-1)&"-"&TEXT(VALUE(RIGHT(CRCP_y1,2)-1),"00"),VALUE(LEFT(CRCP_y1,4)-1)) -> 2013
B44: Commencing regulatory year | C44: 2018-19 | D44: CRY
B46: Last completed regulatory year | C46: 2018-19 | D46: dms_FinalYear
C49: DELETE NR 'CRY' IF NOT AN ANNUAL RIN (EB, CA , ARR)
C50: APPLY NR 'CRY' IF AN ANNUAL RIN (EB, CA , ARR) - including multi year annual RINs eg. Recast CA. EB
B52: Source | C52: Regulatory proposal | E52: Please select the correct submission type from the dropdown list.
B53: Data quality (actual, estimate, public, consolidated) | C53: Consolidated
B54: Amended RIN submission - amendment reason
B55: Submission Date | C55: dd/mm/yyyy | D55: dms_SubmissionDate | E55: Please enter date this file submitted to AER (dd/mm/yyyy)
B56: EBSS - First application of scheme in forthcoming period? | C56: No
B57: Sector | C57: =INDEX(dms_Sector_List,MATCH(dms_TradingName,dms_TradingName_List)) -> Electricity | D57: dms_Sector | E57: =INDEX(dms_Sector_List,MATCH(dms_TradingName,dms_TradingName_List))
B58: Segment | C58: =INDEX(dms_Segment_List,MATCH(dms_TradingName,dms_TradingName_List)) -> Distribution | D58: dms_Segment | E58: =INDEX(dms_Segment_List,MATCH(dms_TradingName,dms_TradingName_List))
B59: Regulatory Year Ending | C59: =IF(dms_MultiYear_Flag=1,LEFT(dms_Specified_FinalYear,2)&RIGHT(dms_Specified_FinalYear,2),INDEX(dms_RYE_Formula_Result,MATCH(dms_Model,dms_Model_List))) -> 2023 | D59: dms_RYE | E59: =IF(dms_MultiYear_Flag=1,LEFT(dms_Specified_FinalYear,2)&RIGHT(dms_Specified_FinalYear,2),INDEX(dms_RYE_Formula_Result,MATCH(dms_Model,dms_Model_List)))
B60: Reporting Period Type | C60: =INDEX(dms_RPT_List,MATCH(dms_TradingName,dms_TradingName_List)) -> Calendar | D60: dms_RPT | E60: =INDEX(dms_RPT_List,MATCH(dms_TradingName,dms_TradingName_List))
B61: Model or RIN Type | C61: PTRM | D61: dms_Model | E61: Drop down selection
B62: Security Classification | C62: Public | D62: dms_Classification | E62: Always Public
B63: Template - version no. | C63: 5 | D63: dms_TemplateNumber
B64: Dollar $ real month | C64: =INDEX(dms_RPTMonth_List,MATCH(dms_TradingName,dms_TradingName_List)) -> December | D64: dms_RPTMonth | E64: =INDEX(dms_RPTMonth_List,MATCH(dms_TradingName,dms_TradingName_List))
B65: Dollar $ real (the last month before the FRCP_y1) | C65: =CONCATENATE(dms_RPTMonth)&" "&VALUE((LEFT(dms_CRCP_FinalYear_Result,2)&RIGHT(dms_CRCP_FinalYear_Result,2))) -> December 2018 | D65: dms_DollarReal | E65: =IF(SUM(dms_SingleYear_Model)>0,CONCATENATE(dms_RPTMonth)&" "&VALUE((LEFT(CRY,2))&RIGHT(CRY,2)),CONCATENATE(dms_RPTMonth)&" "&VALUE((LEFT(dms_CRCP_FinalYear_Result,2)&RIGHT(dms_CRCP_FinalYear_Result,2))))
B66: Form of control | C66: =INDEX(dms_FormControl_List,MATCH(dms_TradingName,dms_TradingName_List)) -> Revenue cap | D66: dms_FormControl | E66: =INDEX(dms_FormControl_List,MATCH(dms_TradingName,dms_TradingName_List))
B67: RIN response - version no. | C67: 1 | D67: dms_RINversion
B68: Jurisdiction | C68: =INDEX(dms_JurisdictionList,MATCH(dms_TradingName,dms_TradingName_List)) -> Vic | D68: dms_Jurisdiction | E68: =INDEX(dms_JurisdictionList,MATCH(dms_TradingName,dms_TradingName_List))
B69: Backcast Multiyear EB, CA or ARR? | C69: 0 | D69: dms_MultiYear_Flag | E69: 1=y, 0-n
C70: 2013 | D70: dms_Specified_FinalYear | E70: The result here is returned to dms_CRCP_FinalYear_Result if dms_MultiYear_Flag is set to 1
B71: Single Year Model T/F | C71: =IF(dms_Model="EB",1,0) -> 0 | D71: dms_EB
C72: =IF(dms_Model="CA",1,0) -> 0 | D72: dms_CA | E72: =dms_SingleYear_Model
C73: =IF(dms_Model="ARR",1,0) -> 0 | D73: dms_ARR
B74: Single Year Final Year Reference | C74: CRY | D74: dms_SingleYear_FinalYear_Ref | E74: This is the reference for EB, CA & ARR RINs
B75: Single Year Final Year Result | C75: =INDIRECT(dms_SingleYear_FinalYear_Ref) ->  | D75: dms_SingleYear_FinalYear_Result | E75: =INDIRECT(dms_SingleYear_FinalYear_Ref) | I75: Formula errors OK
B76: FRCP length in years | C76: =INDEX(dms_FRCPlength_List,MATCH(dms_TradingName,dms_TradingName_List)) -> 5 | D76: dms_FRCPlength_Num | E76: =INDEX(dms_FRCPlength_List,MATCH(dms_TradingName,dms_TradingName_List))
B77: Multi Year Final Year Reference | C77: =INDEX(dms_FinalYear_List,MATCH(dms_FRCPlength_Num,dms_FRCPlength_Num_List)) -> dms_FRCP_y5 | D77: dms_MultiYear_FinalYear_Ref | E77: =INDEX(dms_FinalYear_List,MATCH(dms_FRCPlength_Num,dms_FRCPlength_Num_List))
B78: Multi Year Final Year Result | C78: =IF(dms_MultiYear_Flag=0,INDIRECT(dms_MultiYear_FinalYear_Ref),dms_Specified_FinalYear) -> 2023 | D78: dms_MultiYear_FinalYear_Result | E78: =IF(dms_MultiYear_Flag=0,INDIRECT(dms_MultiYear_FinalYear_Ref),dms_Specified_FinalYear) | I78: Formula errors OK
B79: CRCP length in years | C79: =INDEX(dms_CRCPlength_List,MATCH(dms_TradingName,dms_TradingName_List)) -> 5 | D79: dms_CRCPlength_Num | E79: =INDEX(dms_CRCPlength_List,MATCH(dms_TradingName,dms_TradingName_List))
B80: CRCP Final Year Reference | C80: =INDEX(dms_CFinalYear_List,MATCH(dms_CRCPlength_Num,dms_CRCPlength_Num_List)) -> CRCP_y5 | D80: dms_CRCP_FinalYear_Ref | E80: =INDEX(dms_CFinalYear_List,MATCH(dms_CRCPlength_Num,dms_CRCPlength_Num_List))
B81: CRCP First Year Result | C81: =INDEX(dms_CRCP_years,MATCH(dms_CRCPlength_Num,dms_CRCP_index)) -> 2014 | D81: dms_CRCP_FirstYear_Result | E81: =INDEX(dms_CRCP_years,MATCH(dms_CRCPlength_Num,dms_CRCP_index))
B82: CRCP Final Year Result | C82: =IF(dms_MultiYear_Flag=0,(IF(SUM(dms_SingleYear_Model)>0,CRY,dms_CRCP_yZ)),dms_Specified_FinalYear) -> 2018 | D82: dms_CRCP_FinalYear_Result | E82: =IF(dms_MultiYear_Flag=0,(IF(SUM(dms_SingleYear_Model)>0,CRY,dms_CRCP_yZ)),dms_Specified_FinalYear)
B83: Table 6.6.3 - Public lighting repair - no. business days | C83: =INDEX(dms_663_List,MATCH(dms_TradingName,dms_TradingName_List)) -> 2 | D83: dms_663
B84: Distribution Determination Reference | C84: =INDEX(dms_DeterminationRef_List,MATCH(dms_TradingName,dms_TradingName_List)) -> 2016-20 Distribution Determination | D84: dms_DeterminationRef
B85: Backcast templates only - unit of measure | C85: $0s | D85: dms_Backcast_UOM | E85: If the cover sheet is for Backcast data ensure to apply dms_Backcast_UOM named range to this field. Otherwise, do not apply this named range.
B86: EB/CA Unit of Measure for Monetary Values | C86: $0s | D86: dms_dollar_nom_UOM | E86: If the cover sheet is attached to an EB files make sure this field is set
B88: discard this record? | C88: NO | D88: dms_DISCARD | E88: If record is to be discarded from DB set this flag to YES
B90: USES NAMED RANGES FLAG | C90: yes | D90: dms_Defined_Names_Used

Sheet Intro
G2: Electricity Distribution Network Service Provider
H3: Post-Tax Revenue Model
K4: Version: | L4: 3
K5: Date: | L5: January 2015
B8: Introduction | J8: Electricity Distribution Module
C13: This model illustrates the basic elements of the AER's building block calculation and associated price and revenue constraints for distribution businesses.
C14: The model is intended to produce X factors that are applicable to revenue caps, price caps and revenue yield forms of control.
C15: Building block revenues and cash flows are modelled in nominal terms unless specified otherwise.
C17: INSTRUCTIONS FOR USE
C18: The full PTRM handbook is available on the AER website at http://www.aer.gov.au/node/27616
C20: 1. Prior to the commencement of the regulatory control period
C22: 1a. Fill out input cells on the 'DMS Input' sheet. These input cells are highlighted blue.
C23: This provides information on the service provider submitting the PTRM and the context for the PTRM preparation.
C24: This information also controls the automatic import of the PTRM into the AER's Data Management System (DMS).
C26: 1b. Fill out input cells on the 'PTRM Input' sheet. These input cells are highlighted blue.
C27: This provides the data for the PTRM calculations.
C28: In general, input expenditure data should be valued in real dollar terms of the year indicated, as at the end of that year.
C29: Units and basis for entry are specified where required for each data table.
C30: Review any cautions (which are generated based on data entered) before continuing.
C32: 1c. Determine the expected revenue (smoothed revenue) using the 'X factors' sheet
C33: Clause 6.2.6 requires that the form of control applicable to standard control services be of a CPI–X form.
C34: This sheet provides for the calculation of X factors under three basic forms of control, namely a weighted average price cap, revenue cap and revenue yield.
C35: The X factor values may differ for each year of the regulatory control period but must be set such that the NPV of annual expected revenues (smoothed) is equal to the NPV of the annual revenue requirements (unsmoothed) for that period.
C36: This sheet provides input cells for each X factor and contains macro buttons which should be used to goal seek an X factor value for a specific year to equate the NPVs of smoothed and unsmoothed revenues.
C38: 2. Within the regulatory control period when updating the annual return on debt
C40: 2a. Update input cells on the 'DMS Input' sheet. These input cells are highlighted blue.
C41: Check that the contact details are still current and describe the new amendment.
C43: 2b. Update input cells on the 'PTRM Input' sheet. These input cells are highlighted blue.
C44: In general, the only row that should be changed is the Trailing Average Portfolio Return on Debt (row 222).
C45: The basis for updating the annual return on debt will be in accordance with the relevant regulatory decision prior to the commencement of the period.
C47: 2c. Determine the expected revenue (smoothed revenue) using the 'X factors' sheet
C48: Indicate the year of the annual debt update (cell F21) to ensure the correct content-sensitive cautions are displayed.
C49: Enter new X factors for this year (and potentially later years within the regulatory control period) in order to equate the NPVs of smoothed and unsmoothed revenues.
C50: The macro buttons should be used to goal seek the X factor for these specific years.
C51: Note that X factors for earlier years within the regulatory control period should not be changed.
C54: VERSION RECORD
C56: Version | D56: Date | F56: Description
C57: 1 | D57: June 2008 | F57: Initial model, based on transmission PTRM
C59: 2 | D59: June 2009 | F59: Various non-consequential errors corrected
C61: 3 | D61: January 2015 | F61: Allowed time-varying return on debt, and revenue revisions for annual return on debt update
F62: Explicitly recognised revenue adjustments in building block calculations
F63: Incorporated equity raising cost calculations into automatic smoothing process
F64: Revised and expanded summary tables and reporting
F65: Standardised many elements with transmission PTRM
F66: Enabled automatic import into AER DMS

Sheet Change log
A1: Detailed log of changes made to Distribution PTRM template (version 3) to produce "Half-year PTRM"
A3: Issue | B3: Sheet | C3: Section | D3: Cell reference | E3: Change Description
A4: 1 | B4: PTRM input | C4: Length of regulatory control period | D4: R7 | E4: Input cell requirement changed to half-year (Not a formula change)
A5: =A4+1 -> 2 | B5: PTRM input | C5: Forecast Capital Expenditure – As Incurred | D5: G41:G69 | E5: Input cell requirement changed to half-year (Not a formula change)
A6: =A5+1 -> 3 | B6: PTRM input | C6: Forecast Capital Expenditure – As Incurred | D6: G70 | E6: Input for Equity raising costs is to be be copied from cell Q54 in the 'Equity raising costs' sheet
A7: 4 | B7: PTRM input | C7: Forecast Asset Disposal – As Incurred | D7: G75: G104 | E7: Input cell requirement changed to half-year (Not a formula change)
A8: 5 | B8: PTRM input | C8: Forecast Customer Contributions – As Incurred | D8: G109: G138 | E8: Input cell requirement changed to half-year (Not a formula change)
A9: 6 | B9: PTRM input | C9: Forecast Operating Expenditure | D9: G177: G185 | E9: Input cell requirement changed to half-year (Not a formula change)
A10: 7 | B10: PTRM input | C10: Forecast Operating Expenditure | D10: G186 | E10: Formula amended to calculate half-year debt raising costs
A11: 8 | B11: PTRM input | C11: Revenue adjustments | D11: G191: G200 | E11: Input cell requirement changed to half-year (Not a formula change)
A12: 9 | B12: PTRM input | C12: Inflation rate | D12: G216 | E12: Input cell requirement changed to half-year (Not a formula change)
A13: 10 | B13: PTRM input | C13: Return on equity | D13: G217 | E13: Input cell requirement changed to half-year (Not a formula change)
A14: 11 | B14: PTRM input | C14: Trailing average portfolio return on debt | D14: G222 | E14: Input cell requirement changed to half-year (Not a formula change)
A15: 12 | B15: Assets | C15: Real Straight-line depreciation | D15: G76, G89,…,G154 and G453 | E15: Cells linked to RAB depreciation model which calculates half-year depreciation on opening RAB as at 1 January 2021
A16: 13 | B16: Assets | C16: Tax Depreciation | D16: G492, G505,…,G869 | E16: Formula amended to calculate half-year tax depreciation by asset class
A17: 14 | B17: X factors | C17: Smoothed- Expected Revenues | D17: G44, G60 and G80 | E17: Formula amended to set smoothed revenue equal to unsmoothed revenue

Sheet DMS input
B2: =C16&" - DMS Input"&" - DNSP PTRM - version "&Intro!$L$4 -> PAL - DMS Input - DNSP PTRM - version 3 | G2: Input cells are in blue
B6: This sheet requests information that allows the AER to automatically import the PTRM into our data management system (DMS).
B7: This sheet's metadata relates to the business and context for the PTRM (rather than the PTRM itself).
B8: Some of this data is automatically populated based on data entered on the PTRM input sheet. Only change blue input cells.
B9: Some rows are hidden. To facilitate the automatic import, please do not delete or add rows on this sheet.
B10: Throughout the rest of the workbook, defined name ranges are used to identify data that is imported into the DMS.
B12: Entity details
B14: Trading name | C14: Powercor Australia
B15: ACN / ABN | C15: =INDEX(dms_ABN_List,MATCH(dms_TradingName,dms_TradingName_List)) -> 89064651109
B16: Business short name | C16: PAL
B18: Business address | C18: Address 1 | E18: 40 Market Street
D19: Address 2 | E19: =dms_Addr2 -> 
C20: Suburb | E20: Melbourne
D21: State | E21: Vic | F21: Postcode | G21: 3000
B23: Postal address | C23: Address 1 | E23: Locked Bag 14090
D24: Address 2
C25: Suburb
D26: State | E26: Vic | F26: Postcode | G26: 8001
B29: Contact name/s | C29: Brent Cleeve
B30: Contact phone/s | C30: (03) 9683 4465
B31: Contact email address/s | C31: bcleeve@powercor.com.au
B33: Regulatory process details
B46: Source | C46: Final decision
B53: Amended model submission - reason
B56: Form of control | C56: Revenue cap

Sheet AER amendments
A1: No. | B1: Location | C1: Changes
A2: 1 | B2: PTRM input'!J7:J36 | C2: RAB values updated consistent with RFM
A3: 2 | B3: PTRM input'!N7:N36 | C3: TAB values updated consistent with RFM
A4: 3 | B4: PTRM input'!O7:O36 | C4: Tax remaining lives updated consistent with RFM
A5: 4 | B5: PTRM input'!G70 | C5: ERC consistent with Equity Raising Costs sheet
A6: 5 | B6: Assets!G76,Assets!G89,Assets!G102,Assets!G115,Assets!G128,Assets!G141,Assets!G154,Assets!G167,Assets!G180,Assets!G193,Assets!G206,Assets!G453 | C6: Depreciation to be consistent with the amended depreciation model
A7: 6 | B7: PTRM input'!M36 | C7: ERC standard life: Set equal to standard life for 2016-20 reset.
A8: 7 | B8: PTRM input'!R195:S195 | C8: Tax treatment of DMIA. Applied 'Yes/Yes' switch.
A9: 8 | B9: PTRM input'!G41:G70 | C9: Capex inputs updated
A10: 9 | B10: PTRM input'!G177:G178 | C10: Opex inputs updated
A11: 10 | B11: PTRM input'!G195 | C11: DMIA updated
A12: 11 | B12: PTRM input'!G216, 'PTRM input'!G217 'PTRM input'!G222, 'PTRM input'!G233 | C12: Rate of return parameters updated
A13: 12 | B13: PTRM input'!H217 | C13: Outdated warning comment removed
A14: 13 | B14: PTRM input'!G237 | C14: amended base revenue input to reflect half of CY2020 TAR
A15: 14 | B15: PTRM input' Row 18 | C15: Removed 'Accelerated depreciation assets' asset class.
A17: AER amendments are highlighted in green

Sheet PTRM input
M1: Formula changes | N1: Half year placeholder inputs for 1/1/2021-30/06/2021 | O1: Links to RFM and RAB 1/2 year depn model
E2: ='DMS input'!$C$16&" - PTRM input"&" - DNSP PTRM - version "&Intro!$L$4 -> PAL - PTRM input - DNSP PTRM - version 3 | I2: Input cells are in blue
E5: ="Opening Regulatory Asset Base and Opening Tax Asset Base for "&Q7&" ($m Nominal)" -> Opening Regulatory Asset Base and Opening Tax Asset Base for 2021 ($m Nominal)
G6: Asset Class Name | J6: Opening Asset Value | K6: Assets Under Construction | L6: Remaining Life | M6: Standard Life | N6: Opening Tax Value | O6: Tax Remaining Life | P6: Tax Standard Life | Q6: Base Regulatory Year | R6: Length of Regulatory Control Period (Year)
E7: Asset Class 1 | G7: Subtransmission | J7: 600.9990114 | L7: n/a | M7: 50 | N7: 557.570736 | O7: 36.0160868 | P7: 44 | Q7: 2021 | R7: 0.5
E8: Asset Class 2 | G8: Distribution system assets | J8: 3094.981353 | L8: n/a | M8: 51 | N8: 2739.018262 | O8: 32.71502532 | P8: 46
E9: Asset Class 3 | G9: Standard metering | J9: 0 | L9: n/a | M9: n/a | N9: 0 | O9: n/a | P9: n/a
E10: Asset Class 4 | G10: Public lighting | J10: 5.26330499 | L10: n/a | M10: n/a | N10: 0 | O10: n/a | P10: n/a
E11: Asset Class 5 | G11: SCADA/Network control | J11: 85.66132446 | L11: n/a | M11: 13 | N11: 86.74627735 | O11: 7.909600224 | P11: 10
E12: Asset Class 6 | G12: Non-network general assets - IT | J12: 87.36239218 | L12: n/a | M12: 6 | N12: 70.87531269 | O12: 3.172855014 | P12: 4
E13: Asset Class 7 | G13: Non-network general assets - Other | J13: 246.5490171 | L13: n/a | M13: 15 | N13: 194.2917203 | O13: 9.103872709 | P13: 12
E14: Asset Class 8 | G14: VBRC | J14: 150.6640396 | L14: n/a | M14: 25.60619701 | N14: 124.3540598 | O14: 39.91926655 | P14: 45
E15: Asset Class 9 | G15: Land | J15: 24.27123113 | L15: n/a | M15: n/a | N15: 32.3285171 | O15: n/a | P15: n/a
E16: Asset Class 10 | G16: Supervisory cables | J16: 0 | N16: 0 | O16: n/a | P16: n/a
E17: Asset Class 11 | G17: Old SWER ACRs | J17: -4.440892099e-16 | N17: 0 | O17: n/a | P17: n/a
E18: Asset Class 12
E19: Asset Class 13
E20: Asset Class 14
E21: Asset Class 15
E22: Asset Class 16
E23: Asset Class 17
E24: Asset Class 18
E25: Asset Class 19
E26: Asset Class 20
E27: Asset Class 21
E28: Asset Class 22
E29: Asset Class 23
E30: Asset Class 24
E31: Asset Class 25
E32: Asset Class 26
E33: Asset Class 27
E34: Asset Class 28
E35: Asset Class 29
E36: Asset Class 30 | G36: Equity raising costs | J36: 18.88821192 | L36: n/a | M36: 42.05966711 | N36: 2.749288665 | O36: 1 | P36: 5
E37: Total | J37: =SUM(J7:J36)+K37 -> 4314.639886 | K37: =SUM(K7:K36) -> 0 | N37: =SUM(N7:N36) -> 3807.934174
E39: ="Forecast Capital Expenditure – As Incurred ($m Real "&$F$241&")" -> Forecast Capital Expenditure – As Incurred ($m Real 2020)
E40: Year | G40: =Q7 -> 2021 | H40: =(LEFT(G40,4)+1&IF(MID(G40,5,1)="","","-"&TEXT(MOD(MID(G40,6,2)+1,100),"00"))) -> 2022 | I40: =(LEFT(H40,4)+1&IF(MID(H40,5,1)="","","-"&TEXT(MOD(MID(H40,6,2)+1,100),"00"))) -> 2023 | J40: 2024 | K40: 2025 | L40: 2026 | M40: 2027 | N40: 2028 | O40: 2029 | P40: 2030
E41: =Asset1 -> Subtransmission | G41: 26.08203966
E42: =Asset2 -> Distribution system assets | G42: 167.9017753
E43: =Asset3 -> Standard metering | G43: 0
E44: =Asset4 -> Public lighting | G44: 0
E45: =Asset5 -> SCADA/Network control | G45: 14.87305005
E46: =Asset6 -> Non-network general assets - IT | G46: 10.34717658
E47: =Asset7 -> Non-network general assets - Other | G47: 9.349858357
E48: =Asset8 -> VBRC | G48: 7.143833805
E49: =Asset9 -> Land | G49: 0.1626062323
E50: =Asset10 -> Supervisory cables
E51: =Asset11 -> Old SWER ACRs
E52: =Asset12 -> 0
E53: =Asset13 -> 0
E54: =Asset14 -> 0
E55: =Asset15 -> 0
E56: =Asset16 -> 0
E57: =Asset17 -> 0
E58: =Asset18 -> 0
E59: =Asset19 -> 0
E60: =Asset20 -> 0
E61: =Asset21 -> 0
E62: =Asset22 -> 0
E63: =Asset23 -> 0
E64: =Asset24 -> 0
E65: =Asset25 -> 0
E66: =Asset26 -> 0
E67: =Asset27 -> 0
E68: =Asset28 -> 0
E69: =Asset29 -> 0
E70: =Asset30 -> Equity raising costs | G70: 1.751373963
E71: Total | G71: =SUM(G41:G70) -> 237.6117139 | H71: 0 | I71: 0 | J71: 0 | K71: 0 | L71: 0 | M71: =SUM(M41:M70) -> 0 | N71: 0 | O71: 0 | P71: 0
Q72: =SUM(OFFSET(G71,0,0,1,$R$7)) -> 237.6117139
E73: ="Forecast Asset Disposal – as incurred ($m Real "&$F$241&")" -> Forecast Asset Disposal – as incurred ($m Real 2020)
E74: =E40 -> Year | G74: =G40 -> 2021 | H74: =H40 -> 2022 | I74: 2023 | J74: 2024 | K74: 2025 | L74: 2026 | M74: 2027 | N74: 2028 | O74: 2029 | P74: 2030
E75: =Asset1 -> Subtransmission
E76: =Asset2 -> Distribution system assets
E77: =Asset3 -> Standard metering
E78: =Asset4 -> Public lighting
E79: =Asset5 -> SCADA/Network control
E80: =Asset6 -> Non-network general assets - IT
E81: =Asset7 -> Non-network general assets - Other | G81: 1.122168374
E82: =Asset8 -> VBRC
E83: =Asset9 -> Land
E84: =Asset10 -> Supervisory cables
E85: =Asset11 -> Old SWER ACRs
E86: =Asset12 -> 0
E87: =Asset13 -> 0
E88: =Asset14 -> 0
E89: =Asset15 -> 0
E90: =Asset16 -> 0
E91: =Asset17 -> 0
E92: =Asset18 -> 0
E93: =Asset19 -> 0
E94: =Asset20 -> 0
E95: =Asset21 -> 0
E96: =Asset22 -> 0
E97: =Asset23 -> 0
E98: =Asset24 -> 0
E99: =Asset25 -> 0
E100: =Asset26 -> 0
E101: =Asset27 -> 0
E102: =Asset28 -> 0
E103: =Asset29 -> 0
E104: =Asset30 -> Equity raising costs
E105: Total | G105: =SUM(G75:G104) -> 1.122168374 | H105: 0 | I105: 0 | J105: =SUM(J75:J104) -> 0 | K105: 0 | L105: 0 | M105: 0 | N105: 0 | O105: 0 | P105: 0
Q106: =SUM(OFFSET(G105,0,0,1,$R$7)) -> 1.122168374
E107: ="Forecast Customer Contributions – As Incurred ($m Real "&$F$241&")" -> Forecast Customer Contributions – As Incurred ($m Real 2020)
E108: =E40 -> Year | G108: =G74 -> 2021 | H108: =H74 -> 2022 | I108: 2023 | J108: 2024 | K108: 2025 | L108: 2026 | M108: 2027 | N108: 2028 | O108: 2029 | P108: 2030
E109: =Asset1 -> Subtransmission | G109: 5.988411832
E110: =Asset2 -> Distribution system assets | G110: 33.66344669
E111: =Asset3 -> Standard metering
E112: =Asset4 -> Public lighting
E113: =Asset5 -> SCADA/Network control
E114: =Asset6 -> Non-network general assets - IT
E115: =Asset7 -> Non-network general assets - Other
E116: =Asset8 -> VBRC
E117: =Asset9 -> Land
E118: =Asset10 -> Supervisory cables
E119: =Asset11 -> Old SWER ACRs
E120: =Asset12 -> 0
E121: =Asset13 -> 0
E122: =Asset14 -> 0
E123: =Asset15 -> 0
E124: =Asset16 -> 0
E125: =Asset17 -> 0
E126: =Asset18 -> 0
E127: =Asset19 -> 0
E128: =Asset20 -> 0
E129: =Asset21 -> 0
E130: =Asset22 -> 0
E131: =Asset23 -> 0
E132: =Asset24 -> 0
E133: =Asset25 -> 0
E134: =Asset26 -> 0
E135: =Asset27 -> 0
E136: =Asset28 -> 0
E137: =Asset29 -> 0
E138: =Asset30 -> Equity raising costs
E139: Total | G139: =SUM(G109:G138) -> 39.65185852 | H139: 0 | I139: 0 | J139: 0 | K139: 0 | L139: 0 | M139: 0 | N139: 0 | O139: 0 | P139: 0
Q140: =SUM(OFFSET(G139,0,0,1,$R$7)) -> 39.65185852
E141: ="Forecast Net Capital Expenditure – As Incurred ($m Real "&$F$241&")" -> Forecast Net Capital Expenditure – As Incurred ($m Real 2020) | U141: ERC weighted average standard life calculation
E142: =E40 -> Year | G142: =G40 -> 2021 | H142: =H40 -> 2022 | I142: 2023 | J142: 2024 | K142: 2025 | L142: 2026 | M142: 2027 | N142: 2028 | O142: 2029 | P142: 2030 | U142: Net capex | V142: standard life
E143: =Asset1 -> Subtransmission | G143: =G41-G75-G109 -> 20.09362783 | H143: =H41-H75-H109 -> 0 | I143: 0 | J143: 0 | K143: 0 | L143: 0 | M143: 0 | N143: 0 | O143: 0 | P143: 0 | U143: =IF(M7="n/a",0,SUM(D143:H143)) -> 20.09362783 | V143: =IF(M7="n/a",0,M7) -> 50
E144: =Asset2 -> Distribution system assets | G144: =G42-G76-G110 -> 134.2383286 | H144: 0 | I144: 0 | J144: 0 | K144: 0 | L144: 0 | M144: 0 | N144: 0 | O144: 0 | P144: 0 | U144: 134.2383286 | V144: 51
E145: =Asset3 -> Standard metering | G145: =G43-G77-G111 -> 0 | H145: 0 | I145: 0 | J145: 0 | K145: 0 | L145: 0 | M145: 0 | N145: 0 | O145: 0 | P145: 0 | U145: 0 | V145: 0
E146: =Asset4 -> Public lighting | G146: =G44-G78-G112 -> 0 | H146: 0 | I146: 0 | J146: 0 | K146: 0 | L146: 0 | M146: 0 | N146: 0 | O146: 0 | P146: 0 | U146: 0 | V146: 0
E147: =Asset5 -> SCADA/Network control | G147: =G45-G79-G113 -> 14.87305005 | H147: 0 | I147: 0 | J147: 0 | K147: 0 | L147: 0 | M147: 0 | N147: 0 | O147: 0 | P147: 0 | U147: 14.87305005 | V147: 13
E148: =Asset6 -> Non-network general assets - IT | G148: =G46-G80-G114 -> 10.34717658 | H148: 0 | I148: 0 | J148: =J46-J80-J114 -> 0 | K148: 0 | L148: 0 | M148: 0 | N148: 0 | O148: 0 | P148: 0 | U148: 10.34717658 | V148: 6
E149: =Asset7 -> Non-network general assets - Other | G149: =G47-G81-G115 -> 8.227689983 | H149: 0 | I149: 0 | J149: 0 | K149: 0 | L149: 0 | M149: 0 | N149: 0 | O149: 0 | P149: 0 | U149: 8.227689983 | V149: 15
E150: =Asset8 -> VBRC | G150: =G48-G82-G116 -> 7.143833805 | H150: 0 | I150: 0 | J150: 0 | K150: 0 | L150: 0 | M150: 0 | N150: 0 | O150: 0 | P150: 0 | U150: 7.143833805 | V150: 25.60619701
E151: =Asset9 -> Land | G151: =G49-G83-G117 -> 0.1626062323 | H151: 0 | I151: 0 | J151: 0 | K151: 0 | L151: 0 | M151: 0 | N151: 0 | O151: 0 | P151: 0 | U151: 0 | V151: 0
E152: =Asset10 -> Supervisory cables | G152: =G50-G84-G118 -> 0 | H152: 0 | I152: 0 | J152: 0 | K152: 0 | L152: 0 | M152: 0 | N152: 0 | O152: 0 | P152: 0 | U152: 0 | V152: 0
E153: =Asset11 -> Old SWER ACRs | G153: =G51-G85-G119 -> 0 | H153: 0 | I153: 0 | J153: 0 | K153: 0 | L153: 0 | M153: 0 | N153: 0 | O153: 0 | P153: 0 | U153: 0 | V153: 0
E154: =Asset12 -> 0 | G154: =G52-G86-G120 -> 0 | H154: 0 | I154: 0 | J154: 0 | K154: 0 | L154: 0 | M154: 0 | N154: 0 | O154: 0 | P154: 0 | U154: 0 | V154: 0
E155: =Asset13 -> 0 | G155: =G53-G87-G121 -> 0 | H155: 0 | I155: 0 | J155: 0 | K155: 0 | L155: 0 | M155: 0 | N155: 0 | O155: 0 | P155: 0 | U155: 0 | V155: 0
E156: =Asset14 -> 0 | G156: =G54-G88-G122 -> 0 | H156: 0 | I156: 0 | J156: 0 | K156: 0 | L156: 0 | M156: 0 | N156: 0 | O156: 0 | P156: 0 | U156: 0 | V156: 0
E157: =Asset15 -> 0 | G157: =G55-G89-G123 -> 0 | H157: 0 | I157: 0 | J157: 0 | K157: 0 | L157: 0 | M157: 0 | N157: 0 | O157: 0 | P157: 0 | U157: 0 | V157: 0
E158: =Asset16 -> 0 | G158: =G56-G90-G124 -> 0 | H158: 0 | I158: 0 | J158: 0 | K158: 0 | L158: 0 | M158: 0 | N158: 0 | O158: 0 | P158: 0 | U158: 0 | V158: 0
E159: =Asset17 -> 0 | G159: =G57-G91-G125 -> 0 | H159: 0 | I159: 0 | J159: 0 | K159: 0 | L159: 0 | M159: 0 | N159: 0 | O159: 0 | P159: 0 | U159: 0 | V159: 0
E160: =Asset18 -> 0 | G160: =G58-G92-G126 -> 0 | H160: 0 | I160: 0 | J160: 0 | K160: 0 | L160: 0 | M160: 0 | N160: 0 | O160: 0 | P160: 0 | U160: 0 | V160: 0
E161: =Asset19 -> 0 | G161: =G59-G93-G127 -> 0 | H161: 0 | I161: 0 | J161: 0 | K161: 0 | L161: 0 | M161: 0 | N161: 0 | O161: 0 | P161: 0 | U161: 0 | V161: 0
E162: =Asset20 -> 0 | G162: =G60-G94-G128 -> 0 | H162: 0 | I162: 0 | J162: 0 | K162: 0 | L162: 0 | M162: 0 | N162: 0 | O162: 0 | P162: 0 | U162: 0 | V162: 0
E163: =Asset21 -> 0 | G163: =G61-G95-G129 -> 0 | H163: 0 | I163: 0 | J163: 0 | K163: 0 | L163: 0 | M163: 0 | N163: 0 | O163: 0 | P163: 0 | U163: 0 | V163: 0
E164: =Asset22 -> 0 | G164: =G62-G96-G130 -> 0 | H164: 0 | I164: 0 | J164: 0 | K164: 0 | L164: 0 | M164: 0 | N164: 0 | O164: 0 | P164: 0 | U164: 0 | V164: 0
E165: =Asset23 -> 0 | G165: =G63-G97-G131 -> 0 | H165: 0 | I165: 0 | J165: 0 | K165: 0 | L165: 0 | M165: 0 | N165: 0 | O165: 0 | P165: 0 | U165: 0 | V165: 0
E166: =Asset24 -> 0 | G166: =G64-G98-G132 -> 0 | H166: 0 | I166: 0 | J166: 0 | K166: 0 | L166: 0 | M166: 0 | N166: 0 | O166: 0 | P166: 0 | U166: 0 | V166: 0
E167: =Asset25 -> 0 | G167: =G65-G99-G133 -> 0 | H167: 0 | I167: 0 | J167: 0 | K167: 0 | L167: 0 | M167: 0 | N167: 0 | O167: 0 | P167: 0 | U167: 0 | V167: 0
E168: =Asset26 -> 0 | G168: =G66-G100-G134 -> 0 | H168: 0 | I168: 0 | J168: 0 | K168: 0 | L168: 0 | M168: 0 | N168: 0 | O168: 0 | P168: 0 | U168: 0 | V168: 0
E169: =Asset27 -> 0 | G169: =G67-G101-G135 -> 0 | H169: 0 | I169: 0 | J169: 0 | K169: 0 | L169: 0 | M169: 0 | N169: 0 | O169: 0 | P169: 0 | U169: 0 | V169: 0
E170: =Asset28 -> 0 | G170: =G68-G102-G136 -> 0 | H170: 0 | I170: 0 | J170: 0 | K170: 0 | L170: 0 | M170: 0 | N170: 0 | O170: 0 | P170: 0 | U170: 0 | V170: 0
E171: =Asset29 -> 0 | G171: =G69-G103-G137 -> 0 | H171: 0 | I171: 0 | J171: 0 | K171: 0 | L171: 0 | M171: 0 | N171: 0 | O171: 0 | P171: 0 | U171: 0 | V171: 0
E172: =Asset30 -> Equity raising costs | G172: =G70-G104-G138 -> 1.751373963 | H172: 0 | I172: 0 | J172: 0 | K172: 0 | L172: 0 | M172: 0 | N172: 0 | O172: 0 | P172: 0
E173: Total | G173: =SUM(G143:G172) -> 196.837687 | H173: 0 | I173: =SUM(I143:I172) -> 0 | J173: 0 | K173: 0 | L173: 0 | M173: 0 | N173: 0 | O173: 0 | P173: 0 | V173: =SUMPRODUCT($U$143:$U$171,$V$143:$V$171)/SUM(U143:U171) -> 43.15847857
Q174: =SUM(OFFSET(G173,0,0,1,$R$7)) -> 196.837687
E175: ="Forecast Operating and Maintenance Expenditure ($m Real "&$F$241&")" -> Forecast Operating and Maintenance Expenditure ($m Real 2020)
E176: =E40 -> Year | G176: =G40 -> 2021 | H176: =H40 -> 2022 | I176: 2023 | J176: 2024 | K176: 2025 | L176: 2026 | M176: 2027 | N176: 2028 | O176: 2029 | P176: 2030
E177: Controllable opex | G177: 135.9630937
E178: GSL payments | G178: 1.682107198
E179: Other
E186: Debt raising costs | G186: =(Drc*Dv*Assets!G475)/2/Assets!G7 -> 1.085773508 | H186: =IF(COUNT($G186:G186)>='PTRM input'!$R$7,0,(Drc*Dv*Assets!H475)/Assets!H7) -> 0 | I186: =IF(COUNT($G186:H186)>='PTRM input'!$R$7,0,(Drc*Dv*Assets!I475)/Assets!I7) -> 0 | J186: =IF(COUNT($G186:I186)>='PTRM input'!$R$7,0,(Drc*Dv*Assets!J475)/Assets!J7) -> 0 | K186: =IF(COUNT($G186:J186)>='PTRM input'!$R$7,0,(Drc*Dv*Assets!K475)/Assets!K7) -> 0 | L186: =IF(COUNT($G186:K186)>='PTRM input'!$R$7,0,(Drc*Dv*Assets!L475)/Assets!L7) -> 0 | M186: =IF(COUNT($G186:L186)>='PTRM input'!$R$7,0,(Drc*Dv*Assets!M475)/Assets!M7) -> 0 | N186: =IF(COUNT($G186:M186)>='PTRM input'!$R$7,0,(Drc*Dv*Assets!N475)/Assets!N7) -> 0 | O186: =IF(COUNT($G186:N186)>='PTRM input'!$R$7,0,(Drc*Dv*Assets!O475)/Assets!O7) -> 0 | P186: =IF(COUNT($G186:O186)>='PTRM input'!$R$7,0,(Drc*Dv*Assets!P475)/Assets!P7) -> 0
E187: Total | G187: =SUM(G177:G186) -> 138.7309744 | H187: 0 | I187: 0 | J187: 0 | K187: 0 | L187: 0 | M187: 0 | N187: 0 | O187: 0 | P187: 0
Q188: =SUM(OFFSET(G187,0,0,1,$R$7)) -> 138.7309744
E189: ="Revenue Adjustments ($m Real "&$F$241&")" -> Revenue Adjustments ($m Real 2020)
E190: =E40 -> Year | G190: =G40 -> 2021 | H190: 2022 | I190: 2023 | J190: 2024 | K190: 2025 | L190: 2026 | M190: 2027 | N190: 2028 | O190: 2029 | P190: 2030 | R190: Tax income? | S190: Tax Expense?
E191: EBSS increments as per NER 6.4.3(a)(5) & 6.5.8 | G191: 0 | R191: Yes | S191: Yes | T191: =IF(AND(R191="No",S191="Yes"),"Caution - there appears to be an error, if an adjustment is not included as tax income, it should not be a tax expense.","") -> 
E192: CESS increments as per NER 6.4.3(a)(5) & 6.5.8A | G192: 0 | R192: Yes | S192: Yes | T192: =IF(AND(R192="No",S192="Yes"),"Caution - there appears to be an error, if an adjustment is not included as tax income, it should not be a tax expense.","") -> 
E193: Control period carryover as per NER 6.4.3(a)(6) & 6.4.3(b)(6) | R193: No | S193: No
E194: Shared asset decrements as per NER 6.4.3(a)(6A) & 6.4.4 | R194: No | S194: No
E195: Demand management incentive allowance | G195: =0.3*1.08404154863078 -> 0.3252124646 | R195: Yes | S195: Yes
E201: Total Adjustments Included as Tax Income | G201: =SUMIF($R$191:$R$200,"Yes",G191:G200) -> 0.3252124646 | H201: =SUMIF($R$191:$R$200,"Yes",H191:H200) -> 0 | I201: 0 | J201: 0 | K201: 0 | L201: 0 | M201: 0 | N201: 0 | O201: 0 | P201: 0
E202: Total Adjustments Included as Non-tax Income | G202: =SUMIF($R$191:$R$200,"No",G191:G200) -> 0 | H202: =SUMIF($R$191:$R$200,"No",H191:H200) -> 0 | I202: 0 | J202: 0 | K202: 0 | L202: 0 | M202: 0 | N202: 0 | O202: 0 | P202: 0
E203: Total Adjustments Included as Tax Expense | G203: =SUMIF($S$191:$S$200,"Yes",G191:G200) -> 0.3252124646 | H203: =SUMIF($S$191:$S$200,"Yes",H191:H200) -> 0 | I203: 0 | J203: 0 | K203: 0 | L203: 0 | M203: 0 | N203: 0 | O203: 0 | P203: 0
E204: Total Adjustments Included as Non-tax Expense | G204: =SUMIF($S$191:$S$200,"No",G191:G200) -> 0 | H204: =SUMIF($S$191:$S$200,"No",H191:H200) -> 0 | I204: 0 | J204: 0 | K204: 0 | L204: 0 | M204: 0 | N204: 0 | O204: 0 | P204: 0
E205: Total Adjustments | G205: =SUM(G191:G200) -> 0.3252124646 | H205: 0 | I205: 0 | J205: 0 | K205: 0 | L205: 0 | M205: 0 | N205: 0 | O205: 0 | P205: 0
Q206: =SUM(OFFSET(G205,0,0,1,$R$7)) -> 0.3252124646
E207: Tax
E208: =E40 -> Year | G208: =G40 -> 2021 | H208: 2022 | I208: 2023 | J208: 2024 | K208: 2025 | L208: 2026 | M208: 2027 | N208: 2028 | O208: 2029 | P208: 2030
E209: Expected Corporate Tax Rate | G209: 0.3 | H209: 0.3 | I209: 0.3 | J209: 0.3 | K209: 0.3
E211: Year | F211: =F241 -> 2020
E212: Tax Loss Carried Forward From Previous Period | F212: 0 | G212: =IF(F212>0,"Caution - The tax loss carried forward should be a negative number.","") -> 
E214: Cost of Capital
E215: =E40 -> Year | G215: =CONCATENATE(LEFT(G40,4),"-",RIGHT(OFFSET(G40,0,R7-1,1,1),2)) -> 2021-21
E216: Inflation Rate | F216: f | G216: 0.01118103795
... 88 more rows

Sheet WACC
B2: ='DMS input'!$C$16&" - Cost of Capital Parameters"&" - DNSP PTRM - version "&Intro!$L$4 -> PAL - Cost of Capital Parameters - DNSP PTRM - version 3
B4: Year | G4: ='PTRM input'!G40 -> 2021 | H4: ='PTRM input'!H40 -> 2022 | I4: ='PTRM input'!I40 -> 2023 | J4: ='PTRM input'!J40 -> 2024 | K4: ='PTRM input'!K40 -> 2025 | L4: ='PTRM input'!L40 -> 2026 | M4: ='PTRM input'!M40 -> 2027 | N4: ='PTRM input'!N40 -> 2028 | O4: ='PTRM input'!O40 -> 2029 | P4: ='PTRM input'!P40 -> 2030 | R4: Final decision checks
R5: This column contains calculations that presume a constant WACC. They are therefore to be used at the start of the regulatory period (prior to any annual debt updates).
B6: Inflation Rate | D6: f | F6: Constant | G6: =f -> 0.01118103795 | H6: 0.01118103795 | I6: 0.01118103795 | J6: 0.01118103795 | K6: 0.01118103795 | L6: 0.01118103795 | M6: 0.01118103795 | N6: 0.01118103795 | O6: 0.01118103795 | P6: 0.01118103795
B7: Value of Imputation Credits (gamma) | D7: γ | F7: Constant | G7: =g -> 0.585 | H7: 0.585 | I7: 0.585 | J7: 0.585 | K7: 0.585 | L7: 0.585 | M7: 0.585 | N7: 0.585 | O7: 0.585 | P7: 0.585
B8: Proportion of Equity Funding | D8: E/V | F8: Constant | G8: =1-G9 -> 0.4 | H8: =1-H9 -> 0.4 | I8: =1-I9 -> 0.4 | J8: 0.4 | K8: 0.4 | L8: 0.4 | M8: 0.4 | N8: 0.4 | O8: 0.4 | P8: =1-P9 -> 0.4
B9: Proportion of Debt Funding | D9: D/V | F9: Constant | G9: =Dv -> 0.6 | H9: 0.6 | I9: 0.6 | J9: 0.6 | K9: 0.6 | L9: 0.6 | M9: 0.6 | N9: 0.6 | O9: 0.6 | P9: 0.6
B10: Post-tax Nominal Return on Equity | D10: Re | F10: Constant | G10: ='PTRM input'!$G$217 -> 0.0226986324 | H10: ='PTRM input'!$G$217 -> 0.0226986324 | I10: ='PTRM input'!$G$217 -> 0.0226986324 | J10: ='PTRM input'!$G$217 -> 0.0226986324 | K10: ='PTRM input'!$G$217 -> 0.0226986324 | L10: ='PTRM input'!$G$217 -> 0.0226986324 | M10: ='PTRM input'!$G$217 -> 0.0226986324 | N10: ='PTRM input'!$G$217 -> 0.0226986324 | O10: ='PTRM input'!$G$217 -> 0.0226986324 | P10: ='PTRM input'!$G$217 -> 0.0226986324 | R10: =Analysis!$E$111 -> 0.0226986324
B11: Post-tax Real Return on Equity | D11: Rre | F11: Constant | G11: =(1+G10)/(1+G6)-1 -> 0.01139023975 | H11: 0.01139023975 | I11: 0.01139023975 | J11: 0.01139023975 | K11: 0.01139023975 | L11: 0.01139023975 | M11: 0.01139023975 | N11: 0.01139023975 | O11: 0.01139023975 | P11: 0.01139023975 | R11: =Analysis!$E$115 -> 0.01139023975
B13: Corporate Tax Rate | D13: T | F13: Varying | G13: ='PTRM input'!G209 -> 0.3 | H13: =IF(OR(ISBLANK('PTRM input'!H209),'PTRM input'!H209=0),G13,'PTRM input'!H209) -> 0.3 | I13: =IF(OR(ISBLANK('PTRM input'!I209),'PTRM input'!I209=0),H13,'PTRM input'!I209) -> 0.3 | J13: =IF(OR(ISBLANK('PTRM input'!J209),'PTRM input'!J209=0),I13,'PTRM input'!J209) -> 0.3 | K13: =IF(OR(ISBLANK('PTRM input'!K209),'PTRM input'!K209=0),J13,'PTRM input'!K209) -> 0.3 | L13: =IF(OR(ISBLANK('PTRM input'!L209),'PTRM input'!L209=0),K13,'PTRM input'!L209) -> 0.3 | M13: =IF(OR(ISBLANK('PTRM input'!M209),'PTRM input'!M209=0),L13,'PTRM input'!M209) -> 0.3 | N13: =IF(OR(ISBLANK('PTRM input'!N209),'PTRM input'!N209=0),M13,'PTRM input'!N209) -> 0.3 | O13: =IF(OR(ISBLANK('PTRM input'!O209),'PTRM input'!O209=0),N13,'PTRM input'!O209) -> 0.3 | P13: =IF(OR(ISBLANK('PTRM input'!P209),'PTRM input'!P209=0),O13,'PTRM input'!P209) -> 0.3
B14: Nominal Pre-tax Return on Debt | D14: Rd | F14: Varying | G14: ='PTRM input'!G222 -> 0.02333359005 | H14: =IF(OR(ISBLANK('PTRM input'!H222),'PTRM input'!H222=0),G14,'PTRM input'!H222) -> 0.02333359005 | I14: =IF(OR(ISBLANK('PTRM input'!I222),'PTRM input'!I222=0),H14,'PTRM input'!I222) -> 0.02333359005 | J14: =IF(OR(ISBLANK('PTRM input'!J222),'PTRM input'!J222=0),I14,'PTRM input'!J222) -> 0.02333359005 | K14: =IF(OR(ISBLANK('PTRM input'!K222),'PTRM input'!K222=0),J14,'PTRM input'!K222) -> 0.02333359005 | L14: =IF(OR(ISBLANK('PTRM input'!L222),'PTRM input'!L222=0),K14,'PTRM input'!L222) -> 0.02333359005 | M14: =IF(OR(ISBLANK('PTRM input'!M222),'PTRM input'!M222=0),L14,'PTRM input'!M222) -> 0.02333359005 | N14: =IF(OR(ISBLANK('PTRM input'!N222),'PTRM input'!N222=0),M14,'PTRM input'!N222) -> 0.02333359005 | O14: =IF(OR(ISBLANK('PTRM input'!O222),'PTRM input'!O222=0),N14,'PTRM input'!O222) -> 0.02333359005 | P14: =IF(OR(ISBLANK('PTRM input'!P222),'PTRM input'!P222=0),O14,'PTRM input'!P222) -> 0.02333359005
B15: Real Pre-tax Return on Debt | D15: Rrd | F15: Varying | G15: =(1+G14)/(1+G6)-1 -> 0.01201817642 | H15: 0.01201817642 | I15: 0.01201817642 | J15: 0.01201817642 | K15: 0.01201817642 | L15: 0.01201817642 | M15: 0.01201817642 | N15: 0.01201817642 | O15: 0.01201817642 | P15: 0.01201817642
G17: Formula approximations of WACC | R17: Cashflow derivations of WACC
B18: Nominal Vanilla WACC | F18: Varying | G18: =G8*G10+G9*G14 -> 0.02307960699 | H18: 0.02307960699 | I18: 0.02307960699 | J18: 0.02307960699 | K18: 0.02307960699 | L18: 0.02307960699 | M18: 0.02307960699 | N18: 0.02307960699 | O18: 0.02307960699 | P18: 0.02307960699 | R18: =Analysis!$E$126 -> 0.02307960699
B19: Real Vanilla WACC | F19: Varying | G19: =G8*G11+G9*G15 -> 0.01176700175 | H19: 0.01176700175 | I19: 0.01176700175 | J19: 0.01176700175 | K19: 0.01176700175 | L19: 0.01176700175 | M19: 0.01176700175 | N19: 0.01176700175 | O19: 0.01176700175 | P19: 0.01176700175 | R19: =Analysis!$E$127 -> 0.01176700175
B20: Post-tax Nominal WACC | F20: Varying | G20: =G10*G8+G14*G9*(1-G28*(1-G7)) -> 0.02256207603 | H20: 0.02256207603 | I20: 0.02256207603 | J20: 0.02256207603 | K20: 0.02256207603 | L20: 0.02256207603 | M20: 0.02256207603 | N20: 0.02256207603 | O20: 0.02256207603 | P20: 0.02256207603 | R20: =Analysis!$E$123 -> 0.02301707846
B21: Post-tax Real WACC | F21: Varying | G21: =(1+G20)/(1+G6)-1 -> 0.01125519334 | H21: 0.01125519334 | I21: 0.01125519334 | J21: 0.01125519334 | K21: 0.01125519334 | L21: 0.01125519334 | M21: 0.01125519334 | N21: 0.01125519334 | O21: 0.01125519334 | P21: 0.01125519334 | R21: =Analysis!$E$125 -> 0.01170516462
B22: Pre-tax Nominal WACC | F22: Varying | G22: =G10*(1/(1-G27*(1-G7)))*G8+G14*G9 -> 0.0231235889 | H22: 0.0231235889 | I22: 0.0231235889 | J22: 0.0231235889 | K22: 0.0231235889 | L22: 0.0231235889 | M22: 0.0231235889 | N22: 0.0231235889 | O22: 0.0231235889 | P22: 0.0231235889 | R22: =Analysis!$E$122 -> 0.02312407574
B23: Pre-tax Real WACC | F23: Varying | G23: =(1+G22)/(1+G6)-1 -> 0.01181049734 | H23: 0.01181049734 | I23: 0.01181049734 | J23: 0.01181049734 | K23: 0.01181049734 | L23: 0.01181049734 | M23: 0.01181049734 | N23: 0.01181049734 | O23: 0.01181049734 | P23: 0.01181049734 | R23: =Analysis!$E$124 -> 0.01181097879
B24: Nominal Tax Allowance | F24: Varying | G24: =G22-G20 -> 0.0005615128743 | H24: =H22-H20 -> 0.0005615128743 | I24: 0.0005615128743 | J24: 0.0005615128743 | K24: 0.0005615128743 | L24: 0.0005615128743 | M24: 0.0005615128743 | N24: 0.0005615128743 | O24: 0.0005615128743 | P24: 0.0005615128743 | R24: =$R$22-$R$20 -> 0.0001069972835
B25: Real Tax Allowance | F25: Varying | G25: =G23-G21 -> 0.0005553039992 | H25: =H23-H21 -> 0.0005553039992 | I25: 0.0005553039992 | J25: 0.0005553039992 | K25: 0.0005553039992 | L25: 0.0005553039992 | M25: 0.0005553039992 | N25: 0.0005553039992 | O25: 0.0005553039992 | P25: 0.0005553039992 | R25: =$R$23-$R$21 -> 0.0001058141712
B27: Effective Tax Rate for Equity (from relevant cashflows) | D27: Te | G27: 0.01161629592 | H27: =G27 -> 0.01161629592 | I27: =H27 -> 0.01161629592 | J27: 0.01161629592 | K27: 0.01161629592 | L27: 0.01161629592 | M27: 0.01161629592 | N27: 0.01161629592 | O27: 0.01161629592 | P27: 0.01161629592 | R27: =Analysis!$D$109 -> 0.01161629592
B28: Effective Tax Rate for Debt (effective debt shield) | D28: Td | G28: 0.0890749165 | H28: =G28 -> 0.0890749165 | I28: =H28 -> 0.0890749165 | J28: 0.0890749165 | K28: 0.0890749165 | L28: 0.0890749165 | M28: 0.0890749165 | N28: 0.0890749165 | O28: 0.0890749165 | P28: 0.0890749165 | R28: =Analysis!$D$120 -> 0.0890749165
H30: At the start of the regulatory control period, use this button to copy across the cashflow-calculated Te and Td.
H31: However, these calculations presume a constant WACC so Te/Td should not be updated during a regulatory control period
H32: when annually updating the return on debt - just use the same Te/Td from the final decision.
G34: Numbers in White cells are calculated on this sheet from input parameters.
G35: Numbers in Orange cells are transferred from relevant sheets

Sheet Assets
B2: ='DMS input'!$C$16&" - Asset Roll Forward"&" - DNSP PTRM - version "&Intro!$L$4 -> PAL - Asset Roll Forward - DNSP PTRM - version 3
F3: 0 | G3: =F3+1 -> 1 | H3: 2 | I3: 3 | J3: 4 | K3: 5 | L3: 6 | M3: 7 | N3: 8 | O3: 9 | P3: 10 | Q3: 11 | R3: 12 | S3: 13 | T3: 14 | U3: 15 | V3: 16 | W3: 17 | X3: 18 | Y3: 19 | Z3: 20 | AA3: 21 | AB3: 22 | AC3: 23 | AD3: 24 | AE3: 25 | AF3: 26 | AG3: 27 | AH3: 28 | AI3: 29 | AJ3: 30 | AK3: 31 | AL3: 32 | AM3: =AL3+1 -> 33 | AN3: 34 | AO3: 35 | AP3: 36 | AQ3: 37 | AR3: 38 | AS3: 39 | AT3: 40 | AU3: 41 | AV3: 42 | AW3: 43 | AX3: 44 | AY3: 45 | AZ3: 46 | BA3: 47 | BB3: 48 | BC3: 49 | BD3: 50 | BE3: 51 | BF3: 52 | BG3: 53 | BH3: 54 | BI3: 55
B4: Year | F4: ='PTRM input'!F241 -> 2020 | G4: ='PTRM input'!G40 -> 2021 | H4: ='PTRM input'!H40 -> 2022 | I4: ='PTRM input'!I40 -> 2023 | J4: ='PTRM input'!J40 -> 2024 | K4: ='PTRM input'!K40 -> 2025 | L4: ='PTRM input'!L40 -> 2026 | M4: ='PTRM input'!M40 -> 2027 | N4: ='PTRM input'!N40 -> 2028 | O4: ='PTRM input'!O40 -> 2029 | P4: ='PTRM input'!P40 -> 2030 | Q4: =(LEFT(P4,4)+1&IF(MID(P4,5,1)="","","-"&TEXT(MID(P4,6,2)+1,"00"))) -> 2031 | R4: =(LEFT(Q4,4)+1&IF(MID(Q4,5,1)="","","-"&TEXT(MID(Q4,6,2)+1,"00"))) -> 2032 | S4: 2033 | T4: 2034 | U4: 2035 | V4: 2036 | W4: 2037 | X4: 2038 | Y4: 2039 | Z4: 2040 | AA4: 2041 | AB4: 2042 | AC4: 2043 | AD4: 2044 | AE4: 2045 | AF4: 2046 | AG4: 2047 | AH4: 2048 | AI4: 2049 | AJ4: 2050 | AK4: 2051 | AL4: 2052 | AM4: 2053 | AN4: 2054 | AO4: 2055 | AP4: 2056 | AQ4: 2057 | AR4: 2058 | AS4: 2059 | AT4: 2060 | AU4: 2061 | AV4: 2062 | AW4: 2063 | AX4: 2064 | AY4: 2065 | AZ4: 2066 | BA4: 2067 | BB4: 2068 | BC4: 2069 | BD4: 2070 | BE4: 2071 | BF4: 2072 | BG4: 2073 | BH4: 2074 | BI4: 2075
B6: Inflation Assumption (CPI % increase) | D6: =f -> 0.01118103795 | G6: =$D$6 -> 0.01118103795 | H6: =$D$6 -> 0.01118103795 | I6: 0.01118103795 | J6: 0.01118103795 | K6: 0.01118103795 | L6: 0.01118103795 | M6: 0.01118103795 | N6: 0.01118103795 | O6: 0.01118103795 | P6: 0.01118103795 | Q6: 0.01118103795 | R6: 0.01118103795 | S6: 0.01118103795 | T6: 0.01118103795 | U6: 0.01118103795 | V6: 0.01118103795 | W6: 0.01118103795 | X6: 0.01118103795 | Y6: 0.01118103795 | Z6: 0.01118103795 | AA6: 0.01118103795 | AB6: 0.01118103795 | AC6: 0.01118103795 | AD6: 0.01118103795 | AE6: 0.01118103795 | AF6: 0.01118103795 | AG6: 0.01118103795 | AH6: 0.01118103795 | AI6: 0.01118103795 | AJ6: 0.01118103795 | AK6: 0.01118103795 | AL6: 0.01118103795 | AM6: 0.01118103795 | AN6: 0.01118103795 | AO6: 0.01118103795 | AP6: 0.01118103795 | AQ6: 0.01118103795 | AR6: 0.01118103795 | AS6: 0.01118103795 | AT6: 0.01118103795 | AU6: 0.01118103795 | AV6: 0.01118103795 | AW6: 0.01118103795 | AX6: 0.01118103795 | AY6: 0.01118103795 | AZ6: 0.01118103795 | BA6: 0.01118103795 | BB6: 0.01118103795 | BC6: 0.01118103795 | BD6: 0.01118103795 | BE6: 0.01118103795 | BF6: 0.01118103795 | BG6: 0.01118103795 | BH6: 0.01118103795 | BI6: 0.01118103795
B7: Cumulative Inflation Index (CPI end period) | F7: 1 | G7: =F7*(1+G6) -> 1.011181038 | H7: =G7*(1+H6) -> 1.022487092 | I7: =H7*(1+I6) -> 1.033919558 | J7: =I7*(1+J6) -> 1.045479852 | K7: 1.057169402 | L7: 1.068989653 | M7: 1.080942067 | N7: 1.093028122 | O7: 1.10524931 | P7: =O7*(1+P6) -> 1.117607145 | Q7: 1.130103153 | R7: 1.142738879 | S7: 1.155515886 | T7: 1.168435753 | U7: 1.181500077 | V7: 1.194710474 | W7: 1.208068578 | X7: 1.221576038 | Y7: 1.235234526 | Z7: 1.24904573 | AA7: 1.263011358 | AB7: 1.277133136 | AC7: 1.29141281 | AD7: 1.305852146 | AE7: 1.320452928 | AF7: 1.335216962 | AG7: 1.350146074 | AH7: 1.365242108 | AI7: 1.380506932 | AJ7: 1.395942433 | AK7: 1.411550518 | AL7: 1.427333118 | AM7: 1.443292184 | AN7: 1.459429688 | AO7: 1.475747627 | AP7: 1.492248017 | AQ7: 1.508932899 | AR7: 1.525804335 | AS7: 1.542864411 | AT7: 1.560115237 | AU7: 1.577558944 | AV7: 1.595197691 | AW7: 1.613033657 | AX7: 1.631069047 | AY7: 1.649306092 | AZ7: 1.667747046 | BA7: 1.686394189 | BB7: 1.705249826 | BC7: 1.724316289 | BD7: 1.743595935 | BE7: 1.763091148 | BF7: 1.782804337 | BG7: 1.80273794 | BH7: 1.822894421 | BI7: 1.843276273
B9: Opening Regulatory Asset Base (RAB) | F9: =RAB -> 4314.639886
B10: Real Net Capital Expenditure (capex) | G10: =SUM(G11:G40) -> 197.9923948 | H10: =SUM(H11:H40) -> 0 | I10: =SUM(I11:I40) -> 0 | J10: 0 | K10: 0 | L10: 0 | M10: 0 | N10: 0 | O10: 0 | P10: 0
C11: =Asset1 -> Subtransmission | G11: ='PTRM input'!G143*(1+rvanilla01)^0.5 -> 20.21150296 | H11: ='PTRM input'!H143*(1+rvanilla02)^0.5 -> 0 | I11: ='PTRM input'!I143*(1+rvanilla03)^0.5 -> 0 | J11: ='PTRM input'!J143*(1+rvanilla04)^0.5 -> 0 | K11: ='PTRM input'!K143*(1+rvanilla05)^0.5 -> 0 | L11: ='PTRM input'!L143*(1+rvanilla06)^0.5 -> 0 | M11: ='PTRM input'!M143*(1+rvanilla07)^0.5 -> 0 | N11: ='PTRM input'!N143*(1+rvanilla08)^0.5 -> 0 | O11: ='PTRM input'!O143*(1+rvanilla09)^0.5 -> 0 | P11: ='PTRM input'!P143*(1+rvanilla10)^0.5 -> 0
C12: =Asset2 -> Distribution system assets | G12: ='PTRM input'!G144*(1+rvanilla01)^0.5 -> 135.0258101 | H12: ='PTRM input'!H144*(1+rvanilla02)^0.5 -> 0 | I12: ='PTRM input'!I144*(1+rvanilla03)^0.5 -> 0 | J12: ='PTRM input'!J144*(1+rvanilla04)^0.5 -> 0 | K12: ='PTRM input'!K144*(1+rvanilla05)^0.5 -> 0 | L12: ='PTRM input'!L144*(1+rvanilla06)^0.5 -> 0 | M12: ='PTRM input'!M144*(1+rvanilla07)^0.5 -> 0 | N12: ='PTRM input'!N144*(1+rvanilla08)^0.5 -> 0 | O12: ='PTRM input'!O144*(1+rvanilla09)^0.5 -> 0 | P12: ='PTRM input'!P144*(1+rvanilla10)^0.5 -> 0
C13: =Asset3 -> Standard metering | G13: ='PTRM input'!G145*(1+rvanilla01)^0.5 -> 0 | H13: ='PTRM input'!H145*(1+rvanilla02)^0.5 -> 0 | I13: ='PTRM input'!I145*(1+rvanilla03)^0.5 -> 0 | J13: ='PTRM input'!J145*(1+rvanilla04)^0.5 -> 0 | K13: ='PTRM input'!K145*(1+rvanilla05)^0.5 -> 0 | L13: ='PTRM input'!L145*(1+rvanilla06)^0.5 -> 0 | M13: ='PTRM input'!M145*(1+rvanilla07)^0.5 -> 0 | N13: ='PTRM input'!N145*(1+rvanilla08)^0.5 -> 0 | O13: ='PTRM input'!O145*(1+rvanilla09)^0.5 -> 0 | P13: ='PTRM input'!P145*(1+rvanilla10)^0.5 -> 0
C14: =Asset4 -> Public lighting | G14: ='PTRM input'!G146*(1+rvanilla01)^0.5 -> 0 | H14: ='PTRM input'!H146*(1+rvanilla02)^0.5 -> 0 | I14: ='PTRM input'!I146*(1+rvanilla03)^0.5 -> 0 | J14: ='PTRM input'!J146*(1+rvanilla04)^0.5 -> 0 | K14: ='PTRM input'!K146*(1+rvanilla05)^0.5 -> 0 | L14: ='PTRM input'!L146*(1+rvanilla06)^0.5 -> 0 | M14: ='PTRM input'!M146*(1+rvanilla07)^0.5 -> 0 | N14: ='PTRM input'!N146*(1+rvanilla08)^0.5 -> 0 | O14: ='PTRM input'!O146*(1+rvanilla09)^0.5 -> 0 | P14: ='PTRM input'!P146*(1+rvanilla10)^0.5 -> 0
C15: =Asset5 -> SCADA/Network control | G15: ='PTRM input'!G147*(1+rvanilla01)^0.5 -> 14.96029973 | H15: ='PTRM input'!H147*(1+rvanilla02)^0.5 -> 0 | I15: ='PTRM input'!I147*(1+rvanilla03)^0.5 -> 0 | J15: ='PTRM input'!J147*(1+rvanilla04)^0.5 -> 0 | K15: ='PTRM input'!K147*(1+rvanilla05)^0.5 -> 0 | L15: ='PTRM input'!L147*(1+rvanilla06)^0.5 -> 0 | M15: ='PTRM input'!M147*(1+rvanilla07)^0.5 -> 0 | N15: ='PTRM input'!N147*(1+rvanilla08)^0.5 -> 0 | O15: ='PTRM input'!O147*(1+rvanilla09)^0.5 -> 0 | P15: ='PTRM input'!P147*(1+rvanilla10)^0.5 -> 0
C16: =Asset6 -> Non-network general assets - IT | G16: ='PTRM input'!G148*(1+rvanilla01)^0.5 -> 10.40787616 | H16: ='PTRM input'!H148*(1+rvanilla02)^0.5 -> 0 | I16: ='PTRM input'!I148*(1+rvanilla03)^0.5 -> 0 | J16: ='PTRM input'!J148*(1+rvanilla04)^0.5 -> 0 | K16: ='PTRM input'!K148*(1+rvanilla05)^0.5 -> 0 | L16: ='PTRM input'!L148*(1+rvanilla06)^0.5 -> 0 | M16: ='PTRM input'!M148*(1+rvanilla07)^0.5 -> 0 | N16: ='PTRM input'!N148*(1+rvanilla08)^0.5 -> 0 | O16: ='PTRM input'!O148*(1+rvanilla09)^0.5 -> 0 | P16: ='PTRM input'!P148*(1+rvanilla10)^0.5 -> 0
C17: =Asset7 -> Non-network general assets - Other | G17: ='PTRM input'!G149*(1+rvanilla01)^0.5 -> 8.275956033 | H17: ='PTRM input'!H149*(1+rvanilla02)^0.5 -> 0 | I17: ='PTRM input'!I149*(1+rvanilla03)^0.5 -> 0 | J17: ='PTRM input'!J149*(1+rvanilla04)^0.5 -> 0 | K17: ='PTRM input'!K149*(1+rvanilla05)^0.5 -> 0 | L17: ='PTRM input'!L149*(1+rvanilla06)^0.5 -> 0 | M17: ='PTRM input'!M149*(1+rvanilla07)^0.5 -> 0 | N17: ='PTRM input'!N149*(1+rvanilla08)^0.5 -> 0 | O17: ='PTRM input'!O149*(1+rvanilla09)^0.5 -> 0 | P17: ='PTRM input'!P149*(1+rvanilla10)^0.5 -> 0
C18: =Asset8 -> VBRC | G18: ='PTRM input'!G150*(1+rvanilla01)^0.5 -> 7.185741636 | H18: ='PTRM input'!H150*(1+rvanilla02)^0.5 -> 0 | I18: ='PTRM input'!I150*(1+rvanilla03)^0.5 -> 0 | J18: ='PTRM input'!J150*(1+rvanilla04)^0.5 -> 0 | K18: ='PTRM input'!K150*(1+rvanilla05)^0.5 -> 0 | L18: ='PTRM input'!L150*(1+rvanilla06)^0.5 -> 0 | M18: ='PTRM input'!M150*(1+rvanilla07)^0.5 -> 0 | N18: ='PTRM input'!N150*(1+rvanilla08)^0.5 -> 0 | O18: ='PTRM input'!O150*(1+rvanilla09)^0.5 -> 0 | P18: ='PTRM input'!P150*(1+rvanilla10)^0.5 -> 0
C19: =Asset9 -> Land | G19: ='PTRM input'!G151*(1+rvanilla01)^0.5 -> 0.1635601283 | H19: ='PTRM input'!H151*(1+rvanilla02)^0.5 -> 0 | I19: ='PTRM input'!I151*(1+rvanilla03)^0.5 -> 0 | J19: ='PTRM input'!J151*(1+rvanilla04)^0.5 -> 0 | K19: ='PTRM input'!K151*(1+rvanilla05)^0.5 -> 0 | L19: ='PTRM input'!L151*(1+rvanilla06)^0.5 -> 0 | M19: ='PTRM input'!M151*(1+rvanilla07)^0.5 -> 0 | N19: ='PTRM input'!N151*(1+rvanilla08)^0.5 -> 0 | O19: ='PTRM input'!O151*(1+rvanilla09)^0.5 -> 0 | P19: ='PTRM input'!P151*(1+rvanilla10)^0.5 -> 0
C20: =Asset10 -> Supervisory cables | G20: ='PTRM input'!G152*(1+rvanilla01)^0.5 -> 0 | H20: ='PTRM input'!H152*(1+rvanilla02)^0.5 -> 0 | I20: ='PTRM input'!I152*(1+rvanilla03)^0.5 -> 0 | J20: ='PTRM input'!J152*(1+rvanilla04)^0.5 -> 0 | K20: ='PTRM input'!K152*(1+rvanilla05)^0.5 -> 0 | L20: ='PTRM input'!L152*(1+rvanilla06)^0.5 -> 0 | M20: ='PTRM input'!M152*(1+rvanilla07)^0.5 -> 0 | N20: ='PTRM input'!N152*(1+rvanilla08)^0.5 -> 0 | O20: ='PTRM input'!O152*(1+rvanilla09)^0.5 -> 0 | P20: ='PTRM input'!P152*(1+rvanilla10)^0.5 -> 0
C21: =Asset11 -> Old SWER ACRs | G21: ='PTRM input'!G153*(1+rvanilla01)^0.5 -> 0 | H21: ='PTRM input'!H153*(1+rvanilla02)^0.5 -> 0 | I21: ='PTRM input'!I153*(1+rvanilla03)^0.5 -> 0 | J21: ='PTRM input'!J153*(1+rvanilla04)^0.5 -> 0 | K21: ='PTRM input'!K153*(1+rvanilla05)^0.5 -> 0 | L21: ='PTRM input'!L153*(1+rvanilla06)^0.5 -> 0 | M21: ='PTRM input'!M153*(1+rvanilla07)^0.5 -> 0 | N21: ='PTRM input'!N153*(1+rvanilla08)^0.5 -> 0 | O21: ='PTRM input'!O153*(1+rvanilla09)^0.5 -> 0 | P21: ='PTRM input'!P153*(1+rvanilla10)^0.5 -> 0
C22: =Asset12 -> 0 | G22: ='PTRM input'!G154*(1+rvanilla01)^0.5 -> 0 | H22: ='PTRM input'!H154*(1+rvanilla02)^0.5 -> 0 | I22: ='PTRM input'!I154*(1+rvanilla03)^0.5 -> 0 | J22: ='PTRM input'!J154*(1+rvanilla04)^0.5 -> 0 | K22: ='PTRM input'!K154*(1+rvanilla05)^0.5 -> 0 | L22: ='PTRM input'!L154*(1+rvanilla06)^0.5 -> 0 | M22: ='PTRM input'!M154*(1+rvanilla07)^0.5 -> 0 | N22: ='PTRM input'!N154*(1+rvanilla08)^0.5 -> 0 | O22: ='PTRM input'!O154*(1+rvanilla09)^0.5 -> 0 | P22: ='PTRM input'!P154*(1+rvanilla10)^0.5 -> 0
C23: =Asset13 -> 0 | G23: ='PTRM input'!G155*(1+rvanilla01)^0.5 -> 0 | H23: ='PTRM input'!H155*(1+rvanilla02)^0.5 -> 0 | I23: ='PTRM input'!I155*(1+rvanilla03)^0.5 -> 0 | J23: ='PTRM input'!J155*(1+rvanilla04)^0.5 -> 0 | K23: ='PTRM input'!K155*(1+rvanilla05)^0.5 -> 0 | L23: ='PTRM input'!L155*(1+rvanilla06)^0.5 -> 0 | M23: ='PTRM input'!M155*(1+rvanilla07)^0.5 -> 0 | N23: ='PTRM input'!N155*(1+rvanilla08)^0.5 -> 0 | O23: ='PTRM input'!O155*(1+rvanilla09)^0.5 -> 0 | P23: ='PTRM input'!P155*(1+rvanilla10)^0.5 -> 0
C24: =Asset14 -> 0 | G24: ='PTRM input'!G156*(1+rvanilla01)^0.5 -> 0 | H24: ='PTRM input'!H156*(1+rvanilla02)^0.5 -> 0 | I24: ='PTRM input'!I156*(1+rvanilla03)^0.5 -> 0 | J24: ='PTRM input'!J156*(1+rvanilla04)^0.5 -> 0 | K24: ='PTRM input'!K156*(1+rvanilla05)^0.5 -> 0 | L24: ='PTRM input'!L156*(1+rvanilla06)^0.5 -> 0 | M24: ='PTRM input'!M156*(1+rvanilla07)^0.5 -> 0 | N24: ='PTRM input'!N156*(1+rvanilla08)^0.5 -> 0 | O24: ='PTRM input'!O156*(1+rvanilla09)^0.5 -> 0 | P24: ='PTRM input'!P156*(1+rvanilla10)^0.5 -> 0
C25: =Asset15 -> 0 | G25: ='PTRM input'!G157*(1+rvanilla01)^0.5 -> 0 | H25: ='PTRM input'!H157*(1+rvanilla02)^0.5 -> 0 | I25: ='PTRM input'!I157*(1+rvanilla03)^0.5 -> 0 | J25: ='PTRM input'!J157*(1+rvanilla04)^0.5 -> 0 | K25: ='PTRM input'!K157*(1+rvanilla05)^0.5 -> 0 | L25: ='PTRM input'!L157*(1+rvanilla06)^0.5 -> 0 | M25: ='PTRM input'!M157*(1+rvanilla07)^0.5 -> 0 | N25: ='PTRM input'!N157*(1+rvanilla08)^0.5 -> 0 | O25: ='PTRM input'!O157*(1+rvanilla09)^0.5 -> 0 | P25: ='PTRM input'!P157*(1+rvanilla10)^0.5 -> 0
C26: =Asset16 -> 0 | G26: ='PTRM input'!G158*(1+rvanilla01)^0.5 -> 0 | H26: ='PTRM input'!H158*(1+rvanilla02)^0.5 -> 0 | I26: ='PTRM input'!I158*(1+rvanilla03)^0.5 -> 0 | J26: ='PTRM input'!J158*(1+rvanilla04)^0.5 -> 0 | K26: ='PTRM input'!K158*(1+rvanilla05)^0.5 -> 0 | L26: ='PTRM input'!L158*(1+rvanilla06)^0.5 -> 0 | M26: ='PTRM input'!M158*(1+rvanilla07)^0.5 -> 0 | N26: ='PTRM input'!N158*(1+rvanilla08)^0.5 -> 0 | O26: ='PTRM input'!O158*(1+rvanilla09)^0.5 -> 0 | P26: ='PTRM input'!P158*(1+rvanilla10)^0.5 -> 0
C27: =Asset17 -> 0 | G27: ='PTRM input'!G159*(1+rvanilla01)^0.5 -> 0 | H27: ='PTRM input'!H159*(1+rvanilla02)^0.5 -> 0 | I27: ='PTRM input'!I159*(1+rvanilla03)^0.5 -> 0 | J27: ='PTRM input'!J159*(1+rvanilla04)^0.5 -> 0 | K27: ='PTRM input'!K159*(1+rvanilla05)^0.5 -> 0 | L27: ='PTRM input'!L159*(1+rvanilla06)^0.5 -> 0 | M27: ='PTRM input'!M159*(1+rvanilla07)^0.5 -> 0 | N27: ='PTRM input'!N159*(1+rvanilla08)^0.5 -> 0 | O27: ='PTRM input'!O159*(1+rvanilla09)^0.5 -> 0 | P27: ='PTRM input'!P159*(1+rvanilla10)^0.5 -> 0
C28: =Asset18 -> 0 | G28: ='PTRM input'!G160*(1+rvanilla01)^0.5 -> 0 | H28: ='PTRM input'!H160*(1+rvanilla02)^0.5 -> 0 | I28: ='PTRM input'!I160*(1+rvanilla03)^0.5 -> 0 | J28: ='PTRM input'!J160*(1+rvanilla04)^0.5 -> 0 | K28: ='PTRM input'!K160*(1+rvanilla05)^0.5 -> 0 | L28: ='PTRM input'!L160*(1+rvanilla06)^0.5 -> 0 | M28: ='PTRM input'!M160*(1+rvanilla07)^0.5 -> 0 | N28: ='PTRM input'!N160*(1+rvanilla08)^0.5 -> 0 | O28: ='PTRM input'!O160*(1+rvanilla09)^0.5 -> 0 | P28: ='PTRM input'!P160*(1+rvanilla10)^0.5 -> 0
C29: =Asset19 -> 0 | G29: ='PTRM input'!G161*(1+rvanilla01)^0.5 -> 0 | H29: ='PTRM input'!H161*(1+rvanilla02)^0.5 -> 0 | I29: ='PTRM input'!I161*(1+rvanilla03)^0.5 -> 0 | J29: ='PTRM input'!J161*(1+rvanilla04)^0.5 -> 0 | K29: ='PTRM input'!K161*(1+rvanilla05)^0.5 -> 0 | L29: ='PTRM input'!L161*(1+rvanilla06)^0.5 -> 0 | M29: ='PTRM input'!M161*(1+rvanilla07)^0.5 -> 0 | N29: ='PTRM input'!N161*(1+rvanilla08)^0.5 -> 0 | O29: ='PTRM input'!O161*(1+rvanilla09)^0.5 -> 0 | P29: ='PTRM input'!P161*(1+rvanilla10)^0.5 -> 0
C30: =Asset20 -> 0 | G30: ='PTRM input'!G162*(1+rvanilla01)^0.5 -> 0 | H30: ='PTRM input'!H162*(1+rvanilla02)^0.5 -> 0 | I30: ='PTRM input'!I162*(1+rvanilla03)^0.5 -> 0 | J30: ='PTRM input'!J162*(1+rvanilla04)^0.5 -> 0 | K30: ='PTRM input'!K162*(1+rvanilla05)^0.5 -> 0 | L30: ='PTRM input'!L162*(1+rvanilla06)^0.5 -> 0 | M30: ='PTRM input'!M162*(1+rvanilla07)^0.5 -> 0 | N30: ='PTRM input'!N162*(1+rvanilla08)^0.5 -> 0 | O30: ='PTRM input'!O162*(1+rvanilla09)^0.5 -> 0 | P30: ='PTRM input'!P162*(1+rvanilla10)^0.5 -> 0
C31: =Asset21 -> 0 | G31: ='PTRM input'!G163*(1+rvanilla01)^0.5 -> 0 | H31: ='PTRM input'!H163*(1+rvanilla02)^0.5 -> 0 | I31: ='PTRM input'!I163*(1+rvanilla03)^0.5 -> 0 | J31: ='PTRM input'!J163*(1+rvanilla04)^0.5 -> 0 | K31: ='PTRM input'!K163*(1+rvanilla05)^0.5 -> 0 | L31: ='PTRM input'!L163*(1+rvanilla06)^0.5 -> 0 | M31: ='PTRM input'!M163*(1+rvanilla07)^0.5 -> 0 | N31: ='PTRM input'!N163*(1+rvanilla08)^0.5 -> 0 | O31: ='PTRM input'!O163*(1+rvanilla09)^0.5 -> 0 | P31: ='PTRM input'!P163*(1+rvanilla10)^0.5 -> 0
C32: =Asset22 -> 0 | G32: ='PTRM input'!G164*(1+rvanilla01)^0.5 -> 0 | H32: ='PTRM input'!H164*(1+rvanilla02)^0.5 -> 0 | I32: ='PTRM input'!I164*(1+rvanilla03)^0.5 -> 0 | J32: ='PTRM input'!J164*(1+rvanilla04)^0.5 -> 0 | K32: ='PTRM input'!K164*(1+rvanilla05)^0.5 -> 0 | L32: ='PTRM input'!L164*(1+rvanilla06)^0.5 -> 0 | M32: ='PTRM input'!M164*(1+rvanilla07)^0.5 -> 0 | N32: ='PTRM input'!N164*(1+rvanilla08)^0.5 -> 0 | O32: ='PTRM input'!O164*(1+rvanilla09)^0.5 -> 0 | P32: ='PTRM input'!P164*(1+rvanilla10)^0.5 -> 0
C33: =Asset23 -> 0 | G33: ='PTRM input'!G165*(1+rvanilla01)^0.5 -> 0 | H33: ='PTRM input'!H165*(1+rvanilla02)^0.5 -> 0 | I33: ='PTRM input'!I165*(1+rvanilla03)^0.5 -> 0 | J33: ='PTRM input'!J165*(1+rvanilla04)^0.5 -> 0 | K33: ='PTRM input'!K165*(1+rvanilla05)^0.5 -> 0 | L33: ='PTRM input'!L165*(1+rvanilla06)^0.5 -> 0 | M33: ='PTRM input'!M165*(1+rvanilla07)^0.5 -> 0 | N33: ='PTRM input'!N165*(1+rvanilla08)^0.5 -> 0 | O33: ='PTRM input'!O165*(1+rvanilla09)^0.5 -> 0 | P33: ='PTRM input'!P165*(1+rvanilla10)^0.5 -> 0
C34: =Asset24 -> 0 | G34: ='PTRM input'!G166*(1+rvanilla01)^0.5 -> 0 | H34: ='PTRM input'!H166*(1+rvanilla02)^0.5 -> 0 | I34: ='PTRM input'!I166*(1+rvanilla03)^0.5 -> 0 | J34: ='PTRM input'!J166*(1+rvanilla04)^0.5 -> 0 | K34: ='PTRM input'!K166*(1+rvanilla05)^0.5 -> 0 | L34: ='PTRM input'!L166*(1+rvanilla06)^0.5 -> 0 | M34: ='PTRM input'!M166*(1+rvanilla07)^0.5 -> 0 | N34: ='PTRM input'!N166*(1+rvanilla08)^0.5 -> 0 | O34: ='PTRM input'!O166*(1+rvanilla09)^0.5 -> 0 | P34: ='PTRM input'!P166*(1+rvanilla10)^0.5 -> 0
C35: =Asset25 -> 0 | G35: ='PTRM input'!G167*(1+rvanilla01)^0.5 -> 0 | H35: ='PTRM input'!H167*(1+rvanilla02)^0.5 -> 0 | I35: ='PTRM input'!I167*(1+rvanilla03)^0.5 -> 0 | J35: ='PTRM input'!J167*(1+rvanilla04)^0.5 -> 0 | K35: ='PTRM input'!K167*(1+rvanilla05)^0.5 -> 0 | L35: ='PTRM input'!L167*(1+rvanilla06)^0.5 -> 0 | M35: ='PTRM input'!M167*(1+rvanilla07)^0.5 -> 0 | N35: ='PTRM input'!N167*(1+rvanilla08)^0.5 -> 0 | O35: ='PTRM input'!O167*(1+rvanilla09)^0.5 -> 0 | P35: ='PTRM input'!P167*(1+rvanilla10)^0.5 -> 0
C36: =Asset26 -> 0 | G36: ='PTRM input'!G168*(1+rvanilla01)^0.5 -> 0 | H36: ='PTRM input'!H168*(1+rvanilla02)^0.5 -> 0 | I36: ='PTRM input'!I168*(1+rvanilla03)^0.5 -> 0 | J36: ='PTRM input'!J168*(1+rvanilla04)^0.5 -> 0 | K36: ='PTRM input'!K168*(1+rvanilla05)^0.5 -> 0 | L36: ='PTRM input'!L168*(1+rvanilla06)^0.5 -> 0 | M36: ='PTRM input'!M168*(1+rvanilla07)^0.5 -> 0 | N36: ='PTRM input'!N168*(1+rvanilla08)^0.5 -> 0 | O36: ='PTRM input'!O168*(1+rvanilla09)^0.5 -> 0 | P36: ='PTRM input'!P168*(1+rvanilla10)^0.5 -> 0
C37: =Asset27 -> 0 | G37: ='PTRM input'!G169*(1+rvanilla01)^0.5 -> 0 | H37: ='PTRM input'!H169*(1+rvanilla02)^0.5 -> 0 | I37: ='PTRM input'!I169*(1+rvanilla03)^0.5 -> 0 | J37: ='PTRM input'!J169*(1+rvanilla04)^0.5 -> 0 | K37: ='PTRM input'!K169*(1+rvanilla05)^0.5 -> 0 | L37: ='PTRM input'!L169*(1+rvanilla06)^0.5 -> 0 | M37: ='PTRM input'!M169*(1+rvanilla07)^0.5 -> 0 | N37: ='PTRM input'!N169*(1+rvanilla08)^0.5 -> 0 | O37: ='PTRM input'!O169*(1+rvanilla09)^0.5 -> 0 | P37: ='PTRM input'!P169*(1+rvanilla10)^0.5 -> 0
C38: =Asset28 -> 0 | G38: ='PTRM input'!G170*(1+rvanilla01)^0.5 -> 0 | H38: ='PTRM input'!H170*(1+rvanilla02)^0.5 -> 0 | I38: ='PTRM input'!I170*(1+rvanilla03)^0.5 -> 0 | J38: ='PTRM input'!J170*(1+rvanilla04)^0.5 -> 0 | K38: ='PTRM input'!K170*(1+rvanilla05)^0.5 -> 0 | L38: ='PTRM input'!L170*(1+rvanilla06)^0.5 -> 0 | M38: ='PTRM input'!M170*(1+rvanilla07)^0.5 -> 0 | N38: ='PTRM input'!N170*(1+rvanilla08)^0.5 -> 0 | O38: ='PTRM input'!O170*(1+rvanilla09)^0.5 -> 0 | P38: ='PTRM input'!P170*(1+rvanilla10)^0.5 -> 0
C39: =Asset29 -> 0 | G39: ='PTRM input'!G171*(1+rvanilla01)^0.5 -> 0 | H39: ='PTRM input'!H171*(1+rvanilla02)^0.5 -> 0 | I39: ='PTRM input'!I171*(1+rvanilla03)^0.5 -> 0 | J39: ='PTRM input'!J171*(1+rvanilla04)^0.5 -> 0 | K39: ='PTRM input'!K171*(1+rvanilla05)^0.5 -> 0 | L39: ='PTRM input'!L171*(1+rvanilla06)^0.5 -> 0 | M39: ='PTRM input'!M171*(1+rvanilla07)^0.5 -> 0 | N39: ='PTRM input'!N171*(1+rvanilla08)^0.5 -> 0 | O39: ='PTRM input'!O171*(1+rvanilla09)^0.5 -> 0 | P39: ='PTRM input'!P171*(1+rvanilla10)^0.5 -> 0
C40: =Asset30 -> Equity raising costs | G40: ='PTRM input'!G172*(1+rvanilla01)^0.5 -> 1.761648038 | H40: ='PTRM input'!H172*(1+rvanilla02)^0.5 -> 0 | I40: ='PTRM input'!I172*(1+rvanilla03)^0.5 -> 0 | J40: ='PTRM input'!J172*(1+rvanilla04)^0.5 -> 0 | K40: ='PTRM input'!K172*(1+rvanilla05)^0.5 -> 0 | L40: ='PTRM input'!L172*(1+rvanilla06)^0.5 -> 0 | M40: ='PTRM input'!M172*(1+rvanilla07)^0.5 -> 0 | N40: ='PTRM input'!N172*(1+rvanilla08)^0.5 -> 0 | O40: ='PTRM input'!O172*(1+rvanilla09)^0.5 -> 0 | P40: ='PTRM input'!P172*(1+rvanilla10)^0.5 -> 0
B41: Nominal Net Capex | G41: =SUM(G42:G71) -> 200.2061553 | H41: =SUM(H42:H71) -> 0 | I41: 0 | J41: 0 | K41: 0 | L41: 0 | M41: 0 | N41: 0 | O41: 0 | P41: 0
C42: =Asset1 -> Subtransmission | G42: =G11*G$7 -> 20.43748854 | H42: =H11*H$7 -> 0 | I42: 0 | J42: 0 | K42: 0 | L42: 0 | M42: 0 | N42: 0 | O42: 0 | P42: 0
C43: =Asset2 -> Distribution system assets | G43: 136.5355388 | H43: =H12*H$7 -> 0 | I43: 0 | J43: 0 | K43: 0 | L43: 0 | M43: 0 | N43: 0 | O43: 0 | P43: 0
C44: =Asset3 -> Standard metering | G44: 0 | H44: =H13*H$7 -> 0 | I44: 0 | J44: =J13*J$7 -> 0 | K44: 0 | L44: 0 | M44: 0 | N44: 0 | O44: 0 | P44: 0
C45: =Asset4 -> Public lighting | G45: 0 | H45: =H14*H$7 -> 0 | I45: =I14*I$7 -> 0 | J45: 0 | K45: 0 | L45: 0 | M45: 0 | N45: 0 | O45: 0 | P45: 0
C46: =Asset5 -> SCADA/Network control | G46: 15.12757141 | H46: =H15*H$7 -> 0 | I46: 0 | J46: 0 | K46: 0 | L46: 0 | M46: 0 | N46: 0 | O46: 0 | P46: 0
C47: =Asset6 -> Non-network general assets - IT | G47: 10.52424702 | H47: =H16*H$7 -> 0 | I47: 0 | J47: 0 | K47: 0 | L47: 0 | M47: 0 | N47: 0 | O47: 0 | P47: 0
C48: =Asset7 -> Non-network general assets - Other | G48: 8.368489811 | H48: =H17*H$7 -> 0 | I48: 0 | J48: 0 | K48: 0 | L48: 0 | M48: 0 | N48: 0 | O48: 0 | P48: 0
C49: =Asset8 -> VBRC | G49: 7.266085686 | H49: =H18*H$7 -> 0 | I49: 0 | J49: 0 | K49: 0 | L49: 0 | M49: 0 | N49: 0 | O49: 0 | P49: 0
C50: =Asset9 -> Land | G50: 0.1653889003 | H50: =H19*H$7 -> 0 | I50: 0 | J50: 0 | K50: 0 | L50: 0 | M50: 0 | N50: 0 | O50: 0 | P50: 0
C51: =Asset10 -> Supervisory cables | G51: 0 | H51: =H20*H$7 -> 0 | I51: 0 | J51: 0 | K51: 0 | L51: 0 | M51: 0 | N51: 0 | O51: 0 | P51: 0
C52: =Asset11 -> Old SWER ACRs | G52: 0 | H52: =H21*H$7 -> 0 | I52: 0 | J52: 0 | K52: 0 | L52: 0 | M52: 0 | N52: 0 | O52: 0 | P52: 0
C53: =Asset12 -> 0 | G53: 0 | H53: =H22*H$7 -> 0 | I53: 0 | J53: 0 | K53: 0 | L53: 0 | M53: 0 | N53: 0 | O53: 0 | P53: 0
C54: =Asset13 -> 0 | G54: 0 | H54: =H23*H$7 -> 0 | I54: 0 | J54: 0 | K54: 0 | L54: 0 | M54: 0 | N54: 0 | O54: 0 | P54: 0
C55: =Asset14 -> 0 | G55: 0 | H55: =H24*H$7 -> 0 | I55: 0 | J55: 0 | K55: 0 | L55: 0 | M55: 0 | N55: 0 | O55: 0 | P55: 0
C56: =Asset15 -> 0 | G56: 0 | H56: =H25*H$7 -> 0 | I56: 0 | J56: 0 | K56: 0 | L56: 0 | M56: 0 | N56: 0 | O56: 0 | P56: 0
C57: =Asset16 -> 0 | G57: 0 | H57: =H26*H$7 -> 0 | I57: 0 | J57: 0 | K57: =K26*K$7 -> 0 | L57: 0 | M57: 0 | N57: 0 | O57: 0 | P57: 0
C58: =Asset17 -> 0 | G58: 0 | H58: =H27*H$7 -> 0 | I58: 0 | J58: 0 | K58: 0 | L58: 0 | M58: 0 | N58: 0 | O58: 0 | P58: 0
C59: =Asset18 -> 0 | G59: 0 | H59: =H28*H$7 -> 0 | I59: 0 | J59: 0 | K59: 0 | L59: 0 | M59: 0 | N59: 0 | O59: 0 | P59: 0
C60: =Asset19 -> 0 | G60: 0 | H60: =H29*H$7 -> 0 | I60: 0 | J60: 0 | K60: 0 | L60: 0 | M60: 0 | N60: 0 | O60: 0 | P60: 0
C61: =Asset20 -> 0 | G61: 0 | H61: =H30*H$7 -> 0 | I61: 0 | J61: 0 | K61: 0 | L61: 0 | M61: 0 | N61: 0 | O61: 0 | P61: 0
C62: =Asset21 -> 0 | G62: 0 | H62: =H31*H$7 -> 0 | I62: 0 | J62: 0 | K62: 0 | L62: 0 | M62: 0 | N62: 0 | O62: 0 | P62: 0
C63: =Asset22 -> 0 | G63: 0 | H63: =H32*H$7 -> 0 | I63: 0 | J63: 0 | K63: 0 | L63: 0 | M63: 0 | N63: 0 | O63: 0 | P63: 0
C64: =Asset23 -> 0 | G64: 0 | H64: =H33*H$7 -> 0 | I64: 0 | J64: 0 | K64: 0 | L64: 0 | M64: 0 | N64: 0 | O64: 0 | P64: 0
C65: =Asset24 -> 0 | G65: 0 | H65: =H34*H$7 -> 0 | I65: 0 | J65: 0 | K65: 0 | L65: 0 | M65: 0 | N65: 0 | O65: 0 | P65: 0
C66: =Asset25 -> 0 | G66: 0 | H66: =H35*H$7 -> 0 | I66: 0 | J66: 0 | K66: 0 | L66: 0 | M66: 0 | N66: 0 | O66: 0 | P66: 0
C67: =Asset26 -> 0 | G67: 0 | H67: =H36*H$7 -> 0 | I67: 0 | J67: 0 | K67: 0 | L67: 0 | M67: 0 | N67: 0 | O67: 0 | P67: 0
C68: =Asset27 -> 0 | G68: 0 | H68: =H37*H$7 -> 0 | I68: 0 | J68: 0 | K68: 0 | L68: 0 | M68: 0 | N68: 0 | O68: 0 | P68: 0
C69: =Asset28 -> 0 | G69: 0 | H69: =H38*H$7 -> 0 | I69: 0 | J69: 0 | K69: 0 | L69: 0 | M69: 0 | N69: 0 | O69: 0 | P69: 0
C70: =Asset29 -> 0 | G70: =G39*G$7 -> 0 | H70: 0 | I70: 0 | J70: 0 | K70: 0 | L70: 0 | M70: 0 | N70: 0 | O70: 0 | P70: 0
C71: =Asset30 -> Equity raising costs | G71: =G40*G$7 -> 1.781345091 | H71: 0 | I71: 0 | J71: 0 | K71: 0 | L71: 0 | M71: 0 | N71: 0 | O71: 0 | P71: 0
B73: ="Asset Values ($m Real "&F4&")" -> Asset Values ($m Real 2020)
B75: Real Straight-line Depreciation | G75: =G88+G101+G114+G127+G140+G153+G166+G179+G192+G205+G218+G231+G244+G257+G270+G283+G296+G309+G322+G335+G348+G361+G374+G387+G400+G413+G426+G439+G452+G465 -> 102.5333287 | H75: =H88+H101+H114+H127+H140+H153+H166+H179+H192+H205+H218+H231+H244+H257+H270+H283+H296+H309+H322+H335+H348+H361+H374+H387+H400+H413+H426+H439+H452+H465 -> 6.811473279 | I75: =I88+I101+I114+I127+I140+I153+I166+I179+I192+I205+I218+I231+I244+I257+I270+I283+I296+I309+I322+I335+I348+I361+I374+I387+I400+I413+I426+I439+I452+I465 -> 6.811473279 | J75: 6.811473279 | K75: 6.811473279 | L75: 6.811473279 | M75: 6.811473279 | N75: 5.076827252 | O75: 5.076827252 | P75: 5.076827252 | Q75: 5.076827252 | R75: 5.076827252 | S75: 5.076827252 | T75: 5.076827252 | U75: 3.926034965 | V75: 3.926034965 | W75: 3.374304562 | X75: 3.374304562 | Y75: 3.374304562 | Z75: 3.374304562 | AA75: 3.374304562 | AB75: 3.374304562 | AC75: 3.374304562 | AD75: 3.374304562 | AE75: 3.374304562 | AF75: 3.374304562 | AG75: 3.26379356 | AH75: 3.093679461 | AI75: 3.093679461 | AJ75: 3.093679461 | AK75: 3.093679461 | AL75: 3.093679461 | AM75: 3.093679461 | AN75: 3.093679461 | AO75: 3.093679461 | AP75: 3.093679461 | AQ75: 3.093679461 | AR75: 3.093679461 | AS75: 3.093679461 | AT75: 3.093679461 | AU75: 3.093679461 | AV75: 3.093679461 | AW75: 3.093679461 | AX75: 3.05429409 | AY75: 3.051794963 | AZ75: 3.051794963 | BA75: 3.051794963 | BB75: 3.051794963 | BC75: 3.051794963 | BD75: 3.051794963 | BE75: 3.051794963 | BF75: 2.647564904 | BG75: 5.684341886e-14 | BH75: 0 | BI75: 0
B76: =C88 -> Subtransmission | D76: Initial Asset Base | G76: 9.320100756 | H76: =IF(H$3>A1remlife,A1value-SUM($F76:G76),IF(A1remlife="N/A","n/a",A1value/A1remlife)) -> n/a | I76: =IF(I$3>A1remlife,A1value-SUM($F76:H76),IF(A1remlife="N/A","n/a",A1value/A1remlife)) -> n/a | J76: =IF(J$3>A1remlife,A1value-SUM($F76:I76),IF(A1remlife="N/A","n/a",A1value/A1remlife)) -> n/a | K76: =IF(K$3>A1remlife,A1value-SUM($F76:J76),IF(A1remlife="N/A","n/a",A1value/A1remlife)) -> n/a | L76: =IF(L$3>A1remlife,A1value-SUM($F76:K76),IF(A1remlife="N/A","n/a",A1value/A1remlife)) -> n/a | M76: =IF(M$3>A1remlife,A1value-SUM($F76:L76),IF(A1remlife="N/A","n/a",A1value/A1remlife)) -> n/a | N76: =IF(N$3>A1remlife,A1value-SUM($F76:M76),IF(A1remlife="N/A","n/a",A1value/A1remlife)) -> n/a | O76: =IF(O$3>A1remlife,A1value-SUM($F76:N76),IF(A1remlife="N/A","n/a",A1value/A1remlife)) -> n/a | P76: =IF(P$3>A1remlife,A1value-SUM($F76:O76),IF(A1remlife="N/A","n/a",A1value/A1remlife)) -> n/a | Q76: =IF(Q$3>A1remlife,A1value-SUM($F76:P76),IF(A1remlife="N/A","n/a",A1value/A1remlife)) -> n/a | R76: =IF(R$3>A1remlife,A1value-SUM($F76:Q76),IF(A1remlife="N/A","n/a",A1value/A1remlife)) -> n/a | S76: =IF(S$3>A1remlife,A1value-SUM($F76:R76),IF(A1remlife="N/A","n/a",A1value/A1remlife)) -> n/a | T76: =IF(T$3>A1remlife,A1value-SUM($F76:S76),IF(A1remlife="N/A","n/a",A1value/A1remlife)) -> n/a | U76: =IF(U$3>A1remlife,A1value-SUM($F76:T76),IF(A1remlife="N/A","n/a",A1value/A1remlife)) -> n/a | V76: =IF(V$3>A1remlife,A1value-SUM($F76:U76),IF(A1remlife="N/A","n/a",A1value/A1remlife)) -> n/a | W76: =IF(W$3>A1remlife,A1value-SUM($F76:V76),IF(A1remlife="N/A","n/a",A1value/A1remlife)) -> n/a | X76: =IF(X$3>A1remlife,A1value-SUM($F76:W76),IF(A1remlife="N/A","n/a",A1value/A1remlife)) -> n/a | Y76: =IF(Y$3>A1remlife,A1value-SUM($F76:X76),IF(A1remlife="N/A","n/a",A1value/A1remlife)) -> n/a | Z76: =IF(Z$3>A1remlife,A1value-SUM($F76:Y76),IF(A1remlife="N/A","n/a",A1value/A1remlife)) -> n/a | AA76: =IF(AA$3>A1remlife,A1value-SUM($F76:Z76),IF(A1remlife="N/A","n/a",A1value/A1remlife)) -> n/a | AB76: =IF(AB$3>A1remlife,A1value-SUM($F76:AA76),IF(A1remlife="N/A","n/a",A1value/A1remlife)) -> n/a | AC76: =IF(AC$3>A1remlife,A1value-SUM($F76:AB76),IF(A1remlife="N/A","n/a",A1value/A1remlife)) -> n/a | AD76: =IF(AD$3>A1remlife,A1value-SUM($F76:AC76),IF(A1remlife="N/A","n/a",A1value/A1remlife)) -> n/a | AE76: =IF(AE$3>A1remlife,A1value-SUM($F76:AD76),IF(A1remlife="N/A","n/a",A1value/A1remlife)) -> n/a | AF76: =IF(AF$3>A1remlife,A1value-SUM($F76:AE76),IF(A1remlife="N/A","n/a",A1value/A1remlife)) -> n/a | AG76: =IF(AG$3>A1remlife,A1value-SUM($F76:AF76),IF(A1remlife="N/A","n/a",A1value/A1remlife)) -> n/a | AH76: =IF(AH$3>A1remlife,A1value-SUM($F76:AG76),IF(A1remlife="N/A","n/a",A1value/A1remlife)) -> n/a | AI76: =IF(AI$3>A1remlife,A1value-SUM($F76:AH76),IF(A1remlife="N/A","n/a",A1value/A1remlife)) -> n/a | AJ76: =IF(AJ$3>A1remlife,A1value-SUM($F76:AI76),IF(A1remlife="N/A","n/a",A1value/A1remlife)) -> n/a | AK76: =IF(AK$3>A1remlife,A1value-SUM($F76:AJ76),IF(A1remlife="N/A","n/a",A1value/A1remlife)) -> n/a | AL76: =IF(AL$3>A1remlife,A1value-SUM($F76:AK76),IF(A1remlife="N/A","n/a",A1value/A1remlife)) -> n/a | AM76: =IF(AM$3>A1remlife,A1value-SUM($F76:AL76),IF(A1remlife="N/A","n/a",A1value/A1remlife)) -> n/a | AN76: =IF(AN$3>A1remlife,A1value-SUM($F76:AM76),IF(A1remlife="N/A","n/a",A1value/A1remlife)) -> n/a | AO76: =IF(AO$3>A1remlife,A1value-SUM($F76:AN76),IF(A1remlife="N/A","n/a",A1value/A1remlife)) -> n/a | AP76: =IF(AP$3>A1remlife,A1value-SUM($F76:AO76),IF(A1remlife="N/A","n/a",A1value/A1remlife)) -> n/a | AQ76: =IF(AQ$3>A1remlife,A1value-SUM($F76:AP76),IF(A1remlife="N/A","n/a",A1value/A1remlife)) -> n/a | AR76: =IF(AR$3>A1remlife,A1value-SUM($F76:AQ76),IF(A1remlife="N/A","n/a",A1value/A1remlife)) -> n/a | AS76: =IF(AS$3>A1remlife,A1value-SUM($F76:AR76),IF(A1remlife="N/A","n/a",A1value/A1remlife)) -> n/a | AT76: =IF(AT$3>A1remlife,A1value-SUM($F76:AS76),IF(A1remlife="N/A","n/a",A1value/A1remlife)) -> n/a | AU76: =IF(AU$3>A1remlife,A1value-SUM($F76:AT76),IF(A1remlife="N/A","n/a",A1value/A1remlife)) -> n/a | AV76: =IF(AV$3>A1remlife,A1value-SUM($F76:AU76),IF(A1remlife="N/A","n/a",A1value/A1remlife)) -> n/a | AW76: =IF(AW$3>A1remlife,A1value-SUM($F76:AV76),IF(A1remlife="N/A","n/a",A1value/A1remlife)) -> n/a | AX76: =IF(AX$3>A1remlife,A1value-SUM($F76:AW76),IF(A1remlife="N/A","n/a",A1value/A1remlife)) -> n/a | AY76: =IF(AY$3>A1remlife,A1value-SUM($F76:AX76),IF(A1remlife="N/A","n/a",A1value/A1remlife)) -> n/a | AZ76: =IF(AZ$3>A1remlife,A1value-SUM($F76:AY76),IF(A1remlife="N/A","n/a",A1value/A1remlife)) -> n/a | BA76: =IF(BA$3>A1remlife,A1value-SUM($F76:AZ76),IF(A1remlife="N/A","n/a",A1value/A1remlife)) -> n/a | BB76: =IF(BB$3>A1remlife,A1value-SUM($F76:BA76),IF(A1remlife="N/A","n/a",A1value/A1remlife)) -> n/a | BC76: =IF(BC$3>A1remlife,A1value-SUM($F76:BB76),IF(A1remlife="N/A","n/a",A1value/A1remlife)) -> n/a | BD76: =IF(BD$3>A1remlife,A1value-SUM($F76:BC76),IF(A1remlife="N/A","n/a",A1value/A1remlife)) -> n/a | BE76: =IF(BE$3>A1remlife,A1value-SUM($F76:BD76),IF(A1remlife="N/A","n/a",A1value/A1remlife)) -> n/a | BF76: =IF(BF$3>A1remlife,A1value-SUM($F76:BE76),IF(A1remlife="N/A","n/a",A1value/A1remlife)) -> n/a | BG76: =IF(BG$3>A1remlife,A1value-SUM($F76:BF76),IF(A1remlife="N/A","n/a",A1value/A1remlife)) -> n/a | BH76: =IF(BH$3>A1remlife,A1value-SUM($F76:BG76),IF(A1remlife="N/A","n/a",A1value/A1remlife)) -> n/a | BI76: =IF(BI$3>A1remlife,A1value-SUM($F76:BH76),IF(A1remlife="N/A","n/a",A1value/A1remlife)) -> n/a
D77: Capex in year | E77: 0
E78: 1 | H78: =IF(A1stdlife="n/a","n/a",IF(H$3>(A1stdlife+$E78),('PTRM input'!$G$143*(1+rvanilla01)^0.5)-SUM($G78:G78),('PTRM input'!$G$143*(1+rvanilla01)^0.5)/A1stdlife)) -> 0.4042300592 | I78: =IF(A1stdlife="n/a","n/a",IF(I$3>(A1stdlife+$E78),('PTRM input'!$G$143*(1+rvanilla01)^0.5)-SUM($G78:H78),('PTRM input'!$G$143*(1+rvanilla01)^0.5)/A1stdlife)) -> 0.4042300592 | J78: =IF(A1stdlife="n/a","n/a",IF(J$3>(A1stdlife+$E78),('PTRM input'!$G$143*(1+rvanilla01)^0.5)-SUM($G78:I78),('PTRM input'!$G$143*(1+rvanilla01)^0.5)/A1stdlife)) -> 0.4042300592 | K78: =IF(A1stdlife="n/a","n/a",IF(K$3>(A1stdlife+$E78),('PTRM input'!$G$143*(1+rvanilla01)^0.5)-SUM($G78:J78),('PTRM input'!$G$143*(1+rvanilla01)^0.5)/A1stdlife)) -> 0.4042300592 | L78: =IF(A1stdlife="n/a","n/a",IF(L$3>(A1stdlife+$E78),('PTRM input'!$G$143*(1+rvanilla01)^0.5)-SUM($G78:K78),('PTRM input'!$G$143*(1+rvanilla01)^0.5)/A1stdlife)) -> 0.4042300592 | M78: =IF(A1stdlife="n/a","n/a",IF(M$3>(A1stdlife+$E78),('PTRM input'!$G$143*(1+rvanilla01)^0.5)-SUM($G78:L78),('PTRM input'!$G$143*(1+rvanilla01)^0.5)/A1stdlife)) -> 0.4042300592 | N78: =IF(A1stdlife="n/a","n/a",IF(N$3>(A1stdlife+$E78),('PTRM input'!$G$143*(1+rvanilla01)^0.5)-SUM($G78:M78),('PTRM input'!$G$143*(1+rvanilla01)^0.5)/A1stdlife)) -> 0.4042300592 | O78: =IF(A1stdlife="n/a","n/a",IF(O$3>(A1stdlife+$E78),('PTRM input'!$G$143*(1+rvanilla01)^0.5)-SUM($G78:N78),('PTRM input'!$G$143*(1+rvanilla01)^0.5)/A1stdlife)) -> 0.4042300592 | P78: =IF(A1stdlife="n/a","n/a",IF(P$3>(A1stdlife+$E78),('PTRM input'!$G$143*(1+rvanilla01)^0.5)-SUM($G78:O78),('PTRM input'!$G$143*(1+rvanilla01)^0.5)/A1stdlife)) -> 0.4042300592 | Q78: =IF(A1stdlife="n/a","n/a",IF(Q$3>(A1stdlife+$E78),('PTRM input'!$G$143*(1+rvanilla01)^0.5)-SUM($G78:P78),('PTRM input'!$G$143*(1+rvanilla01)^0.5)/A1stdlife)) -> 0.4042300592 | R78: =IF(A1stdlife="n/a","n/a",IF(R$3>(A1stdlife+$E78),('PTRM input'!$G$143*(1+rvanilla01)^0.5)-SUM($G78:Q78),('PTRM input'!$G$143*(1+rvanilla01)^0.5)/A1stdlife)) -> 0.4042300592 | S78: =IF(A1stdlife="n/a","n/a",IF(S$3>(A1stdlife+$E78),('PTRM input'!$G$143*(1+rvanilla01)^0.5)-SUM($G78:R78),('PTRM input'!$G$143*(1+rvanilla01)^0.5)/A1stdlife)) -> 0.4042300592 | T78: =IF(A1stdlife="n/a","n/a",IF(T$3>(A1stdlife+$E78),('PTRM input'!$G$143*(1+rvanilla01)^0.5)-SUM($G78:S78),('PTRM input'!$G$143*(1+rvanilla01)^0.5)/A1stdlife)) -> 0.4042300592 | U78: =IF(A1stdlife="n/a","n/a",IF(U$3>(A1stdlife+$E78),('PTRM input'!$G$143*(1+rvanilla01)^0.5)-SUM($G78:T78),('PTRM input'!$G$143*(1+rvanilla01)^0.5)/A1stdlife)) -> 0.4042300592 | V78: =IF(A1stdlife="n/a","n/a",IF(V$3>(A1stdlife+$E78),('PTRM input'!$G$143*(1+rvanilla01)^0.5)-SUM($G78:U78),('PTRM input'!$G$143*(1+rvanilla01)^0.5)/A1stdlife)) -> 0.4042300592 | W78: =IF(A1stdlife="n/a","n/a",IF(W$3>(A1stdlife+$E78),('PTRM input'!$G$143*(1+rvanilla01)^0.5)-SUM($G78:V78),('PTRM input'!$G$143*(1+rvanilla01)^0.5)/A1stdlife)) -> 0.4042300592 | X78: =IF(A1stdlife="n/a","n/a",IF(X$3>(A1stdlife+$E78),('PTRM input'!$G$143*(1+rvanilla01)^0.5)-SUM($G78:W78),('PTRM input'!$G$143*(1+rvanilla01)^0.5)/A1stdlife)) -> 0.4042300592 | Y78: =IF(A1stdlife="n/a","n/a",IF(Y$3>(A1stdlife+$E78),('PTRM input'!$G$143*(1+rvanilla01)^0.5)-SUM($G78:X78),('PTRM input'!$G$143*(1+rvanilla01)^0.5)/A1stdlife)) -> 0.4042300592 | Z78: =IF(A1stdlife="n/a","n/a",IF(Z$3>(A1stdlife+$E78),('PTRM input'!$G$143*(1+rvanilla01)^0.5)-SUM($G78:Y78),('PTRM input'!$G$143*(1+rvanilla01)^0.5)/A1stdlife)) -> 0.4042300592 | AA78: =IF(A1stdlife="n/a","n/a",IF(AA$3>(A1stdlife+$E78),('PTRM input'!$G$143*(1+rvanilla01)^0.5)-SUM($G78:Z78),('PTRM input'!$G$143*(1+rvanilla01)^0.5)/A1stdlife)) -> 0.4042300592 | AB78: =IF(A1stdlife="n/a","n/a",IF(AB$3>(A1stdlife+$E78),('PTRM input'!$G$143*(1+rvanilla01)^0.5)-SUM($G78:AA78),('PTRM input'!$G$143*(1+rvanilla01)^0.5)/A1stdlife)) -> 0.4042300592 | AC78: =IF(A1stdlife="n/a","n/a",IF(AC$3>(A1stdlife+$E78),('PTRM input'!$G$143*(1+rvanilla01)^0.5)-SUM($G78:AB78),('PTRM input'!$G$143*(1+rvanilla01)^0.5)/A1stdlife)) -> 0.4042300592 | AD78: =IF(A1stdlife="n/a","n/a",IF(AD$3>(A1stdlife+$E78),('PTRM input'!$G$143*(1+rvanilla01)^0.5)-SUM($G78:AC78),('PTRM input'!$G$143*(1+rvanilla01)^0.5)/A1stdlife)) -> 0.4042300592 | AE78: =IF(A1stdlife="n/a","n/a",IF(AE$3>(A1stdlife+$E78),('PTRM input'!$G$143*(1+rvanilla01)^0.5)-SUM($G78:AD78),('PTRM input'!$G$143*(1+rvanilla01)^0.5)/A1stdlife)) -> 0.4042300592 | AF78: =IF(A1stdlife="n/a","n/a",IF(AF$3>(A1stdlife+$E78),('PTRM input'!$G$143*(1+rvanilla01)^0.5)-SUM($G78:AE78),('PTRM input'!$G$143*(1+rvanilla01)^0.5)/A1stdlife)) -> 0.4042300592 | AG78: =IF(A1stdlife="n/a","n/a",IF(AG$3>(A1stdlife+$E78),('PTRM input'!$G$143*(1+rvanilla01)^0.5)-SUM($G78:AF78),('PTRM input'!$G$143*(1+rvanilla01)^0.5)/A1stdlife)) -> 0.4042300592 | AH78: =IF(A1stdlife="n/a","n/a",IF(AH$3>(A1stdlife+$E78),('PTRM input'!$G$143*(1+rvanilla01)^0.5)-SUM($G78:AG78),('PTRM input'!$G$143*(1+rvanilla01)^0.5)/A1stdlife)) -> 0.4042300592 | AI78: =IF(A1stdlife="n/a","n/a",IF(AI$3>(A1stdlife+$E78),('PTRM input'!$G$143*(1+rvanilla01)^0.5)-SUM($G78:AH78),('PTRM input'!$G$143*(1+rvanilla01)^0.5)/A1stdlife)) -> 0.4042300592 | AJ78: =IF(A1stdlife="n/a","n/a",IF(AJ$3>(A1stdlife+$E78),('PTRM input'!$G$143*(1+rvanilla01)^0.5)-SUM($G78:AI78),('PTRM input'!$G$143*(1+rvanilla01)^0.5)/A1stdlife)) -> 0.4042300592 | AK78: =IF(A1stdlife="n/a","n/a",IF(AK$3>(A1stdlife+$E78),('PTRM input'!$G$143*(1+rvanilla01)^0.5)-SUM($G78:AJ78),('PTRM input'!$G$143*(1+rvanilla01)^0.5)/A1stdlife)) -> 0.4042300592 | AL78: =IF(A1stdlife="n/a","n/a",IF(AL$3>(A1stdlife+$E78),('PTRM input'!$G$143*(1+rvanilla01)^0.5)-SUM($G78:AK78),('PTRM input'!$G$143*(1+rvanilla01)^0.5)/A1stdlife)) -> 0.4042300592 | AM78: =IF(A1stdlife="n/a","n/a",IF(AM$3>(A1stdlife+$E78),('PTRM input'!$G$143*(1+rvanilla01)^0.5)-SUM($G78:AL78),('PTRM input'!$G$143*(1+rvanilla01)^0.5)/A1stdlife)) -> 0.4042300592 | AN78: =IF(A1stdlife="n/a","n/a",IF(AN$3>(A1stdlife+$E78),('PTRM input'!$G$143*(1+rvanilla01)^0.5)-SUM($G78:AM78),('PTRM input'!$G$143*(1+rvanilla01)^0.5)/A1stdlife)) -> 0.4042300592 | AO78: =IF(A1stdlife="n/a","n/a",IF(AO$3>(A1stdlife+$E78),('PTRM input'!$G$143*(1+rvanilla01)^0.5)-SUM($G78:AN78),('PTRM input'!$G$143*(1+rvanilla01)^0.5)/A1stdlife)) -> 0.4042300592 | AP78: =IF(A1stdlife="n/a","n/a",IF(AP$3>(A1stdlife+$E78),('PTRM input'!$G$143*(1+rvanilla01)^0.5)-SUM($G78:AO78),('PTRM input'!$G$143*(1+rvanilla01)^0.5)/A1stdlife)) -> 0.4042300592 | AQ78: =IF(A1stdlife="n/a","n/a",IF(AQ$3>(A1stdlife+$E78),('PTRM input'!$G$143*(1+rvanilla01)^0.5)-SUM($G78:AP78),('PTRM input'!$G$143*(1+rvanilla01)^0.5)/A1stdlife)) -> 0.4042300592 | AR78: =IF(A1stdlife="n/a","n/a",IF(AR$3>(A1stdlife+$E78),('PTRM input'!$G$143*(1+rvanilla01)^0.5)-SUM($G78:AQ78),('PTRM input'!$G$143*(1+rvanilla01)^0.5)/A1stdlife)) -> 0.4042300592 | AS78: =IF(A1stdlife="n/a","n/a",IF(AS$3>(A1stdlife+$E78),('PTRM input'!$G$143*(1+rvanilla01)^0.5)-SUM($G78:AR78),('PTRM input'!$G$143*(1+rvanilla01)^0.5)/A1stdlife)) -> 0.4042300592 | AT78: =IF(A1stdlife="n/a","n/a",IF(AT$3>(A1stdlife+$E78),('PTRM input'!$G$143*(1+rvanilla01)^0.5)-SUM($G78:AS78),('PTRM input'!$G$143*(1+rvanilla01)^0.5)/A1stdlife)) -> 0.4042300592 | AU78: =IF(A1stdlife="n/a","n/a",IF(AU$3>(A1stdlife+$E78),('PTRM input'!$G$143*(1+rvanilla01)^0.5)-SUM($G78:AT78),('PTRM input'!$G$143*(1+rvanilla01)^0.5)/A1stdlife)) -> 0.4042300592 | AV78: =IF(A1stdlife="n/a","n/a",IF(AV$3>(A1stdlife+$E78),('PTRM input'!$G$143*(1+rvanilla01)^0.5)-SUM($G78:AU78),('PTRM input'!$G$143*(1+rvanilla01)^0.5)/A1stdlife)) -> 0.4042300592 | AW78: =IF(A1stdlife="n/a","n/a",IF(AW$3>(A1stdlife+$E78),('PTRM input'!$G$143*(1+rvanilla01)^0.5)-SUM($G78:AV78),('PTRM input'!$G$143*(1+rvanilla01)^0.5)/A1stdlife)) -> 0.4042300592 | AX78: =IF(A1stdlife="n/a","n/a",IF(AX$3>(A1stdlife+$E78),('PTRM input'!$G$143*(1+rvanilla01)^0.5)-SUM($G78:AW78),('PTRM input'!$G$143*(1+rvanilla01)^0.5)/A1stdlife)) -> 0.4042300592 | AY78: =IF(A1stdlife="n/a","n/a",IF(AY$3>(A1stdlife+$E78),('PTRM input'!$G$143*(1+rvanilla01)^0.5)-SUM($G78:AX78),('PTRM input'!$G$143*(1+rvanilla01)^0.5)/A1stdlife)) -> 0.4042300592 | AZ78: =IF(A1stdlife="n/a","n/a",IF(AZ$3>(A1stdlife+$E78),('PTRM input'!$G$143*(1+rvanilla01)^0.5)-SUM($G78:AY78),('PTRM input'!$G$143*(1+rvanilla01)^0.5)/A1stdlife)) -> 0.4042300592 | BA78: =IF(A1stdlife="n/a","n/a",IF(BA$3>(A1stdlife+$E78),('PTRM input'!$G$143*(1+rvanilla01)^0.5)-SUM($G78:AZ78),('PTRM input'!$G$143*(1+rvanilla01)^0.5)/A1stdlife)) -> 0.4042300592 | BB78: =IF(A1stdlife="n/a","n/a",IF(BB$3>(A1stdlife+$E78),('PTRM input'!$G$143*(1+rvanilla01)^0.5)-SUM($G78:BA78),('PTRM input'!$G$143*(1+rvanilla01)^0.5)/A1stdlife)) -> 0.4042300592 | BC78: =IF(A1stdlife="n/a","n/a",IF(BC$3>(A1stdlife+$E78),('PTRM input'!$G$143*(1+rvanilla01)^0.5)-SUM($G78:BB78),('PTRM input'!$G$143*(1+rvanilla01)^0.5)/A1stdlife)) -> 0.4042300592 | BD78: =IF(A1stdlife="n/a","n/a",IF(BD$3>(A1stdlife+$E78),('PTRM input'!$G$143*(1+rvanilla01)^0.5)-SUM($G78:BC78),('PTRM input'!$G$143*(1+rvanilla01)^0.5)/A1stdlife)) -> 0.4042300592 | BE78: =IF(A1stdlife="n/a","n/a",IF(BE$3>(A1stdlife+$E78),('PTRM input'!$G$143*(1+rvanilla01)^0.5)-SUM($G78:BD78),('PTRM input'!$G$143*(1+rvanilla01)^0.5)/A1stdlife)) -> 0.4042300592 | BF78: =IF(A1stdlife="n/a","n/a",IF(BF$3>(A1stdlife+$E78),('PTRM input'!$G$143*(1+rvanilla01)^0.5)-SUM($G78:BE78),('PTRM input'!$G$143*(1+rvanilla01)^0.5)/A1stdlife)) -> 1.065814104e-14 | BG78: =IF(A1stdlife="n/a","n/a",IF(BG$3>(A1stdlife+$E78),('PTRM input'!$G$143*(1+rvanilla01)^0.5)-SUM($G78:BF78),('PTRM input'!$G$143*(1+rvanilla01)^0.5)/A1stdlife)) -> 0 | BH78: =IF(A1stdlife="n/a","n/a",IF(BH$3>(A1stdlife+$E78),('PTRM input'!$G$143*(1+rvanilla01)^0.5)-SUM($G78:BG78),('PTRM input'!$G$143*(1+rvanilla01)^0.5)/A1stdlife)) -> 0 | BI78: =IF(A1stdlife="n/a","n/a",IF(BI$3>(A1stdlife+$E78),('PTRM input'!$G$143*(1+rvanilla01)^0.5)-SUM($G78:BH78),('PTRM input'!$G$143*(1+rvanilla01)^0.5)/A1stdlife)) -> 0
E79: 2 | I79: =IF(A1stdlife="n/a","n/a",IF(I$3>(A1stdlife+$E79),('PTRM input'!$H$143*(1+rvanilla02)^0.5)-SUM($H79:H79),('PTRM input'!$H$143*(1+rvanilla02)^0.5)/A1stdlife)) -> 0 | J79: =IF(A1stdlife="n/a","n/a",IF(J$3>(A1stdlife+$E79),('PTRM input'!$H$143*(1+rvanilla02)^0.5)-SUM($H79:I79),('PTRM input'!$H$143*(1+rvanilla02)^0.5)/A1stdlife)) -> 0 | K79: =IF(A1stdlife="n/a","n/a",IF(K$3>(A1stdlife+$E79),('PTRM input'!$H$143*(1+rvanilla02)^0.5)-SUM($H79:J79),('PTRM input'!$H$143*(1+rvanilla02)^0.5)/A1stdlife)) -> 0 | L79: =IF(A1stdlife="n/a","n/a",IF(L$3>(A1stdlife+$E79),('PTRM input'!$H$143*(1+rvanilla02)^0.5)-SUM($H79:K79),('PTRM input'!$H$143*(1+rvanilla02)^0.5)/A1stdlife)) -> 0 | M79: =IF(A1stdlife="n/a","n/a",IF(M$3>(A1stdlife+$E79),('PTRM input'!$H$143*(1+rvanilla02)^0.5)-SUM($H79:L79),('PTRM input'!$H$143*(1+rvanilla02)^0.5)/A1stdlife)) -> 0 | N79: =IF(A1stdlife="n/a","n/a",IF(N$3>(A1stdlife+$E79),('PTRM input'!$H$143*(1+rvanilla02)^0.5)-SUM($H79:M79),('PTRM input'!$H$143*(1+rvanilla02)^0.5)/A1stdlife)) -> 0 | O79: =IF(A1stdlife="n/a","n/a",IF(O$3>(A1stdlife+$E79),('PTRM input'!$H$143*(1+rvanilla02)^0.5)-SUM($H79:N79),('PTRM input'!$H$143*(1+rvanilla02)^0.5)/A1stdlife)) -> 0 | P79: =IF(A1stdlife="n/a","n/a",IF(P$3>(A1stdlife+$E79),('PTRM input'!$H$143*(1+rvanilla02)^0.5)-SUM($H79:O79),('PTRM input'!$H$143*(1+rvanilla02)^0.5)/A1stdlife)) -> 0 | Q79: =IF(A1stdlife="n/a","n/a",IF(Q$3>(A1stdlife+$E79),('PTRM input'!$H$143*(1+rvanilla02)^0.5)-SUM($H79:P79),('PTRM input'!$H$143*(1+rvanilla02)^0.5)/A1stdlife)) -> 0 | R79: =IF(A1stdlife="n/a","n/a",IF(R$3>(A1stdlife+$E79),('PTRM input'!$H$143*(1+rvanilla02)^0.5)-SUM($H79:Q79),('PTRM input'!$H$143*(1+rvanilla02)^0.5)/A1stdlife)) -> 0 | S79: =IF(A1stdlife="n/a","n/a",IF(S$3>(A1stdlife+$E79),('PTRM input'!$H$143*(1+rvanilla02)^0.5)-SUM($H79:R79),('PTRM input'!$H$143*(1+rvanilla02)^0.5)/A1stdlife)) -> 0 | T79: =IF(A1stdlife="n/a","n/a",IF(T$3>(A1stdlife+$E79),('PTRM input'!$H$143*(1+rvanilla02)^0.5)-SUM($H79:S79),('PTRM input'!$H$143*(1+rvanilla02)^0.5)/A1stdlife)) -> 0 | U79: =IF(A1stdlife="n/a","n/a",IF(U$3>(A1stdlife+$E79),('PTRM input'!$H$143*(1+rvanilla02)^0.5)-SUM($H79:T79),('PTRM input'!$H$143*(1+rvanilla02)^0.5)/A1stdlife)) -> 0 | V79: =IF(A1stdlife="n/a","n/a",IF(V$3>(A1stdlife+$E79),('PTRM input'!$H$143*(1+rvanilla02)^0.5)-SUM($H79:U79),('PTRM input'!$H$143*(1+rvanilla02)^0.5)/A1stdlife)) -> 0 | W79: =IF(A1stdlife="n/a","n/a",IF(W$3>(A1stdlife+$E79),('PTRM input'!$H$143*(1+rvanilla02)^0.5)-SUM($H79:V79),('PTRM input'!$H$143*(1+rvanilla02)^0.5)/A1stdlife)) -> 0 | X79: =IF(A1stdlife="n/a","n/a",IF(X$3>(A1stdlife+$E79),('PTRM input'!$H$143*(1+rvanilla02)^0.5)-SUM($H79:W79),('PTRM input'!$H$143*(1+rvanilla02)^0.5)/A1stdlife)) -> 0 | Y79: =IF(A1stdlife="n/a","n/a",IF(Y$3>(A1stdlife+$E79),('PTRM input'!$H$143*(1+rvanilla02)^0.5)-SUM($H79:X79),('PTRM input'!$H$143*(1+rvanilla02)^0.5)/A1stdlife)) -> 0 | Z79: =IF(A1stdlife="n/a","n/a",IF(Z$3>(A1stdlife+$E79),('PTRM input'!$H$143*(1+rvanilla02)^0.5)-SUM($H79:Y79),('PTRM input'!$H$143*(1+rvanilla02)^0.5)/A1stdlife)) -> 0 | AA79: =IF(A1stdlife="n/a","n/a",IF(AA$3>(A1stdlife+$E79),('PTRM input'!$H$143*(1+rvanilla02)^0.5)-SUM($H79:Z79),('PTRM input'!$H$143*(1+rvanilla02)^0.5)/A1stdlife)) -> 0 | AB79: =IF(A1stdlife="n/a","n/a",IF(AB$3>(A1stdlife+$E79),('PTRM input'!$H$143*(1+rvanilla02)^0.5)-SUM($H79:AA79),('PTRM input'!$H$143*(1+rvanilla02)^0.5)/A1stdlife)) -> 0 | AC79: =IF(A1stdlife="n/a","n/a",IF(AC$3>(A1stdlife+$E79),('PTRM input'!$H$143*(1+rvanilla02)^0.5)-SUM($H79:AB79),('PTRM input'!$H$143*(1+rvanilla02)^0.5)/A1stdlife)) -> 0 | AD79: =IF(A1stdlife="n/a","n/a",IF(AD$3>(A1stdlife+$E79),('PTRM input'!$H$143*(1+rvanilla02)^0.5)-SUM($H79:AC79),('PTRM input'!$H$143*(1+rvanilla02)^0.5)/A1stdlife)) -> 0 | AE79: =IF(A1stdlife="n/a","n/a",IF(AE$3>(A1stdlife+$E79),('PTRM input'!$H$143*(1+rvanilla02)^0.5)-SUM($H79:AD79),('PTRM input'!$H$143*(1+rvanilla02)^0.5)/A1stdlife)) -> 0 | AF79: =IF(A1stdlife="n/a","n/a",IF(AF$3>(A1stdlife+$E79),('PTRM input'!$H$143*(1+rvanilla02)^0.5)-SUM($H79:AE79),('PTRM input'!$H$143*(1+rvanilla02)^0.5)/A1stdlife)) -> 0 | AG79: =IF(A1stdlife="n/a","n/a",IF(AG$3>(A1stdlife+$E79),('PTRM input'!$H$143*(1+rvanilla02)^0.5)-SUM($H79:AF79),('PTRM input'!$H$143*(1+rvanilla02)^0.5)/A1stdlife)) -> 0 | AH79: =IF(A1stdlife="n/a","n/a",IF(AH$3>(A1stdlife+$E79),('PTRM input'!$H$143*(1+rvanilla02)^0.5)-SUM($H79:AG79),('PTRM input'!$H$143*(1+rvanilla02)^0.5)/A1stdlife)) -> 0 | AI79: =IF(A1stdlife="n/a","n/a",IF(AI$3>(A1stdlife+$E79),('PTRM input'!$H$143*(1+rvanilla02)^0.5)-SUM($H79:AH79),('PTRM input'!$H$143*(1+rvanilla02)^0.5)/A1stdlife)) -> 0 | AJ79: =IF(A1stdlife="n/a","n/a",IF(AJ$3>(A1stdlife+$E79),('PTRM input'!$H$143*(1+rvanilla02)^0.5)-SUM($H79:AI79),('PTRM input'!$H$143*(1+rvanilla02)^0.5)/A1stdlife)) -> 0 | AK79: =IF(A1stdlife="n/a","n/a",IF(AK$3>(A1stdlife+$E79),('PTRM input'!$H$143*(1+rvanilla02)^0.5)-SUM($H79:AJ79),('PTRM input'!$H$143*(1+rvanilla02)^0.5)/A1stdlife)) -> 0 | AL79: =IF(A1stdlife="n/a","n/a",IF(AL$3>(A1stdlife+$E79),('PTRM input'!$H$143*(1+rvanilla02)^0.5)-SUM($H79:AK79),('PTRM input'!$H$143*(1+rvanilla02)^0.5)/A1stdlife)) -> 0 | AM79: =IF(A1stdlife="n/a","n/a",IF(AM$3>(A1stdlife+$E79),('PTRM input'!$H$143*(1+rvanilla02)^0.5)-SUM($H79:AL79),('PTRM input'!$H$143*(1+rvanilla02)^0.5)/A1stdlife)) -> 0 | AN79: =IF(A1stdlife="n/a","n/a",IF(AN$3>(A1stdlife+$E79),('PTRM input'!$H$143*(1+rvanilla02)^0.5)-SUM($H79:AM79),('PTRM input'!$H$143*(1+rvanilla02)^0.5)/A1stdlife)) -> 0 | AO79: =IF(A1stdlife="n/a","n/a",IF(AO$3>(A1stdlife+$E79),('PTRM input'!$H$143*(1+rvanilla02)^0.5)-SUM($H79:AN79),('PTRM input'!$H$143*(1+rvanilla02)^0.5)/A1stdlife)) -> 0 | AP79: =IF(A1stdlife="n/a","n/a",IF(AP$3>(A1stdlife+$E79),('PTRM input'!$H$143*(1+rvanilla02)^0.5)-SUM($H79:AO79),('PTRM input'!$H$143*(1+rvanilla02)^0.5)/A1stdlife)) -> 0 | AQ79: =IF(A1stdlife="n/a","n/a",IF(AQ$3>(A1stdlife+$E79),('PTRM input'!$H$143*(1+rvanilla02)^0.5)-SUM($H79:AP79),('PTRM input'!$H$143*(1+rvanilla02)^0.5)/A1stdlife)) -> 0 | AR79: =IF(A1stdlife="n/a","n/a",IF(AR$3>(A1stdlife+$E79),('PTRM input'!$H$143*(1+rvanilla02)^0.5)-SUM($H79:AQ79),('PTRM input'!$H$143*(1+rvanilla02)^0.5)/A1stdlife)) -> 0 | AS79: =IF(A1stdlife="n/a","n/a",IF(AS$3>(A1stdlife+$E79),('PTRM input'!$H$143*(1+rvanilla02)^0.5)-SUM($H79:AR79),('PTRM input'!$H$143*(1+rvanilla02)^0.5)/A1stdlife)) -> 0 | AT79: =IF(A1stdlife="n/a","n/a",IF(AT$3>(A1stdlife+$E79),('PTRM input'!$H$143*(1+rvanilla02)^0.5)-SUM($H79:AS79),('PTRM input'!$H$143*(1+rvanilla02)^0.5)/A1stdlife)) -> 0 | AU79: =IF(A1stdlife="n/a","n/a",IF(AU$3>(A1stdlife+$E79),('PTRM input'!$H$143*(1+rvanilla02)^0.5)-SUM($H79:AT79),('PTRM input'!$H$143*(1+rvanilla02)^0.5)/A1stdlife)) -> 0 | AV79: =IF(A1stdlife="n/a","n/a",IF(AV$3>(A1stdlife+$E79),('PTRM input'!$H$143*(1+rvanilla02)^0.5)-SUM($H79:AU79),('PTRM input'!$H$143*(1+rvanilla02)^0.5)/A1stdlife)) -> 0 | AW79: =IF(A1stdlife="n/a","n/a",IF(AW$3>(A1stdlife+$E79),('PTRM input'!$H$143*(1+rvanilla02)^0.5)-SUM($H79:AV79),('PTRM input'!$H$143*(1+rvanilla02)^0.5)/A1stdlife)) -> 0 | AX79: =IF(A1stdlife="n/a","n/a",IF(AX$3>(A1stdlife+$E79),('PTRM input'!$H$143*(1+rvanilla02)^0.5)-SUM($H79:AW79),('PTRM input'!$H$143*(1+rvanilla02)^0.5)/A1stdlife)) -> 0 | AY79: =IF(A1stdlife="n/a","n/a",IF(AY$3>(A1stdlife+$E79),('PTRM input'!$H$143*(1+rvanilla02)^0.5)-SUM($H79:AX79),('PTRM input'!$H$143*(1+rvanilla02)^0.5)/A1stdlife)) -> 0 | AZ79: =IF(A1stdlife="n/a","n/a",IF(AZ$3>(A1stdlife+$E79),('PTRM input'!$H$143*(1+rvanilla02)^0.5)-SUM($H79:AY79),('PTRM input'!$H$143*(1+rvanilla02)^0.5)/A1stdlife)) -> 0 | BA79: =IF(A1stdlife="n/a","n/a",IF(BA$3>(A1stdlife+$E79),('PTRM input'!$H$143*(1+rvanilla02)^0.5)-SUM($H79:AZ79),('PTRM input'!$H$143*(1+rvanilla02)^0.5)/A1stdlife)) -> 0 | BB79: =IF(A1stdlife="n/a","n/a",IF(BB$3>(A1stdlife+$E79),('PTRM input'!$H$143*(1+rvanilla02)^0.5)-SUM($H79:BA79),('PTRM input'!$H$143*(1+rvanilla02)^0.5)/A1stdlife)) -> 0 | BC79: =IF(A1stdlife="n/a","n/a",IF(BC$3>(A1stdlife+$E79),('PTRM input'!$H$143*(1+rvanilla02)^0.5)-SUM($H79:BB79),('PTRM input'!$H$143*(1+rvanilla02)^0.5)/A1stdlife)) -> 0 | BD79: =IF(A1stdlife="n/a","n/a",IF(BD$3>(A1stdlife+$E79),('PTRM input'!$H$143*(1+rvanilla02)^0.5)-SUM($H79:BC79),('PTRM input'!$H$143*(1+rvanilla02)^0.5)/A1stdlife)) -> 0 | BE79: =IF(A1stdlife="n/a","n/a",IF(BE$3>(A1stdlife+$E79),('PTRM input'!$H$143*(1+rvanilla02)^0.5)-SUM($H79:BD79),('PTRM input'!$H$143*(1+rvanilla02)^0.5)/A1stdlife)) -> 0 | BF79: =IF(A1stdlife="n/a","n/a",IF(BF$3>(A1stdlife+$E79),('PTRM input'!$H$143*(1+rvanilla02)^0.5)-SUM($H79:BE79),('PTRM input'!$H$143*(1+rvanilla02)^0.5)/A1stdlife)) -> 0 | BG79: =IF(A1stdlife="n/a","n/a",IF(BG$3>(A1stdlife+$E79),('PTRM input'!$H$143*(1+rvanilla02)^0.5)-SUM($H79:BF79),('PTRM input'!$H$143*(1+rvanilla02)^0.5)/A1stdlife)) -> 0 | BH79: =IF(A1stdlife="n/a","n/a",IF(BH$3>(A1stdlife+$E79),('PTRM input'!$H$143*(1+rvanilla02)^0.5)-SUM($H79:BG79),('PTRM input'!$H$143*(1+rvanilla02)^0.5)/A1stdlife)) -> 0 | BI79: =IF(A1stdlife="n/a","n/a",IF(BI$3>(A1stdlife+$E79),('PTRM input'!$H$143*(1+rvanilla02)^0.5)-SUM($H79:BH79),('PTRM input'!$H$143*(1+rvanilla02)^0.5)/A1stdlife)) -> 0
E80: 3 | J80: =IF(A1stdlife="n/a","n/a",IF(J$3>(A1stdlife+$E80),('PTRM input'!$I$143*(1+rvanilla03)^0.5)-SUM($I80:I80),('PTRM input'!$I$143*(1+rvanilla03)^0.5)/A1stdlife)) -> 0 | K80: =IF(A1stdlife="n/a","n/a",IF(K$3>(A1stdlife+$E80),('PTRM input'!$I$143*(1+rvanilla03)^0.5)-SUM($I80:J80),('PTRM input'!$I$143*(1+rvanilla03)^0.5)/A1stdlife)) -> 0 | L80: =IF(A1stdlife="n/a","n/a",IF(L$3>(A1stdlife+$E80),('PTRM input'!$I$143*(1+rvanilla03)^0.5)-SUM($I80:K80),('PTRM input'!$I$143*(1+rvanilla03)^0.5)/A1stdlife)) -> 0 | M80: =IF(A1stdlife="n/a","n/a",IF(M$3>(A1stdlife+$E80),('PTRM input'!$I$143*(1+rvanilla03)^0.5)-SUM($I80:L80),('PTRM input'!$I$143*(1+rvanilla03)^0.5)/A1stdlife)) -> 0 | N80: =IF(A1stdlife="n/a","n/a",IF(N$3>(A1stdlife+$E80),('PTRM input'!$I$143*(1+rvanilla03)^0.5)-SUM($I80:M80),('PTRM input'!$I$143*(1+rvanilla03)^0.5)/A1stdlife)) -> 0 | O80: =IF(A1stdlife="n/a","n/a",IF(O$3>(A1stdlife+$E80),('PTRM input'!$I$143*(1+rvanilla03)^0.5)-SUM($I80:N80),('PTRM input'!$I$143*(1+rvanilla03)^0.5)/A1stdlife)) -> 0 | P80: =IF(A1stdlife="n/a","n/a",IF(P$3>(A1stdlife+$E80),('PTRM input'!$I$143*(1+rvanilla03)^0.5)-SUM($I80:O80),('PTRM input'!$I$143*(1+rvanilla03)^0.5)/A1stdlife)) -> 0 | Q80: =IF(A1stdlife="n/a","n/a",IF(Q$3>(A1stdlife+$E80),('PTRM input'!$I$143*(1+rvanilla03)^0.5)-SUM($I80:P80),('PTRM input'!$I$143*(1+rvanilla03)^0.5)/A1stdlife)) -> 0 | R80: =IF(A1stdlife="n/a","n/a",IF(R$3>(A1stdlife+$E80),('PTRM input'!$I$143*(1+rvanilla03)^0.5)-SUM($I80:Q80),('PTRM input'!$I$143*(1+rvanilla03)^0.5)/A1stdlife)) -> 0 | S80: =IF(A1stdlife="n/a","n/a",IF(S$3>(A1stdlife+$E80),('PTRM input'!$I$143*(1+rvanilla03)^0.5)-SUM($I80:R80),('PTRM input'!$I$143*(1+rvanilla03)^0.5)/A1stdlife)) -> 0 | T80: =IF(A1stdlife="n/a","n/a",IF(T$3>(A1stdlife+$E80),('PTRM input'!$I$143*(1+rvanilla03)^0.5)-SUM($I80:S80),('PTRM input'!$I$143*(1+rvanilla03)^0.5)/A1stdlife)) -> 0 | U80: =IF(A1stdlife="n/a","n/a",IF(U$3>(A1stdlife+$E80),('PTRM input'!$I$143*(1+rvanilla03)^0.5)-SUM($I80:T80),('PTRM input'!$I$143*(1+rvanilla03)^0.5)/A1stdlife)) -> 0 | V80: =IF(A1stdlife="n/a","n/a",IF(V$3>(A1stdlife+$E80),('PTRM input'!$I$143*(1+rvanilla03)^0.5)-SUM($I80:U80),('PTRM input'!$I$143*(1+rvanilla03)^0.5)/A1stdlife)) -> 0 | W80: =IF(A1stdlife="n/a","n/a",IF(W$3>(A1stdlife+$E80),('PTRM input'!$I$143*(1+rvanilla03)^0.5)-SUM($I80:V80),('PTRM input'!$I$143*(1+rvanilla03)^0.5)/A1stdlife)) -> 0 | X80: =IF(A1stdlife="n/a","n/a",IF(X$3>(A1stdlife+$E80),('PTRM input'!$I$143*(1+rvanilla03)^0.5)-SUM($I80:W80),('PTRM input'!$I$143*(1+rvanilla03)^0.5)/A1stdlife)) -> 0 | Y80: =IF(A1stdlife="n/a","n/a",IF(Y$3>(A1stdlife+$E80),('PTRM input'!$I$143*(1+rvanilla03)^0.5)-SUM($I80:X80),('PTRM input'!$I$143*(1+rvanilla03)^0.5)/A1stdlife)) -> 0 | Z80: =IF(A1stdlife="n/a","n/a",IF(Z$3>(A1stdlife+$E80),('PTRM input'!$I$143*(1+rvanilla03)^0.5)-SUM($I80:Y80),('PTRM input'!$I$143*(1+rvanilla03)^0.5)/A1stdlife)) -> 0 | AA80: =IF(A1stdlife="n/a","n/a",IF(AA$3>(A1stdlife+$E80),('PTRM input'!$I$143*(1+rvanilla03)^0.5)-SUM($I80:Z80),('PTRM input'!$I$143*(1+rvanilla03)^0.5)/A1stdlife)) -> 0 | AB80: =IF(A1stdlife="n/a","n/a",IF(AB$3>(A1stdlife+$E80),('PTRM input'!$I$143*(1+rvanilla03)^0.5)-SUM($I80:AA80),('PTRM input'!$I$143*(1+rvanilla03)^0.5)/A1stdlife)) -> 0 | AC80: =IF(A1stdlife="n/a","n/a",IF(AC$3>(A1stdlife+$E80),('PTRM input'!$I$143*(1+rvanilla03)^0.5)-SUM($I80:AB80),('PTRM input'!$I$143*(1+rvanilla03)^0.5)/A1stdlife)) -> 0 | AD80: =IF(A1stdlife="n/a","n/a",IF(AD$3>(A1stdlife+$E80),('PTRM input'!$I$143*(1+rvanilla03)^0.5)-SUM($I80:AC80),('PTRM input'!$I$143*(1+rvanilla03)^0.5)/A1stdlife)) -> 0 | AE80: =IF(A1stdlife="n/a","n/a",IF(AE$3>(A1stdlife+$E80),('PTRM input'!$I$143*(1+rvanilla03)^0.5)-SUM($I80:AD80),('PTRM input'!$I$143*(1+rvanilla03)^0.5)/A1stdlife)) -> 0 | AF80: =IF(A1stdlife="n/a","n/a",IF(AF$3>(A1stdlife+$E80),('PTRM input'!$I$143*(1+rvanilla03)^0.5)-SUM($I80:AE80),('PTRM input'!$I$143*(1+rvanilla03)^0.5)/A1stdlife)) -> 0 | AG80: =IF(A1stdlife="n/a","n/a",IF(AG$3>(A1stdlife+$E80),('PTRM input'!$I$143*(1+rvanilla03)^0.5)-SUM($I80:AF80),('PTRM input'!$I$143*(1+rvanilla03)^0.5)/A1stdlife)) -> 0 | AH80: =IF(A1stdlife="n/a","n/a",IF(AH$3>(A1stdlife+$E80),('PTRM input'!$I$143*(1+rvanilla03)^0.5)-SUM($I80:AG80),('PTRM input'!$I$143*(1+rvanilla03)^0.5)/A1stdlife)) -> 0 | AI80: =IF(A1stdlife="n/a","n/a",IF(AI$3>(A1stdlife+$E80),('PTRM input'!$I$143*(1+rvanilla03)^0.5)-SUM($I80:AH80),('PTRM input'!$I$143*(1+rvanilla03)^0.5)/A1stdlife)) -> 0 | AJ80: =IF(A1stdlife="n/a","n/a",IF(AJ$3>(A1stdlife+$E80),('PTRM input'!$I$143*(1+rvanilla03)^0.5)-SUM($I80:AI80),('PTRM input'!$I$143*(1+rvanilla03)^0.5)/A1stdlife)) -> 0 | AK80: =IF(A1stdlife="n/a","n/a",IF(AK$3>(A1stdlife+$E80),('PTRM input'!$I$143*(1+rvanilla03)^0.5)-SUM($I80:AJ80),('PTRM input'!$I$143*(1+rvanilla03)^0.5)/A1stdlife)) -> 0 | AL80: =IF(A1stdlife="n/a","n/a",IF(AL$3>(A1stdlife+$E80),('PTRM input'!$I$143*(1+rvanilla03)^0.5)-SUM($I80:AK80),('PTRM input'!$I$143*(1+rvanilla03)^0.5)/A1stdlife)) -> 0 | AM80: =IF(A1stdlife="n/a","n/a",IF(AM$3>(A1stdlife+$E80),('PTRM input'!$I$143*(1+rvanilla03)^0.5)-SUM($I80:AL80),('PTRM input'!$I$143*(1+rvanilla03)^0.5)/A1stdlife)) -> 0 | AN80: =IF(A1stdlife="n/a","n/a",IF(AN$3>(A1stdlife+$E80),('PTRM input'!$I$143*(1+rvanilla03)^0.5)-SUM($I80:AM80),('PTRM input'!$I$143*(1+rvanilla03)^0.5)/A1stdlife)) -> 0 | AO80: =IF(A1stdlife="n/a","n/a",IF(AO$3>(A1stdlife+$E80),('PTRM input'!$I$143*(1+rvanilla03)^0.5)-SUM($I80:AN80),('PTRM input'!$I$143*(1+rvanilla03)^0.5)/A1stdlife)) -> 0 | AP80: =IF(A1stdlife="n/a","n/a",IF(AP$3>(A1stdlife+$E80),('PTRM input'!$I$143*(1+rvanilla03)^0.5)-SUM($I80:AO80),('PTRM input'!$I$143*(1+rvanilla03)^0.5)/A1stdlife)) -> 0 | AQ80: =IF(A1stdlife="n/a","n/a",IF(AQ$3>(A1stdlife+$E80),('PTRM input'!$I$143*(1+rvanilla03)^0.5)-SUM($I80:AP80),('PTRM input'!$I$143*(1+rvanilla03)^0.5)/A1stdlife)) -> 0 | AR80: =IF(A1stdlife="n/a","n/a",IF(AR$3>(A1stdlife+$E80),('PTRM input'!$I$143*(1+rvanilla03)^0.5)-SUM($I80:AQ80),('PTRM input'!$I$143*(1+rvanilla03)^0.5)/A1stdlife)) -> 0 | AS80: =IF(A1stdlife="n/a","n/a",IF(AS$3>(A1stdlife+$E80),('PTRM input'!$I$143*(1+rvanilla03)^0.5)-SUM($I80:AR80),('PTRM input'!$I$143*(1+rvanilla03)^0.5)/A1stdlife)) -> 0 | AT80: =IF(A1stdlife="n/a","n/a",IF(AT$3>(A1stdlife+$E80),('PTRM input'!$I$143*(1+rvanilla03)^0.5)-SUM($I80:AS80),('PTRM input'!$I$143*(1+rvanilla03)^0.5)/A1stdlife)) -> 0 | AU80: =IF(A1stdlife="n/a","n/a",IF(AU$3>(A1stdlife+$E80),('PTRM input'!$I$143*(1+rvanilla03)^0.5)-SUM($I80:AT80),('PTRM input'!$I$143*(1+rvanilla03)^0.5)/A1stdlife)) -> 0 | AV80: =IF(A1stdlife="n/a","n/a",IF(AV$3>(A1stdlife+$E80),('PTRM input'!$I$143*(1+rvanilla03)^0.5)-SUM($I80:AU80),('PTRM input'!$I$143*(1+rvanilla03)^0.5)/A1stdlife)) -> 0 | AW80: =IF(A1stdlife="n/a","n/a",IF(AW$3>(A1stdlife+$E80),('PTRM input'!$I$143*(1+rvanilla03)^0.5)-SUM($I80:AV80),('PTRM input'!$I$143*(1+rvanilla03)^0.5)/A1stdlife)) -> 0 | AX80: =IF(A1stdlife="n/a","n/a",IF(AX$3>(A1stdlife+$E80),('PTRM input'!$I$143*(1+rvanilla03)^0.5)-SUM($I80:AW80),('PTRM input'!$I$143*(1+rvanilla03)^0.5)/A1stdlife)) -> 0 | AY80: =IF(A1stdlife="n/a","n/a",IF(AY$3>(A1stdlife+$E80),('PTRM input'!$I$143*(1+rvanilla03)^0.5)-SUM($I80:AX80),('PTRM input'!$I$143*(1+rvanilla03)^0.5)/A1stdlife)) -> 0 | AZ80: =IF(A1stdlife="n/a","n/a",IF(AZ$3>(A1stdlife+$E80),('PTRM input'!$I$143*(1+rvanilla03)^0.5)-SUM($I80:AY80),('PTRM input'!$I$143*(1+rvanilla03)^0.5)/A1stdlife)) -> 0 | BA80: =IF(A1stdlife="n/a","n/a",IF(BA$3>(A1stdlife+$E80),('PTRM input'!$I$143*(1+rvanilla03)^0.5)-SUM($I80:AZ80),('PTRM input'!$I$143*(1+rvanilla03)^0.5)/A1stdlife)) -> 0 | BB80: =IF(A1stdlife="n/a","n/a",IF(BB$3>(A1stdlife+$E80),('PTRM input'!$I$143*(1+rvanilla03)^0.5)-SUM($I80:BA80),('PTRM input'!$I$143*(1+rvanilla03)^0.5)/A1stdlife)) -> 0 | BC80: =IF(A1stdlife="n/a","n/a",IF(BC$3>(A1stdlife+$E80),('PTRM input'!$I$143*(1+rvanilla03)^0.5)-SUM($I80:BB80),('PTRM input'!$I$143*(1+rvanilla03)^0.5)/A1stdlife)) -> 0 | BD80: =IF(A1stdlife="n/a","n/a",IF(BD$3>(A1stdlife+$E80),('PTRM input'!$I$143*(1+rvanilla03)^0.5)-SUM($I80:BC80),('PTRM input'!$I$143*(1+rvanilla03)^0.5)/A1stdlife)) -> 0 | BE80: =IF(A1stdlife="n/a","n/a",IF(BE$3>(A1stdlife+$E80),('PTRM input'!$I$143*(1+rvanilla03)^0.5)-SUM($I80:BD80),('PTRM input'!$I$143*(1+rvanilla03)^0.5)/A1stdlife)) -> 0 | BF80: =IF(A1stdlife="n/a","n/a",IF(BF$3>(A1stdlife+$E80),('PTRM input'!$I$143*(1+rvanilla03)^0.5)-SUM($I80:BE80),('PTRM input'!$I$143*(1+rvanilla03)^0.5)/A1stdlife)) -> 0 | BG80: =IF(A1stdlife="n/a","n/a",IF(BG$3>(A1stdlife+$E80),('PTRM input'!$I$143*(1+rvanilla03)^0.5)-SUM($I80:BF80),('PTRM input'!$I$143*(1+rvanilla03)^0.5)/A1stdlife)) -> 0 | BH80: =IF(A1stdlife="n/a","n/a",IF(BH$3>(A1stdlife+$E80),('PTRM input'!$I$143*(1+rvanilla03)^0.5)-SUM($I80:BG80),('PTRM input'!$I$143*(1+rvanilla03)^0.5)/A1stdlife)) -> 0 | BI80: =IF(A1stdlife="n/a","n/a",IF(BI$3>(A1stdlife+$E80),('PTRM input'!$I$143*(1+rvanilla03)^0.5)-SUM($I80:BH80),('PTRM input'!$I$143*(1+rvanilla03)^0.5)/A1stdlife)) -> 0
E81: 4 | K81: =IF(A1stdlife="n/a","n/a",IF(K$3>(A1stdlife+$E81),('PTRM input'!$J$143*(1+rvanilla04)^0.5)-SUM($J81:J81),('PTRM input'!$J$143*(1+rvanilla04)^0.5)/A1stdlife)) -> 0 | L81: =IF(A1stdlife="n/a","n/a",IF(L$3>(A1stdlife+$E81),('PTRM input'!$J$143*(1+rvanilla04)^0.5)-SUM($J81:K81),('PTRM input'!$J$143*(1+rvanilla04)^0.5)/A1stdlife)) -> 0 | M81: =IF(A1stdlife="n/a","n/a",IF(M$3>(A1stdlife+$E81),('PTRM input'!$J$143*(1+rvanilla04)^0.5)-SUM($J81:L81),('PTRM input'!$J$143*(1+rvanilla04)^0.5)/A1stdlife)) -> 0 | N81: =IF(A1stdlife="n/a","n/a",IF(N$3>(A1stdlife+$E81),('PTRM input'!$J$143*(1+rvanilla04)^0.5)-SUM($J81:M81),('PTRM input'!$J$143*(1+rvanilla04)^0.5)/A1stdlife)) -> 0 | O81: =IF(A1stdlife="n/a","n/a",IF(O$3>(A1stdlife+$E81),('PTRM input'!$J$143*(1+rvanilla04)^0.5)-SUM($J81:N81),('PTRM input'!$J$143*(1+rvanilla04)^0.5)/A1stdlife)) -> 0 | P81: =IF(A1stdlife="n/a","n/a",IF(P$3>(A1stdlife+$E81),('PTRM input'!$J$143*(1+rvanilla04)^0.5)-SUM($J81:O81),('PTRM input'!$J$143*(1+rvanilla04)^0.5)/A1stdlife)) -> 0 | Q81: =IF(A1stdlife="n/a","n/a",IF(Q$3>(A1stdlife+$E81),('PTRM input'!$J$143*(1+rvanilla04)^0.5)-SUM($J81:P81),('PTRM input'!$J$143*(1+rvanilla04)^0.5)/A1stdlife)) -> 0 | R81: =IF(A1stdlife="n/a","n/a",IF(R$3>(A1stdlife+$E81),('PTRM input'!$J$143*(1+rvanilla04)^0.5)-SUM($J81:Q81),('PTRM input'!$J$143*(1+rvanilla04)^0.5)/A1stdlife)) -> 0 | S81: =IF(A1stdlife="n/a","n/a",IF(S$3>(A1stdlife+$E81),('PTRM input'!$J$143*(1+rvanilla04)^0.5)-SUM($J81:R81),('PTRM input'!$J$143*(1+rvanilla04)^0.5)/A1stdlife)) -> 0 | T81: =IF(A1stdlife="n/a","n/a",IF(T$3>(A1stdlife+$E81),('PTRM input'!$J$143*(1+rvanilla04)^0.5)-SUM($J81:S81),('PTRM input'!$J$143*(1+rvanilla04)^0.5)/A1stdlife)) -> 0 | U81: =IF(A1stdlife="n/a","n/a",IF(U$3>(A1stdlife+$E81),('PTRM input'!$J$143*(1+rvanilla04)^0.5)-SUM($J81:T81),('PTRM input'!$J$143*(1+rvanilla04)^0.5)/A1stdlife)) -> 0 | V81: =IF(A1stdlife="n/a","n/a",IF(V$3>(A1stdlife+$E81),('PTRM input'!$J$143*(1+rvanilla04)^0.5)-SUM($J81:U81),('PTRM input'!$J$143*(1+rvanilla04)^0.5)/A1stdlife)) -> 0 | W81: =IF(A1stdlife="n/a","n/a",IF(W$3>(A1stdlife+$E81),('PTRM input'!$J$143*(1+rvanilla04)^0.5)-SUM($J81:V81),('PTRM input'!$J$143*(1+rvanilla04)^0.5)/A1stdlife)) -> 0 | X81: =IF(A1stdlife="n/a","n/a",IF(X$3>(A1stdlife+$E81),('PTRM input'!$J$143*(1+rvanilla04)^0.5)-SUM($J81:W81),('PTRM input'!$J$143*(1+rvanilla04)^0.5)/A1stdlife)) -> 0 | Y81: =IF(A1stdlife="n/a","n/a",IF(Y$3>(A1stdlife+$E81),('PTRM input'!$J$143*(1+rvanilla04)^0.5)-SUM($J81:X81),('PTRM input'!$J$143*(1+rvanilla04)^0.5)/A1stdlife)) -> 0 | Z81: =IF(A1stdlife="n/a","n/a",IF(Z$3>(A1stdlife+$E81),('PTRM input'!$J$143*(1+rvanilla04)^0.5)-SUM($J81:Y81),('PTRM input'!$J$143*(1+rvanilla04)^0.5)/A1stdlife)) -> 0 | AA81: =IF(A1stdlife="n/a","n/a",IF(AA$3>(A1stdlife+$E81),('PTRM input'!$J$143*(1+rvanilla04)^0.5)-SUM($J81:Z81),('PTRM input'!$J$143*(1+rvanilla04)^0.5)/A1stdlife)) -> 0 | AB81: =IF(A1stdlife="n/a","n/a",IF(AB$3>(A1stdlife+$E81),('PTRM input'!$J$143*(1+rvanilla04)^0.5)-SUM($J81:AA81),('PTRM input'!$J$143*(1+rvanilla04)^0.5)/A1stdlife)) -> 0 | AC81: =IF(A1stdlife="n/a","n/a",IF(AC$3>(A1stdlife+$E81),('PTRM input'!$J$143*(1+rvanilla04)^0.5)-SUM($J81:AB81),('PTRM input'!$J$143*(1+rvanilla04)^0.5)/A1stdlife)) -> 0 | AD81: =IF(A1stdlife="n/a","n/a",IF(AD$3>(A1stdlife+$E81),('PTRM input'!$J$143*(1+rvanilla04)^0.5)-SUM($J81:AC81),('PTRM input'!$J$143*(1+rvanilla04)^0.5)/A1stdlife)) -> 0 | AE81: =IF(A1stdlife="n/a","n/a",IF(AE$3>(A1stdlife+$E81),('PTRM input'!$J$143*(1+rvanilla04)^0.5)-SUM($J81:AD81),('PTRM input'!$J$143*(1+rvanilla04)^0.5)/A1stdlife)) -> 0 | AF81: =IF(A1stdlife="n/a","n/a",IF(AF$3>(A1stdlife+$E81),('PTRM input'!$J$143*(1+rvanilla04)^0.5)-SUM($J81:AE81),('PTRM input'!$J$143*(1+rvanilla04)^0.5)/A1stdlife)) -> 0 | AG81: =IF(A1stdlife="n/a","n/a",IF(AG$3>(A1stdlife+$E81),('PTRM input'!$J$143*(1+rvanilla04)^0.5)-SUM($J81:AF81),('PTRM input'!$J$143*(1+rvanilla04)^0.5)/A1stdlife)) -> 0 | AH81: =IF(A1stdlife="n/a","n/a",IF(AH$3>(A1stdlife+$E81),('PTRM input'!$J$143*(1+rvanilla04)^0.5)-SUM($J81:AG81),('PTRM input'!$J$143*(1+rvanilla04)^0.5)/A1stdlife)) -> 0 | AI81: =IF(A1stdlife="n/a","n/a",IF(AI$3>(A1stdlife+$E81),('PTRM input'!$J$143*(1+rvanilla04)^0.5)-SUM($J81:AH81),('PTRM input'!$J$143*(1+rvanilla04)^0.5)/A1stdlife)) -> 0 | AJ81: =IF(A1stdlife="n/a","n/a",IF(AJ$3>(A1stdlife+$E81),('PTRM input'!$J$143*(1+rvanilla04)^0.5)-SUM($J81:AI81),('PTRM input'!$J$143*(1+rvanilla04)^0.5)/A1stdlife)) -> 0 | AK81: =IF(A1stdlife="n/a","n/a",IF(AK$3>(A1stdlife+$E81),('PTRM input'!$J$143*(1+rvanilla04)^0.5)-SUM($J81:AJ81),('PTRM input'!$J$143*(1+rvanilla04)^0.5)/A1stdlife)) -> 0 | AL81: =IF(A1stdlife="n/a","n/a",IF(AL$3>(A1stdlife+$E81),('PTRM input'!$J$143*(1+rvanilla04)^0.5)-SUM($J81:AK81),('PTRM input'!$J$143*(1+rvanilla04)^0.5)/A1stdlife)) -> 0 | AM81: =IF(A1stdlife="n/a","n/a",IF(AM$3>(A1stdlife+$E81),('PTRM input'!$J$143*(1+rvanilla04)^0.5)-SUM($J81:AL81),('PTRM input'!$J$143*(1+rvanilla04)^0.5)/A1stdlife)) -> 0 | AN81: =IF(A1stdlife="n/a","n/a",IF(AN$3>(A1stdlife+$E81),('PTRM input'!$J$143*(1+rvanilla04)^0.5)-SUM($J81:AM81),('PTRM input'!$J$143*(1+rvanilla04)^0.5)/A1stdlife)) -> 0 | AO81: =IF(A1stdlife="n/a","n/a",IF(AO$3>(A1stdlife+$E81),('PTRM input'!$J$143*(1+rvanilla04)^0.5)-SUM($J81:AN81),('PTRM input'!$J$143*(1+rvanilla04)^0.5)/A1stdlife)) -> 0 | AP81: =IF(A1stdlife="n/a","n/a",IF(AP$3>(A1stdlife+$E81),('PTRM input'!$J$143*(1+rvanilla04)^0.5)-SUM($J81:AO81),('PTRM input'!$J$143*(1+rvanilla04)^0.5)/A1stdlife)) -> 0 | AQ81: =IF(A1stdlife="n/a","n/a",IF(AQ$3>(A1stdlife+$E81),('PTRM input'!$J$143*(1+rvanilla04)^0.5)-SUM($J81:AP81),('PTRM input'!$J$143*(1+rvanilla04)^0.5)/A1stdlife)) -> 0 | AR81: =IF(A1stdlife="n/a","n/a",IF(AR$3>(A1stdlife+$E81),('PTRM input'!$J$143*(1+rvanilla04)^0.5)-SUM($J81:AQ81),('PTRM input'!$J$143*(1+rvanilla04)^0.5)/A1stdlife)) -> 0 | AS81: =IF(A1stdlife="n/a","n/a",IF(AS$3>(A1stdlife+$E81),('PTRM input'!$J$143*(1+rvanilla04)^0.5)-SUM($J81:AR81),('PTRM input'!$J$143*(1+rvanilla04)^0.5)/A1stdlife)) -> 0 | AT81: =IF(A1stdlife="n/a","n/a",IF(AT$3>(A1stdlife+$E81),('PTRM input'!$J$143*(1+rvanilla04)^0.5)-SUM($J81:AS81),('PTRM input'!$J$143*(1+rvanilla04)^0.5)/A1stdlife)) -> 0 | AU81: =IF(A1stdlife="n/a","n/a",IF(AU$3>(A1stdlife+$E81),('PTRM input'!$J$143*(1+rvanilla04)^0.5)-SUM($J81:AT81),('PTRM input'!$J$143*(1+rvanilla04)^0.5)/A1stdlife)) -> 0 | AV81: =IF(A1stdlife="n/a","n/a",IF(AV$3>(A1stdlife+$E81),('PTRM input'!$J$143*(1+rvanilla04)^0.5)-SUM($J81:AU81),('PTRM input'!$J$143*(1+rvanilla04)^0.5)/A1stdlife)) -> 0 | AW81: =IF(A1stdlife="n/a","n/a",IF(AW$3>(A1stdlife+$E81),('PTRM input'!$J$143*(1+rvanilla04)^0.5)-SUM($J81:AV81),('PTRM input'!$J$143*(1+rvanilla04)^0.5)/A1stdlife)) -> 0 | AX81: =IF(A1stdlife="n/a","n/a",IF(AX$3>(A1stdlife+$E81),('PTRM input'!$J$143*(1+rvanilla04)^0.5)-SUM($J81:AW81),('PTRM input'!$J$143*(1+rvanilla04)^0.5)/A1stdlife)) -> 0 | AY81: =IF(A1stdlife="n/a","n/a",IF(AY$3>(A1stdlife+$E81),('PTRM input'!$J$143*(1+rvanilla04)^0.5)-SUM($J81:AX81),('PTRM input'!$J$143*(1+rvanilla04)^0.5)/A1stdlife)) -> 0 | AZ81: =IF(A1stdlife="n/a","n/a",IF(AZ$3>(A1stdlife+$E81),('PTRM input'!$J$143*(1+rvanilla04)^0.5)-SUM($J81:AY81),('PTRM input'!$J$143*(1+rvanilla04)^0.5)/A1stdlife)) -> 0 | BA81: =IF(A1stdlife="n/a","n/a",IF(BA$3>(A1stdlife+$E81),('PTRM input'!$J$143*(1+rvanilla04)^0.5)-SUM($J81:AZ81),('PTRM input'!$J$143*(1+rvanilla04)^0.5)/A1stdlife)) -> 0 | BB81: =IF(A1stdlife="n/a","n/a",IF(BB$3>(A1stdlife+$E81),('PTRM input'!$J$143*(1+rvanilla04)^0.5)-SUM($J81:BA81),('PTRM input'!$J$143*(1+rvanilla04)^0.5)/A1stdlife)) -> 0 | BC81: =IF(A1stdlife="n/a","n/a",IF(BC$3>(A1stdlife+$E81),('PTRM input'!$J$143*(1+rvanilla04)^0.5)-SUM($J81:BB81),('PTRM input'!$J$143*(1+rvanilla04)^0.5)/A1stdlife)) -> 0 | BD81: =IF(A1stdlife="n/a","n/a",IF(BD$3>(A1stdlife+$E81),('PTRM input'!$J$143*(1+rvanilla04)^0.5)-SUM($J81:BC81),('PTRM input'!$J$143*(1+rvanilla04)^0.5)/A1stdlife)) -> 0 | BE81: =IF(A1stdlife="n/a","n/a",IF(BE$3>(A1stdlife+$E81),('PTRM input'!$J$143*(1+rvanilla04)^0.5)-SUM($J81:BD81),('PTRM input'!$J$143*(1+rvanilla04)^0.5)/A1stdlife)) -> 0 | BF81: =IF(A1stdlife="n/a","n/a",IF(BF$3>(A1stdlife+$E81),('PTRM input'!$J$143*(1+rvanilla04)^0.5)-SUM($J81:BE81),('PTRM input'!$J$143*(1+rvanilla04)^0.5)/A1stdlife)) -> 0 | BG81: =IF(A1stdlife="n/a","n/a",IF(BG$3>(A1stdlife+$E81),('PTRM input'!$J$143*(1+rvanilla04)^0.5)-SUM($J81:BF81),('PTRM input'!$J$143*(1+rvanilla04)^0.5)/A1stdlife)) -> 0 | BH81: =IF(A1stdlife="n/a","n/a",IF(BH$3>(A1stdlife+$E81),('PTRM input'!$J$143*(1+rvanilla04)^0.5)-SUM($J81:BG81),('PTRM input'!$J$143*(1+rvanilla04)^0.5)/A1stdlife)) -> 0 | BI81: =IF(A1stdlife="n/a","n/a",IF(BI$3>(A1stdlife+$E81),('PTRM input'!$J$143*(1+rvanilla04)^0.5)-SUM($J81:BH81),('PTRM input'!$J$143*(1+rvanilla04)^0.5)/A1stdlife)) -> 0
E82: 5 | L82: =IF(A1stdlife="n/a","n/a",IF(L$3>(A1stdlife+$E82),('PTRM input'!$K$143*(1+rvanilla05)^0.5)-SUM($K82:K82),('PTRM input'!$K$143*(1+rvanilla05)^0.5)/A1stdlife)) -> 0 | M82: =IF(A1stdlife="n/a","n/a",IF(M$3>(A1stdlife+$E82),('PTRM input'!$K$143*(1+rvanilla05)^0.5)-SUM($K82:L82),('PTRM input'!$K$143*(1+rvanilla05)^0.5)/A1stdlife)) -> 0 | N82: =IF(A1stdlife="n/a","n/a",IF(N$3>(A1stdlife+$E82),('PTRM input'!$K$143*(1+rvanilla05)^0.5)-SUM($K82:M82),('PTRM input'!$K$143*(1+rvanilla05)^0.5)/A1stdlife)) -> 0 | O82: =IF(A1stdlife="n/a","n/a",IF(O$3>(A1stdlife+$E82),('PTRM input'!$K$143*(1+rvanilla05)^0.5)-SUM($K82:N82),('PTRM input'!$K$143*(1+rvanilla05)^0.5)/A1stdlife)) -> 0 | P82: =IF(A1stdlife="n/a","n/a",IF(P$3>(A1stdlife+$E82),('PTRM input'!$K$143*(1+rvanilla05)^0.5)-SUM($K82:O82),('PTRM input'!$K$143*(1+rvanilla05)^0.5)/A1stdlife)) -> 0 | Q82: =IF(A1stdlife="n/a","n/a",IF(Q$3>(A1stdlife+$E82),('PTRM input'!$K$143*(1+rvanilla05)^0.5)-SUM($K82:P82),('PTRM input'!$K$143*(1+rvanilla05)^0.5)/A1stdlife)) -> 0 | R82: =IF(A1stdlife="n/a","n/a",IF(R$3>(A1stdlife+$E82),('PTRM input'!$K$143*(1+rvanilla05)^0.5)-SUM($K82:Q82),('PTRM input'!$K$143*(1+rvanilla05)^0.5)/A1stdlife)) -> 0 | S82: =IF(A1stdlife="n/a","n/a",IF(S$3>(A1stdlife+$E82),('PTRM input'!$K$143*(1+rvanilla05)^0.5)-SUM($K82:R82),('PTRM input'!$K$143*(1+rvanilla05)^0.5)/A1stdlife)) -> 0 | T82: =IF(A1stdlife="n/a","n/a",IF(T$3>(A1stdlife+$E82),('PTRM input'!$K$143*(1+rvanilla05)^0.5)-SUM($K82:S82),('PTRM input'!$K$143*(1+rvanilla05)^0.5)/A1stdlife)) -> 0 | U82: =IF(A1stdlife="n/a","n/a",IF(U$3>(A1stdlife+$E82),('PTRM input'!$K$143*(1+rvanilla05)^0.5)-SUM($K82:T82),('PTRM input'!$K$143*(1+rvanilla05)^0.5)/A1stdlife)) -> 0 | V82: =IF(A1stdlife="n/a","n/a",IF(V$3>(A1stdlife+$E82),('PTRM input'!$K$143*(1+rvanilla05)^0.5)-SUM($K82:U82),('PTRM input'!$K$143*(1+rvanilla05)^0.5)/A1stdlife)) -> 0 | W82: =IF(A1stdlife="n/a","n/a",IF(W$3>(A1stdlife+$E82),('PTRM input'!$K$143*(1+rvanilla05)^0.5)-SUM($K82:V82),('PTRM input'!$K$143*(1+rvanilla05)^0.5)/A1stdlife)) -> 0 | X82: =IF(A1stdlife="n/a","n/a",IF(X$3>(A1stdlife+$E82),('PTRM input'!$K$143*(1+rvanilla05)^0.5)-SUM($K82:W82),('PTRM input'!$K$143*(1+rvanilla05)^0.5)/A1stdlife)) -> 0 | Y82: =IF(A1stdlife="n/a","n/a",IF(Y$3>(A1stdlife+$E82),('PTRM input'!$K$143*(1+rvanilla05)^0.5)-SUM($K82:X82),('PTRM input'!$K$143*(1+rvanilla05)^0.5)/A1stdlife)) -> 0 | Z82: =IF(A1stdlife="n/a","n/a",IF(Z$3>(A1stdlife+$E82),('PTRM input'!$K$143*(1+rvanilla05)^0.5)-SUM($K82:Y82),('PTRM input'!$K$143*(1+rvanilla05)^0.5)/A1stdlife)) -> 0 | AA82: =IF(A1stdlife="n/a","n/a",IF(AA$3>(A1stdlife+$E82),('PTRM input'!$K$143*(1+rvanilla05)^0.5)-SUM($K82:Z82),('PTRM input'!$K$143*(1+rvanilla05)^0.5)/A1stdlife)) -> 0 | AB82: =IF(A1stdlife="n/a","n/a",IF(AB$3>(A1stdlife+$E82),('PTRM input'!$K$143*(1+rvanilla05)^0.5)-SUM($K82:AA82),('PTRM input'!$K$143*(1+rvanilla05)^0.5)/A1stdlife)) -> 0 | AC82: =IF(A1stdlife="n/a","n/a",IF(AC$3>(A1stdlife+$E82),('PTRM input'!$K$143*(1+rvanilla05)^0.5)-SUM($K82:AB82),('PTRM input'!$K$143*(1+rvanilla05)^0.5)/A1stdlife)) -> 0 | AD82: =IF(A1stdlife="n/a","n/a",IF(AD$3>(A1stdlife+$E82),('PTRM input'!$K$143*(1+rvanilla05)^0.5)-SUM($K82:AC82),('PTRM input'!$K$143*(1+rvanilla05)^0.5)/A1stdlife)) -> 0 | AE82: =IF(A1stdlife="n/a","n/a",IF(AE$3>(A1stdlife+$E82),('PTRM input'!$K$143*(1+rvanilla05)^0.5)-SUM($K82:AD82),('PTRM input'!$K$143*(1+rvanilla05)^0.5)/A1stdlife)) -> 0 | AF82: =IF(A1stdlife="n/a","n/a",IF(AF$3>(A1stdlife+$E82),('PTRM input'!$K$143*(1+rvanilla05)^0.5)-SUM($K82:AE82),('PTRM input'!$K$143*(1+rvanilla05)^0.5)/A1stdlife)) -> 0 | AG82: =IF(A1stdlife="n/a","n/a",IF(AG$3>(A1stdlife+$E82),('PTRM input'!$K$143*(1+rvanilla05)^0.5)-SUM($K82:AF82),('PTRM input'!$K$143*(1+rvanilla05)^0.5)/A1stdlife)) -> 0 | AH82: =IF(A1stdlife="n/a","n/a",IF(AH$3>(A1stdlife+$E82),('PTRM input'!$K$143*(1+rvanilla05)^0.5)-SUM($K82:AG82),('PTRM input'!$K$143*(1+rvanilla05)^0.5)/A1stdlife)) -> 0 | AI82: =IF(A1stdlife="n/a","n/a",IF(AI$3>(A1stdlife+$E82),('PTRM input'!$K$143*(1+rvanilla05)^0.5)-SUM($K82:AH82),('PTRM input'!$K$143*(1+rvanilla05)^0.5)/A1stdlife)) -> 0 | AJ82: =IF(A1stdlife="n/a","n/a",IF(AJ$3>(A1stdlife+$E82),('PTRM input'!$K$143*(1+rvanilla05)^0.5)-SUM($K82:AI82),('PTRM input'!$K$143*(1+rvanilla05)^0.5)/A1stdlife)) -> 0 | AK82: =IF(A1stdlife="n/a","n/a",IF(AK$3>(A1stdlife+$E82),('PTRM input'!$K$143*(1+rvanilla05)^0.5)-SUM($K82:AJ82),('PTRM input'!$K$143*(1+rvanilla05)^0.5)/A1stdlife)) -> 0 | AL82: =IF(A1stdlife="n/a","n/a",IF(AL$3>(A1stdlife+$E82),('PTRM input'!$K$143*(1+rvanilla05)^0.5)-SUM($K82:AK82),('PTRM input'!$K$143*(1+rvanilla05)^0.5)/A1stdlife)) -> 0 | AM82: =IF(A1stdlife="n/a","n/a",IF(AM$3>(A1stdlife+$E82),('PTRM input'!$K$143*(1+rvanilla05)^0.5)-SUM($K82:AL82),('PTRM input'!$K$143*(1+rvanilla05)^0.5)/A1stdlife)) -> 0 | AN82: =IF(A1stdlife="n/a","n/a",IF(AN$3>(A1stdlife+$E82),('PTRM input'!$K$143*(1+rvanilla05)^0.5)-SUM($K82:AM82),('PTRM input'!$K$143*(1+rvanilla05)^0.5)/A1stdlife)) -> 0 | AO82: =IF(A1stdlife="n/a","n/a",IF(AO$3>(A1stdlife+$E82),('PTRM input'!$K$143*(1+rvanilla05)^0.5)-SUM($K82:AN82),('PTRM input'!$K$143*(1+rvanilla05)^0.5)/A1stdlife)) -> 0 | AP82: =IF(A1stdlife="n/a","n/a",IF(AP$3>(A1stdlife+$E82),('PTRM input'!$K$143*(1+rvanilla05)^0.5)-SUM($K82:AO82),('PTRM input'!$K$143*(1+rvanilla05)^0.5)/A1stdlife)) -> 0 | AQ82: =IF(A1stdlife="n/a","n/a",IF(AQ$3>(A1stdlife+$E82),('PTRM input'!$K$143*(1+rvanilla05)^0.5)-SUM($K82:AP82),('PTRM input'!$K$143*(1+rvanilla05)^0.5)/A1stdlife)) -> 0 | AR82: =IF(A1stdlife="n/a","n/a",IF(AR$3>(A1stdlife+$E82),('PTRM input'!$K$143*(1+rvanilla05)^0.5)-SUM($K82:AQ82),('PTRM input'!$K$143*(1+rvanilla05)^0.5)/A1stdlife)) -> 0 | AS82: =IF(A1stdlife="n/a","n/a",IF(AS$3>(A1stdlife+$E82),('PTRM input'!$K$143*(1+rvanilla05)^0.5)-SUM($K82:AR82),('PTRM input'!$K$143*(1+rvanilla05)^0.5)/A1stdlife)) -> 0 | AT82: =IF(A1stdlife="n/a","n/a",IF(AT$3>(A1stdlife+$E82),('PTRM input'!$K$143*(1+rvanilla05)^0.5)-SUM($K82:AS82),('PTRM input'!$K$143*(1+rvanilla05)^0.5)/A1stdlife)) -> 0 | AU82: =IF(A1stdlife="n/a","n/a",IF(AU$3>(A1stdlife+$E82),('PTRM input'!$K$143*(1+rvanilla05)^0.5)-SUM($K82:AT82),('PTRM input'!$K$143*(1+rvanilla05)^0.5)/A1stdlife)) -> 0 | AV82: =IF(A1stdlife="n/a","n/a",IF(AV$3>(A1stdlife+$E82),('PTRM input'!$K$143*(1+rvanilla05)^0.5)-SUM($K82:AU82),('PTRM input'!$K$143*(1+rvanilla05)^0.5)/A1stdlife)) -> 0 | AW82: =IF(A1stdlife="n/a","n/a",IF(AW$3>(A1stdlife+$E82),('PTRM input'!$K$143*(1+rvanilla05)^0.5)-SUM($K82:AV82),('PTRM input'!$K$143*(1+rvanilla05)^0.5)/A1stdlife)) -> 0 | AX82: =IF(A1stdlife="n/a","n/a",IF(AX$3>(A1stdlife+$E82),('PTRM input'!$K$143*(1+rvanilla05)^0.5)-SUM($K82:AW82),('PTRM input'!$K$143*(1+rvanilla05)^0.5)/A1stdlife)) -> 0 | AY82: =IF(A1stdlife="n/a","n/a",IF(AY$3>(A1stdlife+$E82),('PTRM input'!$K$143*(1+rvanilla05)^0.5)-SUM($K82:AX82),('PTRM input'!$K$143*(1+rvanilla05)^0.5)/A1stdlife)) -> 0 | AZ82: =IF(A1stdlife="n/a","n/a",IF(AZ$3>(A1stdlife+$E82),('PTRM input'!$K$143*(1+rvanilla05)^0.5)-SUM($K82:AY82),('PTRM input'!$K$143*(1+rvanilla05)^0.5)/A1stdlife)) -> 0 | BA82: =IF(A1stdlife="n/a","n/a",IF(BA$3>(A1stdlife+$E82),('PTRM input'!$K$143*(1+rvanilla05)^0.5)-SUM($K82:AZ82),('PTRM input'!$K$143*(1+rvanilla05)^0.5)/A1stdlife)) -> 0 | BB82: =IF(A1stdlife="n/a","n/a",IF(BB$3>(A1stdlife+$E82),('PTRM input'!$K$143*(1+rvanilla05)^0.5)-SUM($K82:BA82),('PTRM input'!$K$143*(1+rvanilla05)^0.5)/A1stdlife)) -> 0 | BC82: =IF(A1stdlife="n/a","n/a",IF(BC$3>(A1stdlife+$E82),('PTRM input'!$K$143*(1+rvanilla05)^0.5)-SUM($K82:BB82),('PTRM input'!$K$143*(1+rvanilla05)^0.5)/A1stdlife)) -> 0 | BD82: =IF(A1stdlife="n/a","n/a",IF(BD$3>(A1stdlife+$E82),('PTRM input'!$K$143*(1+rvanilla05)^0.5)-SUM($K82:BC82),('PTRM input'!$K$143*(1+rvanilla05)^0.5)/A1stdlife)) -> 0 | BE82: =IF(A1stdlife="n/a","n/a",IF(BE$3>(A1stdlife+$E82),('PTRM input'!$K$143*(1+rvanilla05)^0.5)-SUM($K82:BD82),('PTRM input'!$K$143*(1+rvanilla05)^0.5)/A1stdlife)) -> 0 | BF82: =IF(A1stdlife="n/a","n/a",IF(BF$3>(A1stdlife+$E82),('PTRM input'!$K$143*(1+rvanilla05)^0.5)-SUM($K82:BE82),('PTRM input'!$K$143*(1+rvanilla05)^0.5)/A1stdlife)) -> 0 | BG82: =IF(A1stdlife="n/a","n/a",IF(BG$3>(A1stdlife+$E82),('PTRM input'!$K$143*(1+rvanilla05)^0.5)-SUM($K82:BF82),('PTRM input'!$K$143*(1+rvanilla05)^0.5)/A1stdlife)) -> 0 | BH82: =IF(A1stdlife="n/a","n/a",IF(BH$3>(A1stdlife+$E82),('PTRM input'!$K$143*(1+rvanilla05)^0.5)-SUM($K82:BG82),('PTRM input'!$K$143*(1+rvanilla05)^0.5)/A1stdlife)) -> 0 | BI82: =IF(A1stdlife="n/a","n/a",IF(BI$3>(A1stdlife+$E82),('PTRM input'!$K$143*(1+rvanilla05)^0.5)-SUM($K82:BH82),('PTRM input'!$K$143*(1+rvanilla05)^0.5)/A1stdlife)) -> 0
E83: 6 | M83: =IF(A1stdlife="n/a","n/a",IF(M$3>(A1stdlife+$E83),('PTRM input'!$L$143*(1+rvanilla06)^0.5)-SUM($L83:L83),('PTRM input'!$L$143*(1+rvanilla06)^0.5)/A1stdlife)) -> 0 | N83: =IF(A1stdlife="n/a","n/a",IF(N$3>(A1stdlife+$E83),('PTRM input'!$L$143*(1+rvanilla06)^0.5)-SUM($L83:M83),('PTRM input'!$L$143*(1+rvanilla06)^0.5)/A1stdlife)) -> 0 | O83: =IF(A1stdlife="n/a","n/a",IF(O$3>(A1stdlife+$E83),('PTRM input'!$L$143*(1+rvanilla06)^0.5)-SUM($L83:N83),('PTRM input'!$L$143*(1+rvanilla06)^0.5)/A1stdlife)) -> 0 | P83: =IF(A1stdlife="n/a","n/a",IF(P$3>(A1stdlife+$E83),('PTRM input'!$L$143*(1+rvanilla06)^0.5)-SUM($L83:O83),('PTRM input'!$L$143*(1+rvanilla06)^0.5)/A1stdlife)) -> 0 | Q83: =IF(A1stdlife="n/a","n/a",IF(Q$3>(A1stdlife+$E83),('PTRM input'!$L$143*(1+rvanilla06)^0.5)-SUM($L83:P83),('PTRM input'!$L$143*(1+rvanilla06)^0.5)/A1stdlife)) -> 0 | R83: =IF(A1stdlife="n/a","n/a",IF(R$3>(A1stdlife+$E83),('PTRM input'!$L$143*(1+rvanilla06)^0.5)-SUM($L83:Q83),('PTRM input'!$L$143*(1+rvanilla06)^0.5)/A1stdlife)) -> 0 | S83: =IF(A1stdlife="n/a","n/a",IF(S$3>(A1stdlife+$E83),('PTRM input'!$L$143*(1+rvanilla06)^0.5)-SUM($L83:R83),('PTRM input'!$L$143*(1+rvanilla06)^0.5)/A1stdlife)) -> 0 | T83: =IF(A1stdlife="n/a","n/a",IF(T$3>(A1stdlife+$E83),('PTRM input'!$L$143*(1+rvanilla06)^0.5)-SUM($L83:S83),('PTRM input'!$L$143*(1+rvanilla06)^0.5)/A1stdlife)) -> 0 | U83: =IF(A1stdlife="n/a","n/a",IF(U$3>(A1stdlife+$E83),('PTRM input'!$L$143*(1+rvanilla06)^0.5)-SUM($L83:T83),('PTRM input'!$L$143*(1+rvanilla06)^0.5)/A1stdlife)) -> 0 | V83: =IF(A1stdlife="n/a","n/a",IF(V$3>(A1stdlife+$E83),('PTRM input'!$L$143*(1+rvanilla06)^0.5)-SUM($L83:U83),('PTRM input'!$L$143*(1+rvanilla06)^0.5)/A1stdlife)) -> 0 | W83: =IF(A1stdlife="n/a","n/a",IF(W$3>(A1stdlife+$E83),('PTRM input'!$L$143*(1+rvanilla06)^0.5)-SUM($L83:V83),('PTRM input'!$L$143*(1+rvanilla06)^0.5)/A1stdlife)) -> 0 | X83: =IF(A1stdlife="n/a","n/a",IF(X$3>(A1stdlife+$E83),('PTRM input'!$L$143*(1+rvanilla06)^0.5)-SUM($L83:W83),('PTRM input'!$L$143*(1+rvanilla06)^0.5)/A1stdlife)) -> 0 | Y83: =IF(A1stdlife="n/a","n/a",IF(Y$3>(A1stdlife+$E83),('PTRM input'!$L$143*(1+rvanilla06)^0.5)-SUM($L83:X83),('PTRM input'!$L$143*(1+rvanilla06)^0.5)/A1stdlife)) -> 0 | Z83: =IF(A1stdlife="n/a","n/a",IF(Z$3>(A1stdlife+$E83),('PTRM input'!$L$143*(1+rvanilla06)^0.5)-SUM($L83:Y83),('PTRM input'!$L$143*(1+rvanilla06)^0.5)/A1stdlife)) -> 0 | AA83: =IF(A1stdlife="n/a","n/a",IF(AA$3>(A1stdlife+$E83),('PTRM input'!$L$143*(1+rvanilla06)^0.5)-SUM($L83:Z83),('PTRM input'!$L$143*(1+rvanilla06)^0.5)/A1stdlife)) -> 0 | AB83: =IF(A1stdlife="n/a","n/a",IF(AB$3>(A1stdlife+$E83),('PTRM input'!$L$143*(1+rvanilla06)^0.5)-SUM($L83:AA83),('PTRM input'!$L$143*(1+rvanilla06)^0.5)/A1stdlife)) -> 0 | AC83: =IF(A1stdlife="n/a","n/a",IF(AC$3>(A1stdlife+$E83),('PTRM input'!$L$143*(1+rvanilla06)^0.5)-SUM($L83:AB83),('PTRM input'!$L$143*(1+rvanilla06)^0.5)/A1stdlife)) -> 0 | AD83: =IF(A1stdlife="n/a","n/a",IF(AD$3>(A1stdlife+$E83),('PTRM input'!$L$143*(1+rvanilla06)^0.5)-SUM($L83:AC83),('PTRM input'!$L$143*(1+rvanilla06)^0.5)/A1stdlife)) -> 0 | AE83: =IF(A1stdlife="n/a","n/a",IF(AE$3>(A1stdlife+$E83),('PTRM input'!$L$143*(1+rvanilla06)^0.5)-SUM($L83:AD83),('PTRM input'!$L$143*(1+rvanilla06)^0.5)/A1stdlife)) -> 0 | AF83: =IF(A1stdlife="n/a","n/a",IF(AF$3>(A1stdlife+$E83),('PTRM input'!$L$143*(1+rvanilla06)^0.5)-SUM($L83:AE83),('PTRM input'!$L$143*(1+rvanilla06)^0.5)/A1stdlife)) -> 0 | AG83: =IF(A1stdlife="n/a","n/a",IF(AG$3>(A1stdlife+$E83),('PTRM input'!$L$143*(1+rvanilla06)^0.5)-SUM($L83:AF83),('PTRM input'!$L$143*(1+rvanilla06)^0.5)/A1stdlife)) -> 0 | AH83: =IF(A1stdlife="n/a","n/a",IF(AH$3>(A1stdlife+$E83),('PTRM input'!$L$143*(1+rvanilla06)^0.5)-SUM($L83:AG83),('PTRM input'!$L$143*(1+rvanilla06)^0.5)/A1stdlife)) -> 0 | AI83: =IF(A1stdlife="n/a","n/a",IF(AI$3>(A1stdlife+$E83),('PTRM input'!$L$143*(1+rvanilla06)^0.5)-SUM($L83:AH83),('PTRM input'!$L$143*(1+rvanilla06)^0.5)/A1stdlife)) -> 0 | AJ83: =IF(A1stdlife="n/a","n/a",IF(AJ$3>(A1stdlife+$E83),('PTRM input'!$L$143*(1+rvanilla06)^0.5)-SUM($L83:AI83),('PTRM input'!$L$143*(1+rvanilla06)^0.5)/A1stdlife)) -> 0 | AK83: =IF(A1stdlife="n/a","n/a",IF(AK$3>(A1stdlife+$E83),('PTRM input'!$L$143*(1+rvanilla06)^0.5)-SUM($L83:AJ83),('PTRM input'!$L$143*(1+rvanilla06)^0.5)/A1stdlife)) -> 0 | AL83: =IF(A1stdlife="n/a","n/a",IF(AL$3>(A1stdlife+$E83),('PTRM input'!$L$143*(1+rvanilla06)^0.5)-SUM($L83:AK83),('PTRM input'!$L$143*(1+rvanilla06)^0.5)/A1stdlife)) -> 0 | AM83: =IF(A1stdlife="n/a","n/a",IF(AM$3>(A1stdlife+$E83),('PTRM input'!$L$143*(1+rvanilla06)^0.5)-SUM($L83:AL83),('PTRM input'!$L$143*(1+rvanilla06)^0.5)/A1stdlife)) -> 0 | AN83: =IF(A1stdlife="n/a","n/a",IF(AN$3>(A1stdlife+$E83),('PTRM input'!$L$143*(1+rvanilla06)^0.5)-SUM($L83:AM83),('PTRM input'!$L$143*(1+rvanilla06)^0.5)/A1stdlife)) -> 0 | AO83: =IF(A1stdlife="n/a","n/a",IF(AO$3>(A1stdlife+$E83),('PTRM input'!$L$143*(1+rvanilla06)^0.5)-SUM($L83:AN83),('PTRM input'!$L$143*(1+rvanilla06)^0.5)/A1stdlife)) -> 0 | AP83: =IF(A1stdlife="n/a","n/a",IF(AP$3>(A1stdlife+$E83),('PTRM input'!$L$143*(1+rvanilla06)^0.5)-SUM($L83:AO83),('PTRM input'!$L$143*(1+rvanilla06)^0.5)/A1stdlife)) -> 0 | AQ83: =IF(A1stdlife="n/a","n/a",IF(AQ$3>(A1stdlife+$E83),('PTRM input'!$L$143*(1+rvanilla06)^0.5)-SUM($L83:AP83),('PTRM input'!$L$143*(1+rvanilla06)^0.5)/A1stdlife)) -> 0 | AR83: =IF(A1stdlife="n/a","n/a",IF(AR$3>(A1stdlife+$E83),('PTRM input'!$L$143*(1+rvanilla06)^0.5)-SUM($L83:AQ83),('PTRM input'!$L$143*(1+rvanilla06)^0.5)/A1stdlife)) -> 0 | AS83: =IF(A1stdlife="n/a","n/a",IF(AS$3>(A1stdlife+$E83),('PTRM input'!$L$143*(1+rvanilla06)^0.5)-SUM($L83:AR83),('PTRM input'!$L$143*(1+rvanilla06)^0.5)/A1stdlife)) -> 0 | AT83: =IF(A1stdlife="n/a","n/a",IF(AT$3>(A1stdlife+$E83),('PTRM input'!$L$143*(1+rvanilla06)^0.5)-SUM($L83:AS83),('PTRM input'!$L$143*(1+rvanilla06)^0.5)/A1stdlife)) -> 0 | AU83: =IF(A1stdlife="n/a","n/a",IF(AU$3>(A1stdlife+$E83),('PTRM input'!$L$143*(1+rvanilla06)^0.5)-SUM($L83:AT83),('PTRM input'!$L$143*(1+rvanilla06)^0.5)/A1stdlife)) -> 0 | AV83: =IF(A1stdlife="n/a","n/a",IF(AV$3>(A1stdlife+$E83),('PTRM input'!$L$143*(1+rvanilla06)^0.5)-SUM($L83:AU83),('PTRM input'!$L$143*(1+rvanilla06)^0.5)/A1stdlife)) -> 0 | AW83: =IF(A1stdlife="n/a","n/a",IF(AW$3>(A1stdlife+$E83),('PTRM input'!$L$143*(1+rvanilla06)^0.5)-SUM($L83:AV83),('PTRM input'!$L$143*(1+rvanilla06)^0.5)/A1stdlife)) -> 0 | AX83: =IF(A1stdlife="n/a","n/a",IF(AX$3>(A1stdlife+$E83),('PTRM input'!$L$143*(1+rvanilla06)^0.5)-SUM($L83:AW83),('PTRM input'!$L$143*(1+rvanilla06)^0.5)/A1stdlife)) -> 0 | AY83: =IF(A1stdlife="n/a","n/a",IF(AY$3>(A1stdlife+$E83),('PTRM input'!$L$143*(1+rvanilla06)^0.5)-SUM($L83:AX83),('PTRM input'!$L$143*(1+rvanilla06)^0.5)/A1stdlife)) -> 0 | AZ83: =IF(A1stdlife="n/a","n/a",IF(AZ$3>(A1stdlife+$E83),('PTRM input'!$L$143*(1+rvanilla06)^0.5)-SUM($L83:AY83),('PTRM input'!$L$143*(1+rvanilla06)^0.5)/A1stdlife)) -> 0 | BA83: =IF(A1stdlife="n/a","n/a",IF(BA$3>(A1stdlife+$E83),('PTRM input'!$L$143*(1+rvanilla06)^0.5)-SUM($L83:AZ83),('PTRM input'!$L$143*(1+rvanilla06)^0.5)/A1stdlife)) -> 0 | BB83: =IF(A1stdlife="n/a","n/a",IF(BB$3>(A1stdlife+$E83),('PTRM input'!$L$143*(1+rvanilla06)^0.5)-SUM($L83:BA83),('PTRM input'!$L$143*(1+rvanilla06)^0.5)/A1stdlife)) -> 0 | BC83: =IF(A1stdlife="n/a","n/a",IF(BC$3>(A1stdlife+$E83),('PTRM input'!$L$143*(1+rvanilla06)^0.5)-SUM($L83:BB83),('PTRM input'!$L$143*(1+rvanilla06)^0.5)/A1stdlife)) -> 0 | BD83: =IF(A1stdlife="n/a","n/a",IF(BD$3>(A1stdlife+$E83),('PTRM input'!$L$143*(1+rvanilla06)^0.5)-SUM($L83:BC83),('PTRM input'!$L$143*(1+rvanilla06)^0.5)/A1stdlife)) -> 0 | BE83: =IF(A1stdlife="n/a","n/a",IF(BE$3>(A1stdlife+$E83),('PTRM input'!$L$143*(1+rvanilla06)^0.5)-SUM($L83:BD83),('PTRM input'!$L$143*(1+rvanilla06)^0.5)/A1stdlife)) -> 0 | BF83: =IF(A1stdlife="n/a","n/a",IF(BF$3>(A1stdlife+$E83),('PTRM input'!$L$143*(1+rvanilla06)^0.5)-SUM($L83:BE83),('PTRM input'!$L$143*(1+rvanilla06)^0.5)/A1stdlife)) -> 0 | BG83: =IF(A1stdlife="n/a","n/a",IF(BG$3>(A1stdlife+$E83),('PTRM input'!$L$143*(1+rvanilla06)^0.5)-SUM($L83:BF83),('PTRM input'!$L$143*(1+rvanilla06)^0.5)/A1stdlife)) -> 0 | BH83: =IF(A1stdlife="n/a","n/a",IF(BH$3>(A1stdlife+$E83),('PTRM input'!$L$143*(1+rvanilla06)^0.5)-SUM($L83:BG83),('PTRM input'!$L$143*(1+rvanilla06)^0.5)/A1stdlife)) -> 0 | BI83: =IF(A1stdlife="n/a","n/a",IF(BI$3>(A1stdlife+$E83),('PTRM input'!$L$143*(1+rvanilla06)^0.5)-SUM($L83:BH83),('PTRM input'!$L$143*(1+rvanilla06)^0.5)/A1stdlife)) -> 0
E84: 7 | N84: =IF(A1stdlife="n/a","n/a",IF(N$3>(A1stdlife+$E84),('PTRM input'!$M$143*(1+rvanilla07)^0.5)-SUM($M84:M84),('PTRM input'!$M$143*(1+rvanilla07)^0.5)/A1stdlife)) -> 0 | O84: =IF(A1stdlife="n/a","n/a",IF(O$3>(A1stdlife+$E84),('PTRM input'!$M$143*(1+rvanilla07)^0.5)-SUM($M84:N84),('PTRM input'!$M$143*(1+rvanilla07)^0.5)/A1stdlife)) -> 0 | P84: =IF(A1stdlife="n/a","n/a",IF(P$3>(A1stdlife+$E84),('PTRM input'!$M$143*(1+rvanilla07)^0.5)-SUM($M84:O84),('PTRM input'!$M$143*(1+rvanilla07)^0.5)/A1stdlife)) -> 0 | Q84: =IF(A1stdlife="n/a","n/a",IF(Q$3>(A1stdlife+$E84),('PTRM input'!$M$143*(1+rvanilla07)^0.5)-SUM($M84:P84),('PTRM input'!$M$143*(1+rvanilla07)^0.5)/A1stdlife)) -> 0 | R84: =IF(A1stdlife="n/a","n/a",IF(R$3>(A1stdlife+$E84),('PTRM input'!$M$143*(1+rvanilla07)^0.5)-SUM($M84:Q84),('PTRM input'!$M$143*(1+rvanilla07)^0.5)/A1stdlife)) -> 0 | S84: =IF(A1stdlife="n/a","n/a",IF(S$3>(A1stdlife+$E84),('PTRM input'!$M$143*(1+rvanilla07)^0.5)-SUM($M84:R84),('PTRM input'!$M$143*(1+rvanilla07)^0.5)/A1stdlife)) -> 0 | T84: =IF(A1stdlife="n/a","n/a",IF(T$3>(A1stdlife+$E84),('PTRM input'!$M$143*(1+rvanilla07)^0.5)-SUM($M84:S84),('PTRM input'!$M$143*(1+rvanilla07)^0.5)/A1stdlife)) -> 0 | U84: =IF(A1stdlife="n/a","n/a",IF(U$3>(A1stdlife+$E84),('PTRM input'!$M$143*(1+rvanilla07)^0.5)-SUM($M84:T84),('PTRM input'!$M$143*(1+rvanilla07)^0.5)/A1stdlife)) -> 0 | V84: =IF(A1stdlife="n/a","n/a",IF(V$3>(A1stdlife+$E84),('PTRM input'!$M$143*(1+rvanilla07)^0.5)-SUM($M84:U84),('PTRM input'!$M$143*(1+rvanilla07)^0.5)/A1stdlife)) -> 0 | W84: =IF(A1stdlife="n/a","n/a",IF(W$3>(A1stdlife+$E84),('PTRM input'!$M$143*(1+rvanilla07)^0.5)-SUM($M84:V84),('PTRM input'!$M$143*(1+rvanilla07)^0.5)/A1stdlife)) -> 0 | X84: =IF(A1stdlife="n/a","n/a",IF(X$3>(A1stdlife+$E84),('PTRM input'!$M$143*(1+rvanilla07)^0.5)-SUM($M84:W84),('PTRM input'!$M$143*(1+rvanilla07)^0.5)/A1stdlife)) -> 0 | Y84: =IF(A1stdlife="n/a","n/a",IF(Y$3>(A1stdlife+$E84),('PTRM input'!$M$143*(1+rvanilla07)^0.5)-SUM($M84:X84),('PTRM input'!$M$143*(1+rvanilla07)^0.5)/A1stdlife)) -> 0 | Z84: =IF(A1stdlife="n/a","n/a",IF(Z$3>(A1stdlife+$E84),('PTRM input'!$M$143*(1+rvanilla07)^0.5)-SUM($M84:Y84),('PTRM input'!$M$143*(1+rvanilla07)^0.5)/A1stdlife)) -> 0 | AA84: =IF(A1stdlife="n/a","n/a",IF(AA$3>(A1stdlife+$E84),('PTRM input'!$M$143*(1+rvanilla07)^0.5)-SUM($M84:Z84),('PTRM input'!$M$143*(1+rvanilla07)^0.5)/A1stdlife)) -> 0 | AB84: =IF(A1stdlife="n/a","n/a",IF(AB$3>(A1stdlife+$E84),('PTRM input'!$M$143*(1+rvanilla07)^0.5)-SUM($M84:AA84),('PTRM input'!$M$143*(1+rvanilla07)^0.5)/A1stdlife)) -> 0 | AC84: =IF(A1stdlife="n/a","n/a",IF(AC$3>(A1stdlife+$E84),('PTRM input'!$M$143*(1+rvanilla07)^0.5)-SUM($M84:AB84),('PTRM input'!$M$143*(1+rvanilla07)^0.5)/A1stdlife)) -> 0 | AD84: =IF(A1stdlife="n/a","n/a",IF(AD$3>(A1stdlife+$E84),('PTRM input'!$M$143*(1+rvanilla07)^0.5)-SUM($M84:AC84),('PTRM input'!$M$143*(1+rvanilla07)^0.5)/A1stdlife)) -> 0 | AE84: =IF(A1stdlife="n/a","n/a",IF(AE$3>(A1stdlife+$E84),('PTRM input'!$M$143*(1+rvanilla07)^0.5)-SUM($M84:AD84),('PTRM input'!$M$143*(1+rvanilla07)^0.5)/A1stdlife)) -> 0 | AF84: =IF(A1stdlife="n/a","n/a",IF(AF$3>(A1stdlife+$E84),('PTRM input'!$M$143*(1+rvanilla07)^0.5)-SUM($M84:AE84),('PTRM input'!$M$143*(1+rvanilla07)^0.5)/A1stdlife)) -> 0 | AG84: =IF(A1stdlife="n/a","n/a",IF(AG$3>(A1stdlife+$E84),('PTRM input'!$M$143*(1+rvanilla07)^0.5)-SUM($M84:AF84),('PTRM input'!$M$143*(1+rvanilla07)^0.5)/A1stdlife)) -> 0 | AH84: =IF(A1stdlife="n/a","n/a",IF(AH$3>(A1stdlife+$E84),('PTRM input'!$M$143*(1+rvanilla07)^0.5)-SUM($M84:AG84),('PTRM input'!$M$143*(1+rvanilla07)^0.5)/A1stdlife)) -> 0 | AI84: =IF(A1stdlife="n/a","n/a",IF(AI$3>(A1stdlife+$E84),('PTRM input'!$M$143*(1+rvanilla07)^0.5)-SUM($M84:AH84),('PTRM input'!$M$143*(1+rvanilla07)^0.5)/A1stdlife)) -> 0 | AJ84: =IF(A1stdlife="n/a","n/a",IF(AJ$3>(A1stdlife+$E84),('PTRM input'!$M$143*(1+rvanilla07)^0.5)-SUM($M84:AI84),('PTRM input'!$M$143*(1+rvanilla07)^0.5)/A1stdlife)) -> 0 | AK84: =IF(A1stdlife="n/a","n/a",IF(AK$3>(A1stdlife+$E84),('PTRM input'!$M$143*(1+rvanilla07)^0.5)-SUM($M84:AJ84),('PTRM input'!$M$143*(1+rvanilla07)^0.5)/A1stdlife)) -> 0 | AL84: =IF(A1stdlife="n/a","n/a",IF(AL$3>(A1stdlife+$E84),('PTRM input'!$M$143*(1+rvanilla07)^0.5)-SUM($M84:AK84),('PTRM input'!$M$143*(1+rvanilla07)^0.5)/A1stdlife)) -> 0 | AM84: =IF(A1stdlife="n/a","n/a",IF(AM$3>(A1stdlife+$E84),('PTRM input'!$M$143*(1+rvanilla07)^0.5)-SUM($M84:AL84),('PTRM input'!$M$143*(1+rvanilla07)^0.5)/A1stdlife)) -> 0 | AN84: =IF(A1stdlife="n/a","n/a",IF(AN$3>(A1stdlife+$E84),('PTRM input'!$M$143*(1+rvanilla07)^0.5)-SUM($M84:AM84),('PTRM input'!$M$143*(1+rvanilla07)^0.5)/A1stdlife)) -> 0 | AO84: =IF(A1stdlife="n/a","n/a",IF(AO$3>(A1stdlife+$E84),('PTRM input'!$M$143*(1+rvanilla07)^0.5)-SUM($M84:AN84),('PTRM input'!$M$143*(1+rvanilla07)^0.5)/A1stdlife)) -> 0 | AP84: =IF(A1stdlife="n/a","n/a",IF(AP$3>(A1stdlife+$E84),('PTRM input'!$M$143*(1+rvanilla07)^0.5)-SUM($M84:AO84),('PTRM input'!$M$143*(1+rvanilla07)^0.5)/A1stdlife)) -> 0 | AQ84: =IF(A1stdlife="n/a","n/a",IF(AQ$3>(A1stdlife+$E84),('PTRM input'!$M$143*(1+rvanilla07)^0.5)-SUM($M84:AP84),('PTRM input'!$M$143*(1+rvanilla07)^0.5)/A1stdlife)) -> 0 | AR84: =IF(A1stdlife="n/a","n/a",IF(AR$3>(A1stdlife+$E84),('PTRM input'!$M$143*(1+rvanilla07)^0.5)-SUM($M84:AQ84),('PTRM input'!$M$143*(1+rvanilla07)^0.5)/A1stdlife)) -> 0 | AS84: =IF(A1stdlife="n/a","n/a",IF(AS$3>(A1stdlife+$E84),('PTRM input'!$M$143*(1+rvanilla07)^0.5)-SUM($M84:AR84),('PTRM input'!$M$143*(1+rvanilla07)^0.5)/A1stdlife)) -> 0 | AT84: =IF(A1stdlife="n/a","n/a",IF(AT$3>(A1stdlife+$E84),('PTRM input'!$M$143*(1+rvanilla07)^0.5)-SUM($M84:AS84),('PTRM input'!$M$143*(1+rvanilla07)^0.5)/A1stdlife)) -> 0 | AU84: =IF(A1stdlife="n/a","n/a",IF(AU$3>(A1stdlife+$E84),('PTRM input'!$M$143*(1+rvanilla07)^0.5)-SUM($M84:AT84),('PTRM input'!$M$143*(1+rvanilla07)^0.5)/A1stdlife)) -> 0 | AV84: =IF(A1stdlife="n/a","n/a",IF(AV$3>(A1stdlife+$E84),('PTRM input'!$M$143*(1+rvanilla07)^0.5)-SUM($M84:AU84),('PTRM input'!$M$143*(1+rvanilla07)^0.5)/A1stdlife)) -> 0 | AW84: =IF(A1stdlife="n/a","n/a",IF(AW$3>(A1stdlife+$E84),('PTRM input'!$M$143*(1+rvanilla07)^0.5)-SUM($M84:AV84),('PTRM input'!$M$143*(1+rvanilla07)^0.5)/A1stdlife)) -> 0 | AX84: =IF(A1stdlife="n/a","n/a",IF(AX$3>(A1stdlife+$E84),('PTRM input'!$M$143*(1+rvanilla07)^0.5)-SUM($M84:AW84),('PTRM input'!$M$143*(1+rvanilla07)^0.5)/A1stdlife)) -> 0 | AY84: =IF(A1stdlife="n/a","n/a",IF(AY$3>(A1stdlife+$E84),('PTRM input'!$M$143*(1+rvanilla07)^0.5)-SUM($M84:AX84),('PTRM input'!$M$143*(1+rvanilla07)^0.5)/A1stdlife)) -> 0 | AZ84: =IF(A1stdlife="n/a","n/a",IF(AZ$3>(A1stdlife+$E84),('PTRM input'!$M$143*(1+rvanilla07)^0.5)-SUM($M84:AY84),('PTRM input'!$M$143*(1+rvanilla07)^0.5)/A1stdlife)) -> 0 | BA84: =IF(A1stdlife="n/a","n/a",IF(BA$3>(A1stdlife+$E84),('PTRM input'!$M$143*(1+rvanilla07)^0.5)-SUM($M84:AZ84),('PTRM input'!$M$143*(1+rvanilla07)^0.5)/A1stdlife)) -> 0 | BB84: =IF(A1stdlife="n/a","n/a",IF(BB$3>(A1stdlife+$E84),('PTRM input'!$M$143*(1+rvanilla07)^0.5)-SUM($M84:BA84),('PTRM input'!$M$143*(1+rvanilla07)^0.5)/A1stdlife)) -> 0 | BC84: =IF(A1stdlife="n/a","n/a",IF(BC$3>(A1stdlife+$E84),('PTRM input'!$M$143*(1+rvanilla07)^0.5)-SUM($M84:BB84),('PTRM input'!$M$143*(1+rvanilla07)^0.5)/A1stdlife)) -> 0 | BD84: =IF(A1stdlife="n/a","n/a",IF(BD$3>(A1stdlife+$E84),('PTRM input'!$M$143*(1+rvanilla07)^0.5)-SUM($M84:BC84),('PTRM input'!$M$143*(1+rvanilla07)^0.5)/A1stdlife)) -> 0 | BE84: =IF(A1stdlife="n/a","n/a",IF(BE$3>(A1stdlife+$E84),('PTRM input'!$M$143*(1+rvanilla07)^0.5)-SUM($M84:BD84),('PTRM input'!$M$143*(1+rvanilla07)^0.5)/A1stdlife)) -> 0 | BF84: =IF(A1stdlife="n/a","n/a",IF(BF$3>(A1stdlife+$E84),('PTRM input'!$M$143*(1+rvanilla07)^0.5)-SUM($M84:BE84),('PTRM input'!$M$143*(1+rvanilla07)^0.5)/A1stdlife)) -> 0 | BG84: =IF(A1stdlife="n/a","n/a",IF(BG$3>(A1stdlife+$E84),('PTRM input'!$M$143*(1+rvanilla07)^0.5)-SUM($M84:BF84),('PTRM input'!$M$143*(1+rvanilla07)^0.5)/A1stdlife)) -> 0 | BH84: =IF(A1stdlife="n/a","n/a",IF(BH$3>(A1stdlife+$E84),('PTRM input'!$M$143*(1+rvanilla07)^0.5)-SUM($M84:BG84),('PTRM input'!$M$143*(1+rvanilla07)^0.5)/A1stdlife)) -> 0 | BI84: =IF(A1stdlife="n/a","n/a",IF(BI$3>(A1stdlife+$E84),('PTRM input'!$M$143*(1+rvanilla07)^0.5)-SUM($M84:BH84),('PTRM input'!$M$143*(1+rvanilla07)^0.5)/A1stdlife)) -> 0
E85: 8 | O85: =IF(A1stdlife="n/a","n/a",IF(O$3>(A1stdlife+$E85),('PTRM input'!$N$143*(1+rvanilla08)^0.5)-SUM($N85:N85),('PTRM input'!$N$143*(1+rvanilla08)^0.5)/A1stdlife)) -> 0 | P85: =IF(A1stdlife="n/a","n/a",IF(P$3>(A1stdlife+$E85),('PTRM input'!$N$143*(1+rvanilla08)^0.5)-SUM($N85:O85),('PTRM input'!$N$143*(1+rvanilla08)^0.5)/A1stdlife)) -> 0 | Q85: =IF(A1stdlife="n/a","n/a",IF(Q$3>(A1stdlife+$E85),('PTRM input'!$N$143*(1+rvanilla08)^0.5)-SUM($N85:P85),('PTRM input'!$N$143*(1+rvanilla08)^0.5)/A1stdlife)) -> 0 | R85: =IF(A1stdlife="n/a","n/a",IF(R$3>(A1stdlife+$E85),('PTRM input'!$N$143*(1+rvanilla08)^0.5)-SUM($N85:Q85),('PTRM input'!$N$143*(1+rvanilla08)^0.5)/A1stdlife)) -> 0 | S85: =IF(A1stdlife="n/a","n/a",IF(S$3>(A1stdlife+$E85),('PTRM input'!$N$143*(1+rvanilla08)^0.5)-SUM($N85:R85),('PTRM input'!$N$143*(1+rvanilla08)^0.5)/A1stdlife)) -> 0 | T85: =IF(A1stdlife="n/a","n/a",IF(T$3>(A1stdlife+$E85),('PTRM input'!$N$143*(1+rvanilla08)^0.5)-SUM($N85:S85),('PTRM input'!$N$143*(1+rvanilla08)^0.5)/A1stdlife)) -> 0 | U85: =IF(A1stdlife="n/a","n/a",IF(U$3>(A1stdlife+$E85),('PTRM input'!$N$143*(1+rvanilla08)^0.5)-SUM($N85:T85),('PTRM input'!$N$143*(1+rvanilla08)^0.5)/A1stdlife)) -> 0 | V85: =IF(A1stdlife="n/a","n/a",IF(V$3>(A1stdlife+$E85),('PTRM input'!$N$143*(1+rvanilla08)^0.5)-SUM($N85:U85),('PTRM input'!$N$143*(1+rvanilla08)^0.5)/A1stdlife)) -> 0 | W85: =IF(A1stdlife="n/a","n/a",IF(W$3>(A1stdlife+$E85),('PTRM input'!$N$143*(1+rvanilla08)^0.5)-SUM($N85:V85),('PTRM input'!$N$143*(1+rvanilla08)^0.5)/A1stdlife)) -> 0 | X85: =IF(A1stdlife="n/a","n/a",IF(X$3>(A1stdlife+$E85),('PTRM input'!$N$143*(1+rvanilla08)^0.5)-SUM($N85:W85),('PTRM input'!$N$143*(1+rvanilla08)^0.5)/A1stdlife)) -> 0 | Y85: =IF(A1stdlife="n/a","n/a",IF(Y$3>(A1stdlife+$E85),('PTRM input'!$N$143*(1+rvanilla08)^0.5)-SUM($N85:X85),('PTRM input'!$N$143*(1+rvanilla08)^0.5)/A1stdlife)) -> 0 | Z85: =IF(A1stdlife="n/a","n/a",IF(Z$3>(A1stdlife+$E85),('PTRM input'!$N$143*(1+rvanilla08)^0.5)-SUM($N85:Y85),('PTRM input'!$N$143*(1+rvanilla08)^0.5)/A1stdlife)) -> 0 | AA85: =IF(A1stdlife="n/a","n/a",IF(AA$3>(A1stdlife+$E85),('PTRM input'!$N$143*(1+rvanilla08)^0.5)-SUM($N85:Z85),('PTRM input'!$N$143*(1+rvanilla08)^0.5)/A1stdlife)) -> 0 | AB85: =IF(A1stdlife="n/a","n/a",IF(AB$3>(A1stdlife+$E85),('PTRM input'!$N$143*(1+rvanilla08)^0.5)-SUM($N85:AA85),('PTRM input'!$N$143*(1+rvanilla08)^0.5)/A1stdlife)) -> 0 | AC85: =IF(A1stdlife="n/a","n/a",IF(AC$3>(A1stdlife+$E85),('PTRM input'!$N$143*(1+rvanilla08)^0.5)-SUM($N85:AB85),('PTRM input'!$N$143*(1+rvanilla08)^0.5)/A1stdlife)) -> 0 | AD85: =IF(A1stdlife="n/a","n/a",IF(AD$3>(A1stdlife+$E85),('PTRM input'!$N$143*(1+rvanilla08)^0.5)-SUM($N85:AC85),('PTRM input'!$N$143*(1+rvanilla08)^0.5)/A1stdlife)) -> 0 | AE85: =IF(A1stdlife="n/a","n/a",IF(AE$3>(A1stdlife+$E85),('PTRM input'!$N$143*(1+rvanilla08)^0.5)-SUM($N85:AD85),('PTRM input'!$N$143*(1+rvanilla08)^0.5)/A1stdlife)) -> 0 | AF85: =IF(A1stdlife="n/a","n/a",IF(AF$3>(A1stdlife+$E85),('PTRM input'!$N$143*(1+rvanilla08)^0.5)-SUM($N85:AE85),('PTRM input'!$N$143*(1+rvanilla08)^0.5)/A1stdlife)) -> 0 | AG85: =IF(A1stdlife="n/a","n/a",IF(AG$3>(A1stdlife+$E85),('PTRM input'!$N$143*(1+rvanilla08)^0.5)-SUM($N85:AF85),('PTRM input'!$N$143*(1+rvanilla08)^0.5)/A1stdlife)) -> 0 | AH85: =IF(A1stdlife="n/a","n/a",IF(AH$3>(A1stdlife+$E85),('PTRM input'!$N$143*(1+rvanilla08)^0.5)-SUM($N85:AG85),('PTRM input'!$N$143*(1+rvanilla08)^0.5)/A1stdlife)) -> 0 | AI85: =IF(A1stdlife="n/a","n/a",IF(AI$3>(A1stdlife+$E85),('PTRM input'!$N$143*(1+rvanilla08)^0.5)-SUM($N85:AH85),('PTRM input'!$N$143*(1+rvanilla08)^0.5)/A1stdlife)) -> 0 | AJ85: =IF(A1stdlife="n/a","n/a",IF(AJ$3>(A1stdlife+$E85),('PTRM input'!$N$143*(1+rvanilla08)^0.5)-SUM($N85:AI85),('PTRM input'!$N$143*(1+rvanilla08)^0.5)/A1stdlife)) -> 0 | AK85: =IF(A1stdlife="n/a","n/a",IF(AK$3>(A1stdlife+$E85),('PTRM input'!$N$143*(1+rvanilla08)^0.5)-SUM($N85:AJ85),('PTRM input'!$N$143*(1+rvanilla08)^0.5)/A1stdlife)) -> 0 | AL85: =IF(A1stdlife="n/a","n/a",IF(AL$3>(A1stdlife+$E85),('PTRM input'!$N$143*(1+rvanilla08)^0.5)-SUM($N85:AK85),('PTRM input'!$N$143*(1+rvanilla08)^0.5)/A1stdlife)) -> 0 | AM85: =IF(A1stdlife="n/a","n/a",IF(AM$3>(A1stdlife+$E85),('PTRM input'!$N$143*(1+rvanilla08)^0.5)-SUM($N85:AL85),('PTRM input'!$N$143*(1+rvanilla08)^0.5)/A1stdlife)) -> 0 | AN85: =IF(A1stdlife="n/a","n/a",IF(AN$3>(A1stdlife+$E85),('PTRM input'!$N$143*(1+rvanilla08)^0.5)-SUM($N85:AM85),('PTRM input'!$N$143*(1+rvanilla08)^0.5)/A1stdlife)) -> 0 | AO85: =IF(A1stdlife="n/a","n/a",IF(AO$3>(A1stdlife+$E85),('PTRM input'!$N$143*(1+rvanilla08)^0.5)-SUM($N85:AN85),('PTRM input'!$N$143*(1+rvanilla08)^0.5)/A1stdlife)) -> 0 | AP85: =IF(A1stdlife="n/a","n/a",IF(AP$3>(A1stdlife+$E85),('PTRM input'!$N$143*(1+rvanilla08)^0.5)-SUM($N85:AO85),('PTRM input'!$N$143*(1+rvanilla08)^0.5)/A1stdlife)) -> 0 | AQ85: =IF(A1stdlife="n/a","n/a",IF(AQ$3>(A1stdlife+$E85),('PTRM input'!$N$143*(1+rvanilla08)^0.5)-SUM($N85:AP85),('PTRM input'!$N$143*(1+rvanilla08)^0.5)/A1stdlife)) -> 0 | AR85: =IF(A1stdlife="n/a","n/a",IF(AR$3>(A1stdlife+$E85),('PTRM input'!$N$143*(1+rvanilla08)^0.5)-SUM($N85:AQ85),('PTRM input'!$N$143*(1+rvanilla08)^0.5)/A1stdlife)) -> 0 | AS85: =IF(A1stdlife="n/a","n/a",IF(AS$3>(A1stdlife+$E85),('PTRM input'!$N$143*(1+rvanilla08)^0.5)-SUM($N85:AR85),('PTRM input'!$N$143*(1+rvanilla08)^0.5)/A1stdlife)) -> 0 | AT85: =IF(A1stdlife="n/a","n/a",IF(AT$3>(A1stdlife+$E85),('PTRM input'!$N$143*(1+rvanilla08)^0.5)-SUM($N85:AS85),('PTRM input'!$N$143*(1+rvanilla08)^0.5)/A1stdlife)) -> 0 | AU85: =IF(A1stdlife="n/a","n/a",IF(AU$3>(A1stdlife+$E85),('PTRM input'!$N$143*(1+rvanilla08)^0.5)-SUM($N85:AT85),('PTRM input'!$N$143*(1+rvanilla08)^0.5)/A1stdlife)) -> 0 | AV85: =IF(A1stdlife="n/a","n/a",IF(AV$3>(A1stdlife+$E85),('PTRM input'!$N$143*(1+rvanilla08)^0.5)-SUM($N85:AU85),('PTRM input'!$N$143*(1+rvanilla08)^0.5)/A1stdlife)) -> 0 | AW85: =IF(A1stdlife="n/a","n/a",IF(AW$3>(A1stdlife+$E85),('PTRM input'!$N$143*(1+rvanilla08)^0.5)-SUM($N85:AV85),('PTRM input'!$N$143*(1+rvanilla08)^0.5)/A1stdlife)) -> 0 | AX85: =IF(A1stdlife="n/a","n/a",IF(AX$3>(A1stdlife+$E85),('PTRM input'!$N$143*(1+rvanilla08)^0.5)-SUM($N85:AW85),('PTRM input'!$N$143*(1+rvanilla08)^0.5)/A1stdlife)) -> 0 | AY85: =IF(A1stdlife="n/a","n/a",IF(AY$3>(A1stdlife+$E85),('PTRM input'!$N$143*(1+rvanilla08)^0.5)-SUM($N85:AX85),('PTRM input'!$N$143*(1+rvanilla08)^0.5)/A1stdlife)) -> 0 | AZ85: =IF(A1stdlife="n/a","n/a",IF(AZ$3>(A1stdlife+$E85),('PTRM input'!$N$143*(1+rvanilla08)^0.5)-SUM($N85:AY85),('PTRM input'!$N$143*(1+rvanilla08)^0.5)/A1stdlife)) -> 0 | BA85: =IF(A1stdlife="n/a","n/a",IF(BA$3>(A1stdlife+$E85),('PTRM input'!$N$143*(1+rvanilla08)^0.5)-SUM($N85:AZ85),('PTRM input'!$N$143*(1+rvanilla08)^0.5)/A1stdlife)) -> 0 | BB85: =IF(A1stdlife="n/a","n/a",IF(BB$3>(A1stdlife+$E85),('PTRM input'!$N$143*(1+rvanilla08)^0.5)-SUM($N85:BA85),('PTRM input'!$N$143*(1+rvanilla08)^0.5)/A1stdlife)) -> 0 | BC85: =IF(A1stdlife="n/a","n/a",IF(BC$3>(A1stdlife+$E85),('PTRM input'!$N$143*(1+rvanilla08)^0.5)-SUM($N85:BB85),('PTRM input'!$N$143*(1+rvanilla08)^0.5)/A1stdlife)) -> 0 | BD85: =IF(A1stdlife="n/a","n/a",IF(BD$3>(A1stdlife+$E85),('PTRM input'!$N$143*(1+rvanilla08)^0.5)-SUM($N85:BC85),('PTRM input'!$N$143*(1+rvanilla08)^0.5)/A1stdlife)) -> 0 | BE85: =IF(A1stdlife="n/a","n/a",IF(BE$3>(A1stdlife+$E85),('PTRM input'!$N$143*(1+rvanilla08)^0.5)-SUM($N85:BD85),('PTRM input'!$N$143*(1+rvanilla08)^0.5)/A1stdlife)) -> 0 | BF85: =IF(A1stdlife="n/a","n/a",IF(BF$3>(A1stdlife+$E85),('PTRM input'!$N$143*(1+rvanilla08)^0.5)-SUM($N85:BE85),('PTRM input'!$N$143*(1+rvanilla08)^0.5)/A1stdlife)) -> 0 | BG85: =IF(A1stdlife="n/a","n/a",IF(BG$3>(A1stdlife+$E85),('PTRM input'!$N$143*(1+rvanilla08)^0.5)-SUM($N85:BF85),('PTRM input'!$N$143*(1+rvanilla08)^0.5)/A1stdlife)) -> 0 | BH85: =IF(A1stdlife="n/a","n/a",IF(BH$3>(A1stdlife+$E85),('PTRM input'!$N$143*(1+rvanilla08)^0.5)-SUM($N85:BG85),('PTRM input'!$N$143*(1+rvanilla08)^0.5)/A1stdlife)) -> 0 | BI85: =IF(A1stdlife="n/a","n/a",IF(BI$3>(A1stdlife+$E85),('PTRM input'!$N$143*(1+rvanilla08)^0.5)-SUM($N85:BH85),('PTRM input'!$N$143*(1+rvanilla08)^0.5)/A1stdlife)) -> 0
E86: 9 | P86: =IF(A1stdlife="n/a","n/a",IF(P$3>(A1stdlife+$E86),('PTRM input'!$O$143*(1+rvanilla09)^0.5)-SUM($O86:O86),('PTRM input'!$O$143*(1+rvanilla09)^0.5)/A1stdlife)) -> 0 | Q86: =IF(A1stdlife="n/a","n/a",IF(Q$3>(A1stdlife+$E86),('PTRM input'!$O$143*(1+rvanilla09)^0.5)-SUM($O86:P86),('PTRM input'!$O$143*(1+rvanilla09)^0.5)/A1stdlife)) -> 0 | R86: =IF(A1stdlife="n/a","n/a",IF(R$3>(A1stdlife+$E86),('PTRM input'!$O$143*(1+rvanilla09)^0.5)-SUM($O86:Q86),('PTRM input'!$O$143*(1+rvanilla09)^0.5)/A1stdlife)) -> 0 | S86: =IF(A1stdlife="n/a","n/a",IF(S$3>(A1stdlife+$E86),('PTRM input'!$O$143*(1+rvanilla09)^0.5)-SUM($O86:R86),('PTRM input'!$O$143*(1+rvanilla09)^0.5)/A1stdlife)) -> 0 | T86: =IF(A1stdlife="n/a","n/a",IF(T$3>(A1stdlife+$E86),('PTRM input'!$O$143*(1+rvanilla09)^0.5)-SUM($O86:S86),('PTRM input'!$O$143*(1+rvanilla09)^0.5)/A1stdlife)) -> 0 | U86: =IF(A1stdlife="n/a","n/a",IF(U$3>(A1stdlife+$E86),('PTRM input'!$O$143*(1+rvanilla09)^0.5)-SUM($O86:T86),('PTRM input'!$O$143*(1+rvanilla09)^0.5)/A1stdlife)) -> 0 | V86: =IF(A1stdlife="n/a","n/a",IF(V$3>(A1stdlife+$E86),('PTRM input'!$O$143*(1+rvanilla09)^0.5)-SUM($O86:U86),('PTRM input'!$O$143*(1+rvanilla09)^0.5)/A1stdlife)) -> 0 | W86: =IF(A1stdlife="n/a","n/a",IF(W$3>(A1stdlife+$E86),('PTRM input'!$O$143*(1+rvanilla09)^0.5)-SUM($O86:V86),('PTRM input'!$O$143*(1+rvanilla09)^0.5)/A1stdlife)) -> 0 | X86: =IF(A1stdlife="n/a","n/a",IF(X$3>(A1stdlife+$E86),('PTRM input'!$O$143*(1+rvanilla09)^0.5)-SUM($O86:W86),('PTRM input'!$O$143*(1+rvanilla09)^0.5)/A1stdlife)) -> 0 | Y86: =IF(A1stdlife="n/a","n/a",IF(Y$3>(A1stdlife+$E86),('PTRM input'!$O$143*(1+rvanilla09)^0.5)-SUM($O86:X86),('PTRM input'!$O$143*(1+rvanilla09)^0.5)/A1stdlife)) -> 0 | Z86: =IF(A1stdlife="n/a","n/a",IF(Z$3>(A1stdlife+$E86),('PTRM input'!$O$143*(1+rvanilla09)^0.5)-SUM($O86:Y86),('PTRM input'!$O$143*(1+rvanilla09)^0.5)/A1stdlife)) -> 0 | AA86: =IF(A1stdlife="n/a","n/a",IF(AA$3>(A1stdlife+$E86),('PTRM input'!$O$143*(1+rvanilla09)^0.5)-SUM($O86:Z86),('PTRM input'!$O$143*(1+rvanilla09)^0.5)/A1stdlife)) -> 0 | AB86: =IF(A1stdlife="n/a","n/a",IF(AB$3>(A1stdlife+$E86),('PTRM input'!$O$143*(1+rvanilla09)^0.5)-SUM($O86:AA86),('PTRM input'!$O$143*(1+rvanilla09)^0.5)/A1stdlife)) -> 0 | AC86: =IF(A1stdlife="n/a","n/a",IF(AC$3>(A1stdlife+$E86),('PTRM input'!$O$143*(1+rvanilla09)^0.5)-SUM($O86:AB86),('PTRM input'!$O$143*(1+rvanilla09)^0.5)/A1stdlife)) -> 0 | AD86: =IF(A1stdlife="n/a","n/a",IF(AD$3>(A1stdlife+$E86),('PTRM input'!$O$143*(1+rvanilla09)^0.5)-SUM($O86:AC86),('PTRM input'!$O$143*(1+rvanilla09)^0.5)/A1stdlife)) -> 0 | AE86: =IF(A1stdlife="n/a","n/a",IF(AE$3>(A1stdlife+$E86),('PTRM input'!$O$143*(1+rvanilla09)^0.5)-SUM($O86:AD86),('PTRM input'!$O$143*(1+rvanilla09)^0.5)/A1stdlife)) -> 0 | AF86: =IF(A1stdlife="n/a","n/a",IF(AF$3>(A1stdlife+$E86),('PTRM input'!$O$143*(1+rvanilla09)^0.5)-SUM($O86:AE86),('PTRM input'!$O$143*(1+rvanilla09)^0.5)/A1stdlife)) -> 0 | AG86: =IF(A1stdlife="n/a","n/a",IF(AG$3>(A1stdlife+$E86),('PTRM input'!$O$143*(1+rvanilla09)^0.5)-SUM($O86:AF86),('PTRM input'!$O$143*(1+rvanilla09)^0.5)/A1stdlife)) -> 0 | AH86: =IF(A1stdlife="n/a","n/a",IF(AH$3>(A1stdlife+$E86),('PTRM input'!$O$143*(1+rvanilla09)^0.5)-SUM($O86:AG86),('PTRM input'!$O$143*(1+rvanilla09)^0.5)/A1stdlife)) -> 0 | AI86: =IF(A1stdlife="n/a","n/a",IF(AI$3>(A1stdlife+$E86),('PTRM input'!$O$143*(1+rvanilla09)^0.5)-SUM($O86:AH86),('PTRM input'!$O$143*(1+rvanilla09)^0.5)/A1stdlife)) -> 0 | AJ86: =IF(A1stdlife="n/a","n/a",IF(AJ$3>(A1stdlife+$E86),('PTRM input'!$O$143*(1+rvanilla09)^0.5)-SUM($O86:AI86),('PTRM input'!$O$143*(1+rvanilla09)^0.5)/A1stdlife)) -> 0 | AK86: =IF(A1stdlife="n/a","n/a",IF(AK$3>(A1stdlife+$E86),('PTRM input'!$O$143*(1+rvanilla09)^0.5)-SUM($O86:AJ86),('PTRM input'!$O$143*(1+rvanilla09)^0.5)/A1stdlife)) -> 0 | AL86: =IF(A1stdlife="n/a","n/a",IF(AL$3>(A1stdlife+$E86),('PTRM input'!$O$143*(1+rvanilla09)^0.5)-SUM($O86:AK86),('PTRM input'!$O$143*(1+rvanilla09)^0.5)/A1stdlife)) -> 0 | AM86: =IF(A1stdlife="n/a","n/a",IF(AM$3>(A1stdlife+$E86),('PTRM input'!$O$143*(1+rvanilla09)^0.5)-SUM($O86:AL86),('PTRM input'!$O$143*(1+rvanilla09)^0.5)/A1stdlife)) -> 0 | AN86: =IF(A1stdlife="n/a","n/a",IF(AN$3>(A1stdlife+$E86),('PTRM input'!$O$143*(1+rvanilla09)^0.5)-SUM($O86:AM86),('PTRM input'!$O$143*(1+rvanilla09)^0.5)/A1stdlife)) -> 0 | AO86: =IF(A1stdlife="n/a","n/a",IF(AO$3>(A1stdlife+$E86),('PTRM input'!$O$143*(1+rvanilla09)^0.5)-SUM($O86:AN86),('PTRM input'!$O$143*(1+rvanilla09)^0.5)/A1stdlife)) -> 0 | AP86: =IF(A1stdlife="n/a","n/a",IF(AP$3>(A1stdlife+$E86),('PTRM input'!$O$143*(1+rvanilla09)^0.5)-SUM($O86:AO86),('PTRM input'!$O$143*(1+rvanilla09)^0.5)/A1stdlife)) -> 0 | AQ86: =IF(A1stdlife="n/a","n/a",IF(AQ$3>(A1stdlife+$E86),('PTRM input'!$O$143*(1+rvanilla09)^0.5)-SUM($O86:AP86),('PTRM input'!$O$143*(1+rvanilla09)^0.5)/A1stdlife)) -> 0 | AR86: =IF(A1stdlife="n/a","n/a",IF(AR$3>(A1stdlife+$E86),('PTRM input'!$O$143*(1+rvanilla09)^0.5)-SUM($O86:AQ86),('PTRM input'!$O$143*(1+rvanilla09)^0.5)/A1stdlife)) -> 0 | AS86: =IF(A1stdlife="n/a","n/a",IF(AS$3>(A1stdlife+$E86),('PTRM input'!$O$143*(1+rvanilla09)^0.5)-SUM($O86:AR86),('PTRM input'!$O$143*(1+rvanilla09)^0.5)/A1stdlife)) -> 0 | AT86: =IF(A1stdlife="n/a","n/a",IF(AT$3>(A1stdlife+$E86),('PTRM input'!$O$143*(1+rvanilla09)^0.5)-SUM($O86:AS86),('PTRM input'!$O$143*(1+rvanilla09)^0.5)/A1stdlife)) -> 0 | AU86: =IF(A1stdlife="n/a","n/a",IF(AU$3>(A1stdlife+$E86),('PTRM input'!$O$143*(1+rvanilla09)^0.5)-SUM($O86:AT86),('PTRM input'!$O$143*(1+rvanilla09)^0.5)/A1stdlife)) -> 0 | AV86: =IF(A1stdlife="n/a","n/a",IF(AV$3>(A1stdlife+$E86),('PTRM input'!$O$143*(1+rvanilla09)^0.5)-SUM($O86:AU86),('PTRM input'!$O$143*(1+rvanilla09)^0.5)/A1stdlife)) -> 0 | AW86: =IF(A1stdlife="n/a","n/a",IF(AW$3>(A1stdlife+$E86),('PTRM input'!$O$143*(1+rvanilla09)^0.5)-SUM($O86:AV86),('PTRM input'!$O$143*(1+rvanilla09)^0.5)/A1stdlife)) -> 0 | AX86: =IF(A1stdlife="n/a","n/a",IF(AX$3>(A1stdlife+$E86),('PTRM input'!$O$143*(1+rvanilla09)^0.5)-SUM($O86:AW86),('PTRM input'!$O$143*(1+rvanilla09)^0.5)/A1stdlife)) -> 0 | AY86: =IF(A1stdlife="n/a","n/a",IF(AY$3>(A1stdlife+$E86),('PTRM input'!$O$143*(1+rvanilla09)^0.5)-SUM($O86:AX86),('PTRM input'!$O$143*(1+rvanilla09)^0.5)/A1stdlife)) -> 0 | AZ86: =IF(A1stdlife="n/a","n/a",IF(AZ$3>(A1stdlife+$E86),('PTRM input'!$O$143*(1+rvanilla09)^0.5)-SUM($O86:AY86),('PTRM input'!$O$143*(1+rvanilla09)^0.5)/A1stdlife)) -> 0 | BA86: =IF(A1stdlife="n/a","n/a",IF(BA$3>(A1stdlife+$E86),('PTRM input'!$O$143*(1+rvanilla09)^0.5)-SUM($O86:AZ86),('PTRM input'!$O$143*(1+rvanilla09)^0.5)/A1stdlife)) -> 0 | BB86: =IF(A1stdlife="n/a","n/a",IF(BB$3>(A1stdlife+$E86),('PTRM input'!$O$143*(1+rvanilla09)^0.5)-SUM($O86:BA86),('PTRM input'!$O$143*(1+rvanilla09)^0.5)/A1stdlife)) -> 0 | BC86: =IF(A1stdlife="n/a","n/a",IF(BC$3>(A1stdlife+$E86),('PTRM input'!$O$143*(1+rvanilla09)^0.5)-SUM($O86:BB86),('PTRM input'!$O$143*(1+rvanilla09)^0.5)/A1stdlife)) -> 0 | BD86: =IF(A1stdlife="n/a","n/a",IF(BD$3>(A1stdlife+$E86),('PTRM input'!$O$143*(1+rvanilla09)^0.5)-SUM($O86:BC86),('PTRM input'!$O$143*(1+rvanilla09)^0.5)/A1stdlife)) -> 0 | BE86: =IF(A1stdlife="n/a","n/a",IF(BE$3>(A1stdlife+$E86),('PTRM input'!$O$143*(1+rvanilla09)^0.5)-SUM($O86:BD86),('PTRM input'!$O$143*(1+rvanilla09)^0.5)/A1stdlife)) -> 0 | BF86: =IF(A1stdlife="n/a","n/a",IF(BF$3>(A1stdlife+$E86),('PTRM input'!$O$143*(1+rvanilla09)^0.5)-SUM($O86:BE86),('PTRM input'!$O$143*(1+rvanilla09)^0.5)/A1stdlife)) -> 0 | BG86: =IF(A1stdlife="n/a","n/a",IF(BG$3>(A1stdlife+$E86),('PTRM input'!$O$143*(1+rvanilla09)^0.5)-SUM($O86:BF86),('PTRM input'!$O$143*(1+rvanilla09)^0.5)/A1stdlife)) -> 0 | BH86: =IF(A1stdlife="n/a","n/a",IF(BH$3>(A1stdlife+$E86),('PTRM input'!$O$143*(1+rvanilla09)^0.5)-SUM($O86:BG86),('PTRM input'!$O$143*(1+rvanilla09)^0.5)/A1stdlife)) -> 0 | BI86: =IF(A1stdlife="n/a","n/a",IF(BI$3>(A1stdlife+$E86),('PTRM input'!$O$143*(1+rvanilla09)^0.5)-SUM($O86:BH86),('PTRM input'!$O$143*(1+rvanilla09)^0.5)/A1stdlife)) -> 0
E87: 10 | Q87: =IF(A1stdlife="n/a","n/a",IF(Q$3>(A1stdlife+$E87),('PTRM input'!$P$143*(1+rvanilla10)^0.5)-SUM($P87:P87),('PTRM input'!$P$143*(1+rvanilla10)^0.5)/A1stdlife)) -> 0 | R87: =IF(A1stdlife="n/a","n/a",IF(R$3>(A1stdlife+$E87),('PTRM input'!$P$143*(1+rvanilla10)^0.5)-SUM($P87:Q87),('PTRM input'!$P$143*(1+rvanilla10)^0.5)/A1stdlife)) -> 0 | S87: =IF(A1stdlife="n/a","n/a",IF(S$3>(A1stdlife+$E87),('PTRM input'!$P$143*(1+rvanilla10)^0.5)-SUM($P87:R87),('PTRM input'!$P$143*(1+rvanilla10)^0.5)/A1stdlife)) -> 0 | T87: =IF(A1stdlife="n/a","n/a",IF(T$3>(A1stdlife+$E87),('PTRM input'!$P$143*(1+rvanilla10)^0.5)-SUM($P87:S87),('PTRM input'!$P$143*(1+rvanilla10)^0.5)/A1stdlife)) -> 0 | U87: =IF(A1stdlife="n/a","n/a",IF(U$3>(A1stdlife+$E87),('PTRM input'!$P$143*(1+rvanilla10)^0.5)-SUM($P87:T87),('PTRM input'!$P$143*(1+rvanilla10)^0.5)/A1stdlife)) -> 0 | V87: =IF(A1stdlife="n/a","n/a",IF(V$3>(A1stdlife+$E87),('PTRM input'!$P$143*(1+rvanilla10)^0.5)-SUM($P87:U87),('PTRM input'!$P$143*(1+rvanilla10)^0.5)/A1stdlife)) -> 0 | W87: =IF(A1stdlife="n/a","n/a",IF(W$3>(A1stdlife+$E87),('PTRM input'!$P$143*(1+rvanilla10)^0.5)-SUM($P87:V87),('PTRM input'!$P$143*(1+rvanilla10)^0.5)/A1stdlife)) -> 0 | X87: =IF(A1stdlife="n/a","n/a",IF(X$3>(A1stdlife+$E87),('PTRM input'!$P$143*(1+rvanilla10)^0.5)-SUM($P87:W87),('PTRM input'!$P$143*(1+rvanilla10)^0.5)/A1stdlife)) -> 0 | Y87: =IF(A1stdlife="n/a","n/a",IF(Y$3>(A1stdlife+$E87),('PTRM input'!$P$143*(1+rvanilla10)^0.5)-SUM($P87:X87),('PTRM input'!$P$143*(1+rvanilla10)^0.5)/A1stdlife)) -> 0 | Z87: =IF(A1stdlife="n/a","n/a",IF(Z$3>(A1stdlife+$E87),('PTRM input'!$P$143*(1+rvanilla10)^0.5)-SUM($P87:Y87),('PTRM input'!$P$143*(1+rvanilla10)^0.5)/A1stdlife)) -> 0 | AA87: =IF(A1stdlife="n/a","n/a",IF(AA$3>(A1stdlife+$E87),('PTRM input'!$P$143*(1+rvanilla10)^0.5)-SUM($P87:Z87),('PTRM input'!$P$143*(1+rvanilla10)^0.5)/A1stdlife)) -> 0 | AB87: =IF(A1stdlife="n/a","n/a",IF(AB$3>(A1stdlife+$E87),('PTRM input'!$P$143*(1+rvanilla10)^0.5)-SUM($P87:AA87),('PTRM input'!$P$143*(1+rvanilla10)^0.5)/A1stdlife)) -> 0 | AC87: =IF(A1stdlife="n/a","n/a",IF(AC$3>(A1stdlife+$E87),('PTRM input'!$P$143*(1+rvanilla10)^0.5)-SUM($P87:AB87),('PTRM input'!$P$143*(1+rvanilla10)^0.5)/A1stdlife)) -> 0 | AD87: =IF(A1stdlife="n/a","n/a",IF(AD$3>(A1stdlife+$E87),('PTRM input'!$P$143*(1+rvanilla10)^0.5)-SUM($P87:AC87),('PTRM input'!$P$143*(1+rvanilla10)^0.5)/A1stdlife)) -> 0 | AE87: =IF(A1stdlife="n/a","n/a",IF(AE$3>(A1stdlife+$E87),('PTRM input'!$P$143*(1+rvanilla10)^0.5)-SUM($P87:AD87),('PTRM input'!$P$143*(1+rvanilla10)^0.5)/A1stdlife)) -> 0 | AF87: =IF(A1stdlife="n/a","n/a",IF(AF$3>(A1stdlife+$E87),('PTRM input'!$P$143*(1+rvanilla10)^0.5)-SUM($P87:AE87),('PTRM input'!$P$143*(1+rvanilla10)^0.5)/A1stdlife)) -> 0 | AG87: =IF(A1stdlife="n/a","n/a",IF(AG$3>(A1stdlife+$E87),('PTRM input'!$P$143*(1+rvanilla10)^0.5)-SUM($P87:AF87),('PTRM input'!$P$143*(1+rvanilla10)^0.5)/A1stdlife)) -> 0 | AH87: =IF(A1stdlife="n/a","n/a",IF(AH$3>(A1stdlife+$E87),('PTRM input'!$P$143*(1+rvanilla10)^0.5)-SUM($P87:AG87),('PTRM input'!$P$143*(1+rvanilla10)^0.5)/A1stdlife)) -> 0 | AI87: =IF(A1stdlife="n/a","n/a",IF(AI$3>(A1stdlife+$E87),('PTRM input'!$P$143*(1+rvanilla10)^0.5)-SUM($P87:AH87),('PTRM input'!$P$143*(1+rvanilla10)^0.5)/A1stdlife)) -> 0 | AJ87: =IF(A1stdlife="n/a","n/a",IF(AJ$3>(A1stdlife+$E87),('PTRM input'!$P$143*(1+rvanilla10)^0.5)-SUM($P87:AI87),('PTRM input'!$P$143*(1+rvanilla10)^0.5)/A1stdlife)) -> 0 | AK87: =IF(A1stdlife="n/a","n/a",IF(AK$3>(A1stdlife+$E87),('PTRM input'!$P$143*(1+rvanilla10)^0.5)-SUM($P87:AJ87),('PTRM input'!$P$143*(1+rvanilla10)^0.5)/A1stdlife)) -> 0 | AL87: =IF(A1stdlife="n/a","n/a",IF(AL$3>(A1stdlife+$E87),('PTRM input'!$P$143*(1+rvanilla10)^0.5)-SUM($P87:AK87),('PTRM input'!$P$143*(1+rvanilla10)^0.5)/A1stdlife)) -> 0 | AM87: =IF(A1stdlife="n/a","n/a",IF(AM$3>(A1stdlife+$E87),('PTRM input'!$P$143*(1+rvanilla10)^0.5)-SUM($P87:AL87),('PTRM input'!$P$143*(1+rvanilla10)^0.5)/A1stdlife)) -> 0 | AN87: =IF(A1stdlife="n/a","n/a",IF(AN$3>(A1stdlife+$E87),('PTRM input'!$P$143*(1+rvanilla10)^0.5)-SUM($P87:AM87),('PTRM input'!$P$143*(1+rvanilla10)^0.5)/A1stdlife)) -> 0 | AO87: =IF(A1stdlife="n/a","n/a",IF(AO$3>(A1stdlife+$E87),('PTRM input'!$P$143*(1+rvanilla10)^0.5)-SUM($P87:AN87),('PTRM input'!$P$143*(1+rvanilla10)^0.5)/A1stdlife)) -> 0 | AP87: =IF(A1stdlife="n/a","n/a",IF(AP$3>(A1stdlife+$E87),('PTRM input'!$P$143*(1+rvanilla10)^0.5)-SUM($P87:AO87),('PTRM input'!$P$143*(1+rvanilla10)^0.5)/A1stdlife)) -> 0 | AQ87: =IF(A1stdlife="n/a","n/a",IF(AQ$3>(A1stdlife+$E87),('PTRM input'!$P$143*(1+rvanilla10)^0.5)-SUM($P87:AP87),('PTRM input'!$P$143*(1+rvanilla10)^0.5)/A1stdlife)) -> 0 | AR87: =IF(A1stdlife="n/a","n/a",IF(AR$3>(A1stdlife+$E87),('PTRM input'!$P$143*(1+rvanilla10)^0.5)-SUM($P87:AQ87),('PTRM input'!$P$143*(1+rvanilla10)^0.5)/A1stdlife)) -> 0 | AS87: =IF(A1stdlife="n/a","n/a",IF(AS$3>(A1stdlife+$E87),('PTRM input'!$P$143*(1+rvanilla10)^0.5)-SUM($P87:AR87),('PTRM input'!$P$143*(1+rvanilla10)^0.5)/A1stdlife)) -> 0 | AT87: =IF(A1stdlife="n/a","n/a",IF(AT$3>(A1stdlife+$E87),('PTRM input'!$P$143*(1+rvanilla10)^0.5)-SUM($P87:AS87),('PTRM input'!$P$143*(1+rvanilla10)^0.5)/A1stdlife)) -> 0 | AU87: =IF(A1stdlife="n/a","n/a",IF(AU$3>(A1stdlife+$E87),('PTRM input'!$P$143*(1+rvanilla10)^0.5)-SUM($P87:AT87),('PTRM input'!$P$143*(1+rvanilla10)^0.5)/A1stdlife)) -> 0 | AV87: =IF(A1stdlife="n/a","n/a",IF(AV$3>(A1stdlife+$E87),('PTRM input'!$P$143*(1+rvanilla10)^0.5)-SUM($P87:AU87),('PTRM input'!$P$143*(1+rvanilla10)^0.5)/A1stdlife)) -> 0 | AW87: =IF(A1stdlife="n/a","n/a",IF(AW$3>(A1stdlife+$E87),('PTRM input'!$P$143*(1+rvanilla10)^0.5)-SUM($P87:AV87),('PTRM input'!$P$143*(1+rvanilla10)^0.5)/A1stdlife)) -> 0 | AX87: =IF(A1stdlife="n/a","n/a",IF(AX$3>(A1stdlife+$E87),('PTRM input'!$P$143*(1+rvanilla10)^0.5)-SUM($P87:AW87),('PTRM input'!$P$143*(1+rvanilla10)^0.5)/A1stdlife)) -> 0 | AY87: =IF(A1stdlife="n/a","n/a",IF(AY$3>(A1stdlife+$E87),('PTRM input'!$P$143*(1+rvanilla10)^0.5)-SUM($P87:AX87),('PTRM input'!$P$143*(1+rvanilla10)^0.5)/A1stdlife)) -> 0 | AZ87: =IF(A1stdlife="n/a","n/a",IF(AZ$3>(A1stdlife+$E87),('PTRM input'!$P$143*(1+rvanilla10)^0.5)-SUM($P87:AY87),('PTRM input'!$P$143*(1+rvanilla10)^0.5)/A1stdlife)) -> 0 | BA87: =IF(A1stdlife="n/a","n/a",IF(BA$3>(A1stdlife+$E87),('PTRM input'!$P$143*(1+rvanilla10)^0.5)-SUM($P87:AZ87),('PTRM input'!$P$143*(1+rvanilla10)^0.5)/A1stdlife)) -> 0 | BB87: =IF(A1stdlife="n/a","n/a",IF(BB$3>(A1stdlife+$E87),('PTRM input'!$P$143*(1+rvanilla10)^0.5)-SUM($P87:BA87),('PTRM input'!$P$143*(1+rvanilla10)^0.5)/A1stdlife)) -> 0 | BC87: =IF(A1stdlife="n/a","n/a",IF(BC$3>(A1stdlife+$E87),('PTRM input'!$P$143*(1+rvanilla10)^0.5)-SUM($P87:BB87),('PTRM input'!$P$143*(1+rvanilla10)^0.5)/A1stdlife)) -> 0 | BD87: =IF(A1stdlife="n/a","n/a",IF(BD$3>(A1stdlife+$E87),('PTRM input'!$P$143*(1+rvanilla10)^0.5)-SUM($P87:BC87),('PTRM input'!$P$143*(1+rvanilla10)^0.5)/A1stdlife)) -> 0 | BE87: =IF(A1stdlife="n/a","n/a",IF(BE$3>(A1stdlife+$E87),('PTRM input'!$P$143*(1+rvanilla10)^0.5)-SUM($P87:BD87),('PTRM input'!$P$143*(1+rvanilla10)^0.5)/A1stdlife)) -> 0 | BF87: =IF(A1stdlife="n/a","n/a",IF(BF$3>(A1stdlife+$E87),('PTRM input'!$P$143*(1+rvanilla10)^0.5)-SUM($P87:BE87),('PTRM input'!$P$143*(1+rvanilla10)^0.5)/A1stdlife)) -> 0 | BG87: =IF(A1stdlife="n/a","n/a",IF(BG$3>(A1stdlife+$E87),('PTRM input'!$P$143*(1+rvanilla10)^0.5)-SUM($P87:BF87),('PTRM input'!$P$143*(1+rvanilla10)^0.5)/A1stdlife)) -> 0 | BH87: =IF(A1stdlife="n/a","n/a",IF(BH$3>(A1stdlife+$E87),('PTRM input'!$P$143*(1+rvanilla10)^0.5)-SUM($P87:BG87),('PTRM input'!$P$143*(1+rvanilla10)^0.5)/A1stdlife)) -> 0 | BI87: =IF(A1stdlife="n/a","n/a",IF(BI$3>(A1stdlife+$E87),('PTRM input'!$P$143*(1+rvanilla10)^0.5)-SUM($P87:BH87),('PTRM input'!$P$143*(1+rvanilla10)^0.5)/A1stdlife)) -> 0
C88: =Asset1 -> Subtransmission | G88: =SUM(G76:G87) -> 9.320100756 | H88: =SUM(H76:H87) -> 0.4042300592 | I88: =SUM(I76:I87) -> 0.4042300592 | J88: 0.4042300592 | K88: 0.4042300592 | L88: 0.4042300592 | M88: 0.4042300592 | N88: 0.4042300592 | O88: 0.4042300592 | P88: 0.4042300592 | Q88: 0.4042300592 | R88: 0.4042300592 | S88: 0.4042300592 | T88: 0.4042300592 | U88: 0.4042300592 | V88: 0.4042300592 | W88: 0.4042300592 | X88: 0.4042300592 | Y88: 0.4042300592 | Z88: 0.4042300592 | AA88: 0.4042300592 | AB88: 0.4042300592 | AC88: 0.4042300592 | AD88: 0.4042300592 | AE88: 0.4042300592 | AF88: 0.4042300592 | AG88: 0.4042300592 | AH88: 0.4042300592 | AI88: 0.4042300592 | AJ88: 0.4042300592 | AK88: 0.4042300592 | AL88: 0.4042300592 | AM88: 0.4042300592 | AN88: 0.4042300592 | AO88: 0.4042300592 | AP88: 0.4042300592 | AQ88: 0.4042300592 | AR88: 0.4042300592 | AS88: 0.4042300592 | AT88: 0.4042300592 | AU88: 0.4042300592 | AV88: 0.4042300592 | AW88: 0.4042300592 | AX88: 0.4042300592 | AY88: 0.4042300592 | AZ88: 0.4042300592 | BA88: 0.4042300592 | BB88: 0.4042300592 | BC88: 0.4042300592 | BD88: 0.4042300592 | BE88: 0.4042300592 | BF88: 1.065814104e-14 | BG88: 0 | BH88: 0 | BI88: 0
B89: =C101 -> Distribution system assets | D89: Initial Asset Base | G89: 60.64318655 | H89: =IF(H$3>A2remlife,A2value-SUM($F89:G89),IF(A2remlife="N/A","n/a",A2value/A2remlife)) -> n/a | I89: =IF(I$3>A2remlife,A2value-SUM($F89:H89),IF(A2remlife="N/A","n/a",A2value/A2remlife)) -> n/a | J89: =IF(J$3>A2remlife,A2value-SUM($F89:I89),IF(A2remlife="N/A","n/a",A2value/A2remlife)) -> n/a | K89: =IF(K$3>A2remlife,A2value-SUM($F89:J89),IF(A2remlife="N/A","n/a",A2value/A2remlife)) -> n/a | L89: =IF(L$3>A2remlife,A2value-SUM($F89:K89),IF(A2remlife="N/A","n/a",A2value/A2remlife)) -> n/a | M89: =IF(M$3>A2remlife,A2value-SUM($F89:L89),IF(A2remlife="N/A","n/a",A2value/A2remlife)) -> n/a | N89: =IF(N$3>A2remlife,A2value-SUM($F89:M89),IF(A2remlife="N/A","n/a",A2value/A2remlife)) -> n/a | O89: =IF(O$3>A2remlife,A2value-SUM($F89:N89),IF(A2remlife="N/A","n/a",A2value/A2remlife)) -> n/a | P89: =IF(P$3>A2remlife,A2value-SUM($F89:O89),IF(A2remlife="N/A","n/a",A2value/A2remlife)) -> n/a | Q89: =IF(Q$3>A2remlife,A2value-SUM($F89:P89),IF(A2remlife="N/A","n/a",A2value/A2remlife)) -> n/a | R89: =IF(R$3>A2remlife,A2value-SUM($F89:Q89),IF(A2remlife="N/A","n/a",A2value/A2remlife)) -> n/a | S89: =IF(S$3>A2remlife,A2value-SUM($F89:R89),IF(A2remlife="N/A","n/a",A2value/A2remlife)) -> n/a | T89: =IF(T$3>A2remlife,A2value-SUM($F89:S89),IF(A2remlife="N/A","n/a",A2value/A2remlife)) -> n/a | U89: =IF(U$3>A2remlife,A2value-SUM($F89:T89),IF(A2remlife="N/A","n/a",A2value/A2remlife)) -> n/a | V89: =IF(V$3>A2remlife,A2value-SUM($F89:U89),IF(A2remlife="N/A","n/a",A2value/A2remlife)) -> n/a | W89: =IF(W$3>A2remlife,A2value-SUM($F89:V89),IF(A2remlife="N/A","n/a",A2value/A2remlife)) -> n/a | X89: =IF(X$3>A2remlife,A2value-SUM($F89:W89),IF(A2remlife="N/A","n/a",A2value/A2remlife)) -> n/a | Y89: =IF(Y$3>A2remlife,A2value-SUM($F89:X89),IF(A2remlife="N/A","n/a",A2value/A2remlife)) -> n/a | Z89: =IF(Z$3>A2remlife,A2value-SUM($F89:Y89),IF(A2remlife="N/A","n/a",A2value/A2remlife)) -> n/a | AA89: =IF(AA$3>A2remlife,A2value-SUM($F89:Z89),IF(A2remlife="N/A","n/a",A2value/A2remlife)) -> n/a | AB89: =IF(AB$3>A2remlife,A2value-SUM($F89:AA89),IF(A2remlife="N/A","n/a",A2value/A2remlife)) -> n/a | AC89: =IF(AC$3>A2remlife,A2value-SUM($F89:AB89),IF(A2remlife="N/A","n/a",A2value/A2remlife)) -> n/a | AD89: =IF(AD$3>A2remlife,A2value-SUM($F89:AC89),IF(A2remlife="N/A","n/a",A2value/A2remlife)) -> n/a | AE89: =IF(AE$3>A2remlife,A2value-SUM($F89:AD89),IF(A2remlife="N/A","n/a",A2value/A2remlife)) -> n/a | AF89: =IF(AF$3>A2remlife,A2value-SUM($F89:AE89),IF(A2remlife="N/A","n/a",A2value/A2remlife)) -> n/a | AG89: =IF(AG$3>A2remlife,A2value-SUM($F89:AF89),IF(A2remlife="N/A","n/a",A2value/A2remlife)) -> n/a | AH89: =IF(AH$3>A2remlife,A2value-SUM($F89:AG89),IF(A2remlife="N/A","n/a",A2value/A2remlife)) -> n/a | AI89: =IF(AI$3>A2remlife,A2value-SUM($F89:AH89),IF(A2remlife="N/A","n/a",A2value/A2remlife)) -> n/a | AJ89: =IF(AJ$3>A2remlife,A2value-SUM($F89:AI89),IF(A2remlife="N/A","n/a",A2value/A2remlife)) -> n/a | AK89: =IF(AK$3>A2remlife,A2value-SUM($F89:AJ89),IF(A2remlife="N/A","n/a",A2value/A2remlife)) -> n/a | AL89: =IF(AL$3>A2remlife,A2value-SUM($F89:AK89),IF(A2remlife="N/A","n/a",A2value/A2remlife)) -> n/a | AM89: =IF(AM$3>A2remlife,A2value-SUM($F89:AL89),IF(A2remlife="N/A","n/a",A2value/A2remlife)) -> n/a | AN89: =IF(AN$3>A2remlife,A2value-SUM($F89:AM89),IF(A2remlife="N/A","n/a",A2value/A2remlife)) -> n/a | AO89: =IF(AO$3>A2remlife,A2value-SUM($F89:AN89),IF(A2remlife="N/A","n/a",A2value/A2remlife)) -> n/a | AP89: =IF(AP$3>A2remlife,A2value-SUM($F89:AO89),IF(A2remlife="N/A","n/a",A2value/A2remlife)) -> n/a | AQ89: =IF(AQ$3>A2remlife,A2value-SUM($F89:AP89),IF(A2remlife="N/A","n/a",A2value/A2remlife)) -> n/a | AR89: =IF(AR$3>A2remlife,A2value-SUM($F89:AQ89),IF(A2remlife="N/A","n/a",A2value/A2remlife)) -> n/a | AS89: =IF(AS$3>A2remlife,A2value-SUM($F89:AR89),IF(A2remlife="N/A","n/a",A2value/A2remlife)) -> n/a | AT89: =IF(AT$3>A2remlife,A2value-SUM($F89:AS89),IF(A2remlife="N/A","n/a",A2value/A2remlife)) -> n/a | AU89: =IF(AU$3>A2remlife,A2value-SUM($F89:AT89),IF(A2remlife="N/A","n/a",A2value/A2remlife)) -> n/a | AV89: =IF(AV$3>A2remlife,A2value-SUM($F89:AU89),IF(A2remlife="N/A","n/a",A2value/A2remlife)) -> n/a | AW89: =IF(AW$3>A2remlife,A2value-SUM($F89:AV89),IF(A2remlife="N/A","n/a",A2value/A2remlife)) -> n/a | AX89: =IF(AX$3>A2remlife,A2value-SUM($F89:AW89),IF(A2remlife="N/A","n/a",A2value/A2remlife)) -> n/a | AY89: =IF(AY$3>A2remlife,A2value-SUM($F89:AX89),IF(A2remlife="N/A","n/a",A2value/A2remlife)) -> n/a | AZ89: =IF(AZ$3>A2remlife,A2value-SUM($F89:AY89),IF(A2remlife="N/A","n/a",A2value/A2remlife)) -> n/a | BA89: =IF(BA$3>A2remlife,A2value-SUM($F89:AZ89),IF(A2remlife="N/A","n/a",A2value/A2remlife)) -> n/a | BB89: =IF(BB$3>A2remlife,A2value-SUM($F89:BA89),IF(A2remlife="N/A","n/a",A2value/A2remlife)) -> n/a | BC89: =IF(BC$3>A2remlife,A2value-SUM($F89:BB89),IF(A2remlife="N/A","n/a",A2value/A2remlife)) -> n/a | BD89: =IF(BD$3>A2remlife,A2value-SUM($F89:BC89),IF(A2remlife="N/A","n/a",A2value/A2remlife)) -> n/a | BE89: =IF(BE$3>A2remlife,A2value-SUM($F89:BD89),IF(A2remlife="N/A","n/a",A2value/A2remlife)) -> n/a | BF89: =IF(BF$3>A2remlife,A2value-SUM($F89:BE89),IF(A2remlife="N/A","n/a",A2value/A2remlife)) -> n/a | BG89: =IF(BG$3>A2remlife,A2value-SUM($F89:BF89),IF(A2remlife="N/A","n/a",A2value/A2remlife)) -> n/a | BH89: =IF(BH$3>A2remlife,A2value-SUM($F89:BG89),IF(A2remlife="N/A","n/a",A2value/A2remlife)) -> n/a | BI89: =IF(BI$3>A2remlife,A2value-SUM($F89:BH89),IF(A2remlife="N/A","n/a",A2value/A2remlife)) -> n/a
D90: Capex in year | E90: 0
E91: 1 | H91: =IF(A2stdlife="n/a","n/a",IF(H$3>(A2stdlife+$E91),('PTRM input'!$G$144*(1+rvanilla01)^0.5)-SUM($G91:G91),('PTRM input'!$G$144*(1+rvanilla01)^0.5)/A2stdlife)) -> 2.647564904 | I91: =IF(A2stdlife="n/a","n/a",IF(I$3>(A2stdlife+$E91),('PTRM input'!$G$144*(1+rvanilla01)^0.5)-SUM($G91:H91),('PTRM input'!$G$144*(1+rvanilla01)^0.5)/A2stdlife)) -> 2.647564904 | J91: =IF(A2stdlife="n/a","n/a",IF(J$3>(A2stdlife+$E91),('PTRM input'!$G$144*(1+rvanilla01)^0.5)-SUM($G91:I91),('PTRM input'!$G$144*(1+rvanilla01)^0.5)/A2stdlife)) -> 2.647564904 | K91: =IF(A2stdlife="n/a","n/a",IF(K$3>(A2stdlife+$E91),('PTRM input'!$G$144*(1+rvanilla01)^0.5)-SUM($G91:J91),('PTRM input'!$G$144*(1+rvanilla01)^0.5)/A2stdlife)) -> 2.647564904 | L91: =IF(A2stdlife="n/a","n/a",IF(L$3>(A2stdlife+$E91),('PTRM input'!$G$144*(1+rvanilla01)^0.5)-SUM($G91:K91),('PTRM input'!$G$144*(1+rvanilla01)^0.5)/A2stdlife)) -> 2.647564904 | M91: =IF(A2stdlife="n/a","n/a",IF(M$3>(A2stdlife+$E91),('PTRM input'!$G$144*(1+rvanilla01)^0.5)-SUM($G91:L91),('PTRM input'!$G$144*(1+rvanilla01)^0.5)/A2stdlife)) -> 2.647564904 | N91: =IF(A2stdlife="n/a","n/a",IF(N$3>(A2stdlife+$E91),('PTRM input'!$G$144*(1+rvanilla01)^0.5)-SUM($G91:M91),('PTRM input'!$G$144*(1+rvanilla01)^0.5)/A2stdlife)) -> 2.647564904 | O91: =IF(A2stdlife="n/a","n/a",IF(O$3>(A2stdlife+$E91),('PTRM input'!$G$144*(1+rvanilla01)^0.5)-SUM($G91:N91),('PTRM input'!$G$144*(1+rvanilla01)^0.5)/A2stdlife)) -> 2.647564904 | P91: =IF(A2stdlife="n/a","n/a",IF(P$3>(A2stdlife+$E91),('PTRM input'!$G$144*(1+rvanilla01)^0.5)-SUM($G91:O91),('PTRM input'!$G$144*(1+rvanilla01)^0.5)/A2stdlife)) -> 2.647564904 | Q91: =IF(A2stdlife="n/a","n/a",IF(Q$3>(A2stdlife+$E91),('PTRM input'!$G$144*(1+rvanilla01)^0.5)-SUM($G91:P91),('PTRM input'!$G$144*(1+rvanilla01)^0.5)/A2stdlife)) -> 2.647564904 | R91: =IF(A2stdlife="n/a","n/a",IF(R$3>(A2stdlife+$E91),('PTRM input'!$G$144*(1+rvanilla01)^0.5)-SUM($G91:Q91),('PTRM input'!$G$144*(1+rvanilla01)^0.5)/A2stdlife)) -> 2.647564904 | S91: =IF(A2stdlife="n/a","n/a",IF(S$3>(A2stdlife+$E91),('PTRM input'!$G$144*(1+rvanilla01)^0.5)-SUM($G91:R91),('PTRM input'!$G$144*(1+rvanilla01)^0.5)/A2stdlife)) -> 2.647564904 | T91: =IF(A2stdlife="n/a","n/a",IF(T$3>(A2stdlife+$E91),('PTRM input'!$G$144*(1+rvanilla01)^0.5)-SUM($G91:S91),('PTRM input'!$G$144*(1+rvanilla01)^0.5)/A2stdlife)) -> 2.647564904 | U91: =IF(A2stdlife="n/a","n/a",IF(U$3>(A2stdlife+$E91),('PTRM input'!$G$144*(1+rvanilla01)^0.5)-SUM($G91:T91),('PTRM input'!$G$144*(1+rvanilla01)^0.5)/A2stdlife)) -> 2.647564904 | V91: =IF(A2stdlife="n/a","n/a",IF(V$3>(A2stdlife+$E91),('PTRM input'!$G$144*(1+rvanilla01)^0.5)-SUM($G91:U91),('PTRM input'!$G$144*(1+rvanilla01)^0.5)/A2stdlife)) -> 2.647564904 | W91: =IF(A2stdlife="n/a","n/a",IF(W$3>(A2stdlife+$E91),('PTRM input'!$G$144*(1+rvanilla01)^0.5)-SUM($G91:V91),('PTRM input'!$G$144*(1+rvanilla01)^0.5)/A2stdlife)) -> 2.647564904 | X91: =IF(A2stdlife="n/a","n/a",IF(X$3>(A2stdlife+$E91),('PTRM input'!$G$144*(1+rvanilla01)^0.5)-SUM($G91:W91),('PTRM input'!$G$144*(1+rvanilla01)^0.5)/A2stdlife)) -> 2.647564904 | Y91: =IF(A2stdlife="n/a","n/a",IF(Y$3>(A2stdlife+$E91),('PTRM input'!$G$144*(1+rvanilla01)^0.5)-SUM($G91:X91),('PTRM input'!$G$144*(1+rvanilla01)^0.5)/A2stdlife)) -> 2.647564904 | Z91: =IF(A2stdlife="n/a","n/a",IF(Z$3>(A2stdlife+$E91),('PTRM input'!$G$144*(1+rvanilla01)^0.5)-SUM($G91:Y91),('PTRM input'!$G$144*(1+rvanilla01)^0.5)/A2stdlife)) -> 2.647564904 | AA91: =IF(A2stdlife="n/a","n/a",IF(AA$3>(A2stdlife+$E91),('PTRM input'!$G$144*(1+rvanilla01)^0.5)-SUM($G91:Z91),('PTRM input'!$G$144*(1+rvanilla01)^0.5)/A2stdlife)) -> 2.647564904 | AB91: =IF(A2stdlife="n/a","n/a",IF(AB$3>(A2stdlife+$E91),('PTRM input'!$G$144*(1+rvanilla01)^0.5)-SUM($G91:AA91),('PTRM input'!$G$144*(1+rvanilla01)^0.5)/A2stdlife)) -> 2.647564904 | AC91: =IF(A2stdlife="n/a","n/a",IF(AC$3>(A2stdlife+$E91),('PTRM input'!$G$144*(1+rvanilla01)^0.5)-SUM($G91:AB91),('PTRM input'!$G$144*(1+rvanilla01)^0.5)/A2stdlife)) -> 2.647564904 | AD91: =IF(A2stdlife="n/a","n/a",IF(AD$3>(A2stdlife+$E91),('PTRM input'!$G$144*(1+rvanilla01)^0.5)-SUM($G91:AC91),('PTRM input'!$G$144*(1+rvanilla01)^0.5)/A2stdlife)) -> 2.647564904 | AE91: =IF(A2stdlife="n/a","n/a",IF(AE$3>(A2stdlife+$E91),('PTRM input'!$G$144*(1+rvanilla01)^0.5)-SUM($G91:AD91),('PTRM input'!$G$144*(1+rvanilla01)^0.5)/A2stdlife)) -> 2.647564904 | AF91: =IF(A2stdlife="n/a","n/a",IF(AF$3>(A2stdlife+$E91),('PTRM input'!$G$144*(1+rvanilla01)^0.5)-SUM($G91:AE91),('PTRM input'!$G$144*(1+rvanilla01)^0.5)/A2stdlife)) -> 2.647564904 | AG91: =IF(A2stdlife="n/a","n/a",IF(AG$3>(A2stdlife+$E91),('PTRM input'!$G$144*(1+rvanilla01)^0.5)-SUM($G91:AF91),('PTRM input'!$G$144*(1+rvanilla01)^0.5)/A2stdlife)) -> 2.647564904 | AH91: =IF(A2stdlife="n/a","n/a",IF(AH$3>(A2stdlife+$E91),('PTRM input'!$G$144*(1+rvanilla01)^0.5)-SUM($G91:AG91),('PTRM input'!$G$144*(1+rvanilla01)^0.5)/A2stdlife)) -> 2.647564904 | AI91: =IF(A2stdlife="n/a","n/a",IF(AI$3>(A2stdlife+$E91),('PTRM input'!$G$144*(1+rvanilla01)^0.5)-SUM($G91:AH91),('PTRM input'!$G$144*(1+rvanilla01)^0.5)/A2stdlife)) -> 2.647564904 | AJ91: =IF(A2stdlife="n/a","n/a",IF(AJ$3>(A2stdlife+$E91),('PTRM input'!$G$144*(1+rvanilla01)^0.5)-SUM($G91:AI91),('PTRM input'!$G$144*(1+rvanilla01)^0.5)/A2stdlife)) -> 2.647564904 | AK91: =IF(A2stdlife="n/a","n/a",IF(AK$3>(A2stdlife+$E91),('PTRM input'!$G$144*(1+rvanilla01)^0.5)-SUM($G91:AJ91),('PTRM input'!$G$144*(1+rvanilla01)^0.5)/A2stdlife)) -> 2.647564904 | AL91: =IF(A2stdlife="n/a","n/a",IF(AL$3>(A2stdlife+$E91),('PTRM input'!$G$144*(1+rvanilla01)^0.5)-SUM($G91:AK91),('PTRM input'!$G$144*(1+rvanilla01)^0.5)/A2stdlife)) -> 2.647564904 | AM91: =IF(A2stdlife="n/a","n/a",IF(AM$3>(A2stdlife+$E91),('PTRM input'!$G$144*(1+rvanilla01)^0.5)-SUM($G91:AL91),('PTRM input'!$G$144*(1+rvanilla01)^0.5)/A2stdlife)) -> 2.647564904 | AN91: =IF(A2stdlife="n/a","n/a",IF(AN$3>(A2stdlife+$E91),('PTRM input'!$G$144*(1+rvanilla01)^0.5)-SUM($G91:AM91),('PTRM input'!$G$144*(1+rvanilla01)^0.5)/A2stdlife)) -> 2.647564904 | AO91: =IF(A2stdlife="n/a","n/a",IF(AO$3>(A2stdlife+$E91),('PTRM input'!$G$144*(1+rvanilla01)^0.5)-SUM($G91:AN91),('PTRM input'!$G$144*(1+rvanilla01)^0.5)/A2stdlife)) -> 2.647564904 | AP91: =IF(A2stdlife="n/a","n/a",IF(AP$3>(A2stdlife+$E91),('PTRM input'!$G$144*(1+rvanilla01)^0.5)-SUM($G91:AO91),('PTRM input'!$G$144*(1+rvanilla01)^0.5)/A2stdlife)) -> 2.647564904 | AQ91: =IF(A2stdlife="n/a","n/a",IF(AQ$3>(A2stdlife+$E91),('PTRM input'!$G$144*(1+rvanilla01)^0.5)-SUM($G91:AP91),('PTRM input'!$G$144*(1+rvanilla01)^0.5)/A2stdlife)) -> 2.647564904 | AR91: =IF(A2stdlife="n/a","n/a",IF(AR$3>(A2stdlife+$E91),('PTRM input'!$G$144*(1+rvanilla01)^0.5)-SUM($G91:AQ91),('PTRM input'!$G$144*(1+rvanilla01)^0.5)/A2stdlife)) -> 2.647564904 | AS91: =IF(A2stdlife="n/a","n/a",IF(AS$3>(A2stdlife+$E91),('PTRM input'!$G$144*(1+rvanilla01)^0.5)-SUM($G91:AR91),('PTRM input'!$G$144*(1+rvanilla01)^0.5)/A2stdlife)) -> 2.647564904 | AT91: =IF(A2stdlife="n/a","n/a",IF(AT$3>(A2stdlife+$E91),('PTRM input'!$G$144*(1+rvanilla01)^0.5)-SUM($G91:AS91),('PTRM input'!$G$144*(1+rvanilla01)^0.5)/A2stdlife)) -> 2.647564904 | AU91: =IF(A2stdlife="n/a","n/a",IF(AU$3>(A2stdlife+$E91),('PTRM input'!$G$144*(1+rvanilla01)^0.5)-SUM($G91:AT91),('PTRM input'!$G$144*(1+rvanilla01)^0.5)/A2stdlife)) -> 2.647564904 | AV91: =IF(A2stdlife="n/a","n/a",IF(AV$3>(A2stdlife+$E91),('PTRM input'!$G$144*(1+rvanilla01)^0.5)-SUM($G91:AU91),('PTRM input'!$G$144*(1+rvanilla01)^0.5)/A2stdlife)) -> 2.647564904 | AW91: =IF(A2stdlife="n/a","n/a",IF(AW$3>(A2stdlife+$E91),('PTRM input'!$G$144*(1+rvanilla01)^0.5)-SUM($G91:AV91),('PTRM input'!$G$144*(1+rvanilla01)^0.5)/A2stdlife)) -> 2.647564904 | AX91: =IF(A2stdlife="n/a","n/a",IF(AX$3>(A2stdlife+$E91),('PTRM input'!$G$144*(1+rvanilla01)^0.5)-SUM($G91:AW91),('PTRM input'!$G$144*(1+rvanilla01)^0.5)/A2stdlife)) -> 2.647564904 | AY91: =IF(A2stdlife="n/a","n/a",IF(AY$3>(A2stdlife+$E91),('PTRM input'!$G$144*(1+rvanilla01)^0.5)-SUM($G91:AX91),('PTRM input'!$G$144*(1+rvanilla01)^0.5)/A2stdlife)) -> 2.647564904 | AZ91: =IF(A2stdlife="n/a","n/a",IF(AZ$3>(A2stdlife+$E91),('PTRM input'!$G$144*(1+rvanilla01)^0.5)-SUM($G91:AY91),('PTRM input'!$G$144*(1+rvanilla01)^0.5)/A2stdlife)) -> 2.647564904 | BA91: =IF(A2stdlife="n/a","n/a",IF(BA$3>(A2stdlife+$E91),('PTRM input'!$G$144*(1+rvanilla01)^0.5)-SUM($G91:AZ91),('PTRM input'!$G$144*(1+rvanilla01)^0.5)/A2stdlife)) -> 2.647564904 | BB91: =IF(A2stdlife="n/a","n/a",IF(BB$3>(A2stdlife+$E91),('PTRM input'!$G$144*(1+rvanilla01)^0.5)-SUM($G91:BA91),('PTRM input'!$G$144*(1+rvanilla01)^0.5)/A2stdlife)) -> 2.647564904 | BC91: =IF(A2stdlife="n/a","n/a",IF(BC$3>(A2stdlife+$E91),('PTRM input'!$G$144*(1+rvanilla01)^0.5)-SUM($G91:BB91),('PTRM input'!$G$144*(1+rvanilla01)^0.5)/A2stdlife)) -> 2.647564904 | BD91: =IF(A2stdlife="n/a","n/a",IF(BD$3>(A2stdlife+$E91),('PTRM input'!$G$144*(1+rvanilla01)^0.5)-SUM($G91:BC91),('PTRM input'!$G$144*(1+rvanilla01)^0.5)/A2stdlife)) -> 2.647564904 | BE91: =IF(A2stdlife="n/a","n/a",IF(BE$3>(A2stdlife+$E91),('PTRM input'!$G$144*(1+rvanilla01)^0.5)-SUM($G91:BD91),('PTRM input'!$G$144*(1+rvanilla01)^0.5)/A2stdlife)) -> 2.647564904 | BF91: =IF(A2stdlife="n/a","n/a",IF(BF$3>(A2stdlife+$E91),('PTRM input'!$G$144*(1+rvanilla01)^0.5)-SUM($G91:BE91),('PTRM input'!$G$144*(1+rvanilla01)^0.5)/A2stdlife)) -> 2.647564904 | BG91: =IF(A2stdlife="n/a","n/a",IF(BG$3>(A2stdlife+$E91),('PTRM input'!$G$144*(1+rvanilla01)^0.5)-SUM($G91:BF91),('PTRM input'!$G$144*(1+rvanilla01)^0.5)/A2stdlife)) -> 5.684341886e-14 | BH91: =IF(A2stdlife="n/a","n/a",IF(BH$3>(A2stdlife+$E91),('PTRM input'!$G$144*(1+rvanilla01)^0.5)-SUM($G91:BG91),('PTRM input'!$G$144*(1+rvanilla01)^0.5)/A2stdlife)) -> 0 | BI91: =IF(A2stdlife="n/a","n/a",IF(BI$3>(A2stdlife+$E91),('PTRM input'!$G$144*(1+rvanilla01)^0.5)-SUM($G91:BH91),('PTRM input'!$G$144*(1+rvanilla01)^0.5)/A2stdlife)) -> 0
E92: 2 | I92: =IF(A2stdlife="n/a","n/a",IF(I$3>(A2stdlife+$E92),('PTRM input'!$H$144*(1+rvanilla02)^0.5)-SUM($H92:H92),('PTRM input'!$H$144*(1+rvanilla02)^0.5)/A2stdlife)) -> 0 | J92: =IF(A2stdlife="n/a","n/a",IF(J$3>(A2stdlife+$E92),('PTRM input'!$H$144*(1+rvanilla02)^0.5)-SUM($H92:I92),('PTRM input'!$H$144*(1+rvanilla02)^0.5)/A2stdlife)) -> 0 | K92: =IF(A2stdlife="n/a","n/a",IF(K$3>(A2stdlife+$E92),('PTRM input'!$H$144*(1+rvanilla02)^0.5)-SUM($H92:J92),('PTRM input'!$H$144*(1+rvanilla02)^0.5)/A2stdlife)) -> 0 | L92: =IF(A2stdlife="n/a","n/a",IF(L$3>(A2stdlife+$E92),('PTRM input'!$H$144*(1+rvanilla02)^0.5)-SUM($H92:K92),('PTRM input'!$H$144*(1+rvanilla02)^0.5)/A2stdlife)) -> 0 | M92: =IF(A2stdlife="n/a","n/a",IF(M$3>(A2stdlife+$E92),('PTRM input'!$H$144*(1+rvanilla02)^0.5)-SUM($H92:L92),('PTRM input'!$H$144*(1+rvanilla02)^0.5)/A2stdlife)) -> 0 | N92: =IF(A2stdlife="n/a","n/a",IF(N$3>(A2stdlife+$E92),('PTRM input'!$H$144*(1+rvanilla02)^0.5)-SUM($H92:M92),('PTRM input'!$H$144*(1+rvanilla02)^0.5)/A2stdlife)) -> 0 | O92: =IF(A2stdlife="n/a","n/a",IF(O$3>(A2stdlife+$E92),('PTRM input'!$H$144*(1+rvanilla02)^0.5)-SUM($H92:N92),('PTRM input'!$H$144*(1+rvanilla02)^0.5)/A2stdlife)) -> 0 | P92: =IF(A2stdlife="n/a","n/a",IF(P$3>(A2stdlife+$E92),('PTRM input'!$H$144*(1+rvanilla02)^0.5)-SUM($H92:O92),('PTRM input'!$H$144*(1+rvanilla02)^0.5)/A2stdlife)) -> 0 | Q92: =IF(A2stdlife="n/a","n/a",IF(Q$3>(A2stdlife+$E92),('PTRM input'!$H$144*(1+rvanilla02)^0.5)-SUM($H92:P92),('PTRM input'!$H$144*(1+rvanilla02)^0.5)/A2stdlife)) -> 0 | R92: =IF(A2stdlife="n/a","n/a",IF(R$3>(A2stdlife+$E92),('PTRM input'!$H$144*(1+rvanilla02)^0.5)-SUM($H92:Q92),('PTRM input'!$H$144*(1+rvanilla02)^0.5)/A2stdlife)) -> 0 | S92: =IF(A2stdlife="n/a","n/a",IF(S$3>(A2stdlife+$E92),('PTRM input'!$H$144*(1+rvanilla02)^0.5)-SUM($H92:R92),('PTRM input'!$H$144*(1+rvanilla02)^0.5)/A2stdlife)) -> 0 | T92: =IF(A2stdlife="n/a","n/a",IF(T$3>(A2stdlife+$E92),('PTRM input'!$H$144*(1+rvanilla02)^0.5)-SUM($H92:S92),('PTRM input'!$H$144*(1+rvanilla02)^0.5)/A2stdlife)) -> 0 | U92: =IF(A2stdlife="n/a","n/a",IF(U$3>(A2stdlife+$E92),('PTRM input'!$H$144*(1+rvanilla02)^0.5)-SUM($H92:T92),('PTRM input'!$H$144*(1+rvanilla02)^0.5)/A2stdlife)) -> 0 | V92: =IF(A2stdlife="n/a","n/a",IF(V$3>(A2stdlife+$E92),('PTRM input'!$H$144*(1+rvanilla02)^0.5)-SUM($H92:U92),('PTRM input'!$H$144*(1+rvanilla02)^0.5)/A2stdlife)) -> 0 | W92: =IF(A2stdlife="n/a","n/a",IF(W$3>(A2stdlife+$E92),('PTRM input'!$H$144*(1+rvanilla02)^0.5)-SUM($H92:V92),('PTRM input'!$H$144*(1+rvanilla02)^0.5)/A2stdlife)) -> 0 | X92: =IF(A2stdlife="n/a","n/a",IF(X$3>(A2stdlife+$E92),('PTRM input'!$H$144*(1+rvanilla02)^0.5)-SUM($H92:W92),('PTRM input'!$H$144*(1+rvanilla02)^0.5)/A2stdlife)) -> 0 | Y92: =IF(A2stdlife="n/a","n/a",IF(Y$3>(A2stdlife+$E92),('PTRM input'!$H$144*(1+rvanilla02)^0.5)-SUM($H92:X92),('PTRM input'!$H$144*(1+rvanilla02)^0.5)/A2stdlife)) -> 0 | Z92: =IF(A2stdlife="n/a","n/a",IF(Z$3>(A2stdlife+$E92),('PTRM input'!$H$144*(1+rvanilla02)^0.5)-SUM($H92:Y92),('PTRM input'!$H$144*(1+rvanilla02)^0.5)/A2stdlife)) -> 0 | AA92: =IF(A2stdlife="n/a","n/a",IF(AA$3>(A2stdlife+$E92),('PTRM input'!$H$144*(1+rvanilla02)^0.5)-SUM($H92:Z92),('PTRM input'!$H$144*(1+rvanilla02)^0.5)/A2stdlife)) -> 0 | AB92: =IF(A2stdlife="n/a","n/a",IF(AB$3>(A2stdlife+$E92),('PTRM input'!$H$144*(1+rvanilla02)^0.5)-SUM($H92:AA92),('PTRM input'!$H$144*(1+rvanilla02)^0.5)/A2stdlife)) -> 0 | AC92: =IF(A2stdlife="n/a","n/a",IF(AC$3>(A2stdlife+$E92),('PTRM input'!$H$144*(1+rvanilla02)^0.5)-SUM($H92:AB92),('PTRM input'!$H$144*(1+rvanilla02)^0.5)/A2stdlife)) -> 0 | AD92: =IF(A2stdlife="n/a","n/a",IF(AD$3>(A2stdlife+$E92),('PTRM input'!$H$144*(1+rvanilla02)^0.5)-SUM($H92:AC92),('PTRM input'!$H$144*(1+rvanilla02)^0.5)/A2stdlife)) -> 0 | AE92: =IF(A2stdlife="n/a","n/a",IF(AE$3>(A2stdlife+$E92),('PTRM input'!$H$144*(1+rvanilla02)^0.5)-SUM($H92:AD92),('PTRM input'!$H$144*(1+rvanilla02)^0.5)/A2stdlife)) -> 0 | AF92: =IF(A2stdlife="n/a","n/a",IF(AF$3>(A2stdlife+$E92),('PTRM input'!$H$144*(1+rvanilla02)^0.5)-SUM($H92:AE92),('PTRM input'!$H$144*(1+rvanilla02)^0.5)/A2stdlife)) -> 0 | AG92: =IF(A2stdlife="n/a","n/a",IF(AG$3>(A2stdlife+$E92),('PTRM input'!$H$144*(1+rvanilla02)^0.5)-SUM($H92:AF92),('PTRM input'!$H$144*(1+rvanilla02)^0.5)/A2stdlife)) -> 0 | AH92: =IF(A2stdlife="n/a","n/a",IF(AH$3>(A2stdlife+$E92),('PTRM input'!$H$144*(1+rvanilla02)^0.5)-SUM($H92:AG92),('PTRM input'!$H$144*(1+rvanilla02)^0.5)/A2stdlife)) -> 0 | AI92: =IF(A2stdlife="n/a","n/a",IF(AI$3>(A2stdlife+$E92),('PTRM input'!$H$144*(1+rvanilla02)^0.5)-SUM($H92:AH92),('PTRM input'!$H$144*(1+rvanilla02)^0.5)/A2stdlife)) -> 0 | AJ92: =IF(A2stdlife="n/a","n/a",IF(AJ$3>(A2stdlife+$E92),('PTRM input'!$H$144*(1+rvanilla02)^0.5)-SUM($H92:AI92),('PTRM input'!$H$144*(1+rvanilla02)^0.5)/A2stdlife)) -> 0 | AK92: =IF(A2stdlife="n/a","n/a",IF(AK$3>(A2stdlife+$E92),('PTRM input'!$H$144*(1+rvanilla02)^0.5)-SUM($H92:AJ92),('PTRM input'!$H$144*(1+rvanilla02)^0.5)/A2stdlife)) -> 0 | AL92: =IF(A2stdlife="n/a","n/a",IF(AL$3>(A2stdlife+$E92),('PTRM input'!$H$144*(1+rvanilla02)^0.5)-SUM($H92:AK92),('PTRM input'!$H$144*(1+rvanilla02)^0.5)/A2stdlife)) -> 0 | AM92: =IF(A2stdlife="n/a","n/a",IF(AM$3>(A2stdlife+$E92),('PTRM input'!$H$144*(1+rvanilla02)^0.5)-SUM($H92:AL92),('PTRM input'!$H$144*(1+rvanilla02)^0.5)/A2stdlife)) -> 0 | AN92: =IF(A2stdlife="n/a","n/a",IF(AN$3>(A2stdlife+$E92),('PTRM input'!$H$144*(1+rvanilla02)^0.5)-SUM($H92:AM92),('PTRM input'!$H$144*(1+rvanilla02)^0.5)/A2stdlife)) -> 0 | AO92: =IF(A2stdlife="n/a","n/a",IF(AO$3>(A2stdlife+$E92),('PTRM input'!$H$144*(1+rvanilla02)^0.5)-SUM($H92:AN92),('PTRM input'!$H$144*(1+rvanilla02)^0.5)/A2stdlife)) -> 0 | AP92: =IF(A2stdlife="n/a","n/a",IF(AP$3>(A2stdlife+$E92),('PTRM input'!$H$144*(1+rvanilla02)^0.5)-SUM($H92:AO92),('PTRM input'!$H$144*(1+rvanilla02)^0.5)/A2stdlife)) -> 0 | AQ92: =IF(A2stdlife="n/a","n/a",IF(AQ$3>(A2stdlife+$E92),('PTRM input'!$H$144*(1+rvanilla02)^0.5)-SUM($H92:AP92),('PTRM input'!$H$144*(1+rvanilla02)^0.5)/A2stdlife)) -> 0 | AR92: =IF(A2stdlife="n/a","n/a",IF(AR$3>(A2stdlife+$E92),('PTRM input'!$H$144*(1+rvanilla02)^0.5)-SUM($H92:AQ92),('PTRM input'!$H$144*(1+rvanilla02)^0.5)/A2stdlife)) -> 0 | AS92: =IF(A2stdlife="n/a","n/a",IF(AS$3>(A2stdlife+$E92),('PTRM input'!$H$144*(1+rvanilla02)^0.5)-SUM($H92:AR92),('PTRM input'!$H$144*(1+rvanilla02)^0.5)/A2stdlife)) -> 0 | AT92: =IF(A2stdlife="n/a","n/a",IF(AT$3>(A2stdlife+$E92),('PTRM input'!$H$144*(1+rvanilla02)^0.5)-SUM($H92:AS92),('PTRM input'!$H$144*(1+rvanilla02)^0.5)/A2stdlife)) -> 0 | AU92: =IF(A2stdlife="n/a","n/a",IF(AU$3>(A2stdlife+$E92),('PTRM input'!$H$144*(1+rvanilla02)^0.5)-SUM($H92:AT92),('PTRM input'!$H$144*(1+rvanilla02)^0.5)/A2stdlife)) -> 0 | AV92: =IF(A2stdlife="n/a","n/a",IF(AV$3>(A2stdlife+$E92),('PTRM input'!$H$144*(1+rvanilla02)^0.5)-SUM($H92:AU92),('PTRM input'!$H$144*(1+rvanilla02)^0.5)/A2stdlife)) -> 0 | AW92: =IF(A2stdlife="n/a","n/a",IF(AW$3>(A2stdlife+$E92),('PTRM input'!$H$144*(1+rvanilla02)^0.5)-SUM($H92:AV92),('PTRM input'!$H$144*(1+rvanilla02)^0.5)/A2stdlife)) -> 0 | AX92: =IF(A2stdlife="n/a","n/a",IF(AX$3>(A2stdlife+$E92),('PTRM input'!$H$144*(1+rvanilla02)^0.5)-SUM($H92:AW92),('PTRM input'!$H$144*(1+rvanilla02)^0.5)/A2stdlife)) -> 0 | AY92: =IF(A2stdlife="n/a","n/a",IF(AY$3>(A2stdlife+$E92),('PTRM input'!$H$144*(1+rvanilla02)^0.5)-SUM($H92:AX92),('PTRM input'!$H$144*(1+rvanilla02)^0.5)/A2stdlife)) -> 0 | AZ92: =IF(A2stdlife="n/a","n/a",IF(AZ$3>(A2stdlife+$E92),('PTRM input'!$H$144*(1+rvanilla02)^0.5)-SUM($H92:AY92),('PTRM input'!$H$144*(1+rvanilla02)^0.5)/A2stdlife)) -> 0 | BA92: =IF(A2stdlife="n/a","n/a",IF(BA$3>(A2stdlife+$E92),('PTRM input'!$H$144*(1+rvanilla02)^0.5)-SUM($H92:AZ92),('PTRM input'!$H$144*(1+rvanilla02)^0.5)/A2stdlife)) -> 0 | BB92: =IF(A2stdlife="n/a","n/a",IF(BB$3>(A2stdlife+$E92),('PTRM input'!$H$144*(1+rvanilla02)^0.5)-SUM($H92:BA92),('PTRM input'!$H$144*(1+rvanilla02)^0.5)/A2stdlife)) -> 0 | BC92: =IF(A2stdlife="n/a","n/a",IF(BC$3>(A2stdlife+$E92),('PTRM input'!$H$144*(1+rvanilla02)^0.5)-SUM($H92:BB92),('PTRM input'!$H$144*(1+rvanilla02)^0.5)/A2stdlife)) -> 0 | BD92: =IF(A2stdlife="n/a","n/a",IF(BD$3>(A2stdlife+$E92),('PTRM input'!$H$144*(1+rvanilla02)^0.5)-SUM($H92:BC92),('PTRM input'!$H$144*(1+rvanilla02)^0.5)/A2stdlife)) -> 0 | BE92: =IF(A2stdlife="n/a","n/a",IF(BE$3>(A2stdlife+$E92),('PTRM input'!$H$144*(1+rvanilla02)^0.5)-SUM($H92:BD92),('PTRM input'!$H$144*(1+rvanilla02)^0.5)/A2stdlife)) -> 0 | BF92: =IF(A2stdlife="n/a","n/a",IF(BF$3>(A2stdlife+$E92),('PTRM input'!$H$144*(1+rvanilla02)^0.5)-SUM($H92:BE92),('PTRM input'!$H$144*(1+rvanilla02)^0.5)/A2stdlife)) -> 0 | BG92: =IF(A2stdlife="n/a","n/a",IF(BG$3>(A2stdlife+$E92),('PTRM input'!$H$144*(1+rvanilla02)^0.5)-SUM($H92:BF92),('PTRM input'!$H$144*(1+rvanilla02)^0.5)/A2stdlife)) -> 0 | BH92: =IF(A2stdlife="n/a","n/a",IF(BH$3>(A2stdlife+$E92),('PTRM input'!$H$144*(1+rvanilla02)^0.5)-SUM($H92:BG92),('PTRM input'!$H$144*(1+rvanilla02)^0.5)/A2stdlife)) -> 0 | BI92: =IF(A2stdlife="n/a","n/a",IF(BI$3>(A2stdlife+$E92),('PTRM input'!$H$144*(1+rvanilla02)^0.5)-SUM($H92:BH92),('PTRM input'!$H$144*(1+rvanilla02)^0.5)/A2stdlife)) -> 0
E93: 3 | J93: =IF(A2stdlife="n/a","n/a",IF(J$3>(A2stdlife+$E93),('PTRM input'!$I$144*(1+rvanilla03)^0.5)-SUM($I93:I93),('PTRM input'!$I$144*(1+rvanilla03)^0.5)/A2stdlife)) -> 0 | K93: =IF(A2stdlife="n/a","n/a",IF(K$3>(A2stdlife+$E93),('PTRM input'!$I$144*(1+rvanilla03)^0.5)-SUM($I93:J93),('PTRM input'!$I$144*(1+rvanilla03)^0.5)/A2stdlife)) -> 0 | L93: =IF(A2stdlife="n/a","n/a",IF(L$3>(A2stdlife+$E93),('PTRM input'!$I$144*(1+rvanilla03)^0.5)-SUM($I93:K93),('PTRM input'!$I$144*(1+rvanilla03)^0.5)/A2stdlife)) -> 0 | M93: =IF(A2stdlife="n/a","n/a",IF(M$3>(A2stdlife+$E93),('PTRM input'!$I$144*(1+rvanilla03)^0.5)-SUM($I93:L93),('PTRM input'!$I$144*(1+rvanilla03)^0.5)/A2stdlife)) -> 0 | N93: =IF(A2stdlife="n/a","n/a",IF(N$3>(A2stdlife+$E93),('PTRM input'!$I$144*(1+rvanilla03)^0.5)-SUM($I93:M93),('PTRM input'!$I$144*(1+rvanilla03)^0.5)/A2stdlife)) -> 0 | O93: =IF(A2stdlife="n/a","n/a",IF(O$3>(A2stdlife+$E93),('PTRM input'!$I$144*(1+rvanilla03)^0.5)-SUM($I93:N93),('PTRM input'!$I$144*(1+rvanilla03)^0.5)/A2stdlife)) -> 0 | P93: =IF(A2stdlife="n/a","n/a",IF(P$3>(A2stdlife+$E93),('PTRM input'!$I$144*(1+rvanilla03)^0.5)-SUM($I93:O93),('PTRM input'!$I$144*(1+rvanilla03)^0.5)/A2stdlife)) -> 0 | Q93: =IF(A2stdlife="n/a","n/a",IF(Q$3>(A2stdlife+$E93),('PTRM input'!$I$144*(1+rvanilla03)^0.5)-SUM($I93:P93),('PTRM input'!$I$144*(1+rvanilla03)^0.5)/A2stdlife)) -> 0 | R93: =IF(A2stdlife="n/a","n/a",IF(R$3>(A2stdlife+$E93),('PTRM input'!$I$144*(1+rvanilla03)^0.5)-SUM($I93:Q93),('PTRM input'!$I$144*(1+rvanilla03)^0.5)/A2stdlife)) -> 0 | S93: =IF(A2stdlife="n/a","n/a",IF(S$3>(A2stdlife+$E93),('PTRM input'!$I$144*(1+rvanilla03)^0.5)-SUM($I93:R93),('PTRM input'!$I$144*(1+rvanilla03)^0.5)/A2stdlife)) -> 0 | T93: =IF(A2stdlife="n/a","n/a",IF(T$3>(A2stdlife+$E93),('PTRM input'!$I$144*(1+rvanilla03)^0.5)-SUM($I93:S93),('PTRM input'!$I$144*(1+rvanilla03)^0.5)/A2stdlife)) -> 0 | U93: =IF(A2stdlife="n/a","n/a",IF(U$3>(A2stdlife+$E93),('PTRM input'!$I$144*(1+rvanilla03)^0.5)-SUM($I93:T93),('PTRM input'!$I$144*(1+rvanilla03)^0.5)/A2stdlife)) -> 0 | V93: =IF(A2stdlife="n/a","n/a",IF(V$3>(A2stdlife+$E93),('PTRM input'!$I$144*(1+rvanilla03)^0.5)-SUM($I93:U93),('PTRM input'!$I$144*(1+rvanilla03)^0.5)/A2stdlife)) -> 0 | W93: =IF(A2stdlife="n/a","n/a",IF(W$3>(A2stdlife+$E93),('PTRM input'!$I$144*(1+rvanilla03)^0.5)-SUM($I93:V93),('PTRM input'!$I$144*(1+rvanilla03)^0.5)/A2stdlife)) -> 0 | X93: =IF(A2stdlife="n/a","n/a",IF(X$3>(A2stdlife+$E93),('PTRM input'!$I$144*(1+rvanilla03)^0.5)-SUM($I93:W93),('PTRM input'!$I$144*(1+rvanilla03)^0.5)/A2stdlife)) -> 0 | Y93: =IF(A2stdlife="n/a","n/a",IF(Y$3>(A2stdlife+$E93),('PTRM input'!$I$144*(1+rvanilla03)^0.5)-SUM($I93:X93),('PTRM input'!$I$144*(1+rvanilla03)^0.5)/A2stdlife)) -> 0 | Z93: =IF(A2stdlife="n/a","n/a",IF(Z$3>(A2stdlife+$E93),('PTRM input'!$I$144*(1+rvanilla03)^0.5)-SUM($I93:Y93),('PTRM input'!$I$144*(1+rvanilla03)^0.5)/A2stdlife)) -> 0 | AA93: =IF(A2stdlife="n/a","n/a",IF(AA$3>(A2stdlife+$E93),('PTRM input'!$I$144*(1+rvanilla03)^0.5)-SUM($I93:Z93),('PTRM input'!$I$144*(1+rvanilla03)^0.5)/A2stdlife)) -> 0 | AB93: =IF(A2stdlife="n/a","n/a",IF(AB$3>(A2stdlife+$E93),('PTRM input'!$I$144*(1+rvanilla03)^0.5)-SUM($I93:AA93),('PTRM input'!$I$144*(1+rvanilla03)^0.5)/A2stdlife)) -> 0 | AC93: =IF(A2stdlife="n/a","n/a",IF(AC$3>(A2stdlife+$E93),('PTRM input'!$I$144*(1+rvanilla03)^0.5)-SUM($I93:AB93),('PTRM input'!$I$144*(1+rvanilla03)^0.5)/A2stdlife)) -> 0 | AD93: =IF(A2stdlife="n/a","n/a",IF(AD$3>(A2stdlife+$E93),('PTRM input'!$I$144*(1+rvanilla03)^0.5)-SUM($I93:AC93),('PTRM input'!$I$144*(1+rvanilla03)^0.5)/A2stdlife)) -> 0 | AE93: =IF(A2stdlife="n/a","n/a",IF(AE$3>(A2stdlife+$E93),('PTRM input'!$I$144*(1+rvanilla03)^0.5)-SUM($I93:AD93),('PTRM input'!$I$144*(1+rvanilla03)^0.5)/A2stdlife)) -> 0 | AF93: =IF(A2stdlife="n/a","n/a",IF(AF$3>(A2stdlife+$E93),('PTRM input'!$I$144*(1+rvanilla03)^0.5)-SUM($I93:AE93),('PTRM input'!$I$144*(1+rvanilla03)^0.5)/A2stdlife)) -> 0 | AG93: =IF(A2stdlife="n/a","n/a",IF(AG$3>(A2stdlife+$E93),('PTRM input'!$I$144*(1+rvanilla03)^0.5)-SUM($I93:AF93),('PTRM input'!$I$144*(1+rvanilla03)^0.5)/A2stdlife)) -> 0 | AH93: =IF(A2stdlife="n/a","n/a",IF(AH$3>(A2stdlife+$E93),('PTRM input'!$I$144*(1+rvanilla03)^0.5)-SUM($I93:AG93),('PTRM input'!$I$144*(1+rvanilla03)^0.5)/A2stdlife)) -> 0 | AI93: =IF(A2stdlife="n/a","n/a",IF(AI$3>(A2stdlife+$E93),('PTRM input'!$I$144*(1+rvanilla03)^0.5)-SUM($I93:AH93),('PTRM input'!$I$144*(1+rvanilla03)^0.5)/A2stdlife)) -> 0 | AJ93: =IF(A2stdlife="n/a","n/a",IF(AJ$3>(A2stdlife+$E93),('PTRM input'!$I$144*(1+rvanilla03)^0.5)-SUM($I93:AI93),('PTRM input'!$I$144*(1+rvanilla03)^0.5)/A2stdlife)) -> 0 | AK93: =IF(A2stdlife="n/a","n/a",IF(AK$3>(A2stdlife+$E93),('PTRM input'!$I$144*(1+rvanilla03)^0.5)-SUM($I93:AJ93),('PTRM input'!$I$144*(1+rvanilla03)^0.5)/A2stdlife)) -> 0 | AL93: =IF(A2stdlife="n/a","n/a",IF(AL$3>(A2stdlife+$E93),('PTRM input'!$I$144*(1+rvanilla03)^0.5)-SUM($I93:AK93),('PTRM input'!$I$144*(1+rvanilla03)^0.5)/A2stdlife)) -> 0 | AM93: =IF(A2stdlife="n/a","n/a",IF(AM$3>(A2stdlife+$E93),('PTRM input'!$I$144*(1+rvanilla03)^0.5)-SUM($I93:AL93),('PTRM input'!$I$144*(1+rvanilla03)^0.5)/A2stdlife)) -> 0 | AN93: =IF(A2stdlife="n/a","n/a",IF(AN$3>(A2stdlife+$E93),('PTRM input'!$I$144*(1+rvanilla03)^0.5)-SUM($I93:AM93),('PTRM input'!$I$144*(1+rvanilla03)^0.5)/A2stdlife)) -> 0 | AO93: =IF(A2stdlife="n/a","n/a",IF(AO$3>(A2stdlife+$E93),('PTRM input'!$I$144*(1+rvanilla03)^0.5)-SUM($I93:AN93),('PTRM input'!$I$144*(1+rvanilla03)^0.5)/A2stdlife)) -> 0 | AP93: =IF(A2stdlife="n/a","n/a",IF(AP$3>(A2stdlife+$E93),('PTRM input'!$I$144*(1+rvanilla03)^0.5)-SUM($I93:AO93),('PTRM input'!$I$144*(1+rvanilla03)^0.5)/A2stdlife)) -> 0 | AQ93: =IF(A2stdlife="n/a","n/a",IF(AQ$3>(A2stdlife+$E93),('PTRM input'!$I$144*(1+rvanilla03)^0.5)-SUM($I93:AP93),('PTRM input'!$I$144*(1+rvanilla03)^0.5)/A2stdlife)) -> 0 | AR93: =IF(A2stdlife="n/a","n/a",IF(AR$3>(A2stdlife+$E93),('PTRM input'!$I$144*(1+rvanilla03)^0.5)-SUM($I93:AQ93),('PTRM input'!$I$144*(1+rvanilla03)^0.5)/A2stdlife)) -> 0 | AS93: =IF(A2stdlife="n/a","n/a",IF(AS$3>(A2stdlife+$E93),('PTRM input'!$I$144*(1+rvanilla03)^0.5)-SUM($I93:AR93),('PTRM input'!$I$144*(1+rvanilla03)^0.5)/A2stdlife)) -> 0 | AT93: =IF(A2stdlife="n/a","n/a",IF(AT$3>(A2stdlife+$E93),('PTRM input'!$I$144*(1+rvanilla03)^0.5)-SUM($I93:AS93),('PTRM input'!$I$144*(1+rvanilla03)^0.5)/A2stdlife)) -> 0 | AU93: =IF(A2stdlife="n/a","n/a",IF(AU$3>(A2stdlife+$E93),('PTRM input'!$I$144*(1+rvanilla03)^0.5)-SUM($I93:AT93),('PTRM input'!$I$144*(1+rvanilla03)^0.5)/A2stdlife)) -> 0 | AV93: =IF(A2stdlife="n/a","n/a",IF(AV$3>(A2stdlife+$E93),('PTRM input'!$I$144*(1+rvanilla03)^0.5)-SUM($I93:AU93),('PTRM input'!$I$144*(1+rvanilla03)^0.5)/A2stdlife)) -> 0 | AW93: =IF(A2stdlife="n/a","n/a",IF(AW$3>(A2stdlife+$E93),('PTRM input'!$I$144*(1+rvanilla03)^0.5)-SUM($I93:AV93),('PTRM input'!$I$144*(1+rvanilla03)^0.5)/A2stdlife)) -> 0 | AX93: =IF(A2stdlife="n/a","n/a",IF(AX$3>(A2stdlife+$E93),('PTRM input'!$I$144*(1+rvanilla03)^0.5)-SUM($I93:AW93),('PTRM input'!$I$144*(1+rvanilla03)^0.5)/A2stdlife)) -> 0 | AY93: =IF(A2stdlife="n/a","n/a",IF(AY$3>(A2stdlife+$E93),('PTRM input'!$I$144*(1+rvanilla03)^0.5)-SUM($I93:AX93),('PTRM input'!$I$144*(1+rvanilla03)^0.5)/A2stdlife)) -> 0 | AZ93: =IF(A2stdlife="n/a","n/a",IF(AZ$3>(A2stdlife+$E93),('PTRM input'!$I$144*(1+rvanilla03)^0.5)-SUM($I93:AY93),('PTRM input'!$I$144*(1+rvanilla03)^0.5)/A2stdlife)) -> 0 | BA93: =IF(A2stdlife="n/a","n/a",IF(BA$3>(A2stdlife+$E93),('PTRM input'!$I$144*(1+rvanilla03)^0.5)-SUM($I93:AZ93),('PTRM input'!$I$144*(1+rvanilla03)^0.5)/A2stdlife)) -> 0 | BB93: =IF(A2stdlife="n/a","n/a",IF(BB$3>(A2stdlife+$E93),('PTRM input'!$I$144*(1+rvanilla03)^0.5)-SUM($I93:BA93),('PTRM input'!$I$144*(1+rvanilla03)^0.5)/A2stdlife)) -> 0 | BC93: =IF(A2stdlife="n/a","n/a",IF(BC$3>(A2stdlife+$E93),('PTRM input'!$I$144*(1+rvanilla03)^0.5)-SUM($I93:BB93),('PTRM input'!$I$144*(1+rvanilla03)^0.5)/A2stdlife)) -> 0 | BD93: =IF(A2stdlife="n/a","n/a",IF(BD$3>(A2stdlife+$E93),('PTRM input'!$I$144*(1+rvanilla03)^0.5)-SUM($I93:BC93),('PTRM input'!$I$144*(1+rvanilla03)^0.5)/A2stdlife)) -> 0 | BE93: =IF(A2stdlife="n/a","n/a",IF(BE$3>(A2stdlife+$E93),('PTRM input'!$I$144*(1+rvanilla03)^0.5)-SUM($I93:BD93),('PTRM input'!$I$144*(1+rvanilla03)^0.5)/A2stdlife)) -> 0 | BF93: =IF(A2stdlife="n/a","n/a",IF(BF$3>(A2stdlife+$E93),('PTRM input'!$I$144*(1+rvanilla03)^0.5)-SUM($I93:BE93),('PTRM input'!$I$144*(1+rvanilla03)^0.5)/A2stdlife)) -> 0 | BG93: =IF(A2stdlife="n/a","n/a",IF(BG$3>(A2stdlife+$E93),('PTRM input'!$I$144*(1+rvanilla03)^0.5)-SUM($I93:BF93),('PTRM input'!$I$144*(1+rvanilla03)^0.5)/A2stdlife)) -> 0 | BH93: =IF(A2stdlife="n/a","n/a",IF(BH$3>(A2stdlife+$E93),('PTRM input'!$I$144*(1+rvanilla03)^0.5)-SUM($I93:BG93),('PTRM input'!$I$144*(1+rvanilla03)^0.5)/A2stdlife)) -> 0 | BI93: =IF(A2stdlife="n/a","n/a",IF(BI$3>(A2stdlife+$E93),('PTRM input'!$I$144*(1+rvanilla03)^0.5)-SUM($I93:BH93),('PTRM input'!$I$144*(1+rvanilla03)^0.5)/A2stdlife)) -> 0
E94: 4 | K94: =IF(A2stdlife="n/a","n/a",IF(K$3>(A2stdlife+$E94),('PTRM input'!$J$144*(1+rvanilla04)^0.5)-SUM($J94:J94),('PTRM input'!$J$144*(1+rvanilla04)^0.5)/A2stdlife)) -> 0 | L94: =IF(A2stdlife="n/a","n/a",IF(L$3>(A2stdlife+$E94),('PTRM input'!$J$144*(1+rvanilla04)^0.5)-SUM($J94:K94),('PTRM input'!$J$144*(1+rvanilla04)^0.5)/A2stdlife)) -> 0 | M94: =IF(A2stdlife="n/a","n/a",IF(M$3>(A2stdlife+$E94),('PTRM input'!$J$144*(1+rvanilla04)^0.5)-SUM($J94:L94),('PTRM input'!$J$144*(1+rvanilla04)^0.5)/A2stdlife)) -> 0 | N94: =IF(A2stdlife="n/a","n/a",IF(N$3>(A2stdlife+$E94),('PTRM input'!$J$144*(1+rvanilla04)^0.5)-SUM($J94:M94),('PTRM input'!$J$144*(1+rvanilla04)^0.5)/A2stdlife)) -> 0 | O94: =IF(A2stdlife="n/a","n/a",IF(O$3>(A2stdlife+$E94),('PTRM input'!$J$144*(1+rvanilla04)^0.5)-SUM($J94:N94),('PTRM input'!$J$144*(1+rvanilla04)^0.5)/A2stdlife)) -> 0 | P94: =IF(A2stdlife="n/a","n/a",IF(P$3>(A2stdlife+$E94),('PTRM input'!$J$144*(1+rvanilla04)^0.5)-SUM($J94:O94),('PTRM input'!$J$144*(1+rvanilla04)^0.5)/A2stdlife)) -> 0 | Q94: =IF(A2stdlife="n/a","n/a",IF(Q$3>(A2stdlife+$E94),('PTRM input'!$J$144*(1+rvanilla04)^0.5)-SUM($J94:P94),('PTRM input'!$J$144*(1+rvanilla04)^0.5)/A2stdlife)) -> 0 | R94: =IF(A2stdlife="n/a","n/a",IF(R$3>(A2stdlife+$E94),('PTRM input'!$J$144*(1+rvanilla04)^0.5)-SUM($J94:Q94),('PTRM input'!$J$144*(1+rvanilla04)^0.5)/A2stdlife)) -> 0 | S94: =IF(A2stdlife="n/a","n/a",IF(S$3>(A2stdlife+$E94),('PTRM input'!$J$144*(1+rvanilla04)^0.5)-SUM($J94:R94),('PTRM input'!$J$144*(1+rvanilla04)^0.5)/A2stdlife)) -> 0 | T94: =IF(A2stdlife="n/a","n/a",IF(T$3>(A2stdlife+$E94),('PTRM input'!$J$144*(1+rvanilla04)^0.5)-SUM($J94:S94),('PTRM input'!$J$144*(1+rvanilla04)^0.5)/A2stdlife)) -> 0 | U94: =IF(A2stdlife="n/a","n/a",IF(U$3>(A2stdlife+$E94),('PTRM input'!$J$144*(1+rvanilla04)^0.5)-SUM($J94:T94),('PTRM input'!$J$144*(1+rvanilla04)^0.5)/A2stdlife)) -> 0 | V94: =IF(A2stdlife="n/a","n/a",IF(V$3>(A2stdlife+$E94),('PTRM input'!$J$144*(1+rvanilla04)^0.5)-SUM($J94:U94),('PTRM input'!$J$144*(1+rvanilla04)^0.5)/A2stdlife)) -> 0 | W94: =IF(A2stdlife="n/a","n/a",IF(W$3>(A2stdlife+$E94),('PTRM input'!$J$144*(1+rvanilla04)^0.5)-SUM($J94:V94),('PTRM input'!$J$144*(1+rvanilla04)^0.5)/A2stdlife)) -> 0 | X94: =IF(A2stdlife="n/a","n/a",IF(X$3>(A2stdlife+$E94),('PTRM input'!$J$144*(1+rvanilla04)^0.5)-SUM($J94:W94),('PTRM input'!$J$144*(1+rvanilla04)^0.5)/A2stdlife)) -> 0 | Y94: =IF(A2stdlife="n/a","n/a",IF(Y$3>(A2stdlife+$E94),('PTRM input'!$J$144*(1+rvanilla04)^0.5)-SUM($J94:X94),('PTRM input'!$J$144*(1+rvanilla04)^0.5)/A2stdlife)) -> 0 | Z94: =IF(A2stdlife="n/a","n/a",IF(Z$3>(A2stdlife+$E94),('PTRM input'!$J$144*(1+rvanilla04)^0.5)-SUM($J94:Y94),('PTRM input'!$J$144*(1+rvanilla04)^0.5)/A2stdlife)) -> 0 | AA94: =IF(A2stdlife="n/a","n/a",IF(AA$3>(A2stdlife+$E94),('PTRM input'!$J$144*(1+rvanilla04)^0.5)-SUM($J94:Z94),('PTRM input'!$J$144*(1+rvanilla04)^0.5)/A2stdlife)) -> 0 | AB94: =IF(A2stdlife="n/a","n/a",IF(AB$3>(A2stdlife+$E94),('PTRM input'!$J$144*(1+rvanilla04)^0.5)-SUM($J94:AA94),('PTRM input'!$J$144*(1+rvanilla04)^0.5)/A2stdlife)) -> 0 | AC94: =IF(A2stdlife="n/a","n/a",IF(AC$3>(A2stdlife+$E94),('PTRM input'!$J$144*(1+rvanilla04)^0.5)-SUM($J94:AB94),('PTRM input'!$J$144*(1+rvanilla04)^0.5)/A2stdlife)) -> 0 | AD94: =IF(A2stdlife="n/a","n/a",IF(AD$3>(A2stdlife+$E94),('PTRM input'!$J$144*(1+rvanilla04)^0.5)-SUM($J94:AC94),('PTRM input'!$J$144*(1+rvanilla04)^0.5)/A2stdlife)) -> 0 | AE94: =IF(A2stdlife="n/a","n/a",IF(AE$3>(A2stdlife+$E94),('PTRM input'!$J$144*(1+rvanilla04)^0.5)-SUM($J94:AD94),('PTRM input'!$J$144*(1+rvanilla04)^0.5)/A2stdlife)) -> 0 | AF94: =IF(A2stdlife="n/a","n/a",IF(AF$3>(A2stdlife+$E94),('PTRM input'!$J$144*(1+rvanilla04)^0.5)-SUM($J94:AE94),('PTRM input'!$J$144*(1+rvanilla04)^0.5)/A2stdlife)) -> 0 | AG94: =IF(A2stdlife="n/a","n/a",IF(AG$3>(A2stdlife+$E94),('PTRM input'!$J$144*(1+rvanilla04)^0.5)-SUM($J94:AF94),('PTRM input'!$J$144*(1+rvanilla04)^0.5)/A2stdlife)) -> 0 | AH94: =IF(A2stdlife="n/a","n/a",IF(AH$3>(A2stdlife+$E94),('PTRM input'!$J$144*(1+rvanilla04)^0.5)-SUM($J94:AG94),('PTRM input'!$J$144*(1+rvanilla04)^0.5)/A2stdlife)) -> 0 | AI94: =IF(A2stdlife="n/a","n/a",IF(AI$3>(A2stdlife+$E94),('PTRM input'!$J$144*(1+rvanilla04)^0.5)-SUM($J94:AH94),('PTRM input'!$J$144*(1+rvanilla04)^0.5)/A2stdlife)) -> 0 | AJ94: =IF(A2stdlife="n/a","n/a",IF(AJ$3>(A2stdlife+$E94),('PTRM input'!$J$144*(1+rvanilla04)^0.5)-SUM($J94:AI94),('PTRM input'!$J$144*(1+rvanilla04)^0.5)/A2stdlife)) -> 0 | AK94: =IF(A2stdlife="n/a","n/a",IF(AK$3>(A2stdlife+$E94),('PTRM input'!$J$144*(1+rvanilla04)^0.5)-SUM($J94:AJ94),('PTRM input'!$J$144*(1+rvanilla04)^0.5)/A2stdlife)) -> 0 | AL94: =IF(A2stdlife="n/a","n/a",IF(AL$3>(A2stdlife+$E94),('PTRM input'!$J$144*(1+rvanilla04)^0.5)-SUM($J94:AK94),('PTRM input'!$J$144*(1+rvanilla04)^0.5)/A2stdlife)) -> 0 | AM94: =IF(A2stdlife="n/a","n/a",IF(AM$3>(A2stdlife+$E94),('PTRM input'!$J$144*(1+rvanilla04)^0.5)-SUM($J94:AL94),('PTRM input'!$J$144*(1+rvanilla04)^0.5)/A2stdlife)) -> 0 | AN94: =IF(A2stdlife="n/a","n/a",IF(AN$3>(A2stdlife+$E94),('PTRM input'!$J$144*(1+rvanilla04)^0.5)-SUM($J94:AM94),('PTRM input'!$J$144*(1+rvanilla04)^0.5)/A2stdlife)) -> 0 | AO94: =IF(A2stdlife="n/a","n/a",IF(AO$3>(A2stdlife+$E94),('PTRM input'!$J$144*(1+rvanilla04)^0.5)-SUM($J94:AN94),('PTRM input'!$J$144*(1+rvanilla04)^0.5)/A2stdlife)) -> 0 | AP94: =IF(A2stdlife="n/a","n/a",IF(AP$3>(A2stdlife+$E94),('PTRM input'!$J$144*(1+rvanilla04)^0.5)-SUM($J94:AO94),('PTRM input'!$J$144*(1+rvanilla04)^0.5)/A2stdlife)) -> 0 | AQ94: =IF(A2stdlife="n/a","n/a",IF(AQ$3>(A2stdlife+$E94),('PTRM input'!$J$144*(1+rvanilla04)^0.5)-SUM($J94:AP94),('PTRM input'!$J$144*(1+rvanilla04)^0.5)/A2stdlife)) -> 0 | AR94: =IF(A2stdlife="n/a","n/a",IF(AR$3>(A2stdlife+$E94),('PTRM input'!$J$144*(1+rvanilla04)^0.5)-SUM($J94:AQ94),('PTRM input'!$J$144*(1+rvanilla04)^0.5)/A2stdlife)) -> 0 | AS94: =IF(A2stdlife="n/a","n/a",IF(AS$3>(A2stdlife+$E94),('PTRM input'!$J$144*(1+rvanilla04)^0.5)-SUM($J94:AR94),('PTRM input'!$J$144*(1+rvanilla04)^0.5)/A2stdlife)) -> 0 | AT94: =IF(A2stdlife="n/a","n/a",IF(AT$3>(A2stdlife+$E94),('PTRM input'!$J$144*(1+rvanilla04)^0.5)-SUM($J94:AS94),('PTRM input'!$J$144*(1+rvanilla04)^0.5)/A2stdlife)) -> 0 | AU94: =IF(A2stdlife="n/a","n/a",IF(AU$3>(A2stdlife+$E94),('PTRM input'!$J$144*(1+rvanilla04)^0.5)-SUM($J94:AT94),('PTRM input'!$J$144*(1+rvanilla04)^0.5)/A2stdlife)) -> 0 | AV94: =IF(A2stdlife="n/a","n/a",IF(AV$3>(A2stdlife+$E94),('PTRM input'!$J$144*(1+rvanilla04)^0.5)-SUM($J94:AU94),('PTRM input'!$J$144*(1+rvanilla04)^0.5)/A2stdlife)) -> 0 | AW94: =IF(A2stdlife="n/a","n/a",IF(AW$3>(A2stdlife+$E94),('PTRM input'!$J$144*(1+rvanilla04)^0.5)-SUM($J94:AV94),('PTRM input'!$J$144*(1+rvanilla04)^0.5)/A2stdlife)) -> 0 | AX94: =IF(A2stdlife="n/a","n/a",IF(AX$3>(A2stdlife+$E94),('PTRM input'!$J$144*(1+rvanilla04)^0.5)-SUM($J94:AW94),('PTRM input'!$J$144*(1+rvanilla04)^0.5)/A2stdlife)) -> 0 | AY94: =IF(A2stdlife="n/a","n/a",IF(AY$3>(A2stdlife+$E94),('PTRM input'!$J$144*(1+rvanilla04)^0.5)-SUM($J94:AX94),('PTRM input'!$J$144*(1+rvanilla04)^0.5)/A2stdlife)) -> 0 | AZ94: =IF(A2stdlife="n/a","n/a",IF(AZ$3>(A2stdlife+$E94),('PTRM input'!$J$144*(1+rvanilla04)^0.5)-SUM($J94:AY94),('PTRM input'!$J$144*(1+rvanilla04)^0.5)/A2stdlife)) -> 0 | BA94: =IF(A2stdlife="n/a","n/a",IF(BA$3>(A2stdlife+$E94),('PTRM input'!$J$144*(1+rvanilla04)^0.5)-SUM($J94:AZ94),('PTRM input'!$J$144*(1+rvanilla04)^0.5)/A2stdlife)) -> 0 | BB94: =IF(A2stdlife="n/a","n/a",IF(BB$3>(A2stdlife+$E94),('PTRM input'!$J$144*(1+rvanilla04)^0.5)-SUM($J94:BA94),('PTRM input'!$J$144*(1+rvanilla04)^0.5)/A2stdlife)) -> 0 | BC94: =IF(A2stdlife="n/a","n/a",IF(BC$3>(A2stdlife+$E94),('PTRM input'!$J$144*(1+rvanilla04)^0.5)-SUM($J94:BB94),('PTRM input'!$J$144*(1+rvanilla04)^0.5)/A2stdlife)) -> 0 | BD94: =IF(A2stdlife="n/a","n/a",IF(BD$3>(A2stdlife+$E94),('PTRM input'!$J$144*(1+rvanilla04)^0.5)-SUM($J94:BC94),('PTRM input'!$J$144*(1+rvanilla04)^0.5)/A2stdlife)) -> 0 | BE94: =IF(A2stdlife="n/a","n/a",IF(BE$3>(A2stdlife+$E94),('PTRM input'!$J$144*(1+rvanilla04)^0.5)-SUM($J94:BD94),('PTRM input'!$J$144*(1+rvanilla04)^0.5)/A2stdlife)) -> 0 | BF94: =IF(A2stdlife="n/a","n/a",IF(BF$3>(A2stdlife+$E94),('PTRM input'!$J$144*(1+rvanilla04)^0.5)-SUM($J94:BE94),('PTRM input'!$J$144*(1+rvanilla04)^0.5)/A2stdlife)) -> 0 | BG94: =IF(A2stdlife="n/a","n/a",IF(BG$3>(A2stdlife+$E94),('PTRM input'!$J$144*(1+rvanilla04)^0.5)-SUM($J94:BF94),('PTRM input'!$J$144*(1+rvanilla04)^0.5)/A2stdlife)) -> 0 | BH94: =IF(A2stdlife="n/a","n/a",IF(BH$3>(A2stdlife+$E94),('PTRM input'!$J$144*(1+rvanilla04)^0.5)-SUM($J94:BG94),('PTRM input'!$J$144*(1+rvanilla04)^0.5)/A2stdlife)) -> 0 | BI94: =IF(A2stdlife="n/a","n/a",IF(BI$3>(A2stdlife+$E94),('PTRM input'!$J$144*(1+rvanilla04)^0.5)-SUM($J94:BH94),('PTRM input'!$J$144*(1+rvanilla04)^0.5)/A2stdlife)) -> 0
E95: 5 | L95: =IF(A2stdlife="n/a","n/a",IF(L$3>(A2stdlife+$E95),('PTRM input'!$K$144*(1+rvanilla05)^0.5)-SUM($K95:K95),('PTRM input'!$K$144*(1+rvanilla05)^0.5)/A2stdlife)) -> 0 | M95: =IF(A2stdlife="n/a","n/a",IF(M$3>(A2stdlife+$E95),('PTRM input'!$K$144*(1+rvanilla05)^0.5)-SUM($K95:L95),('PTRM input'!$K$144*(1+rvanilla05)^0.5)/A2stdlife)) -> 0 | N95: =IF(A2stdlife="n/a","n/a",IF(N$3>(A2stdlife+$E95),('PTRM input'!$K$144*(1+rvanilla05)^0.5)-SUM($K95:M95),('PTRM input'!$K$144*(1+rvanilla05)^0.5)/A2stdlife)) -> 0 | O95: =IF(A2stdlife="n/a","n/a",IF(O$3>(A2stdlife+$E95),('PTRM input'!$K$144*(1+rvanilla05)^0.5)-SUM($K95:N95),('PTRM input'!$K$144*(1+rvanilla05)^0.5)/A2stdlife)) -> 0 | P95: =IF(A2stdlife="n/a","n/a",IF(P$3>(A2stdlife+$E95),('PTRM input'!$K$144*(1+rvanilla05)^0.5)-SUM($K95:O95),('PTRM input'!$K$144*(1+rvanilla05)^0.5)/A2stdlife)) -> 0 | Q95: =IF(A2stdlife="n/a","n/a",IF(Q$3>(A2stdlife+$E95),('PTRM input'!$K$144*(1+rvanilla05)^0.5)-SUM($K95:P95),('PTRM input'!$K$144*(1+rvanilla05)^0.5)/A2stdlife)) -> 0 | R95: =IF(A2stdlife="n/a","n/a",IF(R$3>(A2stdlife+$E95),('PTRM input'!$K$144*(1+rvanilla05)^0.5)-SUM($K95:Q95),('PTRM input'!$K$144*(1+rvanilla05)^0.5)/A2stdlife)) -> 0 | S95: =IF(A2stdlife="n/a","n/a",IF(S$3>(A2stdlife+$E95),('PTRM input'!$K$144*(1+rvanilla05)^0.5)-SUM($K95:R95),('PTRM input'!$K$144*(1+rvanilla05)^0.5)/A2stdlife)) -> 0 | T95: =IF(A2stdlife="n/a","n/a",IF(T$3>(A2stdlife+$E95),('PTRM input'!$K$144*(1+rvanilla05)^0.5)-SUM($K95:S95),('PTRM input'!$K$144*(1+rvanilla05)^0.5)/A2stdlife)) -> 0 | U95: =IF(A2stdlife="n/a","n/a",IF(U$3>(A2stdlife+$E95),('PTRM input'!$K$144*(1+rvanilla05)^0.5)-SUM($K95:T95),('PTRM input'!$K$144*(1+rvanilla05)^0.5)/A2stdlife)) -> 0 | V95: =IF(A2stdlife="n/a","n/a",IF(V$3>(A2stdlife+$E95),('PTRM input'!$K$144*(1+rvanilla05)^0.5)-SUM($K95:U95),('PTRM input'!$K$144*(1+rvanilla05)^0.5)/A2stdlife)) -> 0 | W95: =IF(A2stdlife="n/a","n/a",IF(W$3>(A2stdlife+$E95),('PTRM input'!$K$144*(1+rvanilla05)^0.5)-SUM($K95:V95),('PTRM input'!$K$144*(1+rvanilla05)^0.5)/A2stdlife)) -> 0 | X95: =IF(A2stdlife="n/a","n/a",IF(X$3>(A2stdlife+$E95),('PTRM input'!$K$144*(1+rvanilla05)^0.5)-SUM($K95:W95),('PTRM input'!$K$144*(1+rvanilla05)^0.5)/A2stdlife)) -> 0 | Y95: =IF(A2stdlife="n/a","n/a",IF(Y$3>(A2stdlife+$E95),('PTRM input'!$K$144*(1+rvanilla05)^0.5)-SUM($K95:X95),('PTRM input'!$K$144*(1+rvanilla05)^0.5)/A2stdlife)) -> 0 | Z95: =IF(A2stdlife="n/a","n/a",IF(Z$3>(A2stdlife+$E95),('PTRM input'!$K$144*(1+rvanilla05)^0.5)-SUM($K95:Y95),('PTRM input'!$K$144*(1+rvanilla05)^0.5)/A2stdlife)) -> 0 | AA95: =IF(A2stdlife="n/a","n/a",IF(AA$3>(A2stdlife+$E95),('PTRM input'!$K$144*(1+rvanilla05)^0.5)-SUM($K95:Z95),('PTRM input'!$K$144*(1+rvanilla05)^0.5)/A2stdlife)) -> 0 | AB95: =IF(A2stdlife="n/a","n/a",IF(AB$3>(A2stdlife+$E95),('PTRM input'!$K$144*(1+rvanilla05)^0.5)-SUM($K95:AA95),('PTRM input'!$K$144*(1+rvanilla05)^0.5)/A2stdlife)) -> 0 | AC95: =IF(A2stdlife="n/a","n/a",IF(AC$3>(A2stdlife+$E95),('PTRM input'!$K$144*(1+rvanilla05)^0.5)-SUM($K95:AB95),('PTRM input'!$K$144*(1+rvanilla05)^0.5)/A2stdlife)) -> 0 | AD95: =IF(A2stdlife="n/a","n/a",IF(AD$3>(A2stdlife+$E95),('PTRM input'!$K$144*(1+rvanilla05)^0.5)-SUM($K95:AC95),('PTRM input'!$K$144*(1+rvanilla05)^0.5)/A2stdlife)) -> 0 | AE95: =IF(A2stdlife="n/a","n/a",IF(AE$3>(A2stdlife+$E95),('PTRM input'!$K$144*(1+rvanilla05)^0.5)-SUM($K95:AD95),('PTRM input'!$K$144*(1+rvanilla05)^0.5)/A2stdlife)) -> 0 | AF95: =IF(A2stdlife="n/a","n/a",IF(AF$3>(A2stdlife+$E95),('PTRM input'!$K$144*(1+rvanilla05)^0.5)-SUM($K95:AE95),('PTRM input'!$K$144*(1+rvanilla05)^0.5)/A2stdlife)) -> 0 | AG95: =IF(A2stdlife="n/a","n/a",IF(AG$3>(A2stdlife+$E95),('PTRM input'!$K$144*(1+rvanilla05)^0.5)-SUM($K95:AF95),('PTRM input'!$K$144*(1+rvanilla05)^0.5)/A2stdlife)) -> 0 | AH95: =IF(A2stdlife="n/a","n/a",IF(AH$3>(A2stdlife+$E95),('PTRM input'!$K$144*(1+rvanilla05)^0.5)-SUM($K95:AG95),('PTRM input'!$K$144*(1+rvanilla05)^0.5)/A2stdlife)) -> 0 | AI95: =IF(A2stdlife="n/a","n/a",IF(AI$3>(A2stdlife+$E95),('PTRM input'!$K$144*(1+rvanilla05)^0.5)-SUM($K95:AH95),('PTRM input'!$K$144*(1+rvanilla05)^0.5)/A2stdlife)) -> 0 | AJ95: =IF(A2stdlife="n/a","n/a",IF(AJ$3>(A2stdlife+$E95),('PTRM input'!$K$144*(1+rvanilla05)^0.5)-SUM($K95:AI95),('PTRM input'!$K$144*(1+rvanilla05)^0.5)/A2stdlife)) -> 0 | AK95: =IF(A2stdlife="n/a","n/a",IF(AK$3>(A2stdlife+$E95),('PTRM input'!$K$144*(1+rvanilla05)^0.5)-SUM($K95:AJ95),('PTRM input'!$K$144*(1+rvanilla05)^0.5)/A2stdlife)) -> 0 | AL95: =IF(A2stdlife="n/a","n/a",IF(AL$3>(A2stdlife+$E95),('PTRM input'!$K$144*(1+rvanilla05)^0.5)-SUM($K95:AK95),('PTRM input'!$K$144*(1+rvanilla05)^0.5)/A2stdlife)) -> 0 | AM95: =IF(A2stdlife="n/a","n/a",IF(AM$3>(A2stdlife+$E95),('PTRM input'!$K$144*(1+rvanilla05)^0.5)-SUM($K95:AL95),('PTRM input'!$K$144*(1+rvanilla05)^0.5)/A2stdlife)) -> 0 | AN95: =IF(A2stdlife="n/a","n/a",IF(AN$3>(A2stdlife+$E95),('PTRM input'!$K$144*(1+rvanilla05)^0.5)-SUM($K95:AM95),('PTRM input'!$K$144*(1+rvanilla05)^0.5)/A2stdlife)) -> 0 | AO95: =IF(A2stdlife="n/a","n/a",IF(AO$3>(A2stdlife+$E95),('PTRM input'!$K$144*(1+rvanilla05)^0.5)-SUM($K95:AN95),('PTRM input'!$K$144*(1+rvanilla05)^0.5)/A2stdlife)) -> 0 | AP95: =IF(A2stdlife="n/a","n/a",IF(AP$3>(A2stdlife+$E95),('PTRM input'!$K$144*(1+rvanilla05)^0.5)-SUM($K95:AO95),('PTRM input'!$K$144*(1+rvanilla05)^0.5)/A2stdlife)) -> 0 | AQ95: =IF(A2stdlife="n/a","n/a",IF(AQ$3>(A2stdlife+$E95),('PTRM input'!$K$144*(1+rvanilla05)^0.5)-SUM($K95:AP95),('PTRM input'!$K$144*(1+rvanilla05)^0.5)/A2stdlife)) -> 0 | AR95: =IF(A2stdlife="n/a","n/a",IF(AR$3>(A2stdlife+$E95),('PTRM input'!$K$144*(1+rvanilla05)^0.5)-SUM($K95:AQ95),('PTRM input'!$K$144*(1+rvanilla05)^0.5)/A2stdlife)) -> 0 | AS95: =IF(A2stdlife="n/a","n/a",IF(AS$3>(A2stdlife+$E95),('PTRM input'!$K$144*(1+rvanilla05)^0.5)-SUM($K95:AR95),('PTRM input'!$K$144*(1+rvanilla05)^0.5)/A2stdlife)) -> 0 | AT95: =IF(A2stdlife="n/a","n/a",IF(AT$3>(A2stdlife+$E95),('PTRM input'!$K$144*(1+rvanilla05)^0.5)-SUM($K95:AS95),('PTRM input'!$K$144*(1+rvanilla05)^0.5)/A2stdlife)) -> 0 | AU95: =IF(A2stdlife="n/a","n/a",IF(AU$3>(A2stdlife+$E95),('PTRM input'!$K$144*(1+rvanilla05)^0.5)-SUM($K95:AT95),('PTRM input'!$K$144*(1+rvanilla05)^0.5)/A2stdlife)) -> 0 | AV95: =IF(A2stdlife="n/a","n/a",IF(AV$3>(A2stdlife+$E95),('PTRM input'!$K$144*(1+rvanilla05)^0.5)-SUM($K95:AU95),('PTRM input'!$K$144*(1+rvanilla05)^0.5)/A2stdlife)) -> 0 | AW95: =IF(A2stdlife="n/a","n/a",IF(AW$3>(A2stdlife+$E95),('PTRM input'!$K$144*(1+rvanilla05)^0.5)-SUM($K95:AV95),('PTRM input'!$K$144*(1+rvanilla05)^0.5)/A2stdlife)) -> 0 | AX95: =IF(A2stdlife="n/a","n/a",IF(AX$3>(A2stdlife+$E95),('PTRM input'!$K$144*(1+rvanilla05)^0.5)-SUM($K95:AW95),('PTRM input'!$K$144*(1+rvanilla05)^0.5)/A2stdlife)) -> 0 | AY95: =IF(A2stdlife="n/a","n/a",IF(AY$3>(A2stdlife+$E95),('PTRM input'!$K$144*(1+rvanilla05)^0.5)-SUM($K95:AX95),('PTRM input'!$K$144*(1+rvanilla05)^0.5)/A2stdlife)) -> 0 | AZ95: =IF(A2stdlife="n/a","n/a",IF(AZ$3>(A2stdlife+$E95),('PTRM input'!$K$144*(1+rvanilla05)^0.5)-SUM($K95:AY95),('PTRM input'!$K$144*(1+rvanilla05)^0.5)/A2stdlife)) -> 0 | BA95: =IF(A2stdlife="n/a","n/a",IF(BA$3>(A2stdlife+$E95),('PTRM input'!$K$144*(1+rvanilla05)^0.5)-SUM($K95:AZ95),('PTRM input'!$K$144*(1+rvanilla05)^0.5)/A2stdlife)) -> 0 | BB95: =IF(A2stdlife="n/a","n/a",IF(BB$3>(A2stdlife+$E95),('PTRM input'!$K$144*(1+rvanilla05)^0.5)-SUM($K95:BA95),('PTRM input'!$K$144*(1+rvanilla05)^0.5)/A2stdlife)) -> 0 | BC95: =IF(A2stdlife="n/a","n/a",IF(BC$3>(A2stdlife+$E95),('PTRM input'!$K$144*(1+rvanilla05)^0.5)-SUM($K95:BB95),('PTRM input'!$K$144*(1+rvanilla05)^0.5)/A2stdlife)) -> 0 | BD95: =IF(A2stdlife="n/a","n/a",IF(BD$3>(A2stdlife+$E95),('PTRM input'!$K$144*(1+rvanilla05)^0.5)-SUM($K95:BC95),('PTRM input'!$K$144*(1+rvanilla05)^0.5)/A2stdlife)) -> 0 | BE95: =IF(A2stdlife="n/a","n/a",IF(BE$3>(A2stdlife+$E95),('PTRM input'!$K$144*(1+rvanilla05)^0.5)-SUM($K95:BD95),('PTRM input'!$K$144*(1+rvanilla05)^0.5)/A2stdlife)) -> 0 | BF95: =IF(A2stdlife="n/a","n/a",IF(BF$3>(A2stdlife+$E95),('PTRM input'!$K$144*(1+rvanilla05)^0.5)-SUM($K95:BE95),('PTRM input'!$K$144*(1+rvanilla05)^0.5)/A2stdlife)) -> 0 | BG95: =IF(A2stdlife="n/a","n/a",IF(BG$3>(A2stdlife+$E95),('PTRM input'!$K$144*(1+rvanilla05)^0.5)-SUM($K95:BF95),('PTRM input'!$K$144*(1+rvanilla05)^0.5)/A2stdlife)) -> 0 | BH95: =IF(A2stdlife="n/a","n/a",IF(BH$3>(A2stdlife+$E95),('PTRM input'!$K$144*(1+rvanilla05)^0.5)-SUM($K95:BG95),('PTRM input'!$K$144*(1+rvanilla05)^0.5)/A2stdlife)) -> 0 | BI95: =IF(A2stdlife="n/a","n/a",IF(BI$3>(A2stdlife+$E95),('PTRM input'!$K$144*(1+rvanilla05)^0.5)-SUM($K95:BH95),('PTRM input'!$K$144*(1+rvanilla05)^0.5)/A2stdlife)) -> 0
E96: 6 | M96: =IF(A2stdlife="n/a","n/a",IF(M$3>(A2stdlife+$E96),('PTRM input'!$L$144*(1+rvanilla06)^0.5)-SUM($L96:L96),('PTRM input'!$L$144*(1+rvanilla06)^0.5)/A2stdlife)) -> 0 | N96: =IF(A2stdlife="n/a","n/a",IF(N$3>(A2stdlife+$E96),('PTRM input'!$L$144*(1+rvanilla06)^0.5)-SUM($L96:M96),('PTRM input'!$L$144*(1+rvanilla06)^0.5)/A2stdlife)) -> 0 | O96: =IF(A2stdlife="n/a","n/a",IF(O$3>(A2stdlife+$E96),('PTRM input'!$L$144*(1+rvanilla06)^0.5)-SUM($L96:N96),('PTRM input'!$L$144*(1+rvanilla06)^0.5)/A2stdlife)) -> 0 | P96: =IF(A2stdlife="n/a","n/a",IF(P$3>(A2stdlife+$E96),('PTRM input'!$L$144*(1+rvanilla06)^0.5)-SUM($L96:O96),('PTRM input'!$L$144*(1+rvanilla06)^0.5)/A2stdlife)) -> 0 | Q96: =IF(A2stdlife="n/a","n/a",IF(Q$3>(A2stdlife+$E96),('PTRM input'!$L$144*(1+rvanilla06)^0.5)-SUM($L96:P96),('PTRM input'!$L$144*(1+rvanilla06)^0.5)/A2stdlife)) -> 0 | R96: =IF(A2stdlife="n/a","n/a",IF(R$3>(A2stdlife+$E96),('PTRM input'!$L$144*(1+rvanilla06)^0.5)-SUM($L96:Q96),('PTRM input'!$L$144*(1+rvanilla06)^0.5)/A2stdlife)) -> 0 | S96: =IF(A2stdlife="n/a","n/a",IF(S$3>(A2stdlife+$E96),('PTRM input'!$L$144*(1+rvanilla06)^0.5)-SUM($L96:R96),('PTRM input'!$L$144*(1+rvanilla06)^0.5)/A2stdlife)) -> 0 | T96: =IF(A2stdlife="n/a","n/a",IF(T$3>(A2stdlife+$E96),('PTRM input'!$L$144*(1+rvanilla06)^0.5)-SUM($L96:S96),('PTRM input'!$L$144*(1+rvanilla06)^0.5)/A2stdlife)) -> 0 | U96: =IF(A2stdlife="n/a","n/a",IF(U$3>(A2stdlife+$E96),('PTRM input'!$L$144*(1+rvanilla06)^0.5)-SUM($L96:T96),('PTRM input'!$L$144*(1+rvanilla06)^0.5)/A2stdlife)) -> 0 | V96: =IF(A2stdlife="n/a","n/a",IF(V$3>(A2stdlife+$E96),('PTRM input'!$L$144*(1+rvanilla06)^0.5)-SUM($L96:U96),('PTRM input'!$L$144*(1+rvanilla06)^0.5)/A2stdlife)) -> 0 | W96: =IF(A2stdlife="n/a","n/a",IF(W$3>(A2stdlife+$E96),('PTRM input'!$L$144*(1+rvanilla06)^0.5)-SUM($L96:V96),('PTRM input'!$L$144*(1+rvanilla06)^0.5)/A2stdlife)) -> 0 | X96: =IF(A2stdlife="n/a","n/a",IF(X$3>(A2stdlife+$E96),('PTRM input'!$L$144*(1+rvanilla06)^0.5)-SUM($L96:W96),('PTRM input'!$L$144*(1+rvanilla06)^0.5)/A2stdlife)) -> 0 | Y96: =IF(A2stdlife="n/a","n/a",IF(Y$3>(A2stdlife+$E96),('PTRM input'!$L$144*(1+rvanilla06)^0.5)-SUM($L96:X96),('PTRM input'!$L$144*(1+rvanilla06)^0.5)/A2stdlife)) -> 0 | Z96: =IF(A2stdlife="n/a","n/a",IF(Z$3>(A2stdlife+$E96),('PTRM input'!$L$144*(1+rvanilla06)^0.5)-SUM($L96:Y96),('PTRM input'!$L$144*(1+rvanilla06)^0.5)/A2stdlife)) -> 0 | AA96: =IF(A2stdlife="n/a","n/a",IF(AA$3>(A2stdlife+$E96),('PTRM input'!$L$144*(1+rvanilla06)^0.5)-SUM($L96:Z96),('PTRM input'!$L$144*(1+rvanilla06)^0.5)/A2stdlife)) -> 0 | AB96: =IF(A2stdlife="n/a","n/a",IF(AB$3>(A2stdlife+$E96),('PTRM input'!$L$144*(1+rvanilla06)^0.5)-SUM($L96:AA96),('PTRM input'!$L$144*(1+rvanilla06)^0.5)/A2stdlife)) -> 0 | AC96: =IF(A2stdlife="n/a","n/a",IF(AC$3>(A2stdlife+$E96),('PTRM input'!$L$144*(1+rvanilla06)^0.5)-SUM($L96:AB96),('PTRM input'!$L$144*(1+rvanilla06)^0.5)/A2stdlife)) -> 0 | AD96: =IF(A2stdlife="n/a","n/a",IF(AD$3>(A2stdlife+$E96),('PTRM input'!$L$144*(1+rvanilla06)^0.5)-SUM($L96:AC96),('PTRM input'!$L$144*(1+rvanilla06)^0.5)/A2stdlife)) -> 0 | AE96: =IF(A2stdlife="n/a","n/a",IF(AE$3>(A2stdlife+$E96),('PTRM input'!$L$144*(1+rvanilla06)^0.5)-SUM($L96:AD96),('PTRM input'!$L$144*(1+rvanilla06)^0.5)/A2stdlife)) -> 0 | AF96: =IF(A2stdlife="n/a","n/a",IF(AF$3>(A2stdlife+$E96),('PTRM input'!$L$144*(1+rvanilla06)^0.5)-SUM($L96:AE96),('PTRM input'!$L$144*(1+rvanilla06)^0.5)/A2stdlife)) -> 0 | AG96: =IF(A2stdlife="n/a","n/a",IF(AG$3>(A2stdlife+$E96),('PTRM input'!$L$144*(1+rvanilla06)^0.5)-SUM($L96:AF96),('PTRM input'!$L$144*(1+rvanilla06)^0.5)/A2stdlife)) -> 0 | AH96: =IF(A2stdlife="n/a","n/a",IF(AH$3>(A2stdlife+$E96),('PTRM input'!$L$144*(1+rvanilla06)^0.5)-SUM($L96:AG96),('PTRM input'!$L$144*(1+rvanilla06)^0.5)/A2stdlife)) -> 0 | AI96: =IF(A2stdlife="n/a","n/a",IF(AI$3>(A2stdlife+$E96),('PTRM input'!$L$144*(1+rvanilla06)^0.5)-SUM($L96:AH96),('PTRM input'!$L$144*(1+rvanilla06)^0.5)/A2stdlife)) -> 0 | AJ96: =IF(A2stdlife="n/a","n/a",IF(AJ$3>(A2stdlife+$E96),('PTRM input'!$L$144*(1+rvanilla06)^0.5)-SUM($L96:AI96),('PTRM input'!$L$144*(1+rvanilla06)^0.5)/A2stdlife)) -> 0 | AK96: =IF(A2stdlife="n/a","n/a",IF(AK$3>(A2stdlife+$E96),('PTRM input'!$L$144*(1+rvanilla06)^0.5)-SUM($L96:AJ96),('PTRM input'!$L$144*(1+rvanilla06)^0.5)/A2stdlife)) -> 0 | AL96: =IF(A2stdlife="n/a","n/a",IF(AL$3>(A2stdlife+$E96),('PTRM input'!$L$144*(1+rvanilla06)^0.5)-SUM($L96:AK96),('PTRM input'!$L$144*(1+rvanilla06)^0.5)/A2stdlife)) -> 0 | AM96: =IF(A2stdlife="n/a","n/a",IF(AM$3>(A2stdlife+$E96),('PTRM input'!$L$144*(1+rvanilla06)^0.5)-SUM($L96:AL96),('PTRM input'!$L$144*(1+rvanilla06)^0.5)/A2stdlife)) -> 0 | AN96: =IF(A2stdlife="n/a","n/a",IF(AN$3>(A2stdlife+$E96),('PTRM input'!$L$144*(1+rvanilla06)^0.5)-SUM($L96:AM96),('PTRM input'!$L$144*(1+rvanilla06)^0.5)/A2stdlife)) -> 0 | AO96: =IF(A2stdlife="n/a","n/a",IF(AO$3>(A2stdlife+$E96),('PTRM input'!$L$144*(1+rvanilla06)^0.5)-SUM($L96:AN96),('PTRM input'!$L$144*(1+rvanilla06)^0.5)/A2stdlife)) -> 0 | AP96: =IF(A2stdlife="n/a","n/a",IF(AP$3>(A2stdlife+$E96),('PTRM input'!$L$144*(1+rvanilla06)^0.5)-SUM($L96:AO96),('PTRM input'!$L$144*(1+rvanilla06)^0.5)/A2stdlife)) -> 0 | AQ96: =IF(A2stdlife="n/a","n/a",IF(AQ$3>(A2stdlife+$E96),('PTRM input'!$L$144*(1+rvanilla06)^0.5)-SUM($L96:AP96),('PTRM input'!$L$144*(1+rvanilla06)^0.5)/A2stdlife)) -> 0 | AR96: =IF(A2stdlife="n/a","n/a",IF(AR$3>(A2stdlife+$E96),('PTRM input'!$L$144*(1+rvanilla06)^0.5)-SUM($L96:AQ96),('PTRM input'!$L$144*(1+rvanilla06)^0.5)/A2stdlife)) -> 0 | AS96: =IF(A2stdlife="n/a","n/a",IF(AS$3>(A2stdlife+$E96),('PTRM input'!$L$144*(1+rvanilla06)^0.5)-SUM($L96:AR96),('PTRM input'!$L$144*(1+rvanilla06)^0.5)/A2stdlife)) -> 0 | AT96: =IF(A2stdlife="n/a","n/a",IF(AT$3>(A2stdlife+$E96),('PTRM input'!$L$144*(1+rvanilla06)^0.5)-SUM($L96:AS96),('PTRM input'!$L$144*(1+rvanilla06)^0.5)/A2stdlife)) -> 0 | AU96: =IF(A2stdlife="n/a","n/a",IF(AU$3>(A2stdlife+$E96),('PTRM input'!$L$144*(1+rvanilla06)^0.5)-SUM($L96:AT96),('PTRM input'!$L$144*(1+rvanilla06)^0.5)/A2stdlife)) -> 0 | AV96: =IF(A2stdlife="n/a","n/a",IF(AV$3>(A2stdlife+$E96),('PTRM input'!$L$144*(1+rvanilla06)^0.5)-SUM($L96:AU96),('PTRM input'!$L$144*(1+rvanilla06)^0.5)/A2stdlife)) -> 0 | AW96: =IF(A2stdlife="n/a","n/a",IF(AW$3>(A2stdlife+$E96),('PTRM input'!$L$144*(1+rvanilla06)^0.5)-SUM($L96:AV96),('PTRM input'!$L$144*(1+rvanilla06)^0.5)/A2stdlife)) -> 0 | AX96: =IF(A2stdlife="n/a","n/a",IF(AX$3>(A2stdlife+$E96),('PTRM input'!$L$144*(1+rvanilla06)^0.5)-SUM($L96:AW96),('PTRM input'!$L$144*(1+rvanilla06)^0.5)/A2stdlife)) -> 0 | AY96: =IF(A2stdlife="n/a","n/a",IF(AY$3>(A2stdlife+$E96),('PTRM input'!$L$144*(1+rvanilla06)^0.5)-SUM($L96:AX96),('PTRM input'!$L$144*(1+rvanilla06)^0.5)/A2stdlife)) -> 0 | AZ96: =IF(A2stdlife="n/a","n/a",IF(AZ$3>(A2stdlife+$E96),('PTRM input'!$L$144*(1+rvanilla06)^0.5)-SUM($L96:AY96),('PTRM input'!$L$144*(1+rvanilla06)^0.5)/A2stdlife)) -> 0 | BA96: =IF(A2stdlife="n/a","n/a",IF(BA$3>(A2stdlife+$E96),('PTRM input'!$L$144*(1+rvanilla06)^0.5)-SUM($L96:AZ96),('PTRM input'!$L$144*(1+rvanilla06)^0.5)/A2stdlife)) -> 0 | BB96: =IF(A2stdlife="n/a","n/a",IF(BB$3>(A2stdlife+$E96),('PTRM input'!$L$144*(1+rvanilla06)^0.5)-SUM($L96:BA96),('PTRM input'!$L$144*(1+rvanilla06)^0.5)/A2stdlife)) -> 0 | BC96: =IF(A2stdlife="n/a","n/a",IF(BC$3>(A2stdlife+$E96),('PTRM input'!$L$144*(1+rvanilla06)^0.5)-SUM($L96:BB96),('PTRM input'!$L$144*(1+rvanilla06)^0.5)/A2stdlife)) -> 0 | BD96: =IF(A2stdlife="n/a","n/a",IF(BD$3>(A2stdlife+$E96),('PTRM input'!$L$144*(1+rvanilla06)^0.5)-SUM($L96:BC96),('PTRM input'!$L$144*(1+rvanilla06)^0.5)/A2stdlife)) -> 0 | BE96: =IF(A2stdlife="n/a","n/a",IF(BE$3>(A2stdlife+$E96),('PTRM input'!$L$144*(1+rvanilla06)^0.5)-SUM($L96:BD96),('PTRM input'!$L$144*(1+rvanilla06)^0.5)/A2stdlife)) -> 0 | BF96: =IF(A2stdlife="n/a","n/a",IF(BF$3>(A2stdlife+$E96),('PTRM input'!$L$144*(1+rvanilla06)^0.5)-SUM($L96:BE96),('PTRM input'!$L$144*(1+rvanilla06)^0.5)/A2stdlife)) -> 0 | BG96: =IF(A2stdlife="n/a","n/a",IF(BG$3>(A2stdlife+$E96),('PTRM input'!$L$144*(1+rvanilla06)^0.5)-SUM($L96:BF96),('PTRM input'!$L$144*(1+rvanilla06)^0.5)/A2stdlife)) -> 0 | BH96: =IF(A2stdlife="n/a","n/a",IF(BH$3>(A2stdlife+$E96),('PTRM input'!$L$144*(1+rvanilla06)^0.5)-SUM($L96:BG96),('PTRM input'!$L$144*(1+rvanilla06)^0.5)/A2stdlife)) -> 0 | BI96: =IF(A2stdlife="n/a","n/a",IF(BI$3>(A2stdlife+$E96),('PTRM input'!$L$144*(1+rvanilla06)^0.5)-SUM($L96:BH96),('PTRM input'!$L$144*(1+rvanilla06)^0.5)/A2stdlife)) -> 0
E97: 7 | N97: =IF(A2stdlife="n/a","n/a",IF(N$3>(A2stdlife+$E97),('PTRM input'!$M$144*(1+rvanilla07)^0.5)-SUM($M97:M97),('PTRM input'!$M$144*(1+rvanilla07)^0.5)/A2stdlife)) -> 0 | O97: =IF(A2stdlife="n/a","n/a",IF(O$3>(A2stdlife+$E97),('PTRM input'!$M$144*(1+rvanilla07)^0.5)-SUM($M97:N97),('PTRM input'!$M$144*(1+rvanilla07)^0.5)/A2stdlife)) -> 0 | P97: =IF(A2stdlife="n/a","n/a",IF(P$3>(A2stdlife+$E97),('PTRM input'!$M$144*(1+rvanilla07)^0.5)-SUM($M97:O97),('PTRM input'!$M$144*(1+rvanilla07)^0.5)/A2stdlife)) -> 0 | Q97: =IF(A2stdlife="n/a","n/a",IF(Q$3>(A2stdlife+$E97),('PTRM input'!$M$144*(1+rvanilla07)^0.5)-SUM($M97:P97),('PTRM input'!$M$144*(1+rvanilla07)^0.5)/A2stdlife)) -> 0 | R97: =IF(A2stdlife="n/a","n/a",IF(R$3>(A2stdlife+$E97),('PTRM input'!$M$144*(1+rvanilla07)^0.5)-SUM($M97:Q97),('PTRM input'!$M$144*(1+rvanilla07)^0.5)/A2stdlife)) -> 0 | S97: =IF(A2stdlife="n/a","n/a",IF(S$3>(A2stdlife+$E97),('PTRM input'!$M$144*(1+rvanilla07)^0.5)-SUM($M97:R97),('PTRM input'!$M$144*(1+rvanilla07)^0.5)/A2stdlife)) -> 0 | T97: =IF(A2stdlife="n/a","n/a",IF(T$3>(A2stdlife+$E97),('PTRM input'!$M$144*(1+rvanilla07)^0.5)-SUM($M97:S97),('PTRM input'!$M$144*(1+rvanilla07)^0.5)/A2stdlife)) -> 0 | U97: =IF(A2stdlife="n/a","n/a",IF(U$3>(A2stdlife+$E97),('PTRM input'!$M$144*(1+rvanilla07)^0.5)-SUM($M97:T97),('PTRM input'!$M$144*(1+rvanilla07)^0.5)/A2stdlife)) -> 0 | V97: =IF(A2stdlife="n/a","n/a",IF(V$3>(A2stdlife+$E97),('PTRM input'!$M$144*(1+rvanilla07)^0.5)-SUM($M97:U97),('PTRM input'!$M$144*(1+rvanilla07)^0.5)/A2stdlife)) -> 0 | W97: =IF(A2stdlife="n/a","n/a",IF(W$3>(A2stdlife+$E97),('PTRM input'!$M$144*(1+rvanilla07)^0.5)-SUM($M97:V97),('PTRM input'!$M$144*(1+rvanilla07)^0.5)/A2stdlife)) -> 0 | X97: =IF(A2stdlife="n/a","n/a",IF(X$3>(A2stdlife+$E97),('PTRM input'!$M$144*(1+rvanilla07)^0.5)-SUM($M97:W97),('PTRM input'!$M$144*(1+rvanilla07)^0.5)/A2stdlife)) -> 0 | Y97: =IF(A2stdlife="n/a","n/a",IF(Y$3>(A2stdlife+$E97),('PTRM input'!$M$144*(1+rvanilla07)^0.5)-SUM($M97:X97),('PTRM input'!$M$144*(1+rvanilla07)^0.5)/A2stdlife)) -> 0 | Z97: =IF(A2stdlife="n/a","n/a",IF(Z$3>(A2stdlife+$E97),('PTRM input'!$M$144*(1+rvanilla07)^0.5)-SUM($M97:Y97),('PTRM input'!$M$144*(1+rvanilla07)^0.5)/A2stdlife)) -> 0 | AA97: =IF(A2stdlife="n/a","n/a",IF(AA$3>(A2stdlife+$E97),('PTRM input'!$M$144*(1+rvanilla07)^0.5)-SUM($M97:Z97),('PTRM input'!$M$144*(1+rvanilla07)^0.5)/A2stdlife)) -> 0 | AB97: =IF(A2stdlife="n/a","n/a",IF(AB$3>(A2stdlife+$E97),('PTRM input'!$M$144*(1+rvanilla07)^0.5)-SUM($M97:AA97),('PTRM input'!$M$144*(1+rvanilla07)^0.5)/A2stdlife)) -> 0 | AC97: =IF(A2stdlife="n/a","n/a",IF(AC$3>(A2stdlife+$E97),('PTRM input'!$M$144*(1+rvanilla07)^0.5)-SUM($M97:AB97),('PTRM input'!$M$144*(1+rvanilla07)^0.5)/A2stdlife)) -> 0 | AD97: =IF(A2stdlife="n/a","n/a",IF(AD$3>(A2stdlife+$E97),('PTRM input'!$M$144*(1+rvanilla07)^0.5)-SUM($M97:AC97),('PTRM input'!$M$144*(1+rvanilla07)^0.5)/A2stdlife)) -> 0 | AE97: =IF(A2stdlife="n/a","n/a",IF(AE$3>(A2stdlife+$E97),('PTRM input'!$M$144*(1+rvanilla07)^0.5)-SUM($M97:AD97),('PTRM input'!$M$144*(1+rvanilla07)^0.5)/A2stdlife)) -> 0 | AF97: =IF(A2stdlife="n/a","n/a",IF(AF$3>(A2stdlife+$E97),('PTRM input'!$M$144*(1+rvanilla07)^0.5)-SUM($M97:AE97),('PTRM input'!$M$144*(1+rvanilla07)^0.5)/A2stdlife)) -> 0 | AG97: =IF(A2stdlife="n/a","n/a",IF(AG$3>(A2stdlife+$E97),('PTRM input'!$M$144*(1+rvanilla07)^0.5)-SUM($M97:AF97),('PTRM input'!$M$144*(1+rvanilla07)^0.5)/A2stdlife)) -> 0 | AH97: =IF(A2stdlife="n/a","n/a",IF(AH$3>(A2stdlife+$E97),('PTRM input'!$M$144*(1+rvanilla07)^0.5)-SUM($M97:AG97),('PTRM input'!$M$144*(1+rvanilla07)^0.5)/A2stdlife)) -> 0 | AI97: =IF(A2stdlife="n/a","n/a",IF(AI$3>(A2stdlife+$E97),('PTRM input'!$M$144*(1+rvanilla07)^0.5)-SUM($M97:AH97),('PTRM input'!$M$144*(1+rvanilla07)^0.5)/A2stdlife)) -> 0 | AJ97: =IF(A2stdlife="n/a","n/a",IF(AJ$3>(A2stdlife+$E97),('PTRM input'!$M$144*(1+rvanilla07)^0.5)-SUM($M97:AI97),('PTRM input'!$M$144*(1+rvanilla07)^0.5)/A2stdlife)) -> 0 | AK97: =IF(A2stdlife="n/a","n/a",IF(AK$3>(A2stdlife+$E97),('PTRM input'!$M$144*(1+rvanilla07)^0.5)-SUM($M97:AJ97),('PTRM input'!$M$144*(1+rvanilla07)^0.5)/A2stdlife)) -> 0 | AL97: =IF(A2stdlife="n/a","n/a",IF(AL$3>(A2stdlife+$E97),('PTRM input'!$M$144*(1+rvanilla07)^0.5)-SUM($M97:AK97),('PTRM input'!$M$144*(1+rvanilla07)^0.5)/A2stdlife)) -> 0 | AM97: =IF(A2stdlife="n/a","n/a",IF(AM$3>(A2stdlife+$E97),('PTRM input'!$M$144*(1+rvanilla07)^0.5)-SUM($M97:AL97),('PTRM input'!$M$144*(1+rvanilla07)^0.5)/A2stdlife)) -> 0 | AN97: =IF(A2stdlife="n/a","n/a",IF(AN$3>(A2stdlife+$E97),('PTRM input'!$M$144*(1+rvanilla07)^0.5)-SUM($M97:AM97),('PTRM input'!$M$144*(1+rvanilla07)^0.5)/A2stdlife)) -> 0 | AO97: =IF(A2stdlife="n/a","n/a",IF(AO$3>(A2stdlife+$E97),('PTRM input'!$M$144*(1+rvanilla07)^0.5)-SUM($M97:AN97),('PTRM input'!$M$144*(1+rvanilla07)^0.5)/A2stdlife)) -> 0 | AP97: =IF(A2stdlife="n/a","n/a",IF(AP$3>(A2stdlife+$E97),('PTRM input'!$M$144*(1+rvanilla07)^0.5)-SUM($M97:AO97),('PTRM input'!$M$144*(1+rvanilla07)^0.5)/A2stdlife)) -> 0 | AQ97: =IF(A2stdlife="n/a","n/a",IF(AQ$3>(A2stdlife+$E97),('PTRM input'!$M$144*(1+rvanilla07)^0.5)-SUM($M97:AP97),('PTRM input'!$M$144*(1+rvanilla07)^0.5)/A2stdlife)) -> 0 | AR97: =IF(A2stdlife="n/a","n/a",IF(AR$3>(A2stdlife+$E97),('PTRM input'!$M$144*(1+rvanilla07)^0.5)-SUM($M97:AQ97),('PTRM input'!$M$144*(1+rvanilla07)^0.5)/A2stdlife)) -> 0 | AS97: =IF(A2stdlife="n/a","n/a",IF(AS$3>(A2stdlife+$E97),('PTRM input'!$M$144*(1+rvanilla07)^0.5)-SUM($M97:AR97),('PTRM input'!$M$144*(1+rvanilla07)^0.5)/A2stdlife)) -> 0 | AT97: =IF(A2stdlife="n/a","n/a",IF(AT$3>(A2stdlife+$E97),('PTRM input'!$M$144*(1+rvanilla07)^0.5)-SUM($M97:AS97),('PTRM input'!$M$144*(1+rvanilla07)^0.5)/A2stdlife)) -> 0 | AU97: =IF(A2stdlife="n/a","n/a",IF(AU$3>(A2stdlife+$E97),('PTRM input'!$M$144*(1+rvanilla07)^0.5)-SUM($M97:AT97),('PTRM input'!$M$144*(1+rvanilla07)^0.5)/A2stdlife)) -> 0 | AV97: =IF(A2stdlife="n/a","n/a",IF(AV$3>(A2stdlife+$E97),('PTRM input'!$M$144*(1+rvanilla07)^0.5)-SUM($M97:AU97),('PTRM input'!$M$144*(1+rvanilla07)^0.5)/A2stdlife)) -> 0 | AW97: =IF(A2stdlife="n/a","n/a",IF(AW$3>(A2stdlife+$E97),('PTRM input'!$M$144*(1+rvanilla07)^0.5)-SUM($M97:AV97),('PTRM input'!$M$144*(1+rvanilla07)^0.5)/A2stdlife)) -> 0 | AX97: =IF(A2stdlife="n/a","n/a",IF(AX$3>(A2stdlife+$E97),('PTRM input'!$M$144*(1+rvanilla07)^0.5)-SUM($M97:AW97),('PTRM input'!$M$144*(1+rvanilla07)^0.5)/A2stdlife)) -> 0 | AY97: =IF(A2stdlife="n/a","n/a",IF(AY$3>(A2stdlife+$E97),('PTRM input'!$M$144*(1+rvanilla07)^0.5)-SUM($M97:AX97),('PTRM input'!$M$144*(1+rvanilla07)^0.5)/A2stdlife)) -> 0 | AZ97: =IF(A2stdlife="n/a","n/a",IF(AZ$3>(A2stdlife+$E97),('PTRM input'!$M$144*(1+rvanilla07)^0.5)-SUM($M97:AY97),('PTRM input'!$M$144*(1+rvanilla07)^0.5)/A2stdlife)) -> 0 | BA97: =IF(A2stdlife="n/a","n/a",IF(BA$3>(A2stdlife+$E97),('PTRM input'!$M$144*(1+rvanilla07)^0.5)-SUM($M97:AZ97),('PTRM input'!$M$144*(1+rvanilla07)^0.5)/A2stdlife)) -> 0 | BB97: =IF(A2stdlife="n/a","n/a",IF(BB$3>(A2stdlife+$E97),('PTRM input'!$M$144*(1+rvanilla07)^0.5)-SUM($M97:BA97),('PTRM input'!$M$144*(1+rvanilla07)^0.5)/A2stdlife)) -> 0 | BC97: =IF(A2stdlife="n/a","n/a",IF(BC$3>(A2stdlife+$E97),('PTRM input'!$M$144*(1+rvanilla07)^0.5)-SUM($M97:BB97),('PTRM input'!$M$144*(1+rvanilla07)^0.5)/A2stdlife)) -> 0 | BD97: =IF(A2stdlife="n/a","n/a",IF(BD$3>(A2stdlife+$E97),('PTRM input'!$M$144*(1+rvanilla07)^0.5)-SUM($M97:BC97),('PTRM input'!$M$144*(1+rvanilla07)^0.5)/A2stdlife)) -> 0 | BE97: =IF(A2stdlife="n/a","n/a",IF(BE$3>(A2stdlife+$E97),('PTRM input'!$M$144*(1+rvanilla07)^0.5)-SUM($M97:BD97),('PTRM input'!$M$144*(1+rvanilla07)^0.5)/A2stdlife)) -> 0 | BF97: =IF(A2stdlife="n/a","n/a",IF(BF$3>(A2stdlife+$E97),('PTRM input'!$M$144*(1+rvanilla07)^0.5)-SUM($M97:BE97),('PTRM input'!$M$144*(1+rvanilla07)^0.5)/A2stdlife)) -> 0 | BG97: =IF(A2stdlife="n/a","n/a",IF(BG$3>(A2stdlife+$E97),('PTRM input'!$M$144*(1+rvanilla07)^0.5)-SUM($M97:BF97),('PTRM input'!$M$144*(1+rvanilla07)^0.5)/A2stdlife)) -> 0 | BH97: =IF(A2stdlife="n/a","n/a",IF(BH$3>(A2stdlife+$E97),('PTRM input'!$M$144*(1+rvanilla07)^0.5)-SUM($M97:BG97),('PTRM input'!$M$144*(1+rvanilla07)^0.5)/A2stdlife)) -> 0 | BI97: =IF(A2stdlife="n/a","n/a",IF(BI$3>(A2stdlife+$E97),('PTRM input'!$M$144*(1+rvanilla07)^0.5)-SUM($M97:BH97),('PTRM input'!$M$144*(1+rvanilla07)^0.5)/A2stdlife)) -> 0
E98: 8 | O98: =IF(A2stdlife="n/a","n/a",IF(O$3>(A2stdlife+$E98),('PTRM input'!$N$144*(1+rvanilla08)^0.5)-SUM($N98:N98),('PTRM input'!$N$144*(1+rvanilla08)^0.5)/A2stdlife)) -> 0 | P98: =IF(A2stdlife="n/a","n/a",IF(P$3>(A2stdlife+$E98),('PTRM input'!$N$144*(1+rvanilla08)^0.5)-SUM($N98:O98),('PTRM input'!$N$144*(1+rvanilla08)^0.5)/A2stdlife)) -> 0 | Q98: =IF(A2stdlife="n/a","n/a",IF(Q$3>(A2stdlife+$E98),('PTRM input'!$N$144*(1+rvanilla08)^0.5)-SUM($N98:P98),('PTRM input'!$N$144*(1+rvanilla08)^0.5)/A2stdlife)) -> 0 | R98: =IF(A2stdlife="n/a","n/a",IF(R$3>(A2stdlife+$E98),('PTRM input'!$N$144*(1+rvanilla08)^0.5)-SUM($N98:Q98),('PTRM input'!$N$144*(1+rvanilla08)^0.5)/A2stdlife)) -> 0 | S98: =IF(A2stdlife="n/a","n/a",IF(S$3>(A2stdlife+$E98),('PTRM input'!$N$144*(1+rvanilla08)^0.5)-SUM($N98:R98),('PTRM input'!$N$144*(1+rvanilla08)^0.5)/A2stdlife)) -> 0 | T98: =IF(A2stdlife="n/a","n/a",IF(T$3>(A2stdlife+$E98),('PTRM input'!$N$144*(1+rvanilla08)^0.5)-SUM($N98:S98),('PTRM input'!$N$144*(1+rvanilla08)^0.5)/A2stdlife)) -> 0 | U98: =IF(A2stdlife="n/a","n/a",IF(U$3>(A2stdlife+$E98),('PTRM input'!$N$144*(1+rvanilla08)^0.5)-SUM($N98:T98),('PTRM input'!$N$144*(1+rvanilla08)^0.5)/A2stdlife)) -> 0 | V98: =IF(A2stdlife="n/a","n/a",IF(V$3>(A2stdlife+$E98),('PTRM input'!$N$144*(1+rvanilla08)^0.5)-SUM($N98:U98),('PTRM input'!$N$144*(1+rvanilla08)^0.5)/A2stdlife)) -> 0 | W98: =IF(A2stdlife="n/a","n/a",IF(W$3>(A2stdlife+$E98),('PTRM input'!$N$144*(1+rvanilla08)^0.5)-SUM($N98:V98),('PTRM input'!$N$144*(1+rvanilla08)^0.5)/A2stdlife)) -> 0 | X98: =IF(A2stdlife="n/a","n/a",IF(X$3>(A2stdlife+$E98),('PTRM input'!$N$144*(1+rvanilla08)^0.5)-SUM($N98:W98),('PTRM input'!$N$144*(1+rvanilla08)^0.5)/A2stdlife)) -> 0 | Y98: =IF(A2stdlife="n/a","n/a",IF(Y$3>(A2stdlife+$E98),('PTRM input'!$N$144*(1+rvanilla08)^0.5)-SUM($N98:X98),('PTRM input'!$N$144*(1+rvanilla08)^0.5)/A2stdlife)) -> 0 | Z98: =IF(A2stdlife="n/a","n/a",IF(Z$3>(A2stdlife+$E98),('PTRM input'!$N$144*(1+rvanilla08)^0.5)-SUM($N98:Y98),('PTRM input'!$N$144*(1+rvanilla08)^0.5)/A2stdlife)) -> 0 | AA98: =IF(A2stdlife="n/a","n/a",IF(AA$3>(A2stdlife+$E98),('PTRM input'!$N$144*(1+rvanilla08)^0.5)-SUM($N98:Z98),('PTRM input'!$N$144*(1+rvanilla08)^0.5)/A2stdlife)) -> 0 | AB98: =IF(A2stdlife="n/a","n/a",IF(AB$3>(A2stdlife+$E98),('PTRM input'!$N$144*(1+rvanilla08)^0.5)-SUM($N98:AA98),('PTRM input'!$N$144*(1+rvanilla08)^0.5)/A2stdlife)) -> 0 | AC98: =IF(A2stdlife="n/a","n/a",IF(AC$3>(A2stdlife+$E98),('PTRM input'!$N$144*(1+rvanilla08)^0.5)-SUM($N98:AB98),('PTRM input'!$N$144*(1+rvanilla08)^0.5)/A2stdlife)) -> 0 | AD98: =IF(A2stdlife="n/a","n/a",IF(AD$3>(A2stdlife+$E98),('PTRM input'!$N$144*(1+rvanilla08)^0.5)-SUM($N98:AC98),('PTRM input'!$N$144*(1+rvanilla08)^0.5)/A2stdlife)) -> 0 | AE98: =IF(A2stdlife="n/a","n/a",IF(AE$3>(A2stdlife+$E98),('PTRM input'!$N$144*(1+rvanilla08)^0.5)-SUM($N98:AD98),('PTRM input'!$N$144*(1+rvanilla08)^0.5)/A2stdlife)) -> 0 | AF98: =IF(A2stdlife="n/a","n/a",IF(AF$3>(A2stdlife+$E98),('PTRM input'!$N$144*(1+rvanilla08)^0.5)-SUM($N98:AE98),('PTRM input'!$N$144*(1+rvanilla08)^0.5)/A2stdlife)) -> 0 | AG98: =IF(A2stdlife="n/a","n/a",IF(AG$3>(A2stdlife+$E98),('PTRM input'!$N$144*(1+rvanilla08)^0.5)-SUM($N98:AF98),('PTRM input'!$N$144*(1+rvanilla08)^0.5)/A2stdlife)) -> 0 | AH98: =IF(A2stdlife="n/a","n/a",IF(AH$3>(A2stdlife+$E98),('PTRM input'!$N$144*(1+rvanilla08)^0.5)-SUM($N98:AG98),('PTRM input'!$N$144*(1+rvanilla08)^0.5)/A2stdlife)) -> 0 | AI98: =IF(A2stdlife="n/a","n/a",IF(AI$3>(A2stdlife+$E98),('PTRM input'!$N$144*(1+rvanilla08)^0.5)-SUM($N98:AH98),('PTRM input'!$N$144*(1+rvanilla08)^0.5)/A2stdlife)) -> 0 | AJ98: =IF(A2stdlife="n/a","n/a",IF(AJ$3>(A2stdlife+$E98),('PTRM input'!$N$144*(1+rvanilla08)^0.5)-SUM($N98:AI98),('PTRM input'!$N$144*(1+rvanilla08)^0.5)/A2stdlife)) -> 0 | AK98: =IF(A2stdlife="n/a","n/a",IF(AK$3>(A2stdlife+$E98),('PTRM input'!$N$144*(1+rvanilla08)^0.5)-SUM($N98:AJ98),('PTRM input'!$N$144*(1+rvanilla08)^0.5)/A2stdlife)) -> 0 | AL98: =IF(A2stdlife="n/a","n/a",IF(AL$3>(A2stdlife+$E98),('PTRM input'!$N$144*(1+rvanilla08)^0.5)-SUM($N98:AK98),('PTRM input'!$N$144*(1+rvanilla08)^0.5)/A2stdlife)) -> 0 | AM98: =IF(A2stdlife="n/a","n/a",IF(AM$3>(A2stdlife+$E98),('PTRM input'!$N$144*(1+rvanilla08)^0.5)-SUM($N98:AL98),('PTRM input'!$N$144*(1+rvanilla08)^0.5)/A2stdlife)) -> 0 | AN98: =IF(A2stdlife="n/a","n/a",IF(AN$3>(A2stdlife+$E98),('PTRM input'!$N$144*(1+rvanilla08)^0.5)-SUM($N98:AM98),('PTRM input'!$N$144*(1+rvanilla08)^0.5)/A2stdlife)) -> 0 | AO98: =IF(A2stdlife="n/a","n/a",IF(AO$3>(A2stdlife+$E98),('PTRM input'!$N$144*(1+rvanilla08)^0.5)-SUM($N98:AN98),('PTRM input'!$N$144*(1+rvanilla08)^0.5)/A2stdlife)) -> 0 | AP98: =IF(A2stdlife="n/a","n/a",IF(AP$3>(A2stdlife+$E98),('PTRM input'!$N$144*(1+rvanilla08)^0.5)-SUM($N98:AO98),('PTRM input'!$N$144*(1+rvanilla08)^0.5)/A2stdlife)) -> 0 | AQ98: =IF(A2stdlife="n/a","n/a",IF(AQ$3>(A2stdlife+$E98),('PTRM input'!$N$144*(1+rvanilla08)^0.5)-SUM($N98:AP98),('PTRM input'!$N$144*(1+rvanilla08)^0.5)/A2stdlife)) -> 0 | AR98: =IF(A2stdlife="n/a","n/a",IF(AR$3>(A2stdlife+$E98),('PTRM input'!$N$144*(1+rvanilla08)^0.5)-SUM($N98:AQ98),('PTRM input'!$N$144*(1+rvanilla08)^0.5)/A2stdlife)) -> 0 | AS98: =IF(A2stdlife="n/a","n/a",IF(AS$3>(A2stdlife+$E98),('PTRM input'!$N$144*(1+rvanilla08)^0.5)-SUM($N98:AR98),('PTRM input'!$N$144*(1+rvanilla08)^0.5)/A2stdlife)) -> 0 | AT98: =IF(A2stdlife="n/a","n/a",IF(AT$3>(A2stdlife+$E98),('PTRM input'!$N$144*(1+rvanilla08)^0.5)-SUM($N98:AS98),('PTRM input'!$N$144*(1+rvanilla08)^0.5)/A2stdlife)) -> 0 | AU98: =IF(A2stdlife="n/a","n/a",IF(AU$3>(A2stdlife+$E98),('PTRM input'!$N$144*(1+rvanilla08)^0.5)-SUM($N98:AT98),('PTRM input'!$N$144*(1+rvanilla08)^0.5)/A2stdlife)) -> 0 | AV98: =IF(A2stdlife="n/a","n/a",IF(AV$3>(A2stdlife+$E98),('PTRM input'!$N$144*(1+rvanilla08)^0.5)-SUM($N98:AU98),('PTRM input'!$N$144*(1+rvanilla08)^0.5)/A2stdlife)) -> 0 | AW98: =IF(A2stdlife="n/a","n/a",IF(AW$3>(A2stdlife+$E98),('PTRM input'!$N$144*(1+rvanilla08)^0.5)-SUM($N98:AV98),('PTRM input'!$N$144*(1+rvanilla08)^0.5)/A2stdlife)) -> 0 | AX98: =IF(A2stdlife="n/a","n/a",IF(AX$3>(A2stdlife+$E98),('PTRM input'!$N$144*(1+rvanilla08)^0.5)-SUM($N98:AW98),('PTRM input'!$N$144*(1+rvanilla08)^0.5)/A2stdlife)) -> 0 | AY98: =IF(A2stdlife="n/a","n/a",IF(AY$3>(A2stdlife+$E98),('PTRM input'!$N$144*(1+rvanilla08)^0.5)-SUM($N98:AX98),('PTRM input'!$N$144*(1+rvanilla08)^0.5)/A2stdlife)) -> 0 | AZ98: =IF(A2stdlife="n/a","n/a",IF(AZ$3>(A2stdlife+$E98),('PTRM input'!$N$144*(1+rvanilla08)^0.5)-SUM($N98:AY98),('PTRM input'!$N$144*(1+rvanilla08)^0.5)/A2stdlife)) -> 0 | BA98: =IF(A2stdlife="n/a","n/a",IF(BA$3>(A2stdlife+$E98),('PTRM input'!$N$144*(1+rvanilla08)^0.5)-SUM($N98:AZ98),('PTRM input'!$N$144*(1+rvanilla08)^0.5)/A2stdlife)) -> 0 | BB98: =IF(A2stdlife="n/a","n/a",IF(BB$3>(A2stdlife+$E98),('PTRM input'!$N$144*(1+rvanilla08)^0.5)-SUM($N98:BA98),('PTRM input'!$N$144*(1+rvanilla08)^0.5)/A2stdlife)) -> 0 | BC98: =IF(A2stdlife="n/a","n/a",IF(BC$3>(A2stdlife+$E98),('PTRM input'!$N$144*(1+rvanilla08)^0.5)-SUM($N98:BB98),('PTRM input'!$N$144*(1+rvanilla08)^0.5)/A2stdlife)) -> 0 | BD98: =IF(A2stdlife="n/a","n/a",IF(BD$3>(A2stdlife+$E98),('PTRM input'!$N$144*(1+rvanilla08)^0.5)-SUM($N98:BC98),('PTRM input'!$N$144*(1+rvanilla08)^0.5)/A2stdlife)) -> 0 | BE98: =IF(A2stdlife="n/a","n/a",IF(BE$3>(A2stdlife+$E98),('PTRM input'!$N$144*(1+rvanilla08)^0.5)-SUM($N98:BD98),('PTRM input'!$N$144*(1+rvanilla08)^0.5)/A2stdlife)) -> 0 | BF98: =IF(A2stdlife="n/a","n/a",IF(BF$3>(A2stdlife+$E98),('PTRM input'!$N$144*(1+rvanilla08)^0.5)-SUM($N98:BE98),('PTRM input'!$N$144*(1+rvanilla08)^0.5)/A2stdlife)) -> 0 | BG98: =IF(A2stdlife="n/a","n/a",IF(BG$3>(A2stdlife+$E98),('PTRM input'!$N$144*(1+rvanilla08)^0.5)-SUM($N98:BF98),('PTRM input'!$N$144*(1+rvanilla08)^0.5)/A2stdlife)) -> 0 | BH98: =IF(A2stdlife="n/a","n/a",IF(BH$3>(A2stdlife+$E98),('PTRM input'!$N$144*(1+rvanilla08)^0.5)-SUM($N98:BG98),('PTRM input'!$N$144*(1+rvanilla08)^0.5)/A2stdlife)) -> 0 | BI98: =IF(A2stdlife="n/a","n/a",IF(BI$3>(A2stdlife+$E98),('PTRM input'!$N$144*(1+rvanilla08)^0.5)-SUM($N98:BH98),('PTRM input'!$N$144*(1+rvanilla08)^0.5)/A2stdlife)) -> 0
E99: 9 | P99: =IF(A2stdlife="n/a","n/a",IF(P$3>(A2stdlife+$E99),('PTRM input'!$O$144*(1+rvanilla09)^0.5)-SUM($O99:O99),('PTRM input'!$O$144*(1+rvanilla09)^0.5)/A2stdlife)) -> 0 | Q99: =IF(A2stdlife="n/a","n/a",IF(Q$3>(A2stdlife+$E99),('PTRM input'!$O$144*(1+rvanilla09)^0.5)-SUM($O99:P99),('PTRM input'!$O$144*(1+rvanilla09)^0.5)/A2stdlife)) -> 0 | R99: =IF(A2stdlife="n/a","n/a",IF(R$3>(A2stdlife+$E99),('PTRM input'!$O$144*(1+rvanilla09)^0.5)-SUM($O99:Q99),('PTRM input'!$O$144*(1+rvanilla09)^0.5)/A2stdlife)) -> 0 | S99: =IF(A2stdlife="n/a","n/a",IF(S$3>(A2stdlife+$E99),('PTRM input'!$O$144*(1+rvanilla09)^0.5)-SUM($O99:R99),('PTRM input'!$O$144*(1+rvanilla09)^0.5)/A2stdlife)) -> 0 | T99: =IF(A2stdlife="n/a","n/a",IF(T$3>(A2stdlife+$E99),('PTRM input'!$O$144*(1+rvanilla09)^0.5)-SUM($O99:S99),('PTRM input'!$O$144*(1+rvanilla09)^0.5)/A2stdlife)) -> 0 | U99: =IF(A2stdlife="n/a","n/a",IF(U$3>(A2stdlife+$E99),('PTRM input'!$O$144*(1+rvanilla09)^0.5)-SUM($O99:T99),('PTRM input'!$O$144*(1+rvanilla09)^0.5)/A2stdlife)) -> 0 | V99: =IF(A2stdlife="n/a","n/a",IF(V$3>(A2stdlife+$E99),('PTRM input'!$O$144*(1+rvanilla09)^0.5)-SUM($O99:U99),('PTRM input'!$O$144*(1+rvanilla09)^0.5)/A2stdlife)) -> 0 | W99: =IF(A2stdlife="n/a","n/a",IF(W$3>(A2stdlife+$E99),('PTRM input'!$O$144*(1+rvanilla09)^0.5)-SUM($O99:V99),('PTRM input'!$O$144*(1+rvanilla09)^0.5)/A2stdlife)) -> 0 | X99: =IF(A2stdlife="n/a","n/a",IF(X$3>(A2stdlife+$E99),('PTRM input'!$O$144*(1+rvanilla09)^0.5)-SUM($O99:W99),('PTRM input'!$O$144*(1+rvanilla09)^0.5)/A2stdlife)) -> 0 | Y99: =IF(A2stdlife="n/a","n/a",IF(Y$3>(A2stdlife+$E99),('PTRM input'!$O$144*(1+rvanilla09)^0.5)-SUM($O99:X99),('PTRM input'!$O$144*(1+rvanilla09)^0.5)/A2stdlife)) -> 0 | Z99: =IF(A2stdlife="n/a","n/a",IF(Z$3>(A2stdlife+$E99),('PTRM input'!$O$144*(1+rvanilla09)^0.5)-SUM($O99:Y99),('PTRM input'!$O$144*(1+rvanilla09)^0.5)/A2stdlife)) -> 0 | AA99: =IF(A2stdlife="n/a","n/a",IF(AA$3>(A2stdlife+$E99),('PTRM input'!$O$144*(1+rvanilla09)^0.5)-SUM($O99:Z99),('PTRM input'!$O$144*(1+rvanilla09)^0.5)/A2stdlife)) -> 0 | AB99: =IF(A2stdlife="n/a","n/a",IF(AB$3>(A2stdlife+$E99),('PTRM input'!$O$144*(1+rvanilla09)^0.5)-SUM($O99:AA99),('PTRM input'!$O$144*(1+rvanilla09)^0.5)/A2stdlife)) -> 0 | AC99: =IF(A2stdlife="n/a","n/a",IF(AC$3>(A2stdlife+$E99),('PTRM input'!$O$144*(1+rvanilla09)^0.5)-SUM($O99:AB99),('PTRM input'!$O$144*(1+rvanilla09)^0.5)/A2stdlife)) -> 0 | AD99: =IF(A2stdlife="n/a","n/a",IF(AD$3>(A2stdlife+$E99),('PTRM input'!$O$144*(1+rvanilla09)^0.5)-SUM($O99:AC99),('PTRM input'!$O$144*(1+rvanilla09)^0.5)/A2stdlife)) -> 0 | AE99: =IF(A2stdlife="n/a","n/a",IF(AE$3>(A2stdlife+$E99),('PTRM input'!$O$144*(1+rvanilla09)^0.5)-SUM($O99:AD99),('PTRM input'!$O$144*(1+rvanilla09)^0.5)/A2stdlife)) -> 0 | AF99: =IF(A2stdlife="n/a","n/a",IF(AF$3>(A2stdlife+$E99),('PTRM input'!$O$144*(1+rvanilla09)^0.5)-SUM($O99:AE99),('PTRM input'!$O$144*(1+rvanilla09)^0.5)/A2stdlife)) -> 0 | AG99: =IF(A2stdlife="n/a","n/a",IF(AG$3>(A2stdlife+$E99),('PTRM input'!$O$144*(1+rvanilla09)^0.5)-SUM($O99:AF99),('PTRM input'!$O$144*(1+rvanilla09)^0.5)/A2stdlife)) -> 0 | AH99: =IF(A2stdlife="n/a","n/a",IF(AH$3>(A2stdlife+$E99),('PTRM input'!$O$144*(1+rvanilla09)^0.5)-SUM($O99:AG99),('PTRM input'!$O$144*(1+rvanilla09)^0.5)/A2stdlife)) -> 0 | AI99: =IF(A2stdlife="n/a","n/a",IF(AI$3>(A2stdlife+$E99),('PTRM input'!$O$144*(1+rvanilla09)^0.5)-SUM($O99:AH99),('PTRM input'!$O$144*(1+rvanilla09)^0.5)/A2stdlife)) -> 0 | AJ99: =IF(A2stdlife="n/a","n/a",IF(AJ$3>(A2stdlife+$E99),('PTRM input'!$O$144*(1+rvanilla09)^0.5)-SUM($O99:AI99),('PTRM input'!$O$144*(1+rvanilla09)^0.5)/A2stdlife)) -> 0 | AK99: =IF(A2stdlife="n/a","n/a",IF(AK$3>(A2stdlife+$E99),('PTRM input'!$O$144*(1+rvanilla09)^0.5)-SUM($O99:AJ99),('PTRM input'!$O$144*(1+rvanilla09)^0.5)/A2stdlife)) -> 0 | AL99: =IF(A2stdlife="n/a","n/a",IF(AL$3>(A2stdlife+$E99),('PTRM input'!$O$144*(1+rvanilla09)^0.5)-SUM($O99:AK99),('PTRM input'!$O$144*(1+rvanilla09)^0.5)/A2stdlife)) -> 0 | AM99: =IF(A2stdlife="n/a","n/a",IF(AM$3>(A2stdlife+$E99),('PTRM input'!$O$144*(1+rvanilla09)^0.5)-SUM($O99:AL99),('PTRM input'!$O$144*(1+rvanilla09)^0.5)/A2stdlife)) -> 0 | AN99: =IF(A2stdlife="n/a","n/a",IF(AN$3>(A2stdlife+$E99),('PTRM input'!$O$144*(1+rvanilla09)^0.5)-SUM($O99:AM99),('PTRM input'!$O$144*(1+rvanilla09)^0.5)/A2stdlife)) -> 0 | AO99: =IF(A2stdlife="n/a","n/a",IF(AO$3>(A2stdlife+$E99),('PTRM input'!$O$144*(1+rvanilla09)^0.5)-SUM($O99:AN99),('PTRM input'!$O$144*(1+rvanilla09)^0.5)/A2stdlife)) -> 0 | AP99: =IF(A2stdlife="n/a","n/a",IF(AP$3>(A2stdlife+$E99),('PTRM input'!$O$144*(1+rvanilla09)^0.5)-SUM($O99:AO99),('PTRM input'!$O$144*(1+rvanilla09)^0.5)/A2stdlife)) -> 0 | AQ99: =IF(A2stdlife="n/a","n/a",IF(AQ$3>(A2stdlife+$E99),('PTRM input'!$O$144*(1+rvanilla09)^0.5)-SUM($O99:AP99),('PTRM input'!$O$144*(1+rvanilla09)^0.5)/A2stdlife)) -> 0 | AR99: =IF(A2stdlife="n/a","n/a",IF(AR$3>(A2stdlife+$E99),('PTRM input'!$O$144*(1+rvanilla09)^0.5)-SUM($O99:AQ99),('PTRM input'!$O$144*(1+rvanilla09)^0.5)/A2stdlife)) -> 0 | AS99: =IF(A2stdlife="n/a","n/a",IF(AS$3>(A2stdlife+$E99),('PTRM input'!$O$144*(1+rvanilla09)^0.5)-SUM($O99:AR99),('PTRM input'!$O$144*(1+rvanilla09)^0.5)/A2stdlife)) -> 0 | AT99: =IF(A2stdlife="n/a","n/a",IF(AT$3>(A2stdlife+$E99),('PTRM input'!$O$144*(1+rvanilla09)^0.5)-SUM($O99:AS99),('PTRM input'!$O$144*(1+rvanilla09)^0.5)/A2stdlife)) -> 0 | AU99: =IF(A2stdlife="n/a","n/a",IF(AU$3>(A2stdlife+$E99),('PTRM input'!$O$144*(1+rvanilla09)^0.5)-SUM($O99:AT99),('PTRM input'!$O$144*(1+rvanilla09)^0.5)/A2stdlife)) -> 0 | AV99: =IF(A2stdlife="n/a","n/a",IF(AV$3>(A2stdlife+$E99),('PTRM input'!$O$144*(1+rvanilla09)^0.5)-SUM($O99:AU99),('PTRM input'!$O$144*(1+rvanilla09)^0.5)/A2stdlife)) -> 0 | AW99: =IF(A2stdlife="n/a","n/a",IF(AW$3>(A2stdlife+$E99),('PTRM input'!$O$144*(1+rvanilla09)^0.5)-SUM($O99:AV99),('PTRM input'!$O$144*(1+rvanilla09)^0.5)/A2stdlife)) -> 0 | AX99: =IF(A2stdlife="n/a","n/a",IF(AX$3>(A2stdlife+$E99),('PTRM input'!$O$144*(1+rvanilla09)^0.5)-SUM($O99:AW99),('PTRM input'!$O$144*(1+rvanilla09)^0.5)/A2stdlife)) -> 0 | AY99: =IF(A2stdlife="n/a","n/a",IF(AY$3>(A2stdlife+$E99),('PTRM input'!$O$144*(1+rvanilla09)^0.5)-SUM($O99:AX99),('PTRM input'!$O$144*(1+rvanilla09)^0.5)/A2stdlife)) -> 0 | AZ99: =IF(A2stdlife="n/a","n/a",IF(AZ$3>(A2stdlife+$E99),('PTRM input'!$O$144*(1+rvanilla09)^0.5)-SUM($O99:AY99),('PTRM input'!$O$144*(1+rvanilla09)^0.5)/A2stdlife)) -> 0 | BA99: =IF(A2stdlife="n/a","n/a",IF(BA$3>(A2stdlife+$E99),('PTRM input'!$O$144*(1+rvanilla09)^0.5)-SUM($O99:AZ99),('PTRM input'!$O$144*(1+rvanilla09)^0.5)/A2stdlife)) -> 0 | BB99: =IF(A2stdlife="n/a","n/a",IF(BB$3>(A2stdlife+$E99),('PTRM input'!$O$144*(1+rvanilla09)^0.5)-SUM($O99:BA99),('PTRM input'!$O$144*(1+rvanilla09)^0.5)/A2stdlife)) -> 0 | BC99: =IF(A2stdlife="n/a","n/a",IF(BC$3>(A2stdlife+$E99),('PTRM input'!$O$144*(1+rvanilla09)^0.5)-SUM($O99:BB99),('PTRM input'!$O$144*(1+rvanilla09)^0.5)/A2stdlife)) -> 0 | BD99: =IF(A2stdlife="n/a","n/a",IF(BD$3>(A2stdlife+$E99),('PTRM input'!$O$144*(1+rvanilla09)^0.5)-SUM($O99:BC99),('PTRM input'!$O$144*(1+rvanilla09)^0.5)/A2stdlife)) -> 0 | BE99: =IF(A2stdlife="n/a","n/a",IF(BE$3>(A2stdlife+$E99),('PTRM input'!$O$144*(1+rvanilla09)^0.5)-SUM($O99:BD99),('PTRM input'!$O$144*(1+rvanilla09)^0.5)/A2stdlife)) -> 0 | BF99: =IF(A2stdlife="n/a","n/a",IF(BF$3>(A2stdlife+$E99),('PTRM input'!$O$144*(1+rvanilla09)^0.5)-SUM($O99:BE99),('PTRM input'!$O$144*(1+rvanilla09)^0.5)/A2stdlife)) -> 0 | BG99: =IF(A2stdlife="n/a","n/a",IF(BG$3>(A2stdlife+$E99),('PTRM input'!$O$144*(1+rvanilla09)^0.5)-SUM($O99:BF99),('PTRM input'!$O$144*(1+rvanilla09)^0.5)/A2stdlife)) -> 0 | BH99: =IF(A2stdlife="n/a","n/a",IF(BH$3>(A2stdlife+$E99),('PTRM input'!$O$144*(1+rvanilla09)^0.5)-SUM($O99:BG99),('PTRM input'!$O$144*(1+rvanilla09)^0.5)/A2stdlife)) -> 0 | BI99: =IF(A2stdlife="n/a","n/a",IF(BI$3>(A2stdlife+$E99),('PTRM input'!$O$144*(1+rvanilla09)^0.5)-SUM($O99:BH99),('PTRM input'!$O$144*(1+rvanilla09)^0.5)/A2stdlife)) -> 0
E100: 10 | Q100: =IF(A2stdlife="n/a","n/a",IF(Q$3>(A2stdlife+$E100),('PTRM input'!$P$144*(1+rvanilla10)^0.5)-SUM($P100:P100),('PTRM input'!$P$144*(1+rvanilla10)^0.5)/A2stdlife)) -> 0 | R100: =IF(A2stdlife="n/a","n/a",IF(R$3>(A2stdlife+$E100),('PTRM input'!$P$144*(1+rvanilla10)^0.5)-SUM($P100:Q100),('PTRM input'!$P$144*(1+rvanilla10)^0.5)/A2stdlife)) -> 0 | S100: =IF(A2stdlife="n/a","n/a",IF(S$3>(A2stdlife+$E100),('PTRM input'!$P$144*(1+rvanilla10)^0.5)-SUM($P100:R100),('PTRM input'!$P$144*(1+rvanilla10)^0.5)/A2stdlife)) -> 0 | T100: =IF(A2stdlife="n/a","n/a",IF(T$3>(A2stdlife+$E100),('PTRM input'!$P$144*(1+rvanilla10)^0.5)-SUM($P100:S100),('PTRM input'!$P$144*(1+rvanilla10)^0.5)/A2stdlife)) -> 0 | U100: =IF(A2stdlife="n/a","n/a",IF(U$3>(A2stdlife+$E100),('PTRM input'!$P$144*(1+rvanilla10)^0.5)-SUM($P100:T100),('PTRM input'!$P$144*(1+rvanilla10)^0.5)/A2stdlife)) -> 0 | V100: =IF(A2stdlife="n/a","n/a",IF(V$3>(A2stdlife+$E100),('PTRM input'!$P$144*(1+rvanilla10)^0.5)-SUM($P100:U100),('PTRM input'!$P$144*(1+rvanilla10)^0.5)/A2stdlife)) -> 0 | W100: =IF(A2stdlife="n/a","n/a",IF(W$3>(A2stdlife+$E100),('PTRM input'!$P$144*(1+rvanilla10)^0.5)-SUM($P100:V100),('PTRM input'!$P$144*(1+rvanilla10)^0.5)/A2stdlife)) -> 0 | X100: =IF(A2stdlife="n/a","n/a",IF(X$3>(A2stdlife+$E100),('PTRM input'!$P$144*(1+rvanilla10)^0.5)-SUM($P100:W100),('PTRM input'!$P$144*(1+rvanilla10)^0.5)/A2stdlife)) -> 0 | Y100: =IF(A2stdlife="n/a","n/a",IF(Y$3>(A2stdlife+$E100),('PTRM input'!$P$144*(1+rvanilla10)^0.5)-SUM($P100:X100),('PTRM input'!$P$144*(1+rvanilla10)^0.5)/A2stdlife)) -> 0 | Z100: =IF(A2stdlife="n/a","n/a",IF(Z$3>(A2stdlife+$E100),('PTRM input'!$P$144*(1+rvanilla10)^0.5)-SUM($P100:Y100),('PTRM input'!$P$144*(1+rvanilla10)^0.5)/A2stdlife)) -> 0 | AA100: =IF(A2stdlife="n/a","n/a",IF(AA$3>(A2stdlife+$E100),('PTRM input'!$P$144*(1+rvanilla10)^0.5)-SUM($P100:Z100),('PTRM input'!$P$144*(1+rvanilla10)^0.5)/A2stdlife)) -> 0 | AB100: =IF(A2stdlife="n/a","n/a",IF(AB$3>(A2stdlife+$E100),('PTRM input'!$P$144*(1+rvanilla10)^0.5)-SUM($P100:AA100),('PTRM input'!$P$144*(1+rvanilla10)^0.5)/A2stdlife)) -> 0 | AC100: =IF(A2stdlife="n/a","n/a",IF(AC$3>(A2stdlife+$E100),('PTRM input'!$P$144*(1+rvanilla10)^0.5)-SUM($P100:AB100),('PTRM input'!$P$144*(1+rvanilla10)^0.5)/A2stdlife)) -> 0 | AD100: =IF(A2stdlife="n/a","n/a",IF(AD$3>(A2stdlife+$E100),('PTRM input'!$P$144*(1+rvanilla10)^0.5)-SUM($P100:AC100),('PTRM input'!$P$144*(1+rvanilla10)^0.5)/A2stdlife)) -> 0 | AE100: =IF(A2stdlife="n/a","n/a",IF(AE$3>(A2stdlife+$E100),('PTRM input'!$P$144*(1+rvanilla10)^0.5)-SUM($P100:AD100),('PTRM input'!$P$144*(1+rvanilla10)^0.5)/A2stdlife)) -> 0 | AF100: =IF(A2stdlife="n/a","n/a",IF(AF$3>(A2stdlife+$E100),('PTRM input'!$P$144*(1+rvanilla10)^0.5)-SUM($P100:AE100),('PTRM input'!$P$144*(1+rvanilla10)^0.5)/A2stdlife)) -> 0 | AG100: =IF(A2stdlife="n/a","n/a",IF(AG$3>(A2stdlife+$E100),('PTRM input'!$P$144*(1+rvanilla10)^0.5)-SUM($P100:AF100),('PTRM input'!$P$144*(1+rvanilla10)^0.5)/A2stdlife)) -> 0 | AH100: =IF(A2stdlife="n/a","n/a",IF(AH$3>(A2stdlife+$E100),('PTRM input'!$P$144*(1+rvanilla10)^0.5)-SUM($P100:AG100),('PTRM input'!$P$144*(1+rvanilla10)^0.5)/A2stdlife)) -> 0 | AI100: =IF(A2stdlife="n/a","n/a",IF(AI$3>(A2stdlife+$E100),('PTRM input'!$P$144*(1+rvanilla10)^0.5)-SUM($P100:AH100),('PTRM input'!$P$144*(1+rvanilla10)^0.5)/A2stdlife)) -> 0 | AJ100: =IF(A2stdlife="n/a","n/a",IF(AJ$3>(A2stdlife+$E100),('PTRM input'!$P$144*(1+rvanilla10)^0.5)-SUM($P100:AI100),('PTRM input'!$P$144*(1+rvanilla10)^0.5)/A2stdlife)) -> 0 | AK100: =IF(A2stdlife="n/a","n/a",IF(AK$3>(A2stdlife+$E100),('PTRM input'!$P$144*(1+rvanilla10)^0.5)-SUM($P100:AJ100),('PTRM input'!$P$144*(1+rvanilla10)^0.5)/A2stdlife)) -> 0 | AL100: =IF(A2stdlife="n/a","n/a",IF(AL$3>(A2stdlife+$E100),('PTRM input'!$P$144*(1+rvanilla10)^0.5)-SUM($P100:AK100),('PTRM input'!$P$144*(1+rvanilla10)^0.5)/A2stdlife)) -> 0 | AM100: =IF(A2stdlife="n/a","n/a",IF(AM$3>(A2stdlife+$E100),('PTRM input'!$P$144*(1+rvanilla10)^0.5)-SUM($P100:AL100),('PTRM input'!$P$144*(1+rvanilla10)^0.5)/A2stdlife)) -> 0 | AN100: =IF(A2stdlife="n/a","n/a",IF(AN$3>(A2stdlife+$E100),('PTRM input'!$P$144*(1+rvanilla10)^0.5)-SUM($P100:AM100),('PTRM input'!$P$144*(1+rvanilla10)^0.5)/A2stdlife)) -> 0 | AO100: =IF(A2stdlife="n/a","n/a",IF(AO$3>(A2stdlife+$E100),('PTRM input'!$P$144*(1+rvanilla10)^0.5)-SUM($P100:AN100),('PTRM input'!$P$144*(1+rvanilla10)^0.5)/A2stdlife)) -> 0 | AP100: =IF(A2stdlife="n/a","n/a",IF(AP$3>(A2stdlife+$E100),('PTRM input'!$P$144*(1+rvanilla10)^0.5)-SUM($P100:AO100),('PTRM input'!$P$144*(1+rvanilla10)^0.5)/A2stdlife)) -> 0 | AQ100: =IF(A2stdlife="n/a","n/a",IF(AQ$3>(A2stdlife+$E100),('PTRM input'!$P$144*(1+rvanilla10)^0.5)-SUM($P100:AP100),('PTRM input'!$P$144*(1+rvanilla10)^0.5)/A2stdlife)) -> 0 | AR100: =IF(A2stdlife="n/a","n/a",IF(AR$3>(A2stdlife+$E100),('PTRM input'!$P$144*(1+rvanilla10)^0.5)-SUM($P100:AQ100),('PTRM input'!$P$144*(1+rvanilla10)^0.5)/A2stdlife)) -> 0 | AS100: =IF(A2stdlife="n/a","n/a",IF(AS$3>(A2stdlife+$E100),('PTRM input'!$P$144*(1+rvanilla10)^0.5)-SUM($P100:AR100),('PTRM input'!$P$144*(1+rvanilla10)^0.5)/A2stdlife)) -> 0 | AT100: =IF(A2stdlife="n/a","n/a",IF(AT$3>(A2stdlife+$E100),('PTRM input'!$P$144*(1+rvanilla10)^0.5)-SUM($P100:AS100),('PTRM input'!$P$144*(1+rvanilla10)^0.5)/A2stdlife)) -> 0 | AU100: =IF(A2stdlife="n/a","n/a",IF(AU$3>(A2stdlife+$E100),('PTRM input'!$P$144*(1+rvanilla10)^0.5)-SUM($P100:AT100),('PTRM input'!$P$144*(1+rvanilla10)^0.5)/A2stdlife)) -> 0 | AV100: =IF(A2stdlife="n/a","n/a",IF(AV$3>(A2stdlife+$E100),('PTRM input'!$P$144*(1+rvanilla10)^0.5)-SUM($P100:AU100),('PTRM input'!$P$144*(1+rvanilla10)^0.5)/A2stdlife)) -> 0 | AW100: =IF(A2stdlife="n/a","n/a",IF(AW$3>(A2stdlife+$E100),('PTRM input'!$P$144*(1+rvanilla10)^0.5)-SUM($P100:AV100),('PTRM input'!$P$144*(1+rvanilla10)^0.5)/A2stdlife)) -> 0 | AX100: =IF(A2stdlife="n/a","n/a",IF(AX$3>(A2stdlife+$E100),('PTRM input'!$P$144*(1+rvanilla10)^0.5)-SUM($P100:AW100),('PTRM input'!$P$144*(1+rvanilla10)^0.5)/A2stdlife)) -> 0 | AY100: =IF(A2stdlife="n/a","n/a",IF(AY$3>(A2stdlife+$E100),('PTRM input'!$P$144*(1+rvanilla10)^0.5)-SUM($P100:AX100),('PTRM input'!$P$144*(1+rvanilla10)^0.5)/A2stdlife)) -> 0 | AZ100: =IF(A2stdlife="n/a","n/a",IF(AZ$3>(A2stdlife+$E100),('PTRM input'!$P$144*(1+rvanilla10)^0.5)-SUM($P100:AY100),('PTRM input'!$P$144*(1+rvanilla10)^0.5)/A2stdlife)) -> 0 | BA100: =IF(A2stdlife="n/a","n/a",IF(BA$3>(A2stdlife+$E100),('PTRM input'!$P$144*(1+rvanilla10)^0.5)-SUM($P100:AZ100),('PTRM input'!$P$144*(1+rvanilla10)^0.5)/A2stdlife)) -> 0 | BB100: =IF(A2stdlife="n/a","n/a",IF(BB$3>(A2stdlife+$E100),('PTRM input'!$P$144*(1+rvanilla10)^0.5)-SUM($P100:BA100),('PTRM input'!$P$144*(1+rvanilla10)^0.5)/A2stdlife)) -> 0 | BC100: =IF(A2stdlife="n/a","n/a",IF(BC$3>(A2stdlife+$E100),('PTRM input'!$P$144*(1+rvanilla10)^0.5)-SUM($P100:BB100),('PTRM input'!$P$144*(1+rvanilla10)^0.5)/A2stdlife)) -> 0 | BD100: =IF(A2stdlife="n/a","n/a",IF(BD$3>(A2stdlife+$E100),('PTRM input'!$P$144*(1+rvanilla10)^0.5)-SUM($P100:BC100),('PTRM input'!$P$144*(1+rvanilla10)^0.5)/A2stdlife)) -> 0 | BE100: =IF(A2stdlife="n/a","n/a",IF(BE$3>(A2stdlife+$E100),('PTRM input'!$P$144*(1+rvanilla10)^0.5)-SUM($P100:BD100),('PTRM input'!$P$144*(1+rvanilla10)^0.5)/A2stdlife)) -> 0 | BF100: =IF(A2stdlife="n/a","n/a",IF(BF$3>(A2stdlife+$E100),('PTRM input'!$P$144*(1+rvanilla10)^0.5)-SUM($P100:BE100),('PTRM input'!$P$144*(1+rvanilla10)^0.5)/A2stdlife)) -> 0 | BG100: =IF(A2stdlife="n/a","n/a",IF(BG$3>(A2stdlife+$E100),('PTRM input'!$P$144*(1+rvanilla10)^0.5)-SUM($P100:BF100),('PTRM input'!$P$144*(1+rvanilla10)^0.5)/A2stdlife)) -> 0 | BH100: =IF(A2stdlife="n/a","n/a",IF(BH$3>(A2stdlife+$E100),('PTRM input'!$P$144*(1+rvanilla10)^0.5)-SUM($P100:BG100),('PTRM input'!$P$144*(1+rvanilla10)^0.5)/A2stdlife)) -> 0 | BI100: =IF(A2stdlife="n/a","n/a",IF(BI$3>(A2stdlife+$E100),('PTRM input'!$P$144*(1+rvanilla10)^0.5)-SUM($P100:BH100),('PTRM input'!$P$144*(1+rvanilla10)^0.5)/A2stdlife)) -> 0
C101: =Asset2 -> Distribution system assets | G101: =SUM(G89:G100) -> 60.64318655 | H101: =SUM(H89:H100) -> 2.647564904 | I101: 2.647564904 | J101: 2.647564904 | K101: 2.647564904 | L101: 2.647564904 | M101: 2.647564904 | N101: 2.647564904 | O101: 2.647564904 | P101: 2.647564904 | Q101: 2.647564904 | R101: 2.647564904 | S101: 2.647564904 | T101: 2.647564904 | U101: 2.647564904 | V101: 2.647564904 | W101: 2.647564904 | X101: 2.647564904 | Y101: 2.647564904 | Z101: 2.647564904 | AA101: 2.647564904 | AB101: 2.647564904 | AC101: 2.647564904 | AD101: 2.647564904 | AE101: 2.647564904 | AF101: 2.647564904 | AG101: 2.647564904 | AH101: 2.647564904 | AI101: 2.647564904 | AJ101: 2.647564904 | AK101: 2.647564904 | AL101: 2.647564904 | AM101: 2.647564904 | AN101: 2.647564904 | AO101: 2.647564904 | AP101: 2.647564904 | AQ101: 2.647564904 | AR101: 2.647564904 | AS101: 2.647564904 | AT101: 2.647564904 | AU101: 2.647564904 | AV101: 2.647564904 | AW101: 2.647564904 | AX101: 2.647564904 | AY101: 2.647564904 | AZ101: 2.647564904 | BA101: 2.647564904 | BB101: 2.647564904 | BC101: 2.647564904 | BD101: 2.647564904 | BE101: 2.647564904 | BF101: 2.647564904 | BG101: 5.684341886e-14 | BH101: 0 | BI101: 0
